{"text_format":"1","workbook":"xlsx","n_sheets":5,"sheets":["Pesquisa","Sheet1","Sheet2","Sheet3","Links1_10"],"not_rendered":{"charts":0,"images":1,"macros":1,"external_links":0,"defined_names":3,"comments":0,"pivot_tables":1},"unopened":[],"bounds":{"document_bytes":16777216,"sheet_cells":100000,"rows_first":2000,"rows_last":500,"rows_between":2000,"halvings":0,"cell_chars":16384,"cell_head_chars":4096},"cells_cut":0,"cells_raw":0,"read":"whole","date_system":"1900"}

{"sheet":"Pesquisa","index":0,"n_rows":27,"n_cols":4,"rows_kept":27,"cut":false,"hidden":false,"merged":[[0,3,0,14]]}
[null,null,null,"Pesquisa de artigos"]
[null,null,null,"Selecionar tipo de pesquisa"]
[]
[]
[null,null,null,{"$f":"+IF(Sheet2!W7=3,\"Pesquisa \", \"Selecionar \" )&Sheet2!W6","v":"Selecionar Tema"}]
[]
[]
[null,null,null,"Selecionar artigo "]
[]
[]
[]
[]
[]
[]
[]
[]
[]
[]
[]
[]
[]
[]
[]
[]
[]
[]
[null,null,null,"Selecionar artigo"]

{"sheet":"Sheet1","index":1,"n_rows":627,"n_cols":16,"rows_kept":627,"cut":false,"hidden":true,"merged":[]}
["id","TituloArtigo","Nº","Pagina","Autor1","Autor2","Entidade1","Entidade2","CodSeccao","Lingua","AnoPublicação","Palavras-chave","Obs","Pesquisa","ficheiro","Texto_pesquisa"]
[472,"Cultivar 1 - Publicação Completa",1,1,"Gabinete de Planeamento, Políticas e Administração Geral (GPP)","","","","","","2015","","",0,"Cultivar1.pdf",{"$f":"+B2&E2&F2&G2&H2&I2&J2&K2&L2","v":"Cultivar 1 - Publicação CompletaGabinete de Planeamento, Políticas e Administração Geral (GPP)2015"}]
[1,"Editorial",1,7,"Eduardo Diniz","Diretor-geral","GPP","","","PT","2015","políticas públicas, apresentação da Cultivar, incerteza, risco, custos, variação da oferta, integração de mercados, variação de preços","",null,"Cultivar1CapaEditorial.pdf",{"$f":"+B3&E3&F3&G3&H3&I3&J3&K3&L3","v":"EditorialEduardo DinizDiretor-geralGPPPT2015políticas públicas, apresentação da Cultivar, incerteza, risco, custos, variação da oferta, integração de mercados, variação de preços"}]
[2,"Perspetivas dos mercados agrícolas: fatores de crescimento, incertezas e respostas políticas",1,13,"Tassos Haniotis","Diretor","DG AGRI ","Comissão Europeia","I","PT","2015","Evolução dos preços, Mercados agrícolas, Volatilidade","",null,"Cultivar1GT1HaniotisPT.pdf","Perspetivas dos mercados agrícolas: fatores de crescimento, incertezas e respostas políticasTassos HaniotisDiretorDG AGRI Comissão EuropeiaIPT2015Evolução dos preços, Mercados agrícolas, Volatilidade"]
[3,"Agricultural market outlook: drivers, uncertainties and policy responses",1,21,"Tassos Haniotis","Diretor","DG AGRI ","Comissão Europeia","I","EN","2015","price evolution, agricultural market, volatility","",null,"Cultivar1GT1HaniotisEN.pdf","Agricultural market outlook: drivers, uncertainties and policy responsesTassos HaniotisDiretorDG AGRI Comissão EuropeiaIEN2015price evolution, agricultural market, volatility"]
[4,"Um balanço do uso das matérias-primas utilizadas na produção de biocombustíveis em Portugal",1,27,"Fernando Bianchi de Aguiar","Consultor","Galp Energia","","I","PT","2015","Biocombústiveis, Energia, Emissões","",null,"Cultivar1GT2Bianchi.pdf","Um balanço do uso das matérias-primas utilizadas na produção de biocombustíveis em PortugalFernando Bianchi de AguiarConsultorGalp EnergiaIPT2015Biocombústiveis, Energia, Emissões"]
[5,"As dinâmicas de mercado e os seus impactos na produção de milho em Portugal",1,47,"Jorge Neves","Diretor-geral","Agromais","","I","PT","2015","Milho, Comércio mundial, Globalização","",null,"Cultivar1GT3Neves.pdf","As dinâmicas de mercado e os seus impactos na produção de milho em PortugalJorge NevesDiretor-geralAgromaisIPT2015Milho, Comércio mundial, Globalização"]
[6,"Um novo mundo novo",1,53,"Manuel Marcelo Curto","Embaixador","MNE","","I","PT","2015","Geopolítica, Negociação, Governação internacional","",null,"Cultivar1GT4Curto.pdf","Um novo mundo novoManuel Marcelo CurtoEmbaixadorMNEIPT2015Geopolítica, Negociação, Governação internacional"]
[7,"A evolução da economia agrícola portuguesa",1,63,"Gabinete de Planeamento, Políticas e Administração Geral (GPP)","","GPP","","II","PT","2015","Complexo agroalimentar, Valor acrescentado, Economia","",null,"Cultivar1OBS1GPPEconomia.pdf","A evolução da economia agrícola portuguesaGabinete de Planeamento, Políticas e Administração Geral (GPP)GPPIIPT2015Complexo agroalimentar, Valor acrescentado, Economia"]
[8,"Comércio internacional de produtos agroalimentares, da floresta e das pescas",1,75,"Gabinete de Planeamento, Políticas e Administração Geral (GPP)","","GPP","","II","PT","2015","Exportações, Importações, Balança comercial","",null,"Cultivar1OBS2GPPComercio.pdf","Comércio internacional de produtos agroalimentares, da floresta e das pescasGabinete de Planeamento, Políticas e Administração Geral (GPP)GPPIIPT2015Exportações, Importações, Balança comercial"]
[9,"Mercados agrícolas",1,85,"Gabinete de Planeamento, Políticas e Administração Geral (GPP)","","GPP","","II","PT","2015","Evolução, Produção, Exportações","",null,"Cultivar1OBS3GPPMercados.pdf","Mercados agrícolasGabinete de Planeamento, Políticas e Administração Geral (GPP)GPPIIPT2015Evolução, Produção, Exportações"]
[10,"Índices de preços na cadeia de abastecimento alimentar",1,91,"Gabinete de Planeamento, Políticas e Administração Geral (GPP)","","GPP","","II","PT","2015","PARCA, Crescimento, cadeia alimentar, Preços, Abastecimento","",null,"Cultivar1OBS2GPPPrecos.pdf","Índices de preços na cadeia de abastecimento alimentarGabinete de Planeamento, Políticas e Administração Geral (GPP)GPPIIPT2015PARCA, Crescimento, cadeia alimentar, Preços, Abastecimento"]
[11,"OECD-FAO Agriculture outlook 2014-2013",1,101,"Gabinete de Planeamento, Políticas e Administração Geral (GPP)","","OCDE-FAO","","IIIA","EN","2015","Desenvolvimento, Outlook, Tendências","",null,"Cultivar1ASS1GPPOCDEFAO.pdf","OECD-FAO Agriculture outlook 2014-2013Gabinete de Planeamento, Políticas e Administração Geral (GPP)OCDE-FAOIIIAEN2015Desenvolvimento, Outlook, Tendências"]
[12,"The state of food insecurity in the world 2014",1,105,"Gabinete de Planeamento, Políticas e Administração Geral (GPP)","","FAO","","IIIA","EN","2014","Segurança alimentar, Desenvolvimento, Consumo","",null,"Cultivar1ASS2GPPFAO.pdf","The state of food insecurity in the world 2014Gabinete de Planeamento, Políticas e Administração Geral (GPP)FAOIIIAEN2014Segurança alimentar, Desenvolvimento, Consumo"]
[13,"Modelling adaptation to climate change in agriculture",1,107,"Gabinete de Planeamento, Políticas e Administração Geral (GPP)","","OCDE","","IIIA","EN","2014","Alterações climáticas, Adaptação, Desenvolvimento","",null,"Cultivar1ASS3GPPOCDE.pdf","Modelling adaptation to climate change in agricultureGabinete de Planeamento, Políticas e Administração Geral (GPP)OCDEIIIAEN2014Alterações climáticas, Adaptação, Desenvolvimento"]
[14,"Abolition of the milk quota system in Switzerland",1,109,"Gabinete de Planeamento, Políticas e Administração Geral (GPP)","","European Milk Board","","IIIA","EN","2014","Quotas leiteiras, Produção, Mecanismo","",null,"Cultivar1ASS4GPPEMB.pdf","Abolition of the milk quota system in SwitzerlandGabinete de Planeamento, Políticas e Administração Geral (GPP)European Milk BoardIIIAEN2014Quotas leiteiras, Produção, Mecanismo"]
[473,"Cultivar 2 - Publicação Completa",2,1,"Gabinete de Planeamento, Políticas e Administração Geral (GPP)","","","","","","2015","","",0,"Cultivar2.pdf","Cultivar 2 - Publicação CompletaGabinete de Planeamento, Políticas e Administração Geral (GPP)2015"]
[15,"Editorial",2,7,"Eduardo Diniz","Diretor-geral","GPP","","","PT","2015","políticas públicas, uso sustentável, multidisciplinaridade, sustentabilidade","",null,"Cultivar2CapaEditorial.pdf","EditorialEduardo DinizDiretor-geralGPPPT2015políticas públicas, uso sustentável, multidisciplinaridade, sustentabilidade"]
[16,"Uso sustentável da terra na União Europeia",2,13,"Pia Bucella","","DG ENV","Comissão Europeia","I","","2015","solo, terra, sustentabilidade","",null,"Cultivar2GT1Bucella.pdf",{"$f":"+B19&E19&F19&G19&H19&I19&J19&K19&L19","v":"Uso sustentável da terra na União EuropeiaPia BucellaDG ENVComissão EuropeiaI2015solo, terra, sustentabilidade"}]
[17,"Solos agrícolas: um trunfo para a segurança alimentar e o clima",2,21,"Catherine Geslain-Laneelle","","","","I","","2015","solo, solo agrícola, segurança alimentar, clima","",null,"Cultivar2GT2Laneelle.pdf","Solos agrícolas: um trunfo para a segurança alimentar e o climaCatherine Geslain-LaneelleI2015solo, solo agrícola, segurança alimentar, clima"]
[18,"A importância de uma gestão sustentável do solo para o crescimento futuro da agricultura portuguesa",2,27,"Francisco Avillez e Mário de Carvalho","AGRO.GES; ICAAM","","","I","","2015","solo, gestão sustentável, crescimento, futuro da agricultura","",null,"Cultivar2GT3AvillezCarvalho.pdf","A importância de uma gestão sustentável do solo para o crescimento futuro da agricultura portuguesaFrancisco Avillez e Mário de CarvalhoAGRO.GES; ICAAMI2015solo, gestão sustentável, crescimento, futuro da agricultura"]
[19,"Terra e território na Galiza: o movimento que esconde a imobilidade",2,41,"Francisco Ónega López","","Laboratório do Território","Universidade de Santiago de Compostela","I","","2015","terra, território, Galiza, Espanha","",null,"Cultivar2GT4Lopez.pdf","Terra e território na Galiza: o movimento que esconde a imobilidadeFrancisco Ónega LópezLaboratório do TerritórioUniversidade de Santiago de CompostelaI2015terra, território, Galiza, Espanha"]
[20,"O solo e o direito de propriedade da terra",2,53,"José Moreira da Silva e Alexandre Roque","Presidente","Comissão de Direito Administrativo","Union Internationale des Avocats; SRS Advogados","I","","2015","solo, direito de propriedade, terra","",null,"Cultivar2GT5SilvaRoque.pdf","O solo e o direito de propriedade da terraJosé Moreira da Silva e Alexandre RoquePresidenteComissão de Direito AdministrativoUnion Internationale des Avocats; SRS AdvogadosI2015solo, direito de propriedade, terra"]
[21,"Dinâmicas da utilização do solo pela agricultura",2,63,"Gabinete de Planeamento, Políticas e Administração Geral (GPP)","Rui Pereira","","","II","","2015","estrutura fundiária; ocupação cultural, Inquérito à Estrutura das Explorações Agrícolas; Recenseamento Agrícola","",null,"Cultivar2OBS1GPPSolo.pdf","Dinâmicas da utilização do solo pela agriculturaGabinete de Planeamento, Políticas e Administração Geral (GPP)Rui PereiraII2015estrutura fundiária; ocupação cultural, Inquérito à Estrutura das Explorações Agrícolas; Recenseamento Agrícola"]
[22,"Inventário Florestal Nacional – a dinâmica da ocupação florestal do solo desde o séc. XIX a 2050",2,83,"José Sousa Uva","ICNF","","","II","","2015","Inventário florestal; Área florestal; Uso do solo","",null,"Cultivar2OBS2ICNFUva.pdf","Inventário Florestal Nacional – a dinâmica da ocupação florestal do solo desde o séc. XIX a 2050José Sousa UvaICNFII2015Inventário florestal; Área florestal; Uso do solo"]
[23,"O combate à desertificação e a qualidade das terras em Portugal",2,93,"Lúcio do Rosário","ICNF","","","II","","2015","Desertificação; PANCD; Programa Nacional de Combate à Desertificação; Índice de aridez","",null,"Cultivar2OBS3ICNFRosario.pdf","O combate à desertificação e a qualidade das terras em PortugalLúcio do RosárioICNFII2015Desertificação; PANCD; Programa Nacional de Combate à Desertificação; Índice de aridez"]
[24,"Ano Internacional dos Solos",2,105,"Direção-Geral de Agricultura e Desenvolvimento Rural (DGADR)","","","","IIIA","","2015","Desenvolvimento sustentável; Gestão solos; Parceria Global do Solo","",null,"Cultivar2ASS1DGADRAnoSolos.pdf","Ano Internacional dos SolosDireção-Geral de Agricultura e Desenvolvimento Rural (DGADR)IIIA2015Desenvolvimento sustentável; Gestão solos; Parceria Global do Solo"]
[25,"Policy Approaches to Droughts and Floods in Agricultures",2,115,"Gabinete de Planeamento, Políticas e Administração Geral (GPP)","","OCDE","","IIIA","EN","2015","Políticas para agricultura; Secas e cheias; Alterações climáticas; Gestão de risco","",null,"Cultivar2ASS2GPPOCDE.pdf","Policy Approaches to Droughts and Floods in AgriculturesGabinete de Planeamento, Políticas e Administração Geral (GPP)OCDEIIIAEN2015Políticas para agricultura; Secas e cheias; Alterações climáticas; Gestão de risco"]
[26,"Voluntary Guidelines on the Responsible Governance of Tenure and Land, \nFisheries and Forest in the Context of National Food Security",2,120,"Gabinete de Planeamento, Políticas e Administração Geral (GPP)","","FAO","","IIIA","EN","2012","Acesso à terra; Segurança alimentar; Gestão responsável pela posse da terra","",null,"Cultivar2ASS3GPPFAO.pdf","Voluntary Guidelines on the Responsible Governance of Tenure and Land, \nFisheries and Forest in the Context of National Food SecurityGabinete de Planeamento, Políticas e Administração Geral (GPP)FAOIIIAEN2012Acesso à terra; Segurança alimentar; Gestão responsável pela posse da terra"]
[27,"Estratégia Nacional para as Florestas",2,124,"Gabinete de Planeamento, Políticas e Administração Geral (GPP)","","Governo de Portugal","","IIIA","PT","2015","Estratégia Nacional para as Florestas; Gestão Florestal; Ocupação florestal","",null,"Cultivar2ASS4ICNFEstrategiaFlorestas.pdf","Estratégia Nacional para as FlorestasGabinete de Planeamento, Políticas e Administração Geral (GPP)Governo de PortugalIIIAPT2015Estratégia Nacional para as Florestas; Gestão Florestal; Ocupação florestal"]
[474,"Cultivar 3 - Publicação Completa",3,1,"Gabinete de Planeamento, Políticas e Administração Geral (GPP)","","","","","","2016","","",0,"Cultivar3.pdf","Cultivar 3 - Publicação CompletaGabinete de Planeamento, Políticas e Administração Geral (GPP)2016"]
[279,"Editorial",3,7,"Eduardo Diniz","Diretor-geral","Gabinete de Planeamento, Políticas e Administração Geral (GPP)","","","PT","2016","satisfação de necessidades, recursos limitados","",0,"Cultivar3CapaEditorial.pdf","EditorialEduardo DinizDiretor-geralGabinete de Planeamento, Políticas e Administração Geral (GPP)PT2016satisfação de necessidades, recursos limitados"]
[280,"Intensificação Sustentável: Um Novo Modelo Tecnológico na Agricultura",3,13,"José Lima Santos","Professor e investigador","Instituto Superior de Agronomia (ISA)","","I","PT","2016","desafio alimentar 2050; modelo tecnológico alternativo; serviços de ecossistemas; segurança alimentar; pegada ambiental; produtividade da terra; alterações climáticas; eficiência na utilização de recursos; agricultura de precisão; remuneração de bens","",0,"Cultivar3GT1Santos.pdf","Intensificação Sustentável: Um Novo Modelo Tecnológico na AgriculturaJosé Lima SantosProfessor e investigadorInstituto Superior de Agronomia (ISA)IPT2016desafio alimentar 2050; modelo tecnológico alternativo; serviços de ecossistemas; segurança alimentar; pegada ambiental; produtividade da terra; alterações climáticas; eficiência na utilização de recursos; agricultura de precisão; remuneração de bens"]
[281,"A Indústria Alimentar e Produção Alimentar Sustentável",3,23,"Gilles Morel","Presidente e Presidente Regional","FoodDrinkEurope e Mars Chocolate Europe & Eurasia","","I","PT, EN","2016","escassez de recursos; segurança alimentar; alterações climáticas; preços dos alimentos; qualidade alimentar; deterioração ambiental; produtividade ; ODS; desperdício alimentar; COP21; inovação; globalização; regulamentação; mercado único","",0,"Cultivar3GT2Morel.pdf","A Indústria Alimentar e Produção Alimentar SustentávelGilles MorelPresidente e Presidente RegionalFoodDrinkEurope e Mars Chocolate Europe & EurasiaIPT, EN2016escassez de recursos; segurança alimentar; alterações climáticas; preços dos alimentos; qualidade alimentar; deterioração ambiental; produtividade ; ODS; desperdício alimentar; COP21; inovação; globalização; regulamentação; mercado único"]
[282,"Contributos para uma Estratégia de Promoção da Alimentação Saudável e Sustentável em Portugal",3,33,"Pedro Graça e Duarte Torres","Diretor; professor e investigador","Programa Nacional de Promoção da Alimentação Saudável, Direção-Geral da Saúde","Faculdade de Ciências da Nutrição e Alimentação da Universidade do Porto","I","PT","2016","segurança alimentar; necessidades nutricionais; preferências alimentares; estratégia nacional para a alimentação e nutrição; promoção da saúde; composição dos alimentos; necessidades em calorias e nutrientes; obesidade; padrões alimentares","",0,"Cultivar3GT3GracaTorres.pdf","Contributos para uma Estratégia de Promoção da Alimentação Saudável e Sustentável em PortugalPedro Graça e Duarte TorresDiretor; professor e investigadorPrograma Nacional de Promoção da Alimentação Saudável, Direção-Geral da SaúdeFaculdade de Ciências da Nutrição e Alimentação da Universidade do PortoIPT2016segurança alimentar; necessidades nutricionais; preferências alimentares; estratégia nacional para a alimentação e nutrição; promoção da saúde; composição dos alimentos; necessidades em calorias e nutrientes; obesidade; padrões alimentares"]
[283,"Comércio Internacional do Complexo Agroflorestal e Pescas",3,43,"Gabinete de Planeamento, Políticas e Administração Geral (GPP)","","","","II","PT","2016","saldo comercial agroflorestal; défice alimentar; importações; exportações; taxa de cobertura; grau de abertura; orientação exportadora; grau de autoaprovisionamento alimentar; Nomenclatura Combinada; Contas Nacionais; Estatísticas","",0,"Cultivar3OBS1GPPComercioInternacional.pdf","Comércio Internacional do Complexo Agroflorestal e PescasGabinete de Planeamento, Políticas e Administração Geral (GPP)IIPT2016saldo comercial agroflorestal; défice alimentar; importações; exportações; taxa de cobertura; grau de abertura; orientação exportadora; grau de autoaprovisionamento alimentar; Nomenclatura Combinada; Contas Nacionais; Estatísticas"]
[284,"Distribuição de Valor ao Longo da Cadeia Alimentar",3,59,"Gabinete de Planeamento, Políticas e Administração Geral (GPP)","","","","II","PT","2016","procura mundial de alimentos; preço das matérias-primas agrícolas; cadeia de abastecimento alimentar; PARCA; concentração; práticas anticoncorrenciais; PCD - práticas comerciais desleais","",0,"Cultivar3OBS2GPPValorCadeia.pdf","Distribuição de Valor ao Longo da Cadeia AlimentarGabinete de Planeamento, Políticas e Administração Geral (GPP)IIPT2016procura mundial de alimentos; preço das matérias-primas agrícolas; cadeia de abastecimento alimentar; PARCA; concentração; práticas anticoncorrenciais; PCD - práticas comerciais desleais"]
[285,"As Indústrias Alimentares e das Bebidas",3,63," Federação das Indústrias Portuguesas Agroalimentares (FIPA)","","","","II","PT","2016","indústria transformadora; empresas; produção; VAB; volume de negócios; pessoal ao serviço; comércio externo","",0,"Cultivar3OBS3FIPAIndustriasAlimentares.pdf","As Indústrias Alimentares e das Bebidas Federação das Indústrias Portuguesas Agroalimentares (FIPA)IIPT2016indústria transformadora; empresas; produção; VAB; volume de negócios; pessoal ao serviço; comércio externo"]
[286,"Organização da Produção",3,67,"Gabinete de Planeamento, Políticas e Administração Geral (GPP)","","","","II","PT","2016","atomização da produção; organização comum dos mercados agrícolas; reconhecimento; OP - Organização de Produtores; economia de escala; grau de organização e concentração; comercialização; valor da produção","",0,"Cultivar3OrganizaçãoDaProdução.pdf","Organização da ProduçãoGabinete de Planeamento, Políticas e Administração Geral (GPP)IIPT2016atomização da produção; organização comum dos mercados agrícolas; reconhecimento; OP - Organização de Produtores; economia de escala; grau de organização e concentração; comercialização; valor da produção"]
[287,"A Economia do Bacalhau – Cadeia de Valor, Mercados e Dependência",3,73,"Fernando Chagas Duarte","Geógrafo","Direção-Geral de Recursos Marítimos (DGRM)","","II","PT","2016","bacalhau salgado seco; conservação; valor proteico; salga do pescado; pesca do bacalhau; Terra Nova; importação;  produto tradicional; gastronomia","",0,"Cultivar3AEconomiaDoBacalhau.pdf","A Economia do Bacalhau – Cadeia de Valor, Mercados e DependênciaFernando Chagas DuarteGeógrafoDireção-Geral de Recursos Marítimos (DGRM)IIPT2016bacalhau salgado seco; conservação; valor proteico; salga do pescado; pesca do bacalhau; Terra Nova; importação;  produto tradicional; gastronomia"]
[288,"O Papel das Leguminosas nos Sistemas Alimentares",3,91,"Helder Muteia","Responsável","Escritório da FAO em Portugal e junto da CPLP","","IIIA","PT","2016","Nota de Enquadramento, hábitos alimentares; urbanização; proteínas de origem vegetal; leguminosas secas; diversificação das dietas; sementes nutritivas","",0,"Cultivar3OPapelDasLeguminosasNosSistemasAlimentares.pdf","O Papel das Leguminosas nos Sistemas AlimentaresHelder MuteiaResponsávelEscritório da FAO em Portugal e junto da CPLPIIIAPT2016Nota de Enquadramento, hábitos alimentares; urbanização; proteínas de origem vegetal; leguminosas secas; diversificação das dietas; sementes nutritivas"]
[289,"Ensinamentos “Sobre O Cuidado Da Casa Comum” Ficha De Leitura: “Laudato Si”, Santo Padre Francisco, 2015",3,95,"Gabinete de Planeamento, Políticas e Administração Geral (GPP)","Papa Francisco","Encíclicas da Santa Sé","","IIIA","PT","2016","espiritualidade, ecologia, bem-estar social, diálogo; futuro do planeta; populações mais desfavorecidas; estado ecológico do mundo; crise ecológica; alterações climáticas; COP21; bem comum","",0,"Cultivar3EnsinamentosSobreOCuidadoDaCasaComum.pdf","Ensinamentos “Sobre O Cuidado Da Casa Comum” Ficha De Leitura: “Laudato Si”, Santo Padre Francisco, 2015Gabinete de Planeamento, Políticas e Administração Geral (GPP)Papa FranciscoEncíclicas da Santa SéIIIAPT2016espiritualidade, ecologia, bem-estar social, diálogo; futuro do planeta; populações mais desfavorecidas; estado ecológico do mundo; crise ecológica; alterações climáticas; COP21; bem comum"]
[290,"Instrumentos de Política para Alterações Climáticas",3,99,"Gabinete de Planeamento, Políticas e Administração Geral (GPP)","UNFCCC, Conferência das Partes (COP)","Adoção do Acordo de Paris. Proposta do Presidente, 2015","","II","PT","2016","compromisso, alterações climáticas, desenvolvimento sustentável; COP21; adaptação; mitigação; redução das emissões de GEE; greening; ecologização; agricultura biológica; medidas agroambientais; QEPiC - Quadro Estratégico para a Política Climática","",0,"Cultivar3InstrumentosDePolíticaParaAlteraçõesClimáticas.pdf","Instrumentos de Política para Alterações ClimáticasGabinete de Planeamento, Políticas e Administração Geral (GPP)UNFCCC, Conferência das Partes (COP)Adoção do Acordo de Paris. Proposta do Presidente, 2015IIPT2016compromisso, alterações climáticas, desenvolvimento sustentável; COP21; adaptação; mitigação; redução das emissões de GEE; greening; ecologização; agricultura biológica; medidas agroambientais; QEPiC - Quadro Estratégico para a Política Climática"]
[291,"Instrumentos de Política para a Erradicação da Fome na CPLP",3,101,"Gabinete de Planeamento, Políticas e Administração Geral (GPP)","CPLP - Comunidade dos Países de Língua Portuguesa","","","IIIA","PT","2016","ESAN-CPLP - Estratégia de Segurança Alimentar da CPLP, PALOP; desnutrição; segurança alimentar e nutricional; agricultura familiar; CONSAN-CPLP; FAO","",0,"Cultivar3InstrumentosDePolíticaParaAErradicaçãoDaFome.pdf","Instrumentos de Política para a Erradicação da Fome na CPLPGabinete de Planeamento, Políticas e Administração Geral (GPP)CPLP - Comunidade dos Países de Língua PortuguesaIIIAPT2016ESAN-CPLP - Estratégia de Segurança Alimentar da CPLP, PALOP; desnutrição; segurança alimentar e nutricional; agricultura familiar; CONSAN-CPLP; FAO"]
[292,"Acompanhamento e Avaliação das Políticas Agrícolas",3,103,"Gabinete de Planeamento, Políticas e Administração Geral (GPP)","","OCDE -Departamento de Agricultura e Comércio","","","","","estimativa do apoio aos produtores agrícolas; economias emergentes; monitorização e avaliação; apoios monetários; agricultura; recomendações","",0,"Cultivar3AcompanhamentoEAvaliaçãoDasPolíticasAgrícolas.pdf","Acompanhamento e Avaliação das Políticas AgrícolasGabinete de Planeamento, Políticas e Administração Geral (GPP)OCDE -Departamento de Agricultura e Comércioestimativa do apoio aos produtores agrícolas; economias emergentes; monitorização e avaliação; apoios monetários; agricultura; recomendações"]
[293,"Aprovisionamento Em Situações De Crise E Planeamento Civil De Emergência Ficha De Leitura: “Os Desafios Da Alimentação Mundial”, Fao Portugal, 2015",3,107,"Gabinete de Planeamento, Políticas e Administração Geral (GPP)","","Hélder Muteia – Representante da FAO em Portugal e junto da CPLP","","","","","Os desafios da alimentação mundial, situações de crise; planeamento civil de emergência; segurança alimentar; NATO; comissão de planeamento de emergência da agricultura","",0,"Cultivar3AprovisionamentoEmSituaçõesDeCrise.pdf","Aprovisionamento Em Situações De Crise E Planeamento Civil De Emergência Ficha De Leitura: “Os Desafios Da Alimentação Mundial”, Fao Portugal, 2015Gabinete de Planeamento, Políticas e Administração Geral (GPP)Hélder Muteia – Representante da FAO em Portugal e junto da CPLPOs desafios da alimentação mundial, situações de crise; planeamento civil de emergência; segurança alimentar; NATO; comissão de planeamento de emergência da agricultura"]
[294,"Instrumentos de Política para Boas Práticas Agrícolas",3,111,"Gabinete de Planeamento, Políticas e Administração Geral (GPP)","UNECE - United Nations Economic Commission for Europe","","","","","","Código-Quadro para Boas Práticas Agrícolas de Redução das Emissões de Amoníaco, ciclo do azoto, emissões de amoníaco,\nboas práticas agrícolas, fertilização, protocolo de Gotemburgo; estratégia nacional para o Ar 2020","",0,"Cultivar3InstrumentosDePolíticaParaBoasPráticasAgrícolas.pdf","Instrumentos de Política para Boas Práticas AgrícolasGabinete de Planeamento, Políticas e Administração Geral (GPP)UNECE - United Nations Economic Commission for EuropeCódigo-Quadro para Boas Práticas Agrícolas de Redução das Emissões de Amoníaco, ciclo do azoto, emissões de amoníaco,\nboas práticas agrícolas, fertilização, protocolo de Gotemburgo; estratégia nacional para o Ar 2020"]
[295,"Programa Operacional de Sanidade Florestal",3,115,"Instituto da Conservação da Natureza e das Florestas, I.P. (ICNF)","","","","IIIA","PT","2016","estado fitossanitário; globalização; alterações climáticas; incêndios florestais; controlo de pragas; proteção fitossanitária; agentes bióticos nocivos; POSF; prevenção; GASF – Grupo de Acompanhamento de Sanidade Florestal; plano de contingência","",0,"Cultivar3ProgramaOperacionalSanidadeFlorestal.pdf","Programa Operacional de Sanidade FlorestalInstituto da Conservação da Natureza e das Florestas, I.P. (ICNF)IIIAPT2016estado fitossanitário; globalização; alterações climáticas; incêndios florestais; controlo de pragas; proteção fitossanitária; agentes bióticos nocivos; POSF; prevenção; GASF – Grupo de Acompanhamento de Sanidade Florestal; plano de contingência"]
[475,"Cultivar 4 - Publicação Completa",4,1,"Gabinete de Planeamento, Políticas e Administração Geral (GPP)","","","","","","2016","","",0,"Cultivar4.pdf","Cultivar 4 - Publicação CompletaGabinete de Planeamento, Políticas e Administração Geral (GPP)2016"]
[309,"Editorial",4,7,"Eduardo Diniz","Diretor-geral","Gabinete de Planeamento, Políticas e Administração Geral (GPP)","","","PT","2016","ciência, engenharia, inovação, biotecnologia","",0,"Cultivar4CapaEditorial.pdf","EditorialEduardo DinizDiretor-geralGabinete de Planeamento, Políticas e Administração Geral (GPP)PT2016ciência, engenharia, inovação, biotecnologia"]
[310,"Bioeconomia – Uma Estratégia da UE para Promover o Desenvolvimento Sustentável e o Crescimento Verde",4,13,"Carlos Moedas","Comissário Europeu para a Investigação, Ciência e Inovação","Comissão Europeia","União Europeia","I","PT","2016","pegada de carbono; consumo de energia; resíduos biológicos; economia circular; novas cadeias de valor;  indústrias de base biológica; zonas rurais e costeiras; investigação e inovação na bioeconomia","",0,"Cultivar4GTCarlosMoedas.pdf","Bioeconomia – Uma Estratégia da UE para Promover o Desenvolvimento Sustentável e o Crescimento VerdeCarlos MoedasComissário Europeu para a Investigação, Ciência e InovaçãoComissão EuropeiaUnião EuropeiaIPT2016pegada de carbono; consumo de energia; resíduos biológicos; economia circular; novas cadeias de valor;  indústrias de base biológica; zonas rurais e costeiras; investigação e inovação na bioeconomia"]
[311,"Agricultura de Precisão: Fatores Tecnológicos Decisivos para “Fazer Mais (e Melhor) com Menos”?",4,19,"Ricardo Braga","Professor Auxiliar","Instituto Superior de Agronomia","Universidade de Lisboa","I","PT","2016","sistema de informação; TIC - Tecnologias de ; GPS; georreferenciação; VRT; NDVI; optimização da gestão de recursos e fatores; ganhos de eficiência; agricultura digital; agricultura inteligente; automatização; intensificação sustentável; tomada de decisão","",0,"Cultivar4GTRicardoBraga.pdf","Agricultura de Precisão: Fatores Tecnológicos Decisivos para “Fazer Mais (e Melhor) com Menos”?Ricardo BragaProfessor AuxiliarInstituto Superior de AgronomiaUniversidade de LisboaIPT2016sistema de informação; TIC - Tecnologias de ; GPS; georreferenciação; VRT; NDVI; optimização da gestão de recursos e fatores; ganhos de eficiência; agricultura digital; agricultura inteligente; automatização; intensificação sustentável; tomada de decisão"]
[312,"Biotecnologia e Melhoramento Vegetal",4,27,"Pedro Fevereiro","investigador","ITQBA - Instituto de Tecnologia Química e Biológica António Xavier","Universidade Nova de Lisboa","I","PT","2016","novas variedades; diversidade; fenótipos; cruzamento; vigor híbrido; OGM; resiliência das culturas; falta de água; salinidade dos solos; redução da emissão de gases; novas combinações genéticas; sequenciação do genoma; NGS; inovação","",0,"Cultivar4GTPedroFevereiro.pdf","Biotecnologia e Melhoramento VegetalPedro FevereiroinvestigadorITQBA - Instituto de Tecnologia Química e Biológica António XavierUniversidade Nova de LisboaIPT2016novas variedades; diversidade; fenótipos; cruzamento; vigor híbrido; OGM; resiliência das culturas; falta de água; salinidade dos solos; redução da emissão de gases; novas combinações genéticas; sequenciação do genoma; NGS; inovação"]
[313,"Glifosato, Transgénicos e (Falta de) Precaução",4,37,"Margarida Silva","bióloga","","","I","PT","2016","herbicidas; Roundup; dose máxima autorizada; OGM - Organismos Geneticamente Modificado; desregulação hormonal; carcinogenicidade; impactos ambientais; monitorização; pesticidas; conflito de interesses; princípio da precaução","",0,"Cultivar4GTMargaridaSilva.pdf","Glifosato, Transgénicos e (Falta de) PrecauçãoMargarida SilvabiólogaIPT2016herbicidas; Roundup; dose máxima autorizada; OGM - Organismos Geneticamente Modificado; desregulação hormonal; carcinogenicidade; impactos ambientais; monitorização; pesticidas; conflito de interesses; princípio da precaução"]
[314,"A Inovação no sector agrícola, agroalimentar e florestal no ciclo de programação 2014-2020",4,47,"Gabinete de Planeamento, Políticas e Administração Geral (GPP)","","","","II","PT","2016","Europa 2020, União da Inovação, PEI-AGRI, I&D - Investigação e Desenvolvimento, tecnologia, Programas de Desenvolvimento Rural","",0,"Cultivar4InovacaoNoSetorAgricolaAgroalimentarFlorestal.pdf","A Inovação no sector agrícola, agroalimentar e florestal no ciclo de programação 2014-2020Gabinete de Planeamento, Políticas e Administração Geral (GPP)IIPT2016Europa 2020, União da Inovação, PEI-AGRI, I&D - Investigação e Desenvolvimento, tecnologia, Programas de Desenvolvimento Rural"]
[315,"Evolução do Potencial Produtivo e das Produtividades Agrícolas (Portugal Continental – 1999-2009)",4,55,"Francisco Cordovil","Professor e investigador","Instituto Nacional de Investigação Agrária e Veterinária (INIAV)","","II","PT","2016","Recenseamento Agrícola de 2009","",0,"Cultivar4EvolucaoDoPotencailProdutivoEdasProdutividadesAgricolas.pdf","Evolução do Potencial Produtivo e das Produtividades Agrícolas (Portugal Continental – 1999-2009)Francisco CordovilProfessor e investigadorInstituto Nacional de Investigação Agrária e Veterinária (INIAV)IIPT2016Recenseamento Agrícola de 2009"]
[316,"A colocação no mercado de produtos fitofarmacêuticos e o seu uso sustentável",4,71,"Paula Cruz de Carvalho","","Direção-Geral de Alimentação e Veterinária (DGAV)","","II","PT","2016","Horizonte 2020, limites máximos de resíduos (LMR), glifosato, proteção integrada","",0,"Cultivar4ColocacaonoMercadodeProdutosFitofarmaceuticos.pdf","A colocação no mercado de produtos fitofarmacêuticos e o seu uso sustentávelPaula Cruz de CarvalhoDireção-Geral de Alimentação e Veterinária (DGAV)IIPT2016Horizonte 2020, limites máximos de resíduos (LMR), glifosato, proteção integrada"]
[317,"Perspetivas e realidades do crescimento azul",4,77,"Miguel Miranda","","Instituto Português do Mar e da Atmosfera (IPMA)","","II","PT","2016","economia azul, tecnologia, mar, clusters marítimos, VAB, PIB, emprego","",0,"Cultivar4PerspetivaseRealidadesdoCrescimentoAzul.pdf","Perspetivas e realidades do crescimento azulMiguel MirandaInstituto Português do Mar e da Atmosfera (IPMA)IIPT2016economia azul, tecnologia, mar, clusters marítimos, VAB, PIB, emprego"]
[318,"Rede Inovar. The Portuguese agro, food and forest innovation network",4,81,"Luís Mira da Silva e Maria Pedro Silva","","INOVISA","Instituto Superior de Agronomia (ISA), Universidade de Lisboa","II","PT","2016","Entidades do Sistema Científico e Tecnológico Nacional (ESCT), inovação, investigação & desenvolvimento (I&D)","",0,"Cultivar4RedeInovar.pdf","Rede Inovar. The Portuguese agro, food and forest innovation networkLuís Mira da Silva e Maria Pedro SilvaINOVISAInstituto Superior de Agronomia (ISA), Universidade de LisboaIIPT2016Entidades do Sistema Científico e Tecnológico Nacional (ESCT), inovação, investigação & desenvolvimento (I&D)"]
[319,"OGM – Últimos desenvolvimentos na UE",4,85,"Gabinete de Planeamento, Políticas e Administração Geral (GPP)","","","","II","PT","2016","Pacote OGM, Agência Europeia de Segurança Alimentar (EFSA), Organismos Geneticamente Modificados","",0,"Cultivar4OGMUltimosDesenvolvimentosNaUE.pdf","OGM – Últimos desenvolvimentos na UEGabinete de Planeamento, Políticas e Administração Geral (GPP)IIPT2016Pacote OGM, Agência Europeia de Segurança Alimentar (EFSA), Organismos Geneticamente Modificados"]
[320,"O setor agroalimentar na economia portuguesa",4,91,"Gabinete de Planeamento, Políticas e Administração Geral (GPP)","","","","II","PT","2016","Contas Nacionais, Contas Económicas da Agricultura, produção, consumos intermédios, VAB","",0,"Cultivar4SetorAgroalimentarNaEconomiaPortuguesa.pdf","O setor agroalimentar na economia portuguesaGabinete de Planeamento, Políticas e Administração Geral (GPP)IIPT2016Contas Nacionais, Contas Económicas da Agricultura, produção, consumos intermédios, VAB"]
[321,"A inovação acabou? Não há razões para pessimismo",4,105,"Tyler Cowen","Professor de Economia, Universidade George Mason, Virgínia, Estados Unidos da América","Foreign Affairs, Março/Abril 2016","","IIIA","PT, EN","2016","economia, crescimento, produtividade, Robert Gordon, Rise and fall of American growth: the U.S. standard of living since the Civil War","",0,"Cultivar4InovacaoAcabou.pdf","A inovação acabou? Não há razões para pessimismoTyler CowenProfessor de Economia, Universidade George Mason, Virgínia, Estados Unidos da AméricaForeign Affairs, Março/Abril 2016IIIAPT, EN2016economia, crescimento, produtividade, Robert Gordon, Rise and fall of American growth: the U.S. standard of living since the Civil War"]
[322,"A inovação é a chave para uma agricultura europeia resiliente",4,109,"Gabinete de Planeamento, Políticas e Administração Geral (GPP)","Jan Huitema","Parlamento Europeu","Nota de enquadramento ao Relatório de Iniciativa","IIIA","PT, EN","2015","tecnologia, informatização, digitalização, Internet das Coisas, robô, robot","",0,"Cultivar4InovacaoEAChaveParaUmaAgricEuropeiaResiliente.pdf","A inovação é a chave para uma agricultura europeia resilienteGabinete de Planeamento, Políticas e Administração Geral (GPP)Jan HuitemaParlamento EuropeuNota de enquadramento ao Relatório de IniciativaIIIAPT, EN2015tecnologia, informatização, digitalização, Internet das Coisas, robô, robot"]
[323,"Análise de políticas para o desenvolvimento de estratégias globais para alimentação e agricultura",4,113,"Organização para a Cooperação e o Desenvolvimento Económicos (OCDE)","Organização para a Cooperação e o Desenvolvimento Económicos (OCDE)","","","IIIA","PT, EN","2015","crescimento separado, sustentabilidade, globalização, desenvolvimento sustentável","",0,"Cultivar4AnaliseDePoliticasParaDesenvolvimentoDeEstratégias.pdf","Análise de políticas para o desenvolvimento de estratégias globais para alimentação e agriculturaOrganização para a Cooperação e o Desenvolvimento Económicos (OCDE)Organização para a Cooperação e o Desenvolvimento Económicos (OCDE)IIIAPT, EN2015crescimento separado, sustentabilidade, globalização, desenvolvimento sustentável"]
[324,"Agroecologia: outra forma de produzir",4,117,"Relatório Anual Sobre Agroecologia","Ministério da Agricultura, Alimentação e Floresta da República Francesa","","","IIIA","PT, FR"," 2016","agroecologia, parcerias, integração de políticas","",0,"Cultivar4Agroecologia.pdf","Agroecologia: outra forma de produzirRelatório Anual Sobre AgroecologiaMinistério da Agricultura, Alimentação e Floresta da República FrancesaIIIAPT, FR 2016agroecologia, parcerias, integração de políticas"]
[476,"Cultivar 5 - Publicação Completa",5,1,"Gabinete de Planeamento, Políticas e Administração Geral (GPP)","","","","","","2016","","",0,"Cultivar5.pdf","Cultivar 5 - Publicação CompletaGabinete de Planeamento, Políticas e Administração Geral (GPP)2016"]
[296,"Editorial",5,7,"Eduardo Diniz","Diretor-geral","GPP","MAFDR","","PT","2016","produção agrícola e alimentar, escassez de água, fator de produção, uso da água, regadio","",0,"Cultivar5CapaEditorial.pdf","EditorialEduardo DinizDiretor-geralGPPMAFDRPT2016produção agrícola e alimentar, escassez de água, fator de produção, uso da água, regadio"]
[297,"Gestão da Água e Governança – Um Desafio para o Século XXI",5,11,"Francisco Nunes Correia","Professor","Instituto Superior Técnico (IST)","Universidade de Lisboa","I","PT","2016","escassez de água, governança da água, recursos hídricos, alterações climáticas, eficácia, eficiência","",0,"Cultivar5GTFranciscoNunesCorreia.pdf","Gestão da Água e Governança – Um Desafio para o Século XXIFrancisco Nunes CorreiaProfessorInstituto Superior Técnico (IST)Universidade de LisboaIPT2016escassez de água, governança da água, recursos hídricos, alterações climáticas, eficácia, eficiência"]
[298,"Alqueva – Impactos Agrícolas, Territoriais e Ambientais",5,17,"Ricardo Serralheiro","investigador","Instituto de Ciências Agrárias e Ambientais Mediterrâneas (ICAAM)","Universidade de Évora","I","PT","2016","aridez, abandono, Alentejo, barragem, albufeira, produtividade, stress hídrico, pastagens, oliveira, vinha, amendoeira, rega, irrigação, sequeiro, Guadiana, EFMA, EDIA","",0,"Cultivar5GTRicardoSerralheiro.pdf","Alqueva – Impactos Agrícolas, Territoriais e AmbientaisRicardo SerralheiroinvestigadorInstituto de Ciências Agrárias e Ambientais Mediterrâneas (ICAAM)Universidade de ÉvoraIPT2016aridez, abandono, Alentejo, barragem, albufeira, produtividade, stress hídrico, pastagens, oliveira, vinha, amendoeira, rega, irrigação, sequeiro, Guadiana, EFMA, EDIA"]
[299,"A Gestão de Uma Exploração Agrícola de Regadio",5,37,"João Coimbra","Agricultor","","","I","PT","2016","Vale do Tejo, Alqueva, Ribatejo, rega, rega de canudos, pivot, regadio","",0,"Cultivar5GTJoaoCoimbra.pdf","A Gestão de Uma Exploração Agrícola de RegadioJoão CoimbraAgricultorIPT2016Vale do Tejo, Alqueva, Ribatejo, rega, rega de canudos, pivot, regadio"]
[300,"Nota de Abertura",5,47,"Gabinete de Planeamento, Políticas e Administração Geral (GPP)","","","","II","PT","2016","sistemas de irrigação, regadio, superfície irrigável, produtividade, produtividade da terra, sequeiro, SAU, região agrária","",0,"Cultivar5NotadeAbertura.pdf","Nota de AberturaGabinete de Planeamento, Políticas e Administração Geral (GPP)IIPT2016sistemas de irrigação, regadio, superfície irrigável, produtividade, produtividade da terra, sequeiro, SAU, região agrária"]
[301,"O Uso Eficiente da Água e o Índice de Intensificação do Regadio",5,53,"Direção-Geral de Agricultura e Desenvolvimento Rural (DGADR)","","","","II","PT","2016","recursos hídricos, recurso estratégico, precipitação, temperatura, distribuição anual, distribuição geográfica, consiumo de água, disponibilidade de água","",0,"Cultivar5UsoEficientedaAguaIndiceIntesificacaodoRegadio.pdf","O Uso Eficiente da Água e o Índice de Intensificação do RegadioDireção-Geral de Agricultura e Desenvolvimento Rural (DGADR)IIPT2016recursos hídricos, recurso estratégico, precipitação, temperatura, distribuição anual, distribuição geográfica, consiumo de água, disponibilidade de água"]
[302,"Regadio: Água e Energia",5,61,"José Núncio e Carina Arranja","Federação Nacional de Regantes de Portugal (FENAREG)","","","II","PT","2016","competitividade, utilização da água, regadio coletivo público, infraestrutura coletiva, consumo de energia, consumo de eletricidade, sustentabilidade","",0,"Cultivar5RegadioAguaEnergia.pdf","Regadio: Água e EnergiaJosé Núncio e Carina ArranjaFederação Nacional de Regantes de Portugal (FENAREG)IIPT2016competitividade, utilização da água, regadio coletivo público, infraestrutura coletiva, consumo de energia, consumo de eletricidade, sustentabilidade"]
[303,"Regime Económico-Financeiro dos Recursos Hídricos",5,69,"Gabinete de Planeamento, Políticas e Administração Geral (GPP), Direção-Geral de Agricultura e Desenvolvimento Rural (DGADR) e Agência Portuguesa do Ambiente (APA)","","","","II","PT","2016","Lei da Água, recursos hídricos, valor social da água, ambiente, valor económico da água, Taxa de Recursos Hídricos (TRH), aproveitamento hidroagrícola","",0,"Cultivar5RegimeEconomicoFinanceiroRH.pdf","Regime Económico-Financeiro dos Recursos HídricosGabinete de Planeamento, Políticas e Administração Geral (GPP), Direção-Geral de Agricultura e Desenvolvimento Rural (DGADR) e Agência Portuguesa do Ambiente (APA)IIPT2016Lei da Água, recursos hídricos, valor social da água, ambiente, valor económico da água, Taxa de Recursos Hídricos (TRH), aproveitamento hidroagrícola"]
[304,"Estratégia Nacional para o Mar 2013-2020",5,77,"Direção-Geral de Política do Mar (DGPM)","","","","II","PT","2016","Plano Mar-Portugal (PMP), Comissão Interministerial dos Assuntos do Mar, extensão da plataforma continental, Crescimento azul, Conta Satélite do Mar, SEAMInd","",0,"Cultivar5EstrategiaNacionalParaMar20132020.pdf","Estratégia Nacional para o Mar 2013-2020Direção-Geral de Política do Mar (DGPM)IIPT2016Plano Mar-Portugal (PMP), Comissão Interministerial dos Assuntos do Mar, extensão da plataforma continental, Crescimento azul, Conta Satélite do Mar, SEAMInd"]
[305,"A Água na Segurança Alimentar e Nutrição",5,85,"Gabinete de Planeamento, Políticas e Administração Geral (GPP)","Painel de Peritos de Alto Nível (HLPE)"," Comité de Segurança Alimentar Mundial","ONU - Organização das Nações Unidas","IIIA","PT","2016","água, segurança alimentar,  HLPE reports, Painel de Peritos de Alto Nível (HLPE), Comité de Segurança Alimentar Mundial (CFS),  “Water For Food Security And Nutrition”","",0,"Cultivar5AguaSeguranacaAlimentarNuticao.pdf","A Água na Segurança Alimentar e NutriçãoGabinete de Planeamento, Políticas e Administração Geral (GPP)Painel de Peritos de Alto Nível (HLPE) Comité de Segurança Alimentar MundialONU - Organização das Nações UnidasIIIAPT2016água, segurança alimentar,  HLPE reports, Painel de Peritos de Alto Nível (HLPE), Comité de Segurança Alimentar Mundial (CFS),  “Water For Food Security And Nutrition”"]
[306,"Redução das Emissões de Gases de Efeito Estufa nos Sistemas de Produção Animal: Melhores Práticas e Opções Emergentes Ficha De Leitura: “Reducing Greenhouse Gas Emissions From Livestock: Best Practice And Emerging Options”, Gra E Sai Platform, 2014",5,89,"Gabinete de Planeamento, Políticas e Administração Geral (GPP) e Instituto Nacional de Investigação Agrária e Veterinária (INIAV)","Karin Andeweg (KAOS/Animal Task Force), Andy Reisinger (NZAGRC)\n(SAI) Platform","Global Research Alliance on Agricultural Greenhouse Gases (GRA), Sustainable Agriculture Initiative","","IIIA","PT","2016","intensificação sustentável, eficiência produtiva, mitigação, \"Reducing greenhouse gas emissions from livestock: Best practice and emerging options\"","",0,"Cultivar5ReducaoEmissoesGasesEfeitoEstufa.pdf","Redução das Emissões de Gases de Efeito Estufa nos Sistemas de Produção Animal: Melhores Práticas e Opções Emergentes Ficha De Leitura: “Reducing Greenhouse Gas Emissions From Livestock: Best Practice And Emerging Options”, Gra E Sai Platform, 2014Gabinete de Planeamento, Políticas e Administração Geral (GPP) e Instituto Nacional de Investigação Agrária e Veterinária (INIAV)Karin Andeweg (KAOS/Animal Task Force), Andy Reisinger (NZAGRC)\n(SAI) PlatformGlobal Research Alliance on Agricultural Greenhouse Gases (GRA), Sustainable Agriculture InitiativeIIIAPT2016intensificação sustentável, eficiência produtiva, mitigação, \"Reducing greenhouse gas emissions from livestock: Best practice and emerging options\""]
[307,"O Novo Paradigma Rural: Políticas e Governança",5,93,"Gabinete de Planeamento, Políticas e Administração Geral (GPP)","OCDE – Política de Desenvolvimento Regional","","","IIIA","PT","2016","rural, desenvolvimento rural, desenvolvimentoregional, políticas, “The New Rural Paradigm: Policies And Governance”","",0,"Cultivar5NovoParadigmaRural.pdf","O Novo Paradigma Rural: Políticas e GovernançaGabinete de Planeamento, Políticas e Administração Geral (GPP)OCDE – Política de Desenvolvimento RegionalIIIAPT2016rural, desenvolvimento rural, desenvolvimentoregional, políticas, “The New Rural Paradigm: Policies And Governance”"]
[308,"Prevenção e Redução do Desperdício Alimentar; Desafio à Escala Global",5,99,"Gabinete de Planeamento, Políticas e Administração Geral (GPP)","","","","IIIA","PT","2016","desperdício alimentar, economia circular, resíduos, perdas, doação, data de durabilidade mínima, data limite do consumo","",0,"Cultivar5PrevencaoReducaoDesperdicioAlimentar.pdf","Prevenção e Redução do Desperdício Alimentar; Desafio à Escala GlobalGabinete de Planeamento, Políticas e Administração Geral (GPP)IIIAPT2016desperdício alimentar, economia circular, resíduos, perdas, doação, data de durabilidade mínima, data limite do consumo"]
[477,"Cultivar 6 - Publicação Completa",6,1,"Gabinete de Planeamento, Políticas e Administração Geral (GPP)","","","","","","2016","","",0,"Cultivar6.pdf","Cultivar 6 - Publicação CompletaGabinete de Planeamento, Políticas e Administração Geral (GPP)2016"]
[325,"Editorial",6,7,"Eduardo Diniz","Diretor-geral","Gabinete de Planeamento, Políticas e Administração Geral (GPP)","","","PT","2016","modelo de comércio internacional, globalização, governança internacional, abastecimento alimentar, livre comércio, internacionalização das empresas","",0,"Cultivar6CapaEditorial.pdf","EditorialEduardo DinizDiretor-geralGabinete de Planeamento, Políticas e Administração Geral (GPP)PT2016modelo de comércio internacional, globalização, governança internacional, abastecimento alimentar, livre comércio, internacionalização das empresas"]
[326,"Que Modelo Para o Comércio Internacional?",6,11,"João Pacheco","","Farm Europe","","I","PT","2016","modelo de comércio internacional, proteção tarifária, OMC, GATT, acordos bilaterais de comércio, Ronda de Doha, liberalização do comércio","",0,"Cultivar6GTJoaoPacheco.pdf","Que Modelo Para o Comércio Internacional?João PachecoFarm EuropeIPT2016modelo de comércio internacional, proteção tarifária, OMC, GATT, acordos bilaterais de comércio, Ronda de Doha, liberalização do comércio"]
[327,"O Superciclo das Matérias-Primas e a Vaga de Aquisições por Investidores Externos – um Apontamento",6,17,"José Félix Ribeiro","Economista","","","I","PT","2016","preços dos produtos alimentares, aquisição de terras agrícolas, atratividade para o investimento, segurança alimentar, geopolítica","",0,"Cultivar6GTJoseFelixRibeiro.pdf",{"$f":"+B83&E83&F83&G83&H83&I83&J83&K83&L83","v":"O Superciclo das Matérias-Primas e a Vaga de Aquisições por Investidores Externos – um ApontamentoJosé Félix RibeiroEconomistaIPT2016preços dos produtos alimentares, aquisição de terras agrícolas, atratividade para o investimento, segurança alimentar, geopolítica"}]
[328,"Modelo de Comércio para o Desenvolvimento Sustentável da Agricultura e Alimentos à Escala Regional e Global",6,23,"Rachel Bickford","Adida","Embaixada dos Estados Unidos da América (EUA) para a Península Ibérica","","I","PT","2016","segurança alimentar, sustentabilidade, FAO, Estratégia Global de Segurança Alimentar, EUA","",0,"Cultivar6GTRachelBickford.pdf","Modelo de Comércio para o Desenvolvimento Sustentável da Agricultura e Alimentos à Escala Regional e GlobalRachel BickfordAdidaEmbaixada dos Estados Unidos da América (EUA) para a Península IbéricaIPT2016segurança alimentar, sustentabilidade, FAO, Estratégia Global de Segurança Alimentar, EUA"]
[329,"Que Modelo de Comércio Internacional para a Agricultura e Alimentação?",6,29,"Clara Moura Guedes","Administradora","Casa Agrícola Monte do Pasto, SA","","I","PT","2016","cooperação internacional, modelo de internacionalização, estratégia de internacionalização,  Estratégia Oceano Azul","",0,"Cultivar6GTClaraMouraGuedes.pdf","Que Modelo de Comércio Internacional para a Agricultura e Alimentação?Clara Moura GuedesAdministradoraCasa Agrícola Monte do Pasto, SAIPT2016cooperação internacional, modelo de internacionalização, estratégia de internacionalização,  Estratégia Oceano Azul"]
[330,"A Política Comercial Comum da UE – A Organização Mundial do Comércio e os Acordos Regionais de Comércio",6,39,"Gabinete de Planeamento, Políticas e Administração Geral (GPP)","","","","II","PT","2016","Agenda de Doha para o Desenvolvimento (DDA), Ronda de Doha, OMC, Estratégia de Acesso aos Mercados, barreiras ao comércio, barreiras não pautais, abertura de mercados, acesso aos mercados, Acordo SPS, Acordo OTC/TBT, Acordos de Comércio Livre (ACL)","",0,"Cultivar6PoliticaComercialComumUE.pdf","A Política Comercial Comum da UE – A Organização Mundial do Comércio e os Acordos Regionais de ComércioGabinete de Planeamento, Políticas e Administração Geral (GPP)IIPT2016Agenda de Doha para o Desenvolvimento (DDA), Ronda de Doha, OMC, Estratégia de Acesso aos Mercados, barreiras ao comércio, barreiras não pautais, abertura de mercados, acesso aos mercados, Acordo SPS, Acordo OTC/TBT, Acordos de Comércio Livre (ACL)"]
[331,"Acordos Comerciais da União Europeia com o Canadá e com os Estados Unidos",6,55,"Maria Antónia Figueiredo","","OMAIAA - Observatório dos Mercados Agrícolas e das Importações Agroalimentares","","II","PT","2016","CETA - Acordo Económico e Comercial Global, TTIP - Acordo Transatlântico de Comércio e Investimento, ACL - Acordo de Comércio Livre","",0,"Cultivar6AcordosComerciaisUECanadaEUA.pdf","Acordos Comerciais da União Europeia com o Canadá e com os Estados UnidosMaria Antónia FigueiredoOMAIAA - Observatório dos Mercados Agrícolas e das Importações AgroalimentaresIIPT2016CETA - Acordo Económico e Comercial Global, TTIP - Acordo Transatlântico de Comércio e Investimento, ACL - Acordo de Comércio Livre"]
[332,"Acordos de Comércio Internacional – A Internacionalização das Denominações de Origem Protegidas (DOP Porto e Douro)",6,61,"Alberto Ribeiro de Almeida","Instituto dos Vinhos do Douro e do Porto, I.P. (IVDP, I.P.)","","","II","PT","2016","OMC, TRIPS, ACL - Acordo de Comércio Livre, acordo comercial bilateral, acordo comercial regional, exportações, barreiras ao comércio","",0,"Cultivar6AcordosComercioInternacional.pdf","Acordos de Comércio Internacional – A Internacionalização das Denominações de Origem Protegidas (DOP Porto e Douro)Alberto Ribeiro de AlmeidaInstituto dos Vinhos do Douro e do Porto, I.P. (IVDP, I.P.)IIPT2016OMC, TRIPS, ACL - Acordo de Comércio Livre, acordo comercial bilateral, acordo comercial regional, exportações, barreiras ao comércio"]
[333,"2.000 Milhões de Euros de Exportações em 2020, um Objetivo para o Setor das Frutas, Legumes e Flores",6,69,"Gonçalo Santos Andrade","Vice-Presidente","Portugal Fresh","","II","PT","2016","concentração da oferta, FRESHFUSION, mercados estratégicos, poder negocial, criação de escala, promoção, marketing, formação","",0,"Cultivar62000MilhoesEUROSExportacoes2020.pdf","2.000 Milhões de Euros de Exportações em 2020, um Objetivo para o Setor das Frutas, Legumes e FloresGonçalo Santos AndradeVice-PresidentePortugal FreshIIPT2016concentração da oferta, FRESHFUSION, mercados estratégicos, poder negocial, criação de escala, promoção, marketing, formação"]
[334,"A Extensão da Plataforma Continental Portuguesa",6,75,"Isabel Botelho Leal","Estrutura de Missão para a Extensão da Plataforma Continental (EMEPC)","","","II","PT","2016","oceano, fundo marinho, Júlio Verne, Nautilus, Convenção das Nações Unidas sobre o Direito do Mar, Comissão de Limites da Plataforma Continental (CLCS), ROV","",0,"Cultivar6ExtensaoPlataformaContinentalPT.pdf","A Extensão da Plataforma Continental PortuguesaIsabel Botelho LealEstrutura de Missão para a Extensão da Plataforma Continental (EMEPC)IIPT2016oceano, fundo marinho, Júlio Verne, Nautilus, Convenção das Nações Unidas sobre o Direito do Mar, Comissão de Limites da Plataforma Continental (CLCS), ROV"]
[335,"Comércio Internacional do Complexo Agroflorestal e Pescas",6,79,"Gabinete de Planeamento, Políticas e Administração Geral (GPP)","","","","II","PT","2016","CAFP, défice comercial, superavit, taxa de cobertura, exportações, importações, saldo comercial, orientação exportadora, grau de autoaprovisionamento","",0,"Cultivar6ComercioInternacionaldoComplexoAgrofPescas.pdf","Comércio Internacional do Complexo Agroflorestal e PescasGabinete de Planeamento, Políticas e Administração Geral (GPP)IIPT2016CAFP, défice comercial, superavit, taxa de cobertura, exportações, importações, saldo comercial, orientação exportadora, grau de autoaprovisionamento"]
[336,"A Agenda de Desenvolvimento Sustentável 2030 – A Alimentação e a Agricultura",6,89,"Gabinete de Planeamento, Políticas e Administração Geral (GPP)","","","","IIIA","PT","2016","FAO, Comité de Segurança Alimentar Mundial (CFS), Agriculture and the 2030 Agenda for Sustainable Development, Objetivos de Desenvolvimento Sustentável (ODS), ONU, Comité de Agricultura (CoAG)","",0,"Cultivar6AgendaDS2030.pdf","A Agenda de Desenvolvimento Sustentável 2030 – A Alimentação e a AgriculturaGabinete de Planeamento, Políticas e Administração Geral (GPP)IIIAPT2016FAO, Comité de Segurança Alimentar Mundial (CFS), Agriculture and the 2030 Agenda for Sustainable Development, Objetivos de Desenvolvimento Sustentável (ODS), ONU, Comité de Agricultura (CoAG)"]
[337,"Estatísticas Comerciais",6,93,"Gabinete de Planeamento, Políticas e Administração Geral (GPP)","","","","IIIA","PT","2016","World Trade Statistical Review 2016, OMC, Estatísticas de Comércio Internacional, Tendências, Políticas Comerciais, Acordos, exportações, barreiras ao comércio, Acordos de Comércio Regionais (ACR), Acordos SPS, Acordos TBT","",0,"Cultivar6EstatisticasComerciais.pdf","Estatísticas ComerciaisGabinete de Planeamento, Políticas e Administração Geral (GPP)IIIAPT2016World Trade Statistical Review 2016, OMC, Estatísticas de Comércio Internacional, Tendências, Políticas Comerciais, Acordos, exportações, barreiras ao comércio, Acordos de Comércio Regionais (ACR), Acordos SPS, Acordos TBT"]
[338,"Reunião OCDE dos Ministros da Agricultura: Declaração Ministerial Aprovada por Mais de Cinquenta Países e Organizações Internacionais Ficha De Leitura: “Declaração Sobre As Melhores Políticas Para Um Sistema Alimentar Mundial, Produtivo, Durável E Resilie",6,97,"Gabinete de Planeamento, Políticas e Administração Geral (GPP)","","","","","","","Comité de Agricultura, melhores politicas, resiliência, produtividade, sustentabilidade, inovação, Comité de Agricultura\n(CoAG)","",0,"Cultivar6ReuniaoOCDEMinistrosAgricultura.pdf","Reunião OCDE dos Ministros da Agricultura: Declaração Ministerial Aprovada por Mais de Cinquenta Países e Organizações Internacionais Ficha De Leitura: “Declaração Sobre As Melhores Políticas Para Um Sistema Alimentar Mundial, Produtivo, Durável E ResilieGabinete de Planeamento, Políticas e Administração Geral (GPP)Comité de Agricultura, melhores politicas, resiliência, produtividade, sustentabilidade, inovação, Comité de Agricultura\n(CoAG)"]
[339,"Revisão Intercalar do Quadro Financeiro Plurianual 2014-2020",6,103,"Gabinete de Planeamento, Políticas e Administração Geral (GPP)","","","","","","","QFP, Estratégia Europa 2020, PAC - Política Agrícola Comum; Desenvolvimento Rural; Desenvolvimento Regional; Políticas, UE","",0,"Cultivar6RevisaoIntercalarQuadroFinanceiroPlurianual20142020.pdf","Revisão Intercalar do Quadro Financeiro Plurianual 2014-2020Gabinete de Planeamento, Políticas e Administração Geral (GPP)QFP, Estratégia Europa 2020, PAC - Política Agrícola Comum; Desenvolvimento Rural; Desenvolvimento Regional; Políticas, UE"]
[340,"Acompanhamento e Avaliação de Políticas Agrícolas – 2016",6,109,"Gabinete de Planeamento, Políticas e Administração Geral (GPP)","","","","IIIA","PT","2016","Agricultural Policy Monitoring and Evaluation 2016, OCDE, acompanhamento e avaliação das politicas agrícolas; apoio aos produtores agrícolas, PSE - Estimativa do Apoio ao Produtor, Estimativa do Apoio ao Consumidor (CSE)","",0,"Cultivar6AcompanhamentoAvaliacaoPoliticasAgricolas2016.pdf","Acompanhamento e Avaliação de Políticas Agrícolas – 2016Gabinete de Planeamento, Políticas e Administração Geral (GPP)IIIAPT2016Agricultural Policy Monitoring and Evaluation 2016, OCDE, acompanhamento e avaliação das politicas agrícolas; apoio aos produtores agrícolas, PSE - Estimativa do Apoio ao Produtor, Estimativa do Apoio ao Consumidor (CSE)"]
[478,"Cultivar 7 - Publicação Completa",7,1,"Gabinete de Planeamento, Políticas e Administração Geral (GPP)","","","","","","2017","","",0,"Cultivar7.pdf","Cultivar 7 - Publicação CompletaGabinete de Planeamento, Políticas e Administração Geral (GPP)2017"]
[341,"Editorial",7,7,"Eduardo Diniz","Diretor-geral","Gabinete de Planeamento, Políticas e Administração Geral (GPP)","","","","","Políticas públicas, volatilidade, crise, PAC, gestão, agricultura, silvicultura, pescas, Artur Pastor, Loulé, 1956, figueira, 1962, Ribatejo, inundações","",0,"Cultivar7CapaEditorial.pdf","EditorialEduardo DinizDiretor-geralGabinete de Planeamento, Políticas e Administração Geral (GPP)Políticas públicas, volatilidade, crise, PAC, gestão, agricultura, silvicultura, pescas, Artur Pastor, Loulé, 1956, figueira, 1962, Ribatejo, inundações"]
[342,"O Risco na Atividade Agrícola",7,13,"Phil Hogan","Comissário Europeu para a Agricultura e o Desenvolvimento Rural","Comissão Europeia","União Europeia","I","PT, EN","2017","Gestão do risco, Instrumentos de gestão, Mecanismos de apoio, \"Risk In Agricultural Activity\"","",0,"Cultivar7GTPhilHogan.pdf","O Risco na Atividade AgrícolaPhil HoganComissário Europeu para a Agricultura e o Desenvolvimento RuralComissão EuropeiaUnião EuropeiaIPT, EN2017Gestão do risco, Instrumentos de gestão, Mecanismos de apoio, \"Risk In Agricultural Activity\""]
[343,"Breve Introdução à Análise Quantitativa do Risco",7,19,"João Nicolau","Professor e investigador","ISEG - Instituto Superior de Economia e Gestão, Universidade de Lisboa","CEMAPRE – Centro de Matemática Aplicada à Previsão e Decisão Económica","I","PT","2016","Quantificação do risco , risco de mercado, Avaliação do risco","",0,"Cultivar7GTJoaoNicolau.pdf","Breve Introdução à Análise Quantitativa do RiscoJoão NicolauProfessor e investigadorISEG - Instituto Superior de Economia e Gestão, Universidade de LisboaCEMAPRE – Centro de Matemática Aplicada à Previsão e Decisão EconómicaIPT2016Quantificação do risco , risco de mercado, Avaliação do risco"]
[344,"A Gestão do Risco como Alavanca do Desenvolvimento Económico",7,31,"Jean Cordier","Professor","Agrocampus Ouest – Rennes","","I","PT, FR","2017","Políticas públicas; PAC; risco agrícola; \"La Gestion du Risque comme Levier du Développement Économique\";  oportunidade; regulação; mercado; volatilidade","",0,"Cultivar7GTJeanCordier.pdf","A Gestão do Risco como Alavanca do Desenvolvimento EconómicoJean CordierProfessorAgrocampus Ouest – RennesIPT, FR2017Políticas públicas; PAC; risco agrícola; \"La Gestion du Risque comme Levier du Développement Économique\";  oportunidade; regulação; mercado; volatilidade"]
[345,"As Mútuas da Pesca – Economia Corporativa e Gestão do Risco",7,45,"Álvaro Garrido","Professor e investigador","Faculdade de Economia da Universidade de Coimbra","CEIS20 – Centro de Estudos Interdisciplinares do Século XX","I","PT","2017","Seguro marítimo, Mútua dos seguros; Mútua dos pescadores; mutualismo corporativo","",0,"Cultivar7GTAlvaroGarrido.pdf","As Mútuas da Pesca – Economia Corporativa e Gestão do RiscoÁlvaro GarridoProfessor e investigadorFaculdade de Economia da Universidade de CoimbraCEIS20 – Centro de Estudos Interdisciplinares do Século XXIPT2017Seguro marítimo, Mútua dos seguros; Mútua dos pescadores; mutualismo corporativo"]
[346,"O Seguro Agrícola em Portugal – Evolução, Perspetivas Futuras e Importância do Seguro num Sistema de Gestão de Riscos",7,55,"Joaquim Sampaio","IFAP – Instituto de Financiamento da Agricultura e Pescas, I.P.","","","II","PT","2017","Área segura, Produção segura, seguro de colheitas, adesão ao seguro, capital seguro, prémio, bonificação, sinistralidade","",0,"Cultivar7SeguroAgricolaPORTUGAL.pdf","O Seguro Agrícola em Portugal – Evolução, Perspetivas Futuras e Importância do Seguro num Sistema de Gestão de RiscosJoaquim SampaioIFAP – Instituto de Financiamento da Agricultura e Pescas, I.P.IIPT2017Área segura, Produção segura, seguro de colheitas, adesão ao seguro, capital seguro, prémio, bonificação, sinistralidade"]
[347,"Vinhos Verdes: Duas Décadas de Seguro Coletivo de Colheitas",7,67,"Manuel Pinheiro","","Comissão de Viticultura da Região dos Vinhos Verdes (CVRVV)","","II","PT","2017","SIPAC - Sistema Integrado de Proteção contra as Aleatoriedades Climáticas, coberturas, seguradoras, PAC, sinistralidade","",0,"Cultivar7VinhosVerdes.pdf","Vinhos Verdes: Duas Décadas de Seguro Coletivo de ColheitasManuel PinheiroComissão de Viticultura da Região dos Vinhos Verdes (CVRVV)IIPT2017SIPAC - Sistema Integrado de Proteção contra as Aleatoriedades Climáticas, coberturas, seguradoras, PAC, sinistralidade"]
[348,"Estratégias de Gestão de Risco de Incêndio Florestal: da Gestão Florestal ao Seguro Florestal",7,71,"Nuno Calado","","UNAC – União da Floresta Mediterrânica","","II","PT","2017","área ardida, perdas, OPF - organização de produtores florestais, prevenção, certificação, Estratégia Nacional para as Florestas, pragas e doenças","",0,"Cultivar7EstrategiasGestaoRiscoIncendioFlorestal.pdf","Estratégias de Gestão de Risco de Incêndio Florestal: da Gestão Florestal ao Seguro FlorestalNuno CaladoUNAC – União da Floresta MediterrânicaIIPT2017área ardida, perdas, OPF - organização de produtores florestais, prevenção, certificação, Estratégia Nacional para as Florestas, pragas e doenças"]
[349,"Gestão do Risco na Política Agrícola dos EUA: Instrumentos e Governação",7,79,"Gabinete de Planeamento, Políticas e Administração Geral (GPP)","Nuno Manana","","","II","PT","2017","Lei agrícola de 2014, Farm Bill, Commodity programs, Programas de produtos de base, crop insurance, seguros de colheitas, Risk Management Agency (Agência de Gestão do Risco)","",0,"Cultivar7GestaoDoRiscoPoliticaAgricolaEUA.pdf","Gestão do Risco na Política Agrícola dos EUA: Instrumentos e GovernaçãoGabinete de Planeamento, Políticas e Administração Geral (GPP)Nuno MananaIIPT2017Lei agrícola de 2014, Farm Bill, Commodity programs, Programas de produtos de base, crop insurance, seguros de colheitas, Risk Management Agency (Agência de Gestão do Risco)"]
[350,"Evolução Económica do Setor Agroalimentar",7,87,"Gabinete de Planeamento, Políticas e Administração Geral (GPP)","Ana Rita Moura e Susana Barradas","","","II","PT","2017","complexo agroalimentar, economia agrícola, VAB, preços base, consumos intermédios, produção agrícola","",0,"Cultivar7EvolucaoEconSetorAgroalimentar.pdf","Evolução Económica do Setor AgroalimentarGabinete de Planeamento, Políticas e Administração Geral (GPP)Ana Rita Moura e Susana BarradasIIPT2017complexo agroalimentar, economia agrícola, VAB, preços base, consumos intermédios, produção agrícola"]
[351,"Avaliação Nacional de Risco",7,101,"Gabinete de Planeamento, Políticas e Administração Geral (GPP)","Comissão Nacional de Proteção Civil","Nuno Veras","","IIIA","PT","2017","Alterações climáticas, Análise de risco, Secas, Cheias, Ondas de calor e de frio,  Plano de Ação, Risk Assessment and Mapping Guidelines for Disaster Management","",0,"Cultivar7AvaliacaoNacionalRisco.pdf","Avaliação Nacional de RiscoGabinete de Planeamento, Políticas e Administração Geral (GPP)Comissão Nacional de Proteção CivilNuno VerasIIIAPT2017Alterações climáticas, Análise de risco, Secas, Cheias, Ondas de calor e de frio,  Plano de Ação, Risk Assessment and Mapping Guidelines for Disaster Management"]
[352,"Quadro de Sendai para a Redução do Risco de Catástrofes (2015-2030)",7,105,"Gabinete de Planeamento, Políticas e Administração Geral (GPP)","ONU - Conferência Mundial para a Redução do Risco de Catástrofes","Mafalda Gaspar","","IIIA","PT","2017","Alterações climáticas, identificação e análise de risco, Governança, Gestão do risco de catástrofes, Impactos sociais e resiliência, Sendai Framework For Disaster Risk Reduction 2015-2030","",0,"Cultivar7QuadrSendaiReduacaoRiscoCatastrofes.pdf","Quadro de Sendai para a Redução do Risco de Catástrofes (2015-2030)Gabinete de Planeamento, Políticas e Administração Geral (GPP)ONU - Conferência Mundial para a Redução do Risco de CatástrofesMafalda GasparIIIAPT2017Alterações climáticas, identificação e análise de risco, Governança, Gestão do risco de catástrofes, Impactos sociais e resiliência, Sendai Framework For Disaster Risk Reduction 2015-2030"]
[353,"O Futuro dos Pagamentos Diretos",7,109,"Gabinete de Planeamento, Políticas e Administração Geral (GPP)","Alan Matthews","Parlamento Europeu – Direção-Geral das Políticas Internas – Departamento temático B: Políticas estruturais e de Coesão","Helena Sequeira","IIIA","PT","2017","Reforma da PAC pós 2020, integração das políticas num único Pilar, reestruturação dos pagamentos diretos, The Future of Direct Payments","",0,"Cultivar7FuturoPagamentosDiretos.pdf","O Futuro dos Pagamentos DiretosGabinete de Planeamento, Políticas e Administração Geral (GPP)Alan MatthewsParlamento Europeu – Direção-Geral das Políticas Internas – Departamento temático B: Políticas estruturais e de CoesãoHelena SequeiraIIIAPT2017Reforma da PAC pós 2020, integração das políticas num único Pilar, reestruturação dos pagamentos diretos, The Future of Direct Payments"]
[354,"Melhores Políticas Alimentares – 2017",7,113,"Gabinete de Planeamento, Políticas e Administração Geral (GPP)","OCDE – Organização para a Cooperação e o Desenvolvimento Económico","Departamento de Agricultura e Comércio (TAD – Trade and Agriculture Department)","Edite Azenha","IIIA","PT","2017","Política agrícola e comercial, segurança alimentar, inovação e sustentabilidade, gestão de riscos, Towards Better Food Policies","",0,"Cultivar7MelhoresPoliticasAlimentares2017.pdf","Melhores Políticas Alimentares – 2017Gabinete de Planeamento, Políticas e Administração Geral (GPP)OCDE – Organização para a Cooperação e o Desenvolvimento EconómicoDepartamento de Agricultura e Comércio (TAD – Trade and Agriculture Department)Edite AzenhaIIIAPT2017Política agrícola e comercial, segurança alimentar, inovação e sustentabilidade, gestão de riscos, Towards Better Food Policies"]
[479,"Cultivar 8 - Publicação Completa",8,1,"Gabinete de Planeamento, Políticas e Administração Geral (GPP)","","","","","","2017","","",0,"Cultivar8.pdf","Cultivar 8 - Publicação CompletaGabinete de Planeamento, Políticas e Administração Geral (GPP)2017"]
[355,"Editorial",8,7,"Eduardo Diniz","Diretor-geral","Gabinete de Planeamento, Políticas e Administração Geral (GPP)","","","","","Agricultura, Plano de ação, diversidade genética, ecossistema, conservação, natureza, Jaime Brás, Jaime Braz, J. Braz, 1980, Lamego, lameiros, águia","",0,"Cultivar8CapaEditorial.pdf","EditorialEduardo DinizDiretor-geralGabinete de Planeamento, Políticas e Administração Geral (GPP)Agricultura, Plano de ação, diversidade genética, ecossistema, conservação, natureza, Jaime Brás, Jaime Braz, J. Braz, 1980, Lamego, lameiros, águia"]
[356,"Agricultura e Biodiversidade: Uma Diversidade de Temas",8,13,"José Manuel Lima Santos","Professor e investigador","Instituto Superior de Agronomia, Universidade de Lisboa","","I","PT","2017","Perda de biodiversidade, recursos genéticos, ecossistemas, políticas, ciclo, ecologia, intensificação sustentável, resiliência, diversidade funcional","",0,"Cultivar8GTJoseManuelLimaSantos.pdf","Agricultura e Biodiversidade: Uma Diversidade de TemasJosé Manuel Lima SantosProfessor e investigadorInstituto Superior de Agronomia, Universidade de LisboaIPT2017Perda de biodiversidade, recursos genéticos, ecossistemas, políticas, ciclo, ecologia, intensificação sustentável, resiliência, diversidade funcional"]
[357,"A Agricultura como Utilizadora de Diversidade Genética",8,21,"Carlos Aguiar e Ana Carvalho","Investigadores","Centro de Investigação de Montanha (CIMO), ESA, Instituto Politécnico de Bragança","","I","PT","2017","Paisagem, ecologia, domesticação, genótipos selvagens, plantas, animais, heterogeneidade ambiental, CIMO","",0,"Cultivar8GTCarlosAguiar.pdf","A Agricultura como Utilizadora de Diversidade GenéticaCarlos Aguiar e Ana CarvalhoInvestigadoresCentro de Investigação de Montanha (CIMO), ESA, Instituto Politécnico de BragançaIPT2017Paisagem, ecologia, domesticação, genótipos selvagens, plantas, animais, heterogeneidade ambiental, CIMO"]
[358,"Como Promover os Serviços de Ecossistema na Agricultura Usando a Biodiversidade: o Caso de Estudo da Perceção da Fileira da Vinha",8,27,"Cristina Branquinho, Vânia Proença, Filipa Grilo, Idalina Dias Sardinha, Margarida Lima Faria, José Carlos Franco, Rui Figueira, Maria Manuel Romeiras, Filipa Monteiro, Luís F. Goulão, Margarida Santos-Reis","","cE3c – Centro de Ecologia, Evolução e Alterações Ambientais, Faculdade de Ciências, MARETEC, SOCIUS, ISEG, CEF, CEABN/InBIO, LEAF, ISA","Universidade de Lisboa","I","PT","2017","Serviços de ecossistemas, genótipos, agrobiodiversidade, espécies selvagens, fileira do vinho, setor vitivinícola, agroecossistemas","",0,"Cultivar8GTCristinaBranquinho...pdf","Como Promover os Serviços de Ecossistema na Agricultura Usando a Biodiversidade: o Caso de Estudo da Perceção da Fileira da VinhaCristina Branquinho, Vânia Proença, Filipa Grilo, Idalina Dias Sardinha, Margarida Lima Faria, José Carlos Franco, Rui Figueira, Maria Manuel Romeiras, Filipa Monteiro, Luís F. Goulão, Margarida Santos-ReiscE3c – Centro de Ecologia, Evolução e Alterações Ambientais, Faculdade de Ciências, MARETEC, SOCIUS, ISEG, CEF, CEABN/InBIO, LEAF, ISAUniversidade de LisboaIPT2017Serviços de ecossistemas, genótipos, agrobiodiversidade, espécies selvagens, fileira do vinho, setor vitivinícola, agroecossistemas"]
[359,"A Importância da Agricultura na Preservação da Biodiversidade",8,39,"Francisco Moreira e Ângela Lomba","Investigadores","CIBIO/InBIO – Centro de Investigação em Biodiversidade e Recursos Genéticos, Universidade do Porto","CEABN/InBIO – Centro de Ecologia Aplicada “Professor Baeta Neves”, Instituto Superior de Agronomia, Universidade de Lisboa","I","PT","2017","Intensificação, abandono agrícola, land sparing, land sharing, áreas agrícolas de alto valor natural, paisagem, Diretiva Habitats, conservação","",0,"Cultivar8GTFranciscoMoreiraAngelaLomba.pdf","A Importância da Agricultura na Preservação da BiodiversidadeFrancisco Moreira e Ângela LombaInvestigadoresCIBIO/InBIO – Centro de Investigação em Biodiversidade e Recursos Genéticos, Universidade do PortoCEABN/InBIO – Centro de Ecologia Aplicada “Professor Baeta Neves”, Instituto Superior de Agronomia, Universidade de LisboaIPT2017Intensificação, abandono agrícola, land sparing, land sharing, áreas agrícolas de alto valor natural, paisagem, Diretiva Habitats, conservação"]
[360,"A Agricultura e a Paisagem, Suporte de Múltiplos Usos e Valores Sociais",8,47,"Teresa Pinto Correia","Investigadora","Instituto de Ciências Agrárias e Ambientais Mediterrânicas (ICAAM), Universidade de Évora","","I","PT","2017","interação, sistemas de produção, ecossistema, espaço rural, qualidade da paisagem, transição rural, valorização social","",0,"Cultivar8GTTeresaPintoCorreia.pdf","A Agricultura e a Paisagem, Suporte de Múltiplos Usos e Valores SociaisTeresa Pinto CorreiaInvestigadoraInstituto de Ciências Agrárias e Ambientais Mediterrânicas (ICAAM), Universidade de ÉvoraIPT2017interação, sistemas de produção, ecossistema, espaço rural, qualidade da paisagem, transição rural, valorização social"]
[361,"Agricultura e Biodiversidade",8,55,"Cláudia Gonçalves","","Departamento Técnico da Confederação dos Agricultores de Portugal (CAP)","","II","PT","2017","Diversidade, gestão dos ecossistemas, explorações agrícolas, Rede Natura 2000, políticas, conservação, áreas agrícolas de alto valor natural, SAU - Superfície Agrícola Utilizada","",0,"Cultivar8AGRICULTURABIODIVERSIDADE.pdf","Agricultura e BiodiversidadeCláudia GonçalvesDepartamento Técnico da Confederação dos Agricultores de Portugal (CAP)IIPT2017Diversidade, gestão dos ecossistemas, explorações agrícolas, Rede Natura 2000, políticas, conservação, áreas agrícolas de alto valor natural, SAU - Superfície Agrícola Utilizada"]
[362,"A Importância da Agricultura na Conservação da Natureza",8,65,"Tito Rosa","Presidente","Liga para a Proteção da Natureza","","","","","Habitat, interdependência, IUCN, condicionantes, política agrícola comum, desenvolvimento rural, risco, Zona de Proteção Especial (ZPE), Sítio de Importância Comunitária (SIC)","",0,"Cultivar8ImportanciadaAgriculturaNaConservacaoDaNatureza.pdf","A Importância da Agricultura na Conservação da NaturezaTito RosaPresidenteLiga para a Proteção da NaturezaHabitat, interdependência, IUCN, condicionantes, política agrícola comum, desenvolvimento rural, risco, Zona de Proteção Especial (ZPE), Sítio de Importância Comunitária (SIC)"]
[363,"O Estado da Biodiversidade em Portugal",8,73,"Mário Silva, Anabela Trindade","","Instituto da Conservação da Natureza e das Florestas, I. P. (ICNF)","","II","PT","2017","Ecossistemas, estratégia, rede, conservação da natureza, áreas protegidas, espécies","",0,"Cultivar8EstadoDaBiodiversidadeEmPortugal.pdf","O Estado da Biodiversidade em PortugalMário Silva, Anabela TrindadeInstituto da Conservação da Natureza e das Florestas, I. P. (ICNF)IIPT2017Ecossistemas, estratégia, rede, conservação da natureza, áreas protegidas, espécies"]
[364,"Banco Português de Germoplasma Vegetal – 40 Anos de Conservação dos Recursos Genéticos em Portugal",8,85,"Ana Maria Barata, Carlos Gaspar, Filomena Rocha, Violeta Lopes","","Banco Português de Germoplasma Vegetal, Instituto Nacional de Investigação Agrária e Veterinária (INIAV)","","II","PT","2017","Biodiversidade, conservação, responsabilidade, sementes, coleção genómica","",0,"Cultivar8BancoPortuguesDeGermoplasmaVegetal.pdf","Banco Português de Germoplasma Vegetal – 40 Anos de Conservação dos Recursos Genéticos em PortugalAna Maria Barata, Carlos Gaspar, Filomena Rocha, Violeta LopesBanco Português de Germoplasma Vegetal, Instituto Nacional de Investigação Agrária e Veterinária (INIAV)IIPT2017Biodiversidade, conservação, responsabilidade, sementes, coleção genómica"]
[365,"As Medidas Agroambientais do PDR 2020 e a Biodiversidade",8,91,"Gabinete de Planeamento, Políticas e Administração Geral (GPP)","Susana Barradas, Cláudia Costa","","","II","PT","2017","Agricultura, biodiversidade, pastagens, recursos, preservação, PAC, FEADER, despesa pública","",0,"Cultivar8MedidasAgroambientaisDoPDR2020eaBiodiversidade.pdf","As Medidas Agroambientais do PDR 2020 e a BiodiversidadeGabinete de Planeamento, Políticas e Administração Geral (GPP)Susana Barradas, Cláudia CostaIIPT2017Agricultura, biodiversidade, pastagens, recursos, preservação, PAC, FEADER, despesa pública"]
[366,"Balanço da Qualidade Legislativa da UE em Matéria de Conservação da Natureza",8,99,"Instituto da Conservação da Natureza e das Florestas, I.P. (ICNF)","","Comissão Europeia – DG Ambiente","","IIIA","PT","2017","Diretiva Aves, Diretiva Habitats, qualidade legislativa, conservação da natureza, biodiversidade, Fitness Check of the Birds and Habitats Directives, EU Action Plan For Nature, People and the Economy,","",0,"Cultivar8BalancoDaQualidadeLegislativadaUEemMatériadeConservacao.pdf","Balanço da Qualidade Legislativa da UE em Matéria de Conservação da NaturezaInstituto da Conservação da Natureza e das Florestas, I.P. (ICNF)Comissão Europeia – DG AmbienteIIIAPT2017Diretiva Aves, Diretiva Habitats, qualidade legislativa, conservação da natureza, biodiversidade, Fitness Check of the Birds and Habitats Directives, EU Action Plan For Nature, People and the Economy,"]
[367,"Relatório Especial do TCE Nº 1/2017 – São Necessários mais Esforços para Implementar a Rede Natura 2000 de Forma a Explorar Plenamente o seu Potencial Ficha De Leitura: Tribunal De Contas Europeu (Tce), 2017",8,105,"Gabinete de Planeamento, Políticas e Administração Geral (GPP)","Tribunal de Contas Europeu (TCE)","João Marques","","IIIA","PT","2017","Auditoria TCE, biodiversidade, Rede Natura 2000, Fundos da União Europeia, melhor implementação","",0,"Cultivar8RelatorioEspecialDoTCEN1_2017.pdf","Relatório Especial do TCE Nº 1/2017 – São Necessários mais Esforços para Implementar a Rede Natura 2000 de Forma a Explorar Plenamente o seu Potencial Ficha De Leitura: Tribunal De Contas Europeu (Tce), 2017Gabinete de Planeamento, Políticas e Administração Geral (GPP)Tribunal de Contas Europeu (TCE)João MarquesIIIAPT2017Auditoria TCE, biodiversidade, Rede Natura 2000, Fundos da União Europeia, melhor implementação"]
[368,"Perspetiva Económica sobre as Perdas de Biodiversidade e de Serviços de Ecossistemas",8,109,"Gabinete de Planeamento, Políticas e Administração Geral (GPP)","OCDE - Organização para a Cooperação e o Desenvolvimento Económico","Helena Sequeira","","IIIA","PT","2017","Biodiversidade, serviços de ecossistema, abundância média das espécies, modelos económicos com integração da variável biodiversidade/serviços de ecossistema, The Economic Feedbacks of Loss of Biodiversity and Ecosystems Services","",0,"Cultivar8PerspetivaEconomicaSobrePerdasDeBiodiversidade.pdf","Perspetiva Económica sobre as Perdas de Biodiversidade e de Serviços de EcossistemasGabinete de Planeamento, Políticas e Administração Geral (GPP)OCDE - Organização para a Cooperação e o Desenvolvimento EconómicoHelena SequeiraIIIAPT2017Biodiversidade, serviços de ecossistema, abundância média das espécies, modelos económicos com integração da variável biodiversidade/serviços de ecossistema, The Economic Feedbacks of Loss of Biodiversity and Ecosystems Services"]
[369,"Pagamentos pela Conservação da Biodiversidade na Agricultura",8,113,"Gabinete de Planeamento, Políticas e Administração Geral (GPP)","OCDE - Organização para a Cooperação e Desenvolvimento Económico","Helena Sequeira","","IIIA","PT","2017","Conservação da biodiversidade, eficiência económica e ambiental, objetivos ambientais, pagamentos uniformes, leilões ecológicos, Alternative Payment Approaches for Biodiversity Conservation in Agriculture","",0,"Cultivar8PagamentosPelaConservacaoDaBiodiversidadeNaAgricultura.pdf","Pagamentos pela Conservação da Biodiversidade na AgriculturaGabinete de Planeamento, Políticas e Administração Geral (GPP)OCDE - Organização para a Cooperação e Desenvolvimento EconómicoHelena SequeiraIIIAPT2017Conservação da biodiversidade, eficiência económica e ambiental, objetivos ambientais, pagamentos uniformes, leilões ecológicos, Alternative Payment Approaches for Biodiversity Conservation in Agriculture"]
[370,"Áreas Marinhas Protegidas",8,118,"Gabinete de Planeamento, Políticas e Administração Geral (GPP)","OCDE - Organização para a Cooperação e o Desenvolvimento Económico","Edite Azenha","","IIIA","","2017","Ecossistemas marinhos, alterações climáticas, políticas públicas, poluição, destruição de habitats, Marine Protected Areas – Economics, Management and Effective Policy Mixes","",0,"Cultivar8AreasMarinhasProtegidas.pdf","Áreas Marinhas ProtegidasGabinete de Planeamento, Políticas e Administração Geral (GPP)OCDE - Organização para a Cooperação e o Desenvolvimento EconómicoEdite AzenhaIIIA2017Ecossistemas marinhos, alterações climáticas, políticas públicas, poluição, destruição de habitats, Marine Protected Areas – Economics, Management and Effective Policy Mixes"]
[480,"Cultivar 9 - Publicação Completa",9,1,"Gabinete de Planeamento, Políticas e Administração Geral (GPP)","","","","","","2017","","",0,"Cultivar9.pdf","Cultivar 9 - Publicação CompletaGabinete de Planeamento, Políticas e Administração Geral (GPP)2017"]
[371,"Editorial",9,7,"Eduardo Diniz","Diretor-geral","","","","PT","2017","sabor, solo, diversidade, gastronomia, cozinha, oferta, procura, sazonalidade, paisagem, INIA, Azeitão, 1992, flor de cardo","",0,"Cultivar9CapaEditorial.pdf","EditorialEduardo DinizDiretor-geralPT2017sabor, solo, diversidade, gastronomia, cozinha, oferta, procura, sazonalidade, paisagem, INIA, Azeitão, 1992, flor de cardo"]
[372,"Gastronomia Portuguesa: Heranças Antigas, Dinâmicas Modernas",9,13,"Maria Manuel Valagão","Investigadora","IELT/FCSH, Universidade Nova de Lisboa","","I","PT","2017","tradições alimentares; recursos endógenos; ervas aromáticas; Ecomuseu","",0,"Cultivar9GTMariaManuelValagao.pdf","Gastronomia Portuguesa: Heranças Antigas, Dinâmicas ModernasMaria Manuel ValagãoInvestigadoraIELT/FCSH, Universidade Nova de LisboaIPT2017tradições alimentares; recursos endógenos; ervas aromáticas; Ecomuseu"]
[373,"Vamos Comer o que nos Rodeia – E isso é só o Início da Mudança",9,23,"Alexandra Prado Coelho","jornalista","PÚBLICO","","","","","produtores; cozinheiros; chefs; cozinha internacional","",0,"Cultivar9GTAlexandraPradoCoelho.pdf","Vamos Comer o que nos Rodeia – E isso é só o Início da MudançaAlexandra Prado CoelhojornalistaPÚBLICOprodutores; cozinheiros; chefs; cozinha internacional"]
[374,"A Marca Vinhos de Portugal e sua Projeção para o Caso da Gastronomia Portuguesa",9,31,"Jorge Monteiro","Presidente","ViniPortugal","","I","PT","2017","“wines of Portugal”; IVV; IVDP; ANDOVI; IVBAM","",0,"Cultivar9GTJorgeMonteiro.pdf","A Marca Vinhos de Portugal e sua Projeção para o Caso da Gastronomia PortuguesaJorge MonteiroPresidenteViniPortugalIPT2017“wines of Portugal”; IVV; IVDP; ANDOVI; IVBAM"]
[375,"Paisagens Alimentares e a (Re)Invenção da Gastronomia em Portugal",9,37,"Francisco Bendrao Sarmento","Chefe do Escritório de Informação FAO em Portugal e junto da CPLP","FAO","","I","PT","2017","Cozinha portuguesa; dieta; saúde; turismo; paisagem","",0,"Cultivar9GTFranciscoBendraoSarmento.pdf","Paisagens Alimentares e a (Re)Invenção da Gastronomia em PortugalFrancisco Bendrao SarmentoChefe do Escritório de Informação FAO em Portugal e junto da CPLPFAOIPT2017Cozinha portuguesa; dieta; saúde; turismo; paisagem"]
[376,"A Diferenciação no Setor Cerealífero Aliada à Panificação Artesanal",9,45,"Diogo Amorim","Fundador","Gleba – Moagem e Padaria","","I","PT","2017","cereais; fermentação; pão; certificação BTP; qualidade organolética e nutricional","",0,"Cultivar9GTDiogoAmorim.pdf","A Diferenciação no Setor Cerealífero Aliada à Panificação ArtesanalDiogo AmorimFundadorGleba – Moagem e PadariaIPT2017cereais; fermentação; pão; certificação BTP; qualidade organolética e nutricional"]
[377,"Solo, Cozinha e Mesa: Cinco “Receitas” para Quatro Questões",9,53,"Gabinete de Planeamento, Políticas e Administração Geral (GPP)","Ana Sofia Sampaio, Helena Sequeira, Ana Rita Moura, Bruno Dimas, Eduardo Diniz et al.","","","II","PT","2017","chef; cozinheiro; José Avillez; Bertílio Gomes; Kevin Gould; João Pereira; Gonçalo Bagulho Albino; diversidade; excelência; diferenciação; cadeia de valor; inovação; criatividade; logística de distribuição; pequeno produtor; ligação ao consumidor","",0,"Cultivar9SoloCozinhaMesa.pdf","Solo, Cozinha e Mesa: Cinco “Receitas” para Quatro QuestõesGabinete de Planeamento, Políticas e Administração Geral (GPP)Ana Sofia Sampaio, Helena Sequeira, Ana Rita Moura, Bruno Dimas, Eduardo Diniz et al.IIPT2017chef; cozinheiro; José Avillez; Bertílio Gomes; Kevin Gould; João Pereira; Gonçalo Bagulho Albino; diversidade; excelência; diferenciação; cadeia de valor; inovação; criatividade; logística de distribuição; pequeno produtor; ligação ao consumidor"]
[378,"A Balança Alimentar Portuguesa 2012-2016",9,61,"Carlos Carvalho","","INE – Instituto Nacional de Estatística, IP","","II","PT","2017","BAP - Balança Alimentar Portuguesa; estatísticas; disponibilidades alimentares; roda dos alimentos; dieta mediterrânica; macronutrientes; micronutrientes","",0,"Cultivar9BalançaAlimentarPortuguesa20122016.pdf","A Balança Alimentar Portuguesa 2012-2016Carlos CarvalhoINE – Instituto Nacional de Estatística, IPIIPT2017BAP - Balança Alimentar Portuguesa; estatísticas; disponibilidades alimentares; roda dos alimentos; dieta mediterrânica; macronutrientes; micronutrientes"]
[379,"A Patrimonialização da Dieta Mediterrânica",9,71,"Vítor Barros","Investigador do INIAV (aposentado)","Coordenador do Grupo de Acompanhamento para a Salvaguarda e Promoção da DM","","II","PT","2017","DM - Dieta Mediterrânica; UNESCO; Património Cultural Imaterial da Humanidade (PCIH); regime alimentar; padrão alimentar; tradição alimentar","",0,"Cultivar9PatrimonizacaoDaDietaMediterranica.pdf","A Patrimonialização da Dieta MediterrânicaVítor BarrosInvestigador do INIAV (aposentado)Coordenador do Grupo de Acompanhamento para a Salvaguarda e Promoção da DMIIPT2017DM - Dieta Mediterrânica; UNESCO; Património Cultural Imaterial da Humanidade (PCIH); regime alimentar; padrão alimentar; tradição alimentar"]
[380,"Gastronomia e Produtos de Qualidade",9,79,"Gabinete de Planeamento, Políticas e Administração Geral (GPP) e Direção-Geral de Agricultura e Desenvolvimento Rural (DGADR)","David Gouveia, Cristina Hagatong","","","II","PT","2017","certificação; Denominação de Origem Protegida (DOP); Indicação Geográfica Protegida (IGP); Especialidade Tradicional Garantida (ETG); produto tradicional; Inventário dos Produtos Tradicionais Portugueses","",0,"Cultivar9GastronomiaEProdutosDeQualidade.pdf","Gastronomia e Produtos de QualidadeGabinete de Planeamento, Políticas e Administração Geral (GPP) e Direção-Geral de Agricultura e Desenvolvimento Rural (DGADR)David Gouveia, Cristina HagatongIIPT2017certificação; Denominação de Origem Protegida (DOP); Indicação Geográfica Protegida (IGP); Especialidade Tradicional Garantida (ETG); produto tradicional; Inventário dos Produtos Tradicionais Portugueses"]
[381,"Sobre “O Terceiro Prato – Notas Sobre O Futuro Da Alimentação” de Dan Barber",9,89,"Gabinete de Planeamento, Políticas e Administração Geral (GPP)","Dan Barber","Ana Sofia Sampaio","","IIIA","PT","2017","solo; terra; mar; semente; paisagem; sabor; sistema agrícola; agricultura; \"cultivar a natureza\"; The Third Plate – Field Notes On The Future Of Food; dehesa, montado, produtor, consumidor, chef, cozinheiro, investigador","",0,"Cultivar9SobreOTerceiroPrato.pdf","Sobre “O Terceiro Prato – Notas Sobre O Futuro Da Alimentação” de Dan BarberGabinete de Planeamento, Políticas e Administração Geral (GPP)Dan BarberAna Sofia SampaioIIIAPT2017solo; terra; mar; semente; paisagem; sabor; sistema agrícola; agricultura; \"cultivar a natureza\"; The Third Plate – Field Notes On The Future Of Food; dehesa, montado, produtor, consumidor, chef, cozinheiro, investigador"]
[382,"Manifesto para o Futuro da Cozinha Portuguesa",9,99,"Sangue na Guelra","","","","","","","chefs, gastronomia, cozinha portuguesa, inovação, criatividade, investigação, produtor, consumidor, fornecedor, investigador","",0,"Cultivar9ManifestoParaOFuturoDaCozinhaPortuguesa.pdf","Manifesto para o Futuro da Cozinha PortuguesaSangue na Guelrachefs, gastronomia, cozinha portuguesa, inovação, criatividade, investigação, produtor, consumidor, fornecedor, investigador"]
[383,"Património Gastronómico Europeu: Aspetos Culturais e Educativos",9,101,"Gabinete de Planeamento, Políticas e Administração Geral (GPP)","Carlos Alves"," Parlamento Europeu","","IIIA","PT","2017","gastronomia europeia, riqueza cultural/económica, Dieta Mediterrânica, padrão alimentar equilibrado/saudável, educação nutricional nas escolas","",0,"Cultivar9PatrimonioGastronoimicoEuropeu.pdf","Património Gastronómico Europeu: Aspetos Culturais e EducativosGabinete de Planeamento, Políticas e Administração Geral (GPP)Carlos Alves Parlamento EuropeuIIIAPT2017gastronomia europeia, riqueza cultural/económica, Dieta Mediterrânica, padrão alimentar equilibrado/saudável, educação nutricional nas escolas"]
[384,"Projeto para um Turismo Gastronómico Sustentável",9,105,"Gabinete de Planeamento, Políticas e Administração Geral (GPP)","Projeto Medfest","Ana Filipe Morais","","IIIA","PT","2017","Património cultural gastronómico; crescimento sustentável; turismo sustentável","",0,"Cultivar9ProjetoParamUmTurismoGastronómicoSustentável.pdf","Projeto para um Turismo Gastronómico SustentávelGabinete de Planeamento, Políticas e Administração Geral (GPP)Projeto MedfestAna Filipe MoraisIIIAPT2017Património cultural gastronómico; crescimento sustentável; turismo sustentável"]
[481,"Cultivar 10 - Publicação Completa",10,1,"Gabinete de Planeamento, Políticas e Administração Geral (GPP)","","","","","","2017","","",0,"Cultivar10.pdf","Cultivar 10 - Publicação CompletaGabinete de Planeamento, Políticas e Administração Geral (GPP)2017"]
[385,"Editorial",10,7,"Eduardo Diniz","Diretor-geral","","","","PT","2017","trabalho a tempo parcial, plurirrendimento, trabalho eventual, prestações sociais, mão-de-obra familiar, Artur Pastor, 1954, milho, Guarda, Grijó, Dão, vindima","",0,"Cultivar10CapaEditorial.pdf","EditorialEduardo DinizDiretor-geralPT2017trabalho a tempo parcial, plurirrendimento, trabalho eventual, prestações sociais, mão-de-obra familiar, Artur Pastor, 1954, milho, Guarda, Grijó, Dão, vindima"]
[386,"Tecnologia e desemprego: Já aqui estivemos antes",10,15,"José Castro Caldas","","Centro de Estudos Sociais da Universidade de Coimbra","","I","PT","2017","emprego; trabalho; inovação tecnológica; novas tecnologias; desemprego tecnológico","",0,"Cultivar10GTJoseCastroCaldas.pdf","Tecnologia e desemprego: Já aqui estivemos antesJosé Castro CaldasCentro de Estudos Sociais da Universidade de CoimbraIPT2017emprego; trabalho; inovação tecnológica; novas tecnologias; desemprego tecnológico"]
[387,"Trabalho Agrícola: Percursos e Modelos",10,25,"Fernando Oliveira Baptista e Joaquim Cabral Rolo","professores e investigadores","Instituto Superior de Agronomia (ISA) / Universidade de Lisboa","Instituto Nacional de Investigação Agrária e Veterinária (INIAV), I.P.","I","PT","2017","agricultura familiar; agricultura não familiar; UTA - Unidade de Trabalho Ano; FBCF - Formação Bruta de Capital Fixo; imigrante","",0,"Cultivar10GTFernandoOliveiraBaptistaeJoaquimCabralRolo.pdf",{"$f":"+B147&E147&F147&G147&H147&I147&J147&K147&L147","v":"Trabalho Agrícola: Percursos e ModelosFernando Oliveira Baptista e Joaquim Cabral Roloprofessores e investigadoresInstituto Superior de Agronomia (ISA) / Universidade de LisboaInstituto Nacional de Investigação Agrária e Veterinária (INIAV), I.P.IPT2017agricultura familiar; agricultura não familiar; UTA - Unidade de Trabalho Ano; FBCF - Formação Bruta de Capital Fixo; imigrante"}]
[388,"A Necessidade Aguça o Engenho (ou como o Setor Agrícola Vai Tentando Resolver os seus Problemas)",10,39,"Joaquim Domingos Ângelo","Economista, antigo Quadro Superior do Ministério da Agricultura","","","I","PT","2017","custos de capital; custos de exploração; agricultor; trabalhador rural; mudança; regulação; prestação de serviços","",0,"Cultivar10GTJoaquimDomingosAngelo.pdf","A Necessidade Aguça o Engenho (ou como o Setor Agrícola Vai Tentando Resolver os seus Problemas)Joaquim Domingos ÂngeloEconomista, antigo Quadro Superior do Ministério da AgriculturaIPT2017custos de capital; custos de exploração; agricultor; trabalhador rural; mudança; regulação; prestação de serviços"]
[389,"O Direito do Trabalho na Agricultura",10,51,"António Garcia Pereira","Advogado especialista em Direito do Trabalho, professor","ISEG - Instituto Superior de Economia e Gestão","","I","PT","2017","código civil; código do trabalho; trabalho rural, trabalhador, agricultor, fiscalização, contratação coletiva, regimes de contratação temporária ou intermitente, empresas de prestação de serviços, empresas de trabalho temporário","",0,"Cultivar10GTAntonioGarciaPereira.pdf","O Direito do Trabalho na AgriculturaAntónio Garcia PereiraAdvogado especialista em Direito do Trabalho, professorISEG - Instituto Superior de Economia e GestãoIPT2017código civil; código do trabalho; trabalho rural, trabalhador, agricultor, fiscalização, contratação coletiva, regimes de contratação temporária ou intermitente, empresas de prestação de serviços, empresas de trabalho temporário"]
[390,"Novos Desafios ao Trabalho na Agricultura",10,57,"Pedro Torres","Diretor","Multitempo – Grupo Rhmais","","I","PT","2017","Código do Trabalho; legislação laboral; mão-de-obra, PAC, PDR 2020, trabalho temporário, empresa de prestação de serviços, trabalho de muito curta duração, falta de mão-de-obra disponível, trabalhador estrangeiro com habilitação legal","",0,"Cultivar10GTPedroTorres.pdf","Novos Desafios ao Trabalho na AgriculturaPedro TorresDiretorMultitempo – Grupo RhmaisIPT2017Código do Trabalho; legislação laboral; mão-de-obra, PAC, PDR 2020, trabalho temporário, empresa de prestação de serviços, trabalho de muito curta duração, falta de mão-de-obra disponível, trabalhador estrangeiro com habilitação legal"]
[391,"A Nova Geração de Empregos Qualificados na Agricultura",10,65,"Pedro Santos","consultor","CONSULAI - Consultoria Agroindustrial","","II","PT","2017","millennial; geração mais qualificada; empregador; expetativas","",0,"Cultivar10ANovaGeracaoDeEmpregosQualificadosAgric.pdf","A Nova Geração de Empregos Qualificados na AgriculturaPedro SantosconsultorCONSULAI - Consultoria AgroindustrialIIPT2017millennial; geração mais qualificada; empregador; expetativas"]
[392,"Questões da Agricultura – Promoção do Trabalho Digno",10,71,"Organização Internacional do Trabalho, Genebra (OIT), Suíça","Mafalda Troncho e Fernando Sousa Jr., Escritório da OIT em Lisboa","Equipa de Economia Rural, Departamento de Políticas Setoriais","","II","PT","2017"," SST - Segurança e saúde no trabalho; trabalho infantil; igualdade de género; liberdade de associação, negociação coletiva, trabalho digno","",0,"Cultivar10QuestoesdaAgriculturaPromocaodoTrabalhoDigno.pdf","Questões da Agricultura – Promoção do Trabalho DignoOrganização Internacional do Trabalho, Genebra (OIT), SuíçaMafalda Troncho e Fernando Sousa Jr., Escritório da OIT em LisboaEquipa de Economia Rural, Departamento de Políticas SetoriaisIIPT2017 SST - Segurança e saúde no trabalho; trabalho infantil; igualdade de género; liberdade de associação, negociação coletiva, trabalho digno"]
[393,"As Novas Condições de Trabalho na Agricultura",10,79,"Maria Filomena Teixeira, Maria de Fátima Pisco, Carlos Montemor e Manuel Maduro Roxo","","ACT - Autoridade para as Condições do Trabalho","","II","PT","2017","Autoridade para as Condições de Trabalho; ACT; Segurança e saúde no trabalho; SST; prevenção dos riscos","",0,"Cultivar10AsNovasCondicoesdeTRabalhonaAgricultura.pdf","As Novas Condições de Trabalho na AgriculturaMaria Filomena Teixeira, Maria de Fátima Pisco, Carlos Montemor e Manuel Maduro RoxoACT - Autoridade para as Condições do TrabalhoIIPT2017Autoridade para as Condições de Trabalho; ACT; Segurança e saúde no trabalho; SST; prevenção dos riscos"]
[394,"O Trabalho na Agricultura Portuguesa",10,87,"Gabinete de Planeamento, Políticas e Administração Geral (GPP)","Ana Rita Moura, Susana Barradas e Rui Pereira","","","","","","emprego; Contas Nacionais; Contas Regionais; Contas Económicas da Agricultura; Recenseamentos Agrícolas; Inquéritos às Estruturas das Explorações Agrícolas; INE; Eurostat","",0,"Cultivar10TrabalhoNaAgriculturaPortuguesa.pdf","O Trabalho na Agricultura PortuguesaGabinete de Planeamento, Políticas e Administração Geral (GPP)Ana Rita Moura, Susana Barradas e Rui Pereiraemprego; Contas Nacionais; Contas Regionais; Contas Económicas da Agricultura; Recenseamentos Agrícolas; Inquéritos às Estruturas das Explorações Agrícolas; INE; Eurostat"]
[395,"Dinâmicas Salariais Recentes em Economias Avançadas: Fatores Determinantes e Implicações",10,109,"Gabinete de Planeamento, Políticas e Administração Geral (GPP)","FMI – Fundo Monetário Internacional","Gee Hee Hong, Zsóka Kóczán, Weicheng Lian e Malhar Nabar (apoio de Benjamin Hilgenstock e Jungiin Lee)","Joaquim Carvalho","IIIA","PT","2017","emprego; desemprego; salários; Grande Recessão de 2008-09; World Economic Outlook 2017 (Cap.2)","",0,"Cultivar10DinamicasSalariaisRecentesEmEconomiaAvancadas.pdf","Dinâmicas Salariais Recentes em Economias Avançadas: Fatores Determinantes e ImplicaçõesGabinete de Planeamento, Políticas e Administração Geral (GPP)FMI – Fundo Monetário InternacionalGee Hee Hong, Zsóka Kóczán, Weicheng Lian e Malhar Nabar (apoio de Benjamin Hilgenstock e Jungiin Lee)Joaquim CarvalhoIIIAPT2017emprego; desemprego; salários; Grande Recessão de 2008-09; World Economic Outlook 2017 (Cap.2)"]
[396,"Trabalho e Políticas de Emprego",10,112,"Gabinete de Planeamento, Políticas e Administração Geral (GPP)","Coord. Manuel Carvalho da Silva, Pedro Hespanha e José Castro Caldas","Centro de Estudos Sociais (CES) da Universidade de Coimbra","Helena Sequeira","IIIA","PT","2017","trabalho; desemprego; políticas públicas de emprego; crise","",0,"Cultivar10TrabalhoEPoliticasDeEmprego.pdf","Trabalho e Políticas de EmpregoGabinete de Planeamento, Políticas e Administração Geral (GPP)Coord. Manuel Carvalho da Silva, Pedro Hespanha e José Castro CaldasCentro de Estudos Sociais (CES) da Universidade de CoimbraHelena SequeiraIIIAPT2017trabalho; desemprego; políticas públicas de emprego; crise"]
[397,"Plano Estratégico de Acão para os Setores Agrícola, Pecuário e Florestal",10,115,"Gabinete de Planeamento, Políticas e Administração Geral (GPP)","ACT - Autoridade para as Condições no Trabalho","Relatório Final 2016","Rui Trindade","IIIA","PT","2017","acidentes de trabalho; prevenção; inspeção","",0,"Cultivar10PlanoEstrategicoDeAcaoParaSetoresAgricolas.pdf","Plano Estratégico de Acão para os Setores Agrícola, Pecuário e FlorestalGabinete de Planeamento, Políticas e Administração Geral (GPP)ACT - Autoridade para as Condições no TrabalhoRelatório Final 2016Rui TrindadeIIIAPT2017acidentes de trabalho; prevenção; inspeção"]
[398,"Guia de Boas Práticas - Proteção da Segurança e da Saúde dos Trabalhadores da Agricultura, Pecuária, Horticultura e Silvicultura Síntese",10,118,"Gabinete de Planeamento, Políticas e Administração Geral (GPP)","Direção-Geral do Emprego, dos Assuntos Sociais e da Inclusão /Unidade B.3, Comissão Europeia","Ana Filipe Morais","","IIIA","PT","2017","Segurança; saúde; trabalho","",0,"Cultivar10ProtecaoDaSegurancaSaudeTrabalhadores.pdf","Guia de Boas Práticas - Proteção da Segurança e da Saúde dos Trabalhadores da Agricultura, Pecuária, Horticultura e Silvicultura SínteseGabinete de Planeamento, Políticas e Administração Geral (GPP)Direção-Geral do Emprego, dos Assuntos Sociais e da Inclusão /Unidade B.3, Comissão EuropeiaAna Filipe MoraisIIIAPT2017Segurança; saúde; trabalho"]
[482,"Cultivar 11 - Publicação Completa",11,1,"Gabinete de Planeamento, Políticas e Administração Geral (GPP)","","","","","","2018","","",0,"Cultivar11.pdf","Cultivar 11 - Publicação CompletaGabinete de Planeamento, Políticas e Administração Geral (GPP)2018"]
[399,"Editorial",11,7,"Eduardo Diniz","Diretor-geral","Gabinete de Planeamento, Políticas e Administração Geral (GPP)","","","PT","2018","território rural, potencialidades, fragilidades, polarização, ordenamento, José Neiva Vieira, Serra do Soajo, Arcos de Valdevez, arborização de baldios","",0,"Cultivar11CapaEditorial.pdf","EditorialEduardo DinizDiretor-geralGabinete de Planeamento, Políticas e Administração Geral (GPP)PT2018território rural, potencialidades, fragilidades, polarização, ordenamento, José Neiva Vieira, Serra do Soajo, Arcos de Valdevez, arborização de baldios"]
[400,"Despovoamento em Áreas Rurais: entre a Inevitabilidade e a Capacidade de Transformação",11,13,"João Ferrão","Geógrafo e Investigador","Instituto de Ciências Sociais, Universidade de Lisboa","","I","PT","2018","demografia, população rural, resiliência dos territórios, políticas públicas","",0,"Cultivar11GTJoaoFerrao.pdf","Despovoamento em Áreas Rurais: entre a Inevitabilidade e a Capacidade de TransformaçãoJoão FerrãoGeógrafo e InvestigadorInstituto de Ciências Sociais, Universidade de LisboaIPT2018demografia, população rural, resiliência dos territórios, políticas públicas"]
[401,"Território e Planeamento para além dos Planos",11,21,"Sidónio Pardal","urbanista, arquitecto paisagista, engenheiro agrónomo, professor","Universidade de Lisboa","","I","PT","2018","territórios, ordenamento do território, planeamento territorial, desdobramento","",0,"Cultivar11GTSidonioPardal.pdf","Território e Planeamento para além dos PlanosSidónio Pardalurbanista, arquitecto paisagista, engenheiro agrónomo, professorUniversidade de LisboaIPT2018territórios, ordenamento do território, planeamento territorial, desdobramento"]
[402,"Floresta Familiar, Floresta Externalizada e Floresta Entregue a Si Própria. A Gestão dos Proprietários e os Territórios Rurais",11,31,"Maria João Canadas e Ana Novais","Professoras e investigadoras","Instituto Superior de Agronomia, Universidade de Lisboa","Centro de Estudos Florestais (CEF)","I","PT","2018","proprietários florestais, gestão florestal, minifúndio, incêndios rurais, desenvolvimento","",0,"Cultivar11GTMJoaoCanadasAnaNovais.pdf","Floresta Familiar, Floresta Externalizada e Floresta Entregue a Si Própria. A Gestão dos Proprietários e os Territórios RuraisMaria João Canadas e Ana NovaisProfessoras e investigadorasInstituto Superior de Agronomia, Universidade de LisboaCentro de Estudos Florestais (CEF)IPT2018proprietários florestais, gestão florestal, minifúndio, incêndios rurais, desenvolvimento"]
[403,"Entre o Abandono e o Idílio – Representações Sociais dos Territórios Rurais em Portugal",11,39,"Elisabete Figueiredo","Professora e investigadora","Departamento de Ciências Sociais, Políticas e do Território, Universidade de Aveiro","","I","PT","2018","abandono rural, teritórios rurais, ruralidade, evolução social","",0,"Cultivar11GTElisabeteFigueiredo.pdf","Entre o Abandono e o Idílio – Representações Sociais dos Territórios Rurais em PortugalElisabete FigueiredoProfessora e investigadoraDepartamento de Ciências Sociais, Políticas e do Território, Universidade de AveiroIPT2018abandono rural, teritórios rurais, ruralidade, evolução social"]
[404,"O Mercado dos Prédios Rústicos",11,49,"Alfredo Serra Mendes","Presidente, Ex-Diretor de Serviços","Associação Portuguesa dos Peritos Avaliadores de Engenharia (APAE)","Direção de Serviços de Avaliações da Autoridade Tributária (AT)","I","PT","2018","prédios rústicos, IMI - Imposto Municipal sobre Imóveis, IMT - Imposto Municipal sobre a Transmissão Onerosa\nde Imóveis, minifúndio, mercado de terras, cadastro","",0,"Cultivar11GTAlfredoSerraMendes.pdf","O Mercado dos Prédios RústicosAlfredo Serra MendesPresidente, Ex-Diretor de ServiçosAssociação Portuguesa dos Peritos Avaliadores de Engenharia (APAE)Direção de Serviços de Avaliações da Autoridade Tributária (AT)IPT2018prédios rústicos, IMI - Imposto Municipal sobre Imóveis, IMT - Imposto Municipal sobre a Transmissão Onerosa\nde Imóveis, minifúndio, mercado de terras, cadastro"]
[405,"Instrumentos de Política com Expressão Territorial (Espaço Rural)",11,59,"Gabinete de Planeamento, Políticas e Administração Geral (GPP) e Direção-Geral de Agricultura e Desenvolvimento Rural (DGADR)","Helena Sequeira, José Eduardo Reis, Rui Trindade, Manuel Loureiro, Manuela Tavares","","","II","PT","2018","ordenamento do território, instrumentos de planeamento territorial, sistema de gestão territorial","",0,"Cultivar11InstrumentosPoliticaExpressãoTerritorial.pdf","Instrumentos de Política com Expressão Territorial (Espaço Rural)Gabinete de Planeamento, Políticas e Administração Geral (GPP) e Direção-Geral de Agricultura e Desenvolvimento Rural (DGADR)Helena Sequeira, José Eduardo Reis, Rui Trindade, Manuel Loureiro, Manuela TavaresIIPT2018ordenamento do território, instrumentos de planeamento territorial, sistema de gestão territorial"]
[406,"Instrumentos de Gestão do Território na Administração Local",11,75,"José Bernardo Nunes","Presidente da Câmara","Câmara Municipal do Cadaval","","II","PT","2018","organização territorial rural, Concelho de Cadaval, PDM - Plano Diretor Municipal, instrumentos de ordenamento do território","",0,"Cultivar11InstrumentosDeGestãoDoTerritórioNaAdministraçãoLocal.pdf","Instrumentos de Gestão do Território na Administração LocalJosé Bernardo NunesPresidente da CâmaraCâmara Municipal do CadavalIIPT2018organização territorial rural, Concelho de Cadaval, PDM - Plano Diretor Municipal, instrumentos de ordenamento do território"]
[407,"Evolução Histórica dos Organismos no Âmbito da Administração Pública Florestal (1824-2012)",11,81,"João Pinho","ICNF - Instituto da Conservação da Natureza e das Florestas","","","","","","história florestal, política florestal, serviços florestais, promoção da floresta, investigação e experimentação florestal, hidráulica florestal, silvopastorícia","",0,"Cultivar11EvoluçãoHistóricaDosOrganismosNoÂmbitoDaAdministraçãoPúblicaFlorestal.pdf","Evolução Histórica dos Organismos no Âmbito da Administração Pública Florestal (1824-2012)João PinhoICNF - Instituto da Conservação da Natureza e das Florestashistória florestal, política florestal, serviços florestais, promoção da floresta, investigação e experimentação florestal, hidráulica florestal, silvopastorícia"]
[408,"Evolução da População Rural no Continente",11,95,"Gabinete de Planeamento, Políticas e Administração Geral (GPP)","Rui Trindade e Manuel Loureiro","","","II","PT","2018","demografia, indicadores demográficos, IDJ - Índice de Dependência de Jovens, IDI - Índice de Dependência de Idosos, IE - Índice de Envelhecimento, freguesias rurais, zonas rurais, estrutura etária, IDT - Índice de Dependência Total","",0,"Cultivar11EvoluçãoDaPopulaçãoRuralNoContinente.pdf","Evolução da População Rural no ContinenteGabinete de Planeamento, Políticas e Administração Geral (GPP)Rui Trindade e Manuel LoureiroIIPT2018demografia, indicadores demográficos, IDJ - Índice de Dependência de Jovens, IDI - Índice de Dependência de Idosos, IE - Índice de Envelhecimento, freguesias rurais, zonas rurais, estrutura etária, IDT - Índice de Dependência Total"]
[409,"Bolsa Nacional de Terras - Relatório de Execução e de Atividades de 2016",11,109,"Direção-Geral de Agricultura e Desenvolvimento Rural (DGADR)","Bolsa Nacional de Terras","","","IIIB","PT","2018","acesso à terra, disponibilização de terras, cedência de terras, gestão operacional, entidades gestoras operacionais, grupo de acompanhamento da Bolsa Nacional de Terras, dinamização e divulgação, prédios rústicos","",0,"Cultivar11RelatórioDeExecuçãoEDeAtividadesDe2016.pdf","Bolsa Nacional de Terras - Relatório de Execução e de Atividades de 2016Direção-Geral de Agricultura e Desenvolvimento Rural (DGADR)Bolsa Nacional de TerrasIIIBPT2018acesso à terra, disponibilização de terras, cedência de terras, gestão operacional, entidades gestoras operacionais, grupo de acompanhamento da Bolsa Nacional de Terras, dinamização e divulgação, prédios rústicos"]
[410,"O Mundo Rural e o Desenvolvimento Económico e Social de Portugal",11,113,"Gabinete de Planeamento, Políticas e Administração Geral (GPP)","Sociedade de Consultores Augusto Mateus & Associados","","","","","","Estratégia de Desenvolvimento Rural, Idanha-a-Nova, Augusto Mateus, coesão territorial","",0,"Cultivar11OMundoRuralEODesenvolvimentoEconómicoESocialDePortugal.pdf","O Mundo Rural e o Desenvolvimento Económico e Social de PortugalGabinete de Planeamento, Políticas e Administração Geral (GPP)Sociedade de Consultores Augusto Mateus & AssociadosEstratégia de Desenvolvimento Rural, Idanha-a-Nova, Augusto Mateus, coesão territorial"]
[411,"O Cadastro e a Propriedade Rústica em Portugal",11,117,"Gabinete de Planeamento, Políticas e Administração Geral (GPP)","Rodrigo Sarmento Beires, com a colaboração de João Gama Amaral e Paula Ribeiro","Manuel Loureiro","","IIIB","PT","2018","políticas públicas, propriedade rural, gestão rural, ordenamento do território","",0,"Cultivar11OCadastroEAPropriedadeRústicaEmPortugal.pdf","O Cadastro e a Propriedade Rústica em PortugalGabinete de Planeamento, Políticas e Administração Geral (GPP)Rodrigo Sarmento Beires, com a colaboração de João Gama Amaral e Paula RibeiroManuel LoureiroIIIBPT2018políticas públicas, propriedade rural, gestão rural, ordenamento do território"]
[412,"Inquérito à Estrutura das Explorações Agrícolas 2016",11,119,"Gabinete de Planeamento, Políticas e Administração Geral (GPP)","Rui Pereira e Ana Sofia Sampaio","Instituto Nacional de Estatística, I.P.","","","","","estatísticas agrícolas, sistemas de produção agrícola, população agrícola familiar, mão-de-obra assalariada, IEEA, Superfície Agrícola Utilizada (SAU)","",0,"Cultivar11InquéritoÀEstruturaDasExploraçõesAgrícolas2016.pdf","Inquérito à Estrutura das Explorações Agrícolas 2016Gabinete de Planeamento, Políticas e Administração Geral (GPP)Rui Pereira e Ana Sofia SampaioInstituto Nacional de Estatística, I.P.estatísticas agrícolas, sistemas de produção agrícola, população agrícola familiar, mão-de-obra assalariada, IEEA, Superfície Agrícola Utilizada (SAU)"]
[483,"Cultivar 12 - Publicação Completa",12,1,"Gabinete de Planeamento, Políticas e Administração Geral (GPP)","","","","","","2018","","",0,"Cultivar12.pdf","Cultivar 12 - Publicação CompletaGabinete de Planeamento, Políticas e Administração Geral (GPP)2018"]
[413,"Editorial",12,7,"Eduardo Diniz","Diretor-geral","","","","PT","2017","ciclo de transformação, matérias-primas, produção, agricultor, condições climáticas, volatilidade dos mercados, mitigação, adaptação, boas práticas agrícolas, Alvito, 2018, Águas de Moura, Setúbal, ciclone, 1941","",0,"Cultivar12CapaEditorial.pdf","EditorialEduardo DinizDiretor-geralPT2017ciclo de transformação, matérias-primas, produção, agricultor, condições climáticas, volatilidade dos mercados, mitigação, adaptação, boas práticas agrícolas, Alvito, 2018, Águas de Moura, Setúbal, ciclone, 1941"]
[414,"O Papel da Agricultura (e das Florestas) no Novo Quadro de Transição para uma Ação Climática Eficaz de Modo a Cumprir os Objetivos do Acordo de Paris The Role Of Agriculture (And Forests) In The New Framework Of Transition To Effective Climate Action To M",12,13,"Miguel Arias Cañete","Comissário Europeu para a Ação Climática e a Energia","Comissão Europeia","União Europeia","I","PT, EN","2018","Incerteza, cenários climáticos, IPCC - Painel Intergovernamental sobre Mudanças Climáticas, GEE, roteiro de baixo carbono, mitigação, ODS - Objetivo de Desenvolvimento Sustentável, risco de incêndio, LULUCF, fogos florestais, área ardida","",0,"Cultivar12GTMiguelAriasCañete.pdf","O Papel da Agricultura (e das Florestas) no Novo Quadro de Transição para uma Ação Climática Eficaz de Modo a Cumprir os Objetivos do Acordo de Paris The Role Of Agriculture (And Forests) In The New Framework Of Transition To Effective Climate Action To MMiguel Arias CañeteComissário Europeu para a Ação Climática e a EnergiaComissão EuropeiaUnião EuropeiaIPT, EN2018Incerteza, cenários climáticos, IPCC - Painel Intergovernamental sobre Mudanças Climáticas, GEE, roteiro de baixo carbono, mitigação, ODS - Objetivo de Desenvolvimento Sustentável, risco de incêndio, LULUCF, fogos florestais, área ardida"]
[415,"A Mudança Climática",12,29,"Pedro M.A. Miranda, Rita M. Cardoso, Pedro M.M. Soares, Maria Antónia Valente e Pedro Viterbo","","IDL - Instituto Dom Luiz, Faculdade de Ciências, Universidade de Lisboa","IPMA - Instituto Português do Mar e da Atmosfera","I","PT","2018","Clima, uso sustentável de recursos finitos, evolução climática, heterogeneidade climática, modelo regional, modelo global, cenários climáticos,anomalia","",0,"Cultivar12GTPedroMAMirandaRitaMCardosoPedroMMSoaresMariaAntóniaValenteEPedroViterbo.pdf","A Mudança ClimáticaPedro M.A. Miranda, Rita M. Cardoso, Pedro M.M. Soares, Maria Antónia Valente e Pedro ViterboIDL - Instituto Dom Luiz, Faculdade de Ciências, Universidade de LisboaIPMA - Instituto Português do Mar e da AtmosferaIPT2018Clima, uso sustentável de recursos finitos, evolução climática, heterogeneidade climática, modelo regional, modelo global, cenários climáticos,anomalia"]
[416,"PAC Pós-2020: Melhorar a Proteção do Ambiente Preservando a Necessária Competitividade da Agricultura Europeia",12,39,"Hervé Guyomard, Alix Bell e Cécile Détang-Dessendre","","Institut National de la Recherche Agronomique (INRA) e Chaire Finagri","","I","PT, FR","2018","Comment mieux prendre en compte la protection de l’environnement dans la PAC de l’après-2020 tout en préservant la nécessaire compétitivité de l'agriculture européenne, reforma da PAC, proteção ambiental, finanças verdes, remuneração de serviços","",0,"Cultivar12GTHervéGuyomardAlixBellECécileDétang-Dessendre.pdf","PAC Pós-2020: Melhorar a Proteção do Ambiente Preservando a Necessária Competitividade da Agricultura EuropeiaHervé Guyomard, Alix Bell e Cécile Détang-DessendreInstitut National de la Recherche Agronomique (INRA) e Chaire FinagriIPT, FR2018Comment mieux prendre en compte la protection de l’environnement dans la PAC de l’après-2020 tout en préservant la nécessaire compétitivité de l'agriculture européenne, reforma da PAC, proteção ambiental, finanças verdes, remuneração de serviços"]
[417,"Reflexão Crítica Sobre as Novas Orientações Globais da Política Económica e Ambiental e a Adequação das Respostas da Política Florestal Nacional",12,49,"Suzana Tavares da Silva","","Faculdade de Direito, Universidade de Coimbra","","I","PT","2018","sustentabilidade, papel do Estado, preservação dos ecossistemas, economia verde e economia circular, reforma legislativa da floresta","",0,"Cultivar12GTSuzanaTavaresDaSilva.pdf","Reflexão Crítica Sobre as Novas Orientações Globais da Política Económica e Ambiental e a Adequação das Respostas da Política Florestal NacionalSuzana Tavares da SilvaFaculdade de Direito, Universidade de CoimbraIPT2018sustentabilidade, papel do Estado, preservação dos ecossistemas, economia verde e economia circular, reforma legislativa da floresta"]
[418,"Alterações Observadas no Clima Atual e Cenários Climáticos em Portugal Continental – Influência no Setor Agrícola",12,57,"Vanda Pires, Tânia de Moura Cota e Álvaro Silva","","Instituto Português do Mar e da Atmosfera, I.P. – Divisão de Clima e Alterações Climáticas","","II","PT","2018","acompanhamento e monitorização do clima, cenários climáticos, modelo climático, anomalia, seca, impacto, défice hídrico","",0,"Cultivar12AlteraçõesObservadasNoClimaAtualECenáriosClimáticos.pdf","Alterações Observadas no Clima Atual e Cenários Climáticos em Portugal Continental – Influência no Setor AgrícolaVanda Pires, Tânia de Moura Cota e Álvaro SilvaInstituto Português do Mar e da Atmosfera, I.P. – Divisão de Clima e Alterações ClimáticasIIPT2018acompanhamento e monitorização do clima, cenários climáticos, modelo climático, anomalia, seca, impacto, défice hídrico"]
[419,"O EFMA num Contexto de Mudança Climática",12,69,"José Pedro Salema","Presidente do Conselho de Administração","EDIA – Empresa de Desenvolvimento e Infraestruturas do Alqueva, S.A","","II","PT","2018","Empreendimento de Fins Múltiplos de Alqueva, escassez de água, região mediterrânica, impacto, boas práticas, energia fotovoltaica para autoconsumo","",0,"Cultivar12OEfmaNumContextoDeMudançaClimática.pdf","O EFMA num Contexto de Mudança ClimáticaJosé Pedro SalemaPresidente do Conselho de AdministraçãoEDIA – Empresa de Desenvolvimento e Infraestruturas do Alqueva, S.AIIPT2018Empreendimento de Fins Múltiplos de Alqueva, escassez de água, região mediterrânica, impacto, boas práticas, energia fotovoltaica para autoconsumo"]
[420,"Abordagem Estratégica de Adaptação da Agricultura às Alterações Climáticas – Visão para um Programa de Investigação",12,77,"João Ribeiro Lima","Vogal do Conselho Diretivo","Instituto Nacional de Investigação Agrária e Veterinária, I.P. (INIAV)","","II","PT","2018","adaptação, fenómenos meteorológicos extremos, investigação, inovação, uso eficiente dos recursos, regadio, práticas culturais, pragas e doenças emergentes, novas culturas, melhoramento genético, experimentação","",0,"Cultivar12AbordagemEstratégicaDeAdaptaçãoDaAgriculturaÀsAlterações.pdf","Abordagem Estratégica de Adaptação da Agricultura às Alterações Climáticas – Visão para um Programa de InvestigaçãoJoão Ribeiro LimaVogal do Conselho DiretivoInstituto Nacional de Investigação Agrária e Veterinária, I.P. (INIAV)IIPT2018adaptação, fenómenos meteorológicos extremos, investigação, inovação, uso eficiente dos recursos, regadio, práticas culturais, pragas e doenças emergentes, novas culturas, melhoramento genético, experimentação"]
[421,"A Agricultura num Clima em Mudança – Antecipando o Futuro: Modelo de Projeção e Medidas de Adaptação",12,85,"Igor Gonçalves, Cristina Carlos e Rosa Amador","","ADVID – Associação para o Desenvolvimento da Viticultura Duriense","","II","PT","2018","impacto, sistema agrícola, vinho, Região Demarcada do Douro (RDD), condições climáticas","",0,"Cultivar12AAgriculturaNumClimaEmMudança–AntecipandoOFuturoModelo.pdf","A Agricultura num Clima em Mudança – Antecipando o Futuro: Modelo de Projeção e Medidas de AdaptaçãoIgor Gonçalves, Cristina Carlos e Rosa AmadorADVID – Associação para o Desenvolvimento da Viticultura DurienseIIPT2018impacto, sistema agrícola, vinho, Região Demarcada do Douro (RDD), condições climáticas"]
[422,"AGRI-ADAPT 2020 – Programa para a Adaptação da Agricultura às Alterações Climáticas",12,93,"Gabinete de Planeamento, Políticas e Administração Geral (GPP) e Direção-Geral de Agricultura e Desenvolvimento Rural (DGADR)","Helena Sequeira, Clara Lopes, Hugo Costa, Maria de São Luís Centeno","","","II","PT","2018","EAAFAC - Estratégia de Adaptação da Agricultura e das Florestas às Alterações Climáticas, ENAAC - Estratégia Nacional de Adaptação às Alterações Climáticas, Quadro Estratégico para a Política Climática (QEPiC), risco, água, conhecimento, produção","",0,"Cultivar12Agri-Adapt2020–ProgramaParaAAdaptaçãoDaAgricultura.pdf","AGRI-ADAPT 2020 – Programa para a Adaptação da Agricultura às Alterações ClimáticasGabinete de Planeamento, Políticas e Administração Geral (GPP) e Direção-Geral de Agricultura e Desenvolvimento Rural (DGADR)Helena Sequeira, Clara Lopes, Hugo Costa, Maria de São Luís CentenoIIPT2018EAAFAC - Estratégia de Adaptação da Agricultura e das Florestas às Alterações Climáticas, ENAAC - Estratégia Nacional de Adaptação às Alterações Climáticas, Quadro Estratégico para a Política Climática (QEPiC), risco, água, conhecimento, produção"]
[423,"Desafios Climáticos e Ambientais Enfrentados pela Agricultura  e pelas Zonas Rurais da União Europeia",12,101,"Gabinete de Planeamento, Políticas e Administração Geral (GPP)","Comissão Europeia – Direção-Geral da Agricultura e do Desenvolvimento Rural","Helena Sequeira","","IIIB","PT","2018","Política Agrícola Comum (PAC), Desenvolvimento Rural, Alterações Climáticas, Condicionalidade, Sistema de Aconselhamento Agrícola (SAA)","",0,"Cultivar12DesafiosClimáticosEAmbientaisEnfrentadosPelaAgricultura.pdf","Desafios Climáticos e Ambientais Enfrentados pela Agricultura  e pelas Zonas Rurais da União EuropeiaGabinete de Planeamento, Políticas e Administração Geral (GPP)Comissão Europeia – Direção-Geral da Agricultura e do Desenvolvimento RuralHelena SequeiraIIIBPT2018Política Agrícola Comum (PAC), Desenvolvimento Rural, Alterações Climáticas, Condicionalidade, Sistema de Aconselhamento Agrícola (SAA)"]
[424,"Escassez e Abundância de Água",12,107,"Gabinete de Planeamento, Políticas e Administração Geral (GPP)","Seth Siegel","Pedro Castro Rego","","","",""," “Let There Be Water (Israel’s Solution for a Water Starved World)”, seca, gestão da água, efeitos do clima, Kibbutz, tecnologia de rega, A água - A escassez na abundância","",0,"Cultivar12EscassezEAbundânciaDeÁgua.pdf","Escassez e Abundância de ÁguaGabinete de Planeamento, Políticas e Administração Geral (GPP)Seth SiegelPedro Castro Rego “Let There Be Water (Israel’s Solution for a Water Starved World)”, seca, gestão da água, efeitos do clima, Kibbutz, tecnologia de rega, A água - A escassez na abundância"]
[425,"Plano de Adaptação de Mértola às Alterações Climáticas",12,111,"Gabinete de Planeamento, Políticas e Administração Geral (GPP)","Vizinho A., et al.","FFCUL – Fundação Faculdade de Ciências da Universidade de Lisboa","Ana Rita Moura e Manuel Loureiro","IIIB","PT","2018","AdaptForChange, cenários climáticos, ADPM - Associação de Defesa do Património de Mértola","",0,"Cultivar12PlanoDeAdaptaçãoDeMértolaÀsAlteraçõesClimáticas.pdf","Plano de Adaptação de Mértola às Alterações ClimáticasGabinete de Planeamento, Políticas e Administração Geral (GPP)Vizinho A., et al.FFCUL – Fundação Faculdade de Ciências da Universidade de LisboaAna Rita Moura e Manuel LoureiroIIIBPT2018AdaptForChange, cenários climáticos, ADPM - Associação de Defesa do Património de Mértola"]
[426,"Uso do Solo, Alteração de Uso do Solo e Florestas (LULUCF)",12,115,"Gabinete de Planeamento, Políticas e Administração Geral (GPP)","Helena Sequeira","","","IIIB","PT","2018","Acordo de Paris, Gases com Efeito de Estufa (GEE), Pacote Energia – Clima 2030, Agenda de Desenvolvimento Sustentável  2030","",0,"Cultivar12UsoDoSoloAlteraçãoDeUsoDoSoloEFlorestas(Lulucf).pdf","Uso do Solo, Alteração de Uso do Solo e Florestas (LULUCF)Gabinete de Planeamento, Políticas e Administração Geral (GPP)Helena SequeiraIIIBPT2018Acordo de Paris, Gases com Efeito de Estufa (GEE), Pacote Energia – Clima 2030, Agenda de Desenvolvimento Sustentável  2030"]
[484,"Cultivar 13 - Publicação Completa",13,1,"Gabinete de Planeamento, Políticas e Administração Geral (GPP)","","","","","","2018","","",0,"Cultivar13.pdf","Cultivar 13 - Publicação CompletaGabinete de Planeamento, Políticas e Administração Geral (GPP)2018"]
[427,"Editorial",13,7,"Eduardo Diniz","Diretor-geral","Gabinete de Planeamento, Políticas e Administração Geral (GPP)","","","PT","2018","abertura dos mercados, modernização, produtividade, logística, abastecimento, autorregulação, Jaime Braz, Jaime Brás, J. Braz, 1979, cebolinho, Malveira, Isabel Escada, Funchal, 2018, mercado de lavradores","",0,"Cultivar13CapaEditorial.pdf","EditorialEduardo DinizDiretor-geralGabinete de Planeamento, Políticas e Administração Geral (GPP)PT2018abertura dos mercados, modernização, produtividade, logística, abastecimento, autorregulação, Jaime Braz, Jaime Brás, J. Braz, 1979, cebolinho, Malveira, Isabel Escada, Funchal, 2018, mercado de lavradores"]
[428,"Para uma Política Agrícola e Alimentar Comum, Towards A Common Agricultural And Food Policy",13,13,"Louise O. Fresco e Krijn J. Poppe","","Wageningen University & Research","Países Baixos","I","PT, EN","2018","PAC, sistema alimentar, Europa, Painel Intergovernamental para a Alimentação e a Agricultura, ONU","",0,"Cultivar13GTLouiseOFrescoEKrijnJPoppe.pdf","Para uma Política Agrícola e Alimentar Comum, Towards A Common Agricultural And Food PolicyLouise O. Fresco e Krijn J. PoppeWageningen University & ResearchPaíses BaixosIPT, EN2018PAC, sistema alimentar, Europa, Painel Intergovernamental para a Alimentação e a Agricultura, ONU"]
[429,"A Cadeia de Abastecimento Alimentar “à moda” da Europa, Food Supply Chain “façon” Europe",13,29,"Carlo Pettinelli e Jaroslaw Swierczynar","Comissão Europeia","DG GROW – Direção-Geral do Mercado Interno, Indústria, Empreendedorismo e PME","","I","PT, EN","2018","PAC, Comissão Europeia, mercados, alimentação, produção alimentar, barreiras ao comércio, Mercado Único, poder negocial, Fórum de Alto Nível sobre a Melhoria do Funcionamento da Cadeia de Abastecimento Alimentar (HLF), qualidade","",0,"Cultivar13GTCarloPettinelliEJaroslawSwierczynar.pdf","A Cadeia de Abastecimento Alimentar “à moda” da Europa, Food Supply Chain “façon” EuropeCarlo Pettinelli e Jaroslaw SwierczynarComissão EuropeiaDG GROW – Direção-Geral do Mercado Interno, Indústria, Empreendedorismo e PMEIPT, EN2018PAC, Comissão Europeia, mercados, alimentação, produção alimentar, barreiras ao comércio, Mercado Único, poder negocial, Fórum de Alto Nível sobre a Melhoria do Funcionamento da Cadeia de Abastecimento Alimentar (HLF), qualidade"]
[430,"Juntos Ganhamos Mais? O Papel da Organização na Cadeia de Valor do Setor Agroalimentar",13,45,"João Pereira","Engenheiro agrónomo, Diretor Executivo","TerraProjectos","","I","PT","2018","concentração da oferta, organização da produção, associativismo, Malpica do Tejo, Castelo Branco, Hortomelão, Portugal Fresh, OP - Organização de Produtores, interprofissional","",0,"Cultivar13GTJoãoPereira.pdf","Juntos Ganhamos Mais? O Papel da Organização na Cadeia de Valor do Setor AgroalimentarJoão PereiraEngenheiro agrónomo, Diretor ExecutivoTerraProjectosIPT2018concentração da oferta, organização da produção, associativismo, Malpica do Tejo, Castelo Branco, Hortomelão, Portugal Fresh, OP - Organização de Produtores, interprofissional"]
[431,"Reforçar a Equidade e Corrigir os Desequilíbrios na Cadeia de Valor do Setor Agroalimentar",13,53,"Pedro Pimentel","Diretor-Geral","Centromarca","","I","PT","2018","distribuição, autorregulação, PIRC - Práticas Individuais Restritivas do Comércio, poder negocial, autorregulação, Código de Boas Práticas Comerciais, Supply Chain Initiative","",0,"Cultivar13GTPedroPimentel.pdf","Reforçar a Equidade e Corrigir os Desequilíbrios na Cadeia de Valor do Setor AgroalimentarPedro PimentelDiretor-GeralCentromarcaIPT2018distribuição, autorregulação, PIRC - Práticas Individuais Restritivas do Comércio, poder negocial, autorregulação, Código de Boas Práticas Comerciais, Supply Chain Initiative"]
[471,"A Cadeia de Valor do Setor Agroalimentar na Ótica da Distribuição",13,61,"Jorge Jordão","Presidente","Associação Portuguesa de Empresas de Distribuição (APED)","","I","PT","2018","PARCA - Plataforma de Acompanhamento das Relações na Cadeia Alimentar, distribuição, mercados, PAC, Fórum sobre a Melhoria do Funcionamento da Cadeia de Abastecimento Alimentar (HLF), Supply Chain Initiative, Código de Boas Práticas Comerciais","",0,"Cultivar13GTJorgeJordão.pdf","A Cadeia de Valor do Setor Agroalimentar na Ótica da DistribuiçãoJorge JordãoPresidenteAssociação Portuguesa de Empresas de Distribuição (APED)IPT2018PARCA - Plataforma de Acompanhamento das Relações na Cadeia Alimentar, distribuição, mercados, PAC, Fórum sobre a Melhoria do Funcionamento da Cadeia de Abastecimento Alimentar (HLF), Supply Chain Initiative, Código de Boas Práticas Comerciais"]
[432,"Melhorar as Condições dos Fornecedores de Produtos Alimentares, Making Progress For Groceries Suppliers",13,71,"Christine Tacon","","Groceries Code Adjudicator","Reino Unido\n1","II","PT, EN","2018","Código de Boas Práticas no Abastecimento de Produtos Alimentares, Groceries Supply Code of Practice, regulação, fornecedores, retalhistas","",0,"Cultivar13MelhorarAsCondiçõesDosFornecedoresDeProdutosAlimentares.pdf","Melhorar as Condições dos Fornecedores de Produtos Alimentares, Making Progress For Groceries SuppliersChristine TaconGroceries Code AdjudicatorReino Unido\n1IIPT, EN2018Código de Boas Práticas no Abastecimento de Produtos Alimentares, Groceries Supply Code of Practice, regulação, fornecedores, retalhistas"]
[433,"O Papel da ASAE no Âmbito das Práticas Individuais Restritivas do Comércio",13,83,"Pedro Portugal Gaspar","Inspetor-Geral, Mestre em direito (ciências jurídico-políticas)","ASAE - Autoridade de Segurança Alimentar e Económica","","II","PT","2018","fiscalização, sensibilização, competências, PIRC - Práticas Individuais Restritivas do Comércio","",0,"Cultivar13OPapelDaAsaeNoÂmbitoDasPráticasIndividuaisRestritivas.pdf","O Papel da ASAE no Âmbito das Práticas Individuais Restritivas do ComércioPedro Portugal GasparInspetor-Geral, Mestre em direito (ciências jurídico-políticas)ASAE - Autoridade de Segurança Alimentar e EconómicaIIPT2018fiscalização, sensibilização, competências, PIRC - Práticas Individuais Restritivas do Comércio"]
[434,"PSAE – Programa de Sustentabilidade na Alimentação Escolar",13,89,"Inês Morais, Paula Rodrigues e Laura Rodrigues","","Câmara Municipal de Torres Vedras","","II","PT","2018","Torres Vedras, alimentação sustentável e saudável, ambiente, Fruta Escolar, Escola Ativa/Alimentação Positiva, Almoça Comigo nos Meus Anos","",0,"Cultivar13Psae–ProgramaDeSustentabilidadeNaAlimentaçãoEscolar.pdf","PSAE – Programa de Sustentabilidade na Alimentação EscolarInês Morais, Paula Rodrigues e Laura RodriguesCâmara Municipal de Torres VedrasIIPT2018Torres Vedras, alimentação sustentável e saudável, ambiente, Fruta Escolar, Escola Ativa/Alimentação Positiva, Almoça Comigo nos Meus Anos"]
[435,"Relações Negociais na Cadeia de Valor Alimentar – A PARCA e o Reforço do Diálogo entre os Operadores Nacionais",13,93,"Gabinete de Planeamento, Políticas e Administração Geral (GPP)","David Gouveia","","","II","PT","2018","autorregulação, UE, Código de Boas Práticas Nacional (CdBP), concentração da distribuição, Práticas Comerciais Desleais (PCD)","",0,"Cultivar13RelaçõesNegociaisNaCadeiaDeValorAlimentar–AParcaEOReforço.pdf","Relações Negociais na Cadeia de Valor Alimentar – A PARCA e o Reforço do Diálogo entre os Operadores NacionaisGabinete de Planeamento, Políticas e Administração Geral (GPP)David GouveiaIIPT2018autorregulação, UE, Código de Boas Práticas Nacional (CdBP), concentração da distribuição, Práticas Comerciais Desleais (PCD)"]
[436,"Melhorar o Funcionamento do Mercado, através do Reforço da Posição dos Agricultores na Cadeia de Abastecimento",13,101,"Gabinete de Planeamento, Políticas e Administração Geral (GPP)","Task Force para os Mercados Agrícolas (AMTF) - Comissão Europeia","Nuno Manana","","IIIB","PT","2018","Cadeia alimentar, equidade, transparência de mercado, práticas comerciais desleais (PCD), negociações contratuais, organizações de produtores, organizações interprofissionais, gestão de risco, mercados de futuros, acesso ao financiamento, PAC pós 2020","",0,"Cultivar13MelhorarOFuncionamentoDoMercadoAtravésDoReforço.pdf","Melhorar o Funcionamento do Mercado, através do Reforço da Posição dos Agricultores na Cadeia de AbastecimentoGabinete de Planeamento, Políticas e Administração Geral (GPP)Task Force para os Mercados Agrícolas (AMTF) - Comissão EuropeiaNuno MananaIIIBPT2018Cadeia alimentar, equidade, transparência de mercado, práticas comerciais desleais (PCD), negociações contratuais, organizações de produtores, organizações interprofissionais, gestão de risco, mercados de futuros, acesso ao financiamento, PAC pós 2020"]
[437,"Apreciação Geral da Proposta de Diretiva sobre Práticas Comerciais Desleais",13,105,"Gabinete de Planeamento, Políticas e Administração Geral (GPP)","Parlamento Europeu e Conselho","Bárbara Garção","","IIIB","PT","2018","cadeia de abastecimento alimentar, risco, poder negocial, PCD, fornecedor, produto alimentar perecível","",0,"Cultivar13ApreciaçãoGeralDaPropostaDeDiretivaSobrePráticasComerciais.pdf","Apreciação Geral da Proposta de Diretiva sobre Práticas Comerciais DesleaisGabinete de Planeamento, Políticas e Administração Geral (GPP)Parlamento Europeu e ConselhoBárbara GarçãoIIIBPT2018cadeia de abastecimento alimentar, risco, poder negocial, PCD, fornecedor, produto alimentar perecível"]
[438,"É Tempo de Mudar e de Acabar Com o Sofrimento Humano nas Cadeias de Abastecimento Alimentar dos Supermercados",13,113,"Gabinete de Planeamento, Políticas e Administração Geral (GPP)","Oxfam International - Robin Willoughby e Tim Gore","Paula Esteves","","IIIB","PT","2018","pobreza, cadeia de abastecimento alimentar, supermercados, equidade, grande distribuição","",0,"Cultivar13ÉTempoDeMudarEDeAcabarComOSofrimentoHumanoNasCadeias.pdf","É Tempo de Mudar e de Acabar Com o Sofrimento Humano nas Cadeias de Abastecimento Alimentar dos SupermercadosGabinete de Planeamento, Políticas e Administração Geral (GPP)Oxfam International - Robin Willoughby e Tim GorePaula EstevesIIIBPT2018pobreza, cadeia de abastecimento alimentar, supermercados, equidade, grande distribuição"]
[439,"Inquérito aos Preços da Madeira – Fontes e Metodologia",13,117,"Gabinete de Planeamento, Políticas e Administração Geral (GPP)","Ministère de l’agriculture et de l'alimentation (França)","Manuel Loureiro","","IIIB","PT","2018","metodologia estatística, preços de madeira, inquérito, índices de preços","",0,"Cultivar13InquéritoAosPreçosDaMadeira–FontesEMetodologia.pdf","Inquérito aos Preços da Madeira – Fontes e MetodologiaGabinete de Planeamento, Políticas e Administração Geral (GPP)Ministère de l’agriculture et de l'alimentation (França)Manuel LoureiroIIIBPT2018metodologia estatística, preços de madeira, inquérito, índices de preços"]
[485,"Cultivar 14 - Publicação Completa",14,1,"Gabinete de Planeamento, Políticas e Administração Geral (GPP)","","","","","","2018","","",0,"Cultivar14.pdf","Cultivar 14 - Publicação CompletaGabinete de Planeamento, Políticas e Administração Geral (GPP)2018"]
[440,"Editorial",14,7,"Eduardo Diniz","Diretor-geral","","","","","","agricultura, floresta, território, sistemas alimentares, gestão ativa da floresta, eucalipto, solo, produtividade, população, território, Azevedo Gomes, Sintra, 1960, ICNF, Eucalyptus, Vale de Canas, Coimbra, 1954","",0,"Cultivar14CapaEditorial.pdf","EditorialEduardo DinizDiretor-geralagricultura, floresta, território, sistemas alimentares, gestão ativa da floresta, eucalipto, solo, produtividade, população, território, Azevedo Gomes, Sintra, 1960, ICNF, Eucalyptus, Vale de Canas, Coimbra, 1954"]
[441,"Eucaliptos, Fogos e Outras Coisas Mais",14,13,"José Miguel Cardoso Pereira","Professor e investigador","Instituto Superior de Agronomia (ISA)","","I","PT","2018","silvopastorícia , espécie arbórea, ocupação do solo, incêndios de 2017, área queimada, incidência do fogo, fogo rural, fogo florestal, seletividade do fogo, regime de fogo, alteração do uso da terra","",0,"Cultivar14GTJoséMiguelCardosoPereira.pdf","Eucaliptos, Fogos e Outras Coisas MaisJosé Miguel Cardoso PereiraProfessor e investigadorInstituto Superior de Agronomia (ISA)IPT2018silvopastorícia , espécie arbórea, ocupação do solo, incêndios de 2017, área queimada, incidência do fogo, fogo rural, fogo florestal, seletividade do fogo, regime de fogo, alteração do uso da terra"]
[442,"O que Sabemos (e não Sabemos) sobre as Populações Naturais de Eucalipto em Portugal",14,25,"Joaquim Sande Silva e Ernesto de Deus","Professores e investigadores","Escola Superior Agrária, Instituto Politécnico de Coimbra","Centro de Ecologia Aplicada Baeta Neves (CEABN), Instituto Superior de Agronomia","I","PT","2018","regeneração, dispersão, espécies exóticas, gestão de áreas, plantação intensiva, abandono, regeneração natural, integração ecológica","",0,"Cultivar14GTJoaquimSandeSilvaEErnestoDeDeus.pdf","O que Sabemos (e não Sabemos) sobre as Populações Naturais de Eucalipto em PortugalJoaquim Sande Silva e Ernesto de DeusProfessores e investigadoresEscola Superior Agrária, Instituto Politécnico de CoimbraCentro de Ecologia Aplicada Baeta Neves (CEABN), Instituto Superior de AgronomiaIPT2018regeneração, dispersão, espécies exóticas, gestão de áreas, plantação intensiva, abandono, regeneração natural, integração ecológica"]
[443,"Uma Visão sobre o Eucalipto em Portugal",14,33,"Elizabete Marchante e Hélia Marchante","Professoras e investigadoras","Centre for Functional Ecology – Science for people and the planet, Departamento de Ciências da Vida, Universidade de Coimbra","Escola Superior Agrária do Instituto Politécnico de Coimbra","I","PT","2018","impacte ambiental, gestão, caráter invasor, regeneração, economia, sustentabilidade, incêndios de 2017, regeneração natural","",0,"Cultivar14GTElizabeteMarchanteEHéliaMarchante.pdf","Uma Visão sobre o Eucalipto em PortugalElizabete Marchante e Hélia MarchanteProfessoras e investigadorasCentre for Functional Ecology – Science for people and the planet, Departamento de Ciências da Vida, Universidade de CoimbraEscola Superior Agrária do Instituto Politécnico de CoimbraIPT2018impacte ambiental, gestão, caráter invasor, regeneração, economia, sustentabilidade, incêndios de 2017, regeneração natural"]
[444,"A Expansão do Eucalipto Alterou o Regime de Incêndios em Portugal?",14,44,"Paulo Fernandes e Nuno Guiomar","Professores e investigadores","Centro de Investigação e Tecnologias Agroambientais e Biológicas, Universidade de Trás-os-Montes e Alto Douro","Instituto de Ciências Agrárias e Ambientais Mediterrânicas, Universidade de Évora","I","PT","2018","fogo, matos, carga de combustível, grandes incêndios, área ardida, regime de fogo, alterações de uso do solo, abandono, risco de incêndio","",0,"Cultivar14GTPauloFernandesENunoGuiomar.pdf","A Expansão do Eucalipto Alterou o Regime de Incêndios em Portugal?Paulo Fernandes e Nuno GuiomarProfessores e investigadoresCentro de Investigação e Tecnologias Agroambientais e Biológicas, Universidade de Trás-os-Montes e Alto DouroInstituto de Ciências Agrárias e Ambientais Mediterrânicas, Universidade de ÉvoraIPT2018fogo, matos, carga de combustível, grandes incêndios, área ardida, regime de fogo, alterações de uso do solo, abandono, risco de incêndio"]
[445,"A Fileira do Eucalipto: Alguns Aspetos Macroeconómicos e Macro Setoriais",14,55,"João Ferreira do Amaral","Professor","","","II","PT","2018","pasta de papel, fileira, economia, VAB, PIB, valor económico, balança comercial, criação de valor","",0,"Cultivar14AFileiraDoEucaliptoAlgunsAspetosMacroeconómicosEMacro.pdf","A Fileira do Eucalipto: Alguns Aspetos Macroeconómicos e Macro SetoriaisJoão Ferreira do AmaralProfessorIIPT2018pasta de papel, fileira, economia, VAB, PIB, valor económico, balança comercial, criação de valor"]
[446,"O Eucalipto",14,61,"Eugénio Sequeira","Engenheiro Agrónomo, Investigador Coordenador","INIAV","LPN","II","PT","2018","história, ocorrências, ordenamento, gestão, degradação da paisagem, FSC - Forest Stewardship Council, área ardida, pinheirização,","",0,"Cultivar14OEucalipto.pdf",{"$f":"+B211&E211&F211&G211&H211&I211&J211&K211&L211","v":"O EucaliptoEugénio SequeiraEngenheiro Agrónomo, Investigador CoordenadorINIAVLPNIIPT2018história, ocorrências, ordenamento, gestão, degradação da paisagem, FSC - Forest Stewardship Council, área ardida, pinheirização,"}]
[447,"O Eucalipto – Impactes e Riscos Associados",14,71,"Domingos Patacho","","Quercus – Associação Nacional de Conservação da Natureza","","II","PT","2018","recursos hídricos, biodiversidade, ecologia do fogo, ordenamento, erosão, biodiversidade, pragas e doenças, ecologia do fogo, caráter invasor","",0,"Cultivar14OEucalipto–ImpactesERiscosAssociados.pdf","O Eucalipto – Impactes e Riscos AssociadosDomingos PatachoQuercus – Associação Nacional de Conservação da NaturezaIIPT2018recursos hídricos, biodiversidade, ecologia do fogo, ordenamento, erosão, biodiversidade, pragas e doenças, ecologia do fogo, caráter invasor"]
[448,"A Produção de Eucalipto",14,81,"Nuno Coimbra","Produtor florestal","Monte do Rosmaninhal, Chamusca","","","","","conta de cultura, economia, rentabilidade, espécies, análise de sensibilidade, margem bruta","",0,"Cultivar14AProduçãoDeEucalipto.pdf","A Produção de EucaliptoNuno CoimbraProdutor florestalMonte do Rosmaninhal, Chamuscaconta de cultura, economia, rentabilidade, espécies, análise de sensibilidade, margem bruta"]
[449,"O Eucalipto em Portugal: Enquadramento Técnico e Legal",14,85,"Rogério Rodrigues","Presidente do Conselho Diretivo","ICNF – Instituto da Conservação da Natureza e das Florestas, I.P.","","II","PT","2018","legislação, sistema de informação, áreas, espécies, RJAAR - Regime Jurídico aplicável às Ações de Arborização e Rearborização, Avaliação de Impacto Ambiental, modelo de compensações","",0,"Cultivar14OEucaliptoEmPortugalEnquadramentoTécnicoELegal.pdf","O Eucalipto em Portugal: Enquadramento Técnico e LegalRogério RodriguesPresidente do Conselho DiretivoICNF – Instituto da Conservação da Natureza e das Florestas, I.P.IIPT2018legislação, sistema de informação, áreas, espécies, RJAAR - Regime Jurídico aplicável às Ações de Arborização e Rearborização, Avaliação de Impacto Ambiental, modelo de compensações"]
[450,"Instrumentos de Política de Promoção da Gestão Ativa dos Espaços Florestais",14,93,"Gabinete de Planeamento, Políticas e Administração Geral (GPP)","Manuel Loureiro","","","II","PT","2018","FFP - Fundo Florestal Permanente, ZIF - Zona de Intervenção Florestal, Certificação, Fiscalidade, Associativismo, EGF - Entidades de Gestão Florestal, FIF - Fundo Imobiliário Florestal, certificação florestal, Noruega, Andaluzia","",0,"Cultivar14InstrumentosDePolíticaDePromoçãoDaGestãoAtivaDosEspaços.pdf","Instrumentos de Política de Promoção da Gestão Ativa dos Espaços FlorestaisGabinete de Planeamento, Políticas e Administração Geral (GPP)Manuel LoureiroIIPT2018FFP - Fundo Florestal Permanente, ZIF - Zona de Intervenção Florestal, Certificação, Fiscalidade, Associativismo, EGF - Entidades de Gestão Florestal, FIF - Fundo Imobiliário Florestal, certificação florestal, Noruega, Andaluzia"]
[451,"Alguns Dados sobre a Cultura do Eucalipto em Portugal e as Políticas Públicas",14,105,"Gabinete de Planeamento, Políticas e Administração Geral (GPP)","Manuel Loureiro","","","II","PT","2018","organização do Estado, investigação, história, políticas públicas, Estação de Experimentação Florestal do Sobreiro e do Eucalipto, CELBI, RJAAR, PROF","",0,"Cultivar14AlgunsDadosSobreACulturaDoEucaliptoEmPortugalEAsPolíticas.pdf","Alguns Dados sobre a Cultura do Eucalipto em Portugal e as Políticas PúblicasGabinete de Planeamento, Políticas e Administração Geral (GPP)Manuel LoureiroIIPT2018organização do Estado, investigação, história, políticas públicas, Estação de Experimentação Florestal do Sobreiro e do Eucalipto, CELBI, RJAAR, PROF"]
[452,"Caracterização Económica do Complexo Florestal",14,113,"Gabinete de Planeamento, Políticas e Administração Geral (GPP)","Ana Rita Moura et al.","","","II","PT","2018","saldo comercial, silvicultura, economia, grau de auto-aprovisionamento","",0,"Cultivar14CaracterizaçãoEconómicaDoComplexoFlorestal.pdf","Caracterização Económica do Complexo FlorestalGabinete de Planeamento, Políticas e Administração Geral (GPP)Ana Rita Moura et al.IIPT2018saldo comercial, silvicultura, economia, grau de auto-aprovisionamento"]
[486,"Cultivar 15 - Publicação Completa",15,1,"Gabinete de Planeamento, Políticas e Administração Geral (GPP)","","","","","","2019","","",0,"Cultivar15.pdf","Cultivar 15 - Publicação CompletaGabinete de Planeamento, Políticas e Administração Geral (GPP)2019"]
[453,"Editorial",15,7,"Eduardo Diniz","Diretor-geral","","","","PT","2019","desenvolvimento, recursos biológicos, reciclar, Estratégia para a Bioeconomia em Portugal, “O futuro da alimentação e da agricultura\", Artur Pastor, Estação Agronómica Nacional, Oeiras, 1962, melhoramento de arroz","",0,"Cultivar15CapaEditorial.pdf","EditorialEduardo DinizDiretor-geralPT2019desenvolvimento, recursos biológicos, reciclar, Estratégia para a Bioeconomia em Portugal, “O futuro da alimentação e da agricultura\", Artur Pastor, Estação Agronómica Nacional, Oeiras, 1962, melhoramento de arroz"]
[454,"A Bioeconomia Europeia",15,13,"John Bell","Diretor para a Bioeconomia","DG RTD - Direção-Geral de Investigação e Inovação","Comissão Europeia - União Europeia","I","PT, EN","2019","The European Bioeconomy, recursos biológicos, ecossistemas, produtos de base biológica, biocombustíveis, biomateriais, biodiversidade, Estratégia para a Bioeconomia, Acordo de Paris, Agenda 2030, sistema alimentar circular\ne sustentável","",0,"Cultivar15GTJohnBell.pdf","A Bioeconomia EuropeiaJohn BellDiretor para a BioeconomiaDG RTD - Direção-Geral de Investigação e InovaçãoComissão Europeia - União EuropeiaIPT, EN2019The European Bioeconomy, recursos biológicos, ecossistemas, produtos de base biológica, biocombustíveis, biomateriais, biodiversidade, Estratégia para a Bioeconomia, Acordo de Paris, Agenda 2030, sistema alimentar circular\ne sustentável"]
[455,"O Acordo de Paris, a Neutralidade Carbónica e a Bioeconomia",15,23,"Sandra Martinho e Francisco Avillez","Investigadora, professor e investigador","Lasting Values, AGRO.GES","","I","PT","2019","bioeconomia circular e sustentável, Economia circular, Roteiro para a Neutralidade Carbónica, Resíduos, energia, descarbonização, LULUCF","",0,"Cultivar15GTSandraMartinhoFranciscoAvillez.pdf","O Acordo de Paris, a Neutralidade Carbónica e a BioeconomiaSandra Martinho e Francisco AvillezInvestigadora, professor e investigadorLasting Values, AGRO.GESIPT2019bioeconomia circular e sustentável, Economia circular, Roteiro para a Neutralidade Carbónica, Resíduos, energia, descarbonização, LULUCF"]
[456,"Bioeconomia – Com Futuro, se Verdadeiramente Sustentável",15,30,"Francisco Ferreira","Presidente, Professor","ZERO – Associação Sistema Terrestre Sustentável, FCT-NOVA / CENSE – Center for Environmental and Sustainability Research","","I","PT","2019","Manifesto - European Bioeconomy Stakeholders, redução das emissões de gases com efeito de estufa, GEE, riscos, biocombustíveis, estratégia europeia, limites do planeta, descarbonização, bioeconomia circular e participada","",0,"Cultivar15GTFranciscoFerreira.pdf","Bioeconomia – Com Futuro, se Verdadeiramente SustentávelFrancisco FerreiraPresidente, ProfessorZERO – Associação Sistema Terrestre Sustentável, FCT-NOVA / CENSE – Center for Environmental and Sustainability ResearchIPT2019Manifesto - European Bioeconomy Stakeholders, redução das emissões de gases com efeito de estufa, GEE, riscos, biocombustíveis, estratégia europeia, limites do planeta, descarbonização, bioeconomia circular e participada"]
[457,"Rumo a uma (Bio)Economia Circular de Baixo Carbono",15,36,"Inês Costa","Adjunta do Ministro do Ambiente e da Transição Energética para a Economia Circular"," Ministério do Ambiente e da Transição Energética","","I","PT","2019","Estratégia para a Bioeconomia, ecossistemas, produção primária, produtos de base biológica, bioeconomia circular e de\nbaixo carbono, heterogeneidade, potencial, limites ecológicos","",0,"Cultivar15GTInesCosta.pdf","Rumo a uma (Bio)Economia Circular de Baixo CarbonoInês CostaAdjunta do Ministro do Ambiente e da Transição Energética para a Economia Circular Ministério do Ambiente e da Transição EnergéticaIPT2019Estratégia para a Bioeconomia, ecossistemas, produção primária, produtos de base biológica, bioeconomia circular e de\nbaixo carbono, heterogeneidade, potencial, limites ecológicos"]
[458,"Aspetos Bioeconómicos na Utilização Sustentável dos Recursos Marinhos em Portugal",15,45,"Aida Campos e Narcisa Bandarra","investigadoras","Instituto Português do Mar e da Atmosfera (IPMA), Centro de Ciências do Mar (CCMAR)","Centro Interdisciplinar de Investigação Marinha e Ambiental (CIIMAR)","II","PT","2019","bioeconomia; recursos marinhos; sustentabilidade, potencial, estratégia, reduzir o desperdício, conhecimento integrado","",0,"Cultivar15GTAidaCamposNarcisaBandarra.pdf","Aspetos Bioeconómicos na Utilização Sustentável dos Recursos Marinhos em PortugalAida Campos e Narcisa BandarrainvestigadorasInstituto Português do Mar e da Atmosfera (IPMA), Centro de Ciências do Mar (CCMAR)Centro Interdisciplinar de Investigação Marinha e Ambiental (CIIMAR)IIPT2019bioeconomia; recursos marinhos; sustentabilidade, potencial, estratégia, reduzir o desperdício, conhecimento integrado"]
[459,"Bioenergia em Portugal – Como ela se Revela",15,52,"Paulo Preto dos Santos","Secretário-geral, Vice-Coordenador da Comissão de Energia, Diretor-Geral","APEB – Associação dos Produtores de Energia e Biomassa, Ordem dos Engenheiros,Termogreen","","II","PT","2019","centrais de biomassa, energia elétrica, biocombustíveis, fontes renováveis","",0,"Cultivar15GTPauloPretodosSantos.pdf","Bioenergia em Portugal – Como ela se RevelaPaulo Preto dos SantosSecretário-geral, Vice-Coordenador da Comissão de Energia, Diretor-GeralAPEB – Associação dos Produtores de Energia e Biomassa, Ordem dos Engenheiros,TermogreenIIPT2019centrais de biomassa, energia elétrica, biocombustíveis, fontes renováveis"]
[460,"As Biorrefinarias e a Bioeconomia – Uma Realidade na Europa que Portugal Começa agora a Aproveitar",15,60,"Francisco Gírio","Investigador Principal e Coordenador","Unidade de Bioenergia do LNEG – Laboratório Nacional de Energia e Geologia, I.P.","","II","PT","2019","Estratégia Europeia para a Bioeconomia, PNPB - Plano Nacional de Promoção das Biorrefinarias, produção de alimentos, biomassas residuais, Estratégia Nacional para a Bioeconomia, Laboratório Colaborativo para as Biorrefinarias","",0,"Cultivar15GTFranciscoGirio.pdf","As Biorrefinarias e a Bioeconomia – Uma Realidade na Europa que Portugal Começa agora a AproveitarFrancisco GírioInvestigador Principal e CoordenadorUnidade de Bioenergia do LNEG – Laboratório Nacional de Energia e Geologia, I.P.IIPT2019Estratégia Europeia para a Bioeconomia, PNPB - Plano Nacional de Promoção das Biorrefinarias, produção de alimentos, biomassas residuais, Estratégia Nacional para a Bioeconomia, Laboratório Colaborativo para as Biorrefinarias"]
[461,"Os Biocombustíveis em Portugal – Realidades e Tendências",15,66,"Jaime Braga","Engenheiro Mecânico, Secretário-Geral","Associação Portuguesa de Produtores de Biocombustíveis (APPB)","","II","PT","2019","bioetanol, biodiesel, biocombustíveis avançados","",0,"Cultivar15GTJaimeBraga.pdf","Os Biocombustíveis em Portugal – Realidades e TendênciasJaime BragaEngenheiro Mecânico, Secretário-GeralAssociação Portuguesa de Produtores de Biocombustíveis (APPB)IIPT2019bioetanol, biodiesel, biocombustíveis avançados"]
[462,"A Bioeconomia na Economia Portuguesa: Alguns Casos Concretos",15,73,"Gabinete de Planeamento, Políticas e Administração Geral (GPP)","Paula Esteves, com a colaboração de Raiz, Amorim Cork Composites, LNEG e SECIL","","","","","","Recursos naturais, Biomassa, Biotecnologia, Economia circular, Economia verde, Biorrefinação, indústria de pasta e papel, bioprodutos, biocompósitos, termoplástico, cortiça, inovação, microalgas, sequestro de CO2","",0,"Cultivar15BioeconomiaNaEconomiaPortuguesa.pdf","A Bioeconomia na Economia Portuguesa: Alguns Casos ConcretosGabinete de Planeamento, Políticas e Administração Geral (GPP)Paula Esteves, com a colaboração de Raiz, Amorim Cork Composites, LNEG e SECILRecursos naturais, Biomassa, Biotecnologia, Economia circular, Economia verde, Biorrefinação, indústria de pasta e papel, bioprodutos, biocompósitos, termoplástico, cortiça, inovação, microalgas, sequestro de CO2"]
[463,"Bioeconomia Sustentável e Circular: a Reciclagem de Madeira na Sonae Arauco",15,81,"Nuno Calado","Wood Regulation & Sustainability Manager (Gestor para a Regulação e a Sustentabilidade da Madeira)"," Sonae Arauco","","II","PT","2019","madeira reciclada, centros de reciclagem de madeira, gestão de resíduos de madeira, resíduos urbanos, painéis derivados de madeira, estilha de madeira, pellets, biomassa, investimento","",0,"Cultivar15GTNunoCalado.pdf","Bioeconomia Sustentável e Circular: a Reciclagem de Madeira na Sonae AraucoNuno CaladoWood Regulation & Sustainability Manager (Gestor para a Regulação e a Sustentabilidade da Madeira) Sonae AraucoIIPT2019madeira reciclada, centros de reciclagem de madeira, gestão de resíduos de madeira, resíduos urbanos, painéis derivados de madeira, estilha de madeira, pellets, biomassa, investimento"]
[464,"Agroalimentar, Florestas e Biodiversidade: Breve Caracterização do Sistema Científico e Tecnológico Nacional e Visão da Investigação e Inovação para 2030",15,85,"Maria João Maia","","Fundação para a Ciência e a Tecnologia (FCT) - Departamento das Relações Internacionais","","II","PT","2019","formação avançada, emprego científico, bolsas, Unidades de Investigação, 7.º Programa-Quadro de Investigação e Desenvolvimento Tecnológico, Horizonte 2020, Portugal 2020, Laboratório Colaborativo (CoLab), Agenda Estratégica de Investigação e Inovação,","",0,"Cultivar15GTMariaJoaoMaia.pdf","Agroalimentar, Florestas e Biodiversidade: Breve Caracterização do Sistema Científico e Tecnológico Nacional e Visão da Investigação e Inovação para 2030Maria João MaiaFundação para a Ciência e a Tecnologia (FCT) - Departamento das Relações InternacionaisIIPT2019formação avançada, emprego científico, bolsas, Unidades de Investigação, 7.º Programa-Quadro de Investigação e Desenvolvimento Tecnológico, Horizonte 2020, Portugal 2020, Laboratório Colaborativo (CoLab), Agenda Estratégica de Investigação e Inovação,"]
[465,"A Política de Conhecimento da UE e a Bioeconomia",15,93,"Gabinete de Planeamento, Políticas e Administração Geral (GPP)","Helena Sequeira, Clara Lopes","","","II","PT","2019","Comité Permanente de Investigação Agrícola (SCAR), Horizonte 2020, Horizonte Europa, investigação, simplificação","",0,"Cultivar15APoliticaDeConhecimentoDaUEeaBioeconimia.pdf","A Política de Conhecimento da UE e a BioeconomiaGabinete de Planeamento, Políticas e Administração Geral (GPP)Helena Sequeira, Clara LopesIIPT2019Comité Permanente de Investigação Agrícola (SCAR), Horizonte 2020, Horizonte Europa, investigação, simplificação"]
[466,"Breve Análise do Projeto Berst - Building Regional Bioeconomies, Contributos para a Construção de Perfis Regionais",15,100,"Gabinete de Planeamento, Políticas e Administração Geral (GPP)","Helena Sequeira","","","II","PT","2018","estratégias regionais para a bioeconomia, metodologia, perfil da região, biomassa, Produtos de base biológica, financiamento","",0,"Cultivar15BreveAnaliseDoProjetoBerst.pdf","Breve Análise do Projeto Berst - Building Regional Bioeconomies, Contributos para a Construção de Perfis RegionaisGabinete de Planeamento, Políticas e Administração Geral (GPP)Helena SequeiraIIPT2018estratégias regionais para a bioeconomia, metodologia, perfil da região, biomassa, Produtos de base biológica, financiamento"]
[467,"Estratégia Europeia para a Bioeconomia (Plano de Ação)",15,107,"Gabinete de Planeamento, Políticas e Administração Geral (GPP)","Comissão Europeia, 2018","Helena Sequeira","","IIIB","PT","2019","atualização, desafios societais, segurança alimentar, escassez de recursos naturais, dependência de recursos não renováveis, alterações climáticas, criação de emprego, “living labs” (laboratórios vivos), agricultura de carbono, limites ecológicos","",0,"Cultivar15EstrategiaEuropeiaParaABioeconomia.pdf","Estratégia Europeia para a Bioeconomia (Plano de Ação)Gabinete de Planeamento, Políticas e Administração Geral (GPP)Comissão Europeia, 2018Helena SequeiraIIIBPT2019atualização, desafios societais, segurança alimentar, escassez de recursos naturais, dependência de recursos não renováveis, alterações climáticas, criação de emprego, “living labs” (laboratórios vivos), agricultura de carbono, limites ecológicos"]
[468,"Estratégia Espanhola de Bioeconomia e Plano de Ação 2018",15,113,"Gabinete de Planeamento, Políticas e Administração Geral (GPP)","Ministerio de Economía y Competitividad – Secretaria de Estado de Investigación, Desarrollo e Innovación, 2016/2018","Ana Sofia Sampaio","","IIIB","PT","2019","Espanha, potencial de desenvolvimento, sistema científico e tecnológico, conhecimento científico, inovação, internacionalização, novos mercados, monitorização","",0,"Cultivar15EstrategiaEspanholaDeBioeconomiaEPlanoDeAcao2018.pdf","Estratégia Espanhola de Bioeconomia e Plano de Ação 2018Gabinete de Planeamento, Políticas e Administração Geral (GPP)Ministerio de Economía y Competitividad – Secretaria de Estado de Investigación, Desarrollo e Innovación, 2016/2018Ana Sofia SampaioIIIBPT2019Espanha, potencial de desenvolvimento, sistema científico e tecnológico, conhecimento científico, inovação, internacionalização, novos mercados, monitorização"]
[469,"O Potencial de Portugal nas Indústrias de Base Biológica e na Bioeconomia",15,115,"Gabinete de Planeamento, Políticas e Administração Geral (GPP)","Bio-Based Industries Consortium, 2018","Anabela Gameiro","","IIIB","PT","2018"," Mapping the Potential of Portugal for the Bio-Based Industry, produtos de base biológica, biotêxteis, sustentabilidade, bioprodutos, biomateriais, inovação, investigação","",0,"Cultivar15OPotencialDePortugalNasIndustriasDeBaseBiologicaENaBioeconomia.pdf","O Potencial de Portugal nas Indústrias de Base Biológica e na BioeconomiaGabinete de Planeamento, Políticas e Administração Geral (GPP)Bio-Based Industries Consortium, 2018Anabela GameiroIIIBPT2018 Mapping the Potential of Portugal for the Bio-Based Industry, produtos de base biológica, biotêxteis, sustentabilidade, bioprodutos, biomateriais, inovação, investigação"]
[470,"Biopolímeros: Factos e Estatísticas",15,118,"Gabinete de Planeamento, Políticas e Administração Geral (GPP)","IfBB – Instituto de Bioplásticos e Biocompostos, Universidade de Hanôver, 2016","Paula Esteves","","IIIB","PT","2019","Biopolymers. facts and statistics, utilização do solo, Diagramas de processamento (process routes), materiais poliméricos\nnaturais, produtos de base biológica","",0,"Cultivar15BiopolimeroaFactosEEstatisticas.pdf","Biopolímeros: Factos e EstatísticasGabinete de Planeamento, Políticas e Administração Geral (GPP)IfBB – Instituto de Bioplásticos e Biocompostos, Universidade de Hanôver, 2016Paula EstevesIIIBPT2019Biopolymers. facts and statistics, utilização do solo, Diagramas de processamento (process routes), materiais poliméricos\nnaturais, produtos de base biológica"]
[526,"Cultivar 16 - Publicação Completa",16,1,"Gabinete de Planeamento, Políticas e Administração Geral (GPP)","","","","","","2019","","",0,"Cultivar16.pdf","Cultivar 16 - Publicação CompletaGabinete de Planeamento, Políticas e Administração Geral (GPP)2019"]
[513,"Editorial",16,7,"Eduardo Diniz","Diretor-geral","Gabinete de Planeamento, Políticas e Administração Geral (GPP)","","","PT","2019","tecnologia, trabalho, agricultura 4.0, Quarta Revolução Industrial, agricultura digital, Artur Pastor, ISA, Lisboa, 1954, diapositivos técnicos, EDIA, Serpa, 2015","",0,"Cultivar16CapaEditorial.pdf","EditorialEduardo DinizDiretor-geralGabinete de Planeamento, Políticas e Administração Geral (GPP)PT2019tecnologia, trabalho, agricultura 4.0, Quarta Revolução Industrial, agricultura digital, Artur Pastor, ISA, Lisboa, 1954, diapositivos técnicos, EDIA, Serpa, 2015"]
[514,"A Agricultura 4.0 face aos Desafios da Alimentação no Horizonte de Médio/Longo Prazo",16,13,"José Manuel Félix Ribeiro","Economista, consultor"," Fundação Calouste Gulbenkian","","I","PT","2019","tendências pesadas, restrição de fatores de produção, população mundial, cadeia alimentar, ineficiências, evolução tecnológica, Quarta Revolução Industrial","",0,"Cultivar16GTFelixRibeiro.pdf","A Agricultura 4.0 face aos Desafios da Alimentação no Horizonte de Médio/Longo PrazoJosé Manuel Félix RibeiroEconomista, consultor Fundação Calouste GulbenkianIPT2019tendências pesadas, restrição de fatores de produção, população mundial, cadeia alimentar, ineficiências, evolução tecnológica, Quarta Revolução Industrial"]
[515,"Novas Tecnologias e Digitalização na Agricultura da UE e a Política Agrícola Comum",16,19,"Pierre Bascou","Comissão Europeia","DG Agricultura – Diretor Sustentabilidade e Apoio ao Rendimento","","I","PT, EN","2019","Declaração do Dia Digital, eficiência das explorações, tecnologia, transformação digital, cadeia de valor, Sistema Integrado de Gestão e Controlo (SIGC), FaST, \"New Technologies and Digitisation for EU Agriculture and the Common Agricultural Policy\"","",0,"Cultivar16GTPierreBascou.pdf","Novas Tecnologias e Digitalização na Agricultura da UE e a Política Agrícola ComumPierre BascouComissão EuropeiaDG Agricultura – Diretor Sustentabilidade e Apoio ao RendimentoIPT, EN2019Declaração do Dia Digital, eficiência das explorações, tecnologia, transformação digital, cadeia de valor, Sistema Integrado de Gestão e Controlo (SIGC), FaST, \"New Technologies and Digitisation for EU Agriculture and the Common Agricultural Policy\""]
[527,"SmartAgriHubs: Estabelecer Ligações para Incentivar a Transformação Digital do Setor Agroalimentar Europeu, Destacando o Ecossistema de Inovação Português",16,33,"Sjaak Wolfert, Luis Mira Da Silva, George Beers, Pompeu Dias, Judit Anda Ugarte, Marián Lora Lozano e Noemí Molina Sanz","professores, investigadores, chefes de projeto","Wageningen University & Research, Instituto Superior de Agronomia (ISA), CONSULAI, Junta da Andaluzia","Países Baixos, Portugal, Espanha","I","PT, EN","2019","tecnologia, agricultura digital, Polos de Inovação Digital (PID), Centros de Competência (CC), adesão dos agricultores, Cluster Regional, \"SmartAgriHubs. Connecting the dots to foster the digital transformation of the EU agri-food sector\"","",0,"Cultivar16GTSjaakWolfert.pdf","SmartAgriHubs: Estabelecer Ligações para Incentivar a Transformação Digital do Setor Agroalimentar Europeu, Destacando o Ecossistema de Inovação PortuguêsSjaak Wolfert, Luis Mira Da Silva, George Beers, Pompeu Dias, Judit Anda Ugarte, Marián Lora Lozano e Noemí Molina Sanzprofessores, investigadores, chefes de projetoWageningen University & Research, Instituto Superior de Agronomia (ISA), CONSULAI, Junta da AndaluziaPaíses Baixos, Portugal, EspanhaIPT, EN2019tecnologia, agricultura digital, Polos de Inovação Digital (PID), Centros de Competência (CC), adesão dos agricultores, Cluster Regional, \"SmartAgriHubs. Connecting the dots to foster the digital transformation of the EU agri-food sector\""]
[517,"O Elevado Preço da Eficiência (The High Price of Efficiency)",16,55,"Roger L. Martin","Diretor","Martin Prosperity Institute","Harvard Business Review","I","PT, EN","2019","princípios de economia política, Revolução Industrial, concentração, supereficiência, agitação social, monocultura, resiliência, capital paciente, produtividade, trabalho","",0,"Cultivar16GTRogerMartin.pdf","O Elevado Preço da Eficiência (The High Price of Efficiency)Roger L. MartinDiretorMartin Prosperity InstituteHarvard Business ReviewIPT, EN2019princípios de economia política, Revolução Industrial, concentração, supereficiência, agitação social, monocultura, resiliência, capital paciente, produtividade, trabalho"]
[518,"Internet das Coisas (IoT) – “Revolução” Digital na Agricultura",16,75,"Gabinete de Planeamento, Políticas e Administração Geral (GPP)","Rui Trindade (com Anabela Gameiro)","","","II","PT","2019","tecnologia, inovação, indústria 4.0, TIC - Tecnologias de Informação e Comunicação, risco, blockchain, banda larga, cobertura, cibersegurança","",0,"Cultivar16OBSGPPInternetCoisas.pdf","Internet das Coisas (IoT) – “Revolução” Digital na AgriculturaGabinete de Planeamento, Políticas e Administração Geral (GPP)Rui Trindade (com Anabela Gameiro)IIPT2019tecnologia, inovação, indústria 4.0, TIC - Tecnologias de Informação e Comunicação, risco, blockchain, banda larga, cobertura, cibersegurança"]
[519,"Os Desafios da PAC 21-27 aos Sistemas de Informação da Administração Pública",16,89,"Nuno Moreira","Vice-presidente","IFAP – Instituto de Financiamento da Agricultura e Pescas, I.P.","","II","PT","2019","simplificação, Pedido Único, tecnologia, SIP - Sistema de Identificação do Parcelário, NDVI, cadastro geográfico das parcelas, Inteligência Artificial","",0,"Cultivar16OBSNunoMoreira.pdf","Os Desafios da PAC 21-27 aos Sistemas de Informação da Administração PúblicaNuno MoreiraVice-presidenteIFAP – Instituto de Financiamento da Agricultura e Pescas, I.P.IIPT2019simplificação, Pedido Único, tecnologia, SIP - Sistema de Identificação do Parcelário, NDVI, cadastro geográfico das parcelas, Inteligência Artificial"]
[520,"Sistema Único para Incêndios Rurais",16,96,"João Carlos Verde","","AGIF – Agência para a Gestão Integrada de Fogos Rurais","","II","PT","2019","risco, território resiliente, resiliência, fogo, Proteção Civil, Autoridade Florestal Nacional, Sistema de Gestão\nIntegrada de Fogos Rurais","",0,"Cultivar16OBSJoaoVerde.pdf","Sistema Único para Incêndios RuraisJoão Carlos VerdeAGIF – Agência para a Gestão Integrada de Fogos RuraisIIPT2019risco, território resiliente, resiliência, fogo, Proteção Civil, Autoridade Florestal Nacional, Sistema de Gestão\nIntegrada de Fogos Rurais"]
[521,"Implementação de Novas Tecnologias de Gestão de Rega nas Explorações Agrícolas – A Experiência da Hidrosoph",16,99,"Sandra Pires","Diretora Técnica","Hidrosoph","","II","PT","2019","uso eficiente da água, irrigação, modernização, regadio, rega gota a gota, rega de controlo automático, eficiência, adesão dos agricultores, internacionalização, Espanha","",0,"Cultivar16OBSSandraPires.pdf","Implementação de Novas Tecnologias de Gestão de Rega nas Explorações Agrícolas – A Experiência da HidrosophSandra PiresDiretora TécnicaHidrosophIIPT2019uso eficiente da água, irrigação, modernização, regadio, rega gota a gota, rega de controlo automático, eficiência, adesão dos agricultores, internacionalização, Espanha"]
[522,"Máquinas como Nós?",16,107,"Gabinete de Planeamento, Políticas e Administração Geral (GPP)","Machines Like Me, People Like You, de Ian Mcewan","Bruno Dimas","","IIIB","PT","2019","digitalização, Inteligência Artificial, livre arbítrio, literatura, decisão, Pedido Único (PU), controlo automático, Plano Estratégico da PAC (PEPAC), robôs, Shakespeare, Aldous Huxley, Svetlana Aleksievitch, Mary Shelley, Michel Houellebecq","",0,"Cultivar16LEITGPPMaquinas.pdf","Máquinas como Nós?Gabinete de Planeamento, Políticas e Administração Geral (GPP)Machines Like Me, People Like You, de Ian McewanBruno DimasIIIBPT2019digitalização, Inteligência Artificial, livre arbítrio, literatura, decisão, Pedido Único (PU), controlo automático, Plano Estratégico da PAC (PEPAC), robôs, Shakespeare, Aldous Huxley, Svetlana Aleksievitch, Mary Shelley, Michel Houellebecq"]
[523,"Impactos da Economia Digital na Cadeia Agroalimentar e na Política Agrícola Comum",16,110,"Gabinete de Planeamento, Políticas e Administração Geral (GPP)","Parlamento Europeu - Departamento Temático das Políticas Estruturais e de Coesão/Direção-Geral das Políticas Internas","José Costa","","IIIB","PT","2019","PAC, agricultura digital, revolução tecnológica agrícola, tecnologias, cadeia de valor","",0,"Cultivar16LEITGPPImpactos.pdf","Impactos da Economia Digital na Cadeia Agroalimentar e na Política Agrícola ComumGabinete de Planeamento, Políticas e Administração Geral (GPP)Parlamento Europeu - Departamento Temático das Políticas Estruturais e de Coesão/Direção-Geral das Políticas InternasJosé CostaIIIBPT2019PAC, agricultura digital, revolução tecnológica agrícola, tecnologias, cadeia de valor"]
[524,"Guia para uma Estratégia sobre Agricultura Digital (Testado em Países da Ásia-Pacífico)",16,114,"Gabinete de Planeamento, Políticas e Administração Geral (GPP)","FAO - Organização das Nações Unidas para Alimentação e Agricultura e ITU - União Internacional de Telecomunicações","António Bidarra","","","","","capacitação, sustentabilidade ambiental, governança, ciclo de políticas, ciência, tecnologia e inovação, comércio e mercados, plano de ação, monitorização e avaliação","",0,"Cultivar16LEITGPPGuiaFAO.pdf","Guia para uma Estratégia sobre Agricultura Digital (Testado em Países da Ásia-Pacífico)Gabinete de Planeamento, Políticas e Administração Geral (GPP)FAO - Organização das Nações Unidas para Alimentação e Agricultura e ITU - União Internacional de TelecomunicaçõesAntónio Bidarracapacitação, sustentabilidade ambiental, governança, ciclo de políticas, ciência, tecnologia e inovação, comércio e mercados, plano de ação, monitorização e avaliação"]
[525,"Oportunidades Digitais no Comércio do Setor Agroalimentar",16,118,"Gabinete de Planeamento, Políticas e Administração Geral (GPP)","Marie-Agnes Jouanjean","OCDE – Organização para a Cooperação e o Desenvolvimento Económico","Ana Sofia Sampaio","IIIB","PT","2019","digitalização, tecnologias digitais, comércio agrícola, acesso aos mercados, Digital opportunities for trade in the agriculture and food sectors","",0,"Cultivar16LEITGPPOportunidadesOCDE.pdf","Oportunidades Digitais no Comércio do Setor AgroalimentarGabinete de Planeamento, Políticas e Administração Geral (GPP)Marie-Agnes JouanjeanOCDE – Organização para a Cooperação e o Desenvolvimento EconómicoAna Sofia SampaioIIIBPT2019digitalização, tecnologias digitais, comércio agrícola, acesso aos mercados, Digital opportunities for trade in the agriculture and food sectors"]
[528,"Cultivar 17 - Publicação Completa",17,1,"Gabinete de Planeamento, Políticas e Administração Geral (GPP)","","","","","","2019","","",0,"Cultivar17.pdf","Cultivar 17 - Publicação CompletaGabinete de Planeamento, Políticas e Administração Geral (GPP)2019"]
[529,"Editorial",17,7,"Eduardo Diniz","Diretor-geral","Gabinete de Planeamento, Políticas e Administração Geral (GPP)","","","PT","2019","ensino, motivação, agricultura, alimentação, florestas, educação, formação, Artur Pastor, 1966, formação, jovens dos Grupos Juvenis, pecuária, milho, Chaves, DRAP Centro, 2017, Dia Aberto, Coimbra","",0,"Cultivar17Editorial.pdf","EditorialEduardo DinizDiretor-geralGabinete de Planeamento, Políticas e Administração Geral (GPP)PT2019ensino, motivação, agricultura, alimentação, florestas, educação, formação, Artur Pastor, 1966, formação, jovens dos Grupos Juvenis, pecuária, milho, Chaves, DRAP Centro, 2017, Dia Aberto, Coimbra"]
[530,"O ensino agrícola em Portugal – uma opinião segundo três perspetivas complementares",17,13,"Francisco Gomes da Silva","Instituto Superior de Agronomia (ISA); Agroges; Sociedade Agrícola do Faiel","","","I","PT","2019","docente, agricultor, consultor, formação, agrónomo, licenciatura, mestrado, doutoramento, curiosidade, trabalho no campo, emprego, tecnologia, inovação, ensino superior","",0,"Cultivar17GT1FranciscoGomesSilva.pdf","O ensino agrícola em Portugal – uma opinião segundo três perspetivas complementaresFrancisco Gomes da SilvaInstituto Superior de Agronomia (ISA); Agroges; Sociedade Agrícola do FaielIPT2019docente, agricultor, consultor, formação, agrónomo, licenciatura, mestrado, doutoramento, curiosidade, trabalho no campo, emprego, tecnologia, inovação, ensino superior"]
[531,"A Universidade de Évora e a agricultura no Alentejo",17,19,"Ana Costa Freitas","Reitora daUniversidade de Évora","","","I","PT","2019","conhecimento científico, inovação, transferência de conhecimento, redes de cooperação científica, região, vinho, região demarcada, demarcação, regadio, Alqueva, investigação, coesão, ensino superior","",0,"Cultivar17GT2AnaCostaFreitas.pdf","A Universidade de Évora e a agricultura no AlentejoAna Costa FreitasReitora daUniversidade de ÉvoraIPT2019conhecimento científico, inovação, transferência de conhecimento, redes de cooperação científica, região, vinho, região demarcada, demarcação, regadio, Alqueva, investigação, coesão, ensino superior"]
[532,"Perspetivar o ensino agrícola",17,25,"Antonio Fontainhas Fernandes","Reitor da Universidade de Trás-os-Montes e Alto Douro (UTAD)","","","I","PT","2019","desafios societais, alterações climáticas, crescimento da população, vulnerabilidades, floresta, engenharia florestal, inovação, agronegócio, tecnologia, investigação, região, coesão, ensino superior","",0,"Cultivar17GT3AntonioFontainhasFernandes.pdf","Perspetivar o ensino agrícolaAntonio Fontainhas FernandesReitor da Universidade de Trás-os-Montes e Alto Douro (UTAD)IPT2019desafios societais, alterações climáticas, crescimento da população, vulnerabilidades, floresta, engenharia florestal, inovação, agronegócio, tecnologia, investigação, região, coesão, ensino superior"]
[533,"As Escolas Profissionais Agrícolas",17,33,"Carlos Alberto Frutuosa","Presidente da Associação Portuguesa das Escolas Profissionais Agrícolas (APEPA)","","","I","PT","2019","formação, recursos humanos, trabalho no campo, território, região, competências, remuneração, qualificação, inovação, iniciativa, ensino profissional","",0,"Cultivar17GT4CarlosAlbertoFrutuosa.pdf","As Escolas Profissionais AgrícolasCarlos Alberto FrutuosaPresidente da Associação Portuguesa das Escolas Profissionais Agrícolas (APEPA)IPT2019formação, recursos humanos, trabalho no campo, território, região, competências, remuneração, qualificação, inovação, iniciativa, ensino profissional"]
[534,"Preferência – o elo perdido na política alimentar",17,37,"Bee Wilson","Taste Education","","","I","PT","2019","educação do gosto, crianças, sistema educativo, sistema alimentar, falta de diversidade","",0,"Cultivar17GT5BeeWilsonPT.pdf","Preferência – o elo perdido na política alimentarBee WilsonTaste EducationIPT2019educação do gosto, crianças, sistema educativo, sistema alimentar, falta de diversidade"]
[535,"Preference as the missing link in food policy",17,41,"Bee Wilson","Taste Education","","","I","EN","2019","educação do gosto, crianças, sistema educativo, sistema alimentar, falta de diversidade","",0,"Cultivar17GT5BeeWilsonEN.pdf","Preference as the missing link in food policyBee WilsonTaste EducationIEN2019educação do gosto, crianças, sistema educativo, sistema alimentar, falta de diversidade"]
[536,"O ensino agrícola em Portugal",17,45,"Rui Trindade, Paula Esteves","Gabinete de Planeamento, Políticas e Administração Geral (GPP)","","","II","PT","2019","evolução do ensino, enquadramento histórico, níveis de qualificações, Quadro Europeu de Qualificações (QEQ), Quadro Nacional de Qualificação (QNQ), ensino profissional, formação, ensino superior agrícola, número de vagas, acesso ao ensino superior","",0,"Cultivar17OBS1GPPRuiTrindadePaulaEsteves.pdf","O ensino agrícola em PortugalRui Trindade, Paula EstevesGabinete de Planeamento, Políticas e Administração Geral (GPP)IIPT2019evolução do ensino, enquadramento histórico, níveis de qualificações, Quadro Europeu de Qualificações (QEQ), Quadro Nacional de Qualificação (QNQ), ensino profissional, formação, ensino superior agrícola, número de vagas, acesso ao ensino superior"]
[537,"Agricultura na escola – uma área por explorar (na ligação ao currículo)",17,67,"Tiago José Espada Bacalhau","Escola Secundária de Vendas Novas","","","II","PT","2019","horta pedagógica, projeto educativo, ensino básico e secundário, hábitos alimentares, trabalho de equipa, motivação, região, território, coesão","",0,"Cultivar17OBS2TiagoBacalhau.pdf","Agricultura na escola – uma área por explorar (na ligação ao currículo)Tiago José Espada BacalhauEscola Secundária de Vendas NovasIIPT2019horta pedagógica, projeto educativo, ensino básico e secundário, hábitos alimentares, trabalho de equipa, motivação, região, território, coesão"]
[538,"Carência de recursos humanos qualificados – o problema da atratividade do sector agroflorestal",17,73,"João Ribeiro Lima","Vogal do Conselho Diretivo do Instituto Nacional de Investigação Agrária e Veterinária, I.P. (INIAV)","","","II","PT","2019","investigação, transferência de conhecimento, ensino básico e secundário, ensino superior, formação, divulgação de ciência, Ciência Viva, Olimpíadas de Ciência, Olimpíadas de Biologia","",0,"Cultivar17OBS3INIAVJoaoLima.pdf","Carência de recursos humanos qualificados – o problema da atratividade do sector agroflorestalJoão Ribeiro LimaVogal do Conselho Diretivo do Instituto Nacional de Investigação Agrária e Veterinária, I.P. (INIAV)IIPT2019investigação, transferência de conhecimento, ensino básico e secundário, ensino superior, formação, divulgação de ciência, Ciência Viva, Olimpíadas de Ciência, Olimpíadas de Biologia"]
[539,"A DGADR/MAFDR, a formação profissional e as instituições de ensino e de formação profissional",17,81,"Maria Custódia Correia","Direcção-Geral de Agricultura e Desenvolvimento Rural (DGADR)","","","II","PT","2019","Sistema Nacional de Qualificações (SNQ), Sistema de Certificação de Entidades Formadoras, Formação profissional específica setorial, Catálogo Nacional de Qualificações (CNQ), entidade formadora certificada setorialmente, reconhecimento de cursos","",0,"Cultivar17OBS4DGADRMariaCustodiaCorreia.pdf","A DGADR/MAFDR, a formação profissional e as instituições de ensino e de formação profissionalMaria Custódia CorreiaDirecção-Geral de Agricultura e Desenvolvimento Rural (DGADR)IIPT2019Sistema Nacional de Qualificações (SNQ), Sistema de Certificação de Entidades Formadoras, Formação profissional específica setorial, Catálogo Nacional de Qualificações (CNQ), entidade formadora certificada setorialmente, reconhecimento de cursos"]
[540,"Exemplos de iniciativas de promoção da agricultura e da floresta nas escolas",17,85,"Manuel Loureiro, José Barata, Francisco Caldeira","Gabinete de Planeamento, Políticas e Administração Geral (GPP)","","","II","PT","2019","fruta escolar, leite escolar, promoção do consumo, aproximação à produção, dia mundial, dia internacional, dia nacional, eco-escola, quinta pedagógica, centro de interpretação, programa Redescobrir a terra, voluntariado, ICNF, Dieta Mediterrânica","",0,"Cultivar17OBS5GPPManuelLoureiroEtAl.pdf","Exemplos de iniciativas de promoção da agricultura e da floresta nas escolasManuel Loureiro, José Barata, Francisco CaldeiraGabinete de Planeamento, Políticas e Administração Geral (GPP)IIPT2019fruta escolar, leite escolar, promoção do consumo, aproximação à produção, dia mundial, dia internacional, dia nacional, eco-escola, quinta pedagógica, centro de interpretação, programa Redescobrir a terra, voluntariado, ICNF, Dieta Mediterrânica"]
[541,"Retrato do ensino agrícola em França",17,99,"Gabinete de Planeamento, Políticas e Administração Geral (GPP)","Ministère de l’agriculture et de l’alimentation","Anabela Gameiro e Ana Sofia Sampaio","","IIIB","FR","2019","ensino agrícola, ensino superior, ensino profissional, França, investigação, inovação","",0,"Cultivar17LEIT1EnsinoAgricolaFranca.pdf","Retrato do ensino agrícola em FrançaGabinete de Planeamento, Políticas e Administração Geral (GPP)Ministère de l’agriculture et de l’alimentationAnabela Gameiro e Ana Sofia SampaioIIIBFR2019ensino agrícola, ensino superior, ensino profissional, França, investigação, inovação"]
[542,"Pacote pedagógico para professores",17,103,"Gabinete de Planeamento, Políticas e Administração Geral (GPP)","Comissão Europeia, Direção-Geral da Agricultura e do Desenvolvimento Rural (DG Agri)","Ana Rita Moura","","IIIB","PT","2017","ensino escolar, agricultura, alimentação, Europa","",0,"Cultivar17LEIT2PacotePedagogicoProfessores.pdf","Pacote pedagógico para professoresGabinete de Planeamento, Políticas e Administração Geral (GPP)Comissão Europeia, Direção-Geral da Agricultura e do Desenvolvimento Rural (DG Agri)Ana Rita MouraIIIBPT2017ensino escolar, agricultura, alimentação, Europa"]
[543,"Escola dos Cereais",17,105,"Gabinete de Planeamento, Políticas e Administração Geral (GPP)","L’Ecole des céréales, Passion Céréales, Intercéréales – Interprofissional dos cereais, França","Ana Sofia Sampaio","","IIIB","FR","2019","ensino agrícola, educação, cereais, recursos pedagógicos, divulgação, França","",0,"Cultivar17LEIT3EscolaCereais.pdf","Escola dos CereaisGabinete de Planeamento, Políticas e Administração Geral (GPP)L’Ecole des céréales, Passion Céréales, Intercéréales – Interprofissional dos cereais, FrançaAna Sofia SampaioIIIBFR2019ensino agrícola, educação, cereais, recursos pedagógicos, divulgação, França"]
[544,"Leaf Education – Alimentação, agricultura e espaço rural para todos",17,107,"Gabinete de Planeamento, Políticas e Administração Geral (GPP)","LEAF – Linking Environment and Farming","Bárbara Garção","","IIIB","EN","2019","agricultura, meio rural, educação, crianças e jovens, Reino Unido","",0,"Cultivar17LEIT4LeafEducation.pdf","Leaf Education – Alimentação, agricultura e espaço rural para todosGabinete de Planeamento, Políticas e Administração Geral (GPP)LEAF – Linking Environment and FarmingBárbara GarçãoIIIBEN2019agricultura, meio rural, educação, crianças e jovens, Reino Unido"]
[545,"SAPERE – uma rede internacional para uma nova abordagem educativa à alimentação",17,111,"Gabinete de Planeamento, Políticas e Administração Geral (GPP)","SAPERE – Taste education: an international network for a promising educational approach","Ana Sofia Sampaio","","IIIB","EN","2018","ensino, educação, sabor, alimentação, diversificação, classes do gosto, Reino Unido, França, Finlândia, Suíça","",0,"Cultivar17LEIT5Sapere.pdf","SAPERE – uma rede internacional para uma nova abordagem educativa à alimentaçãoGabinete de Planeamento, Políticas e Administração Geral (GPP)SAPERE – Taste education: an international network for a promising educational approachAna Sofia SampaioIIIBEN2018ensino, educação, sabor, alimentação, diversificação, classes do gosto, Reino Unido, França, Finlândia, Suíça"]
[546,"O ensino em revista nos países da OCDE (2019)",17,113,"Gabinete de Planeamento, Políticas e Administração Geral (GPP)","Deborah Roseveare, Marie-Hélène Doumet et al.","OCDE - Organização para a Cooperação e o Desenvolvimento Económico","Ana Sofia Sampaio","IIIB","EN","2019","sistema de ensino, indicadores, acesso à educação, acesso ao ensino superior, professor","",0,"Cultivar17LEIT6EnsinoOCDE.pdf","O ensino em revista nos países da OCDE (2019)Gabinete de Planeamento, Políticas e Administração Geral (GPP)Deborah Roseveare, Marie-Hélène Doumet et al.OCDE - Organização para a Cooperação e o Desenvolvimento EconómicoAna Sofia SampaioIIIBEN2019sistema de ensino, indicadores, acesso à educação, acesso ao ensino superior, professor"]
[547,"Cultivar 18 - Publicação Completa",18,1,"Gabinete de Planeamento, Políticas e Administração Geral (GPP)","","","","","","2019","","",0,"Cultivar18.pdf","Cultivar 18 - Publicação CompletaGabinete de Planeamento, Políticas e Administração Geral (GPP)2019"]
[548,"Editorial",18,7,"Eduardo Diniz","Diretor-geral","Gabinete de Planeamento, Políticas e Administração Geral (GPP)","","","PT","2019","fatores de produção, funções da agricultura, oportunidades e ameaças, geopolítica, Artur Pastor, Estação Vitivínicola Anadia, 1954, semeador Planet, Luís Gonçalves,  sementeira da colza, Serpa, 2014","",0,"Cultivar18Editorial.pdf","EditorialEduardo DinizDiretor-geralGabinete de Planeamento, Políticas e Administração Geral (GPP)PT2019fatores de produção, funções da agricultura, oportunidades e ameaças, geopolítica, Artur Pastor, Estação Vitivínicola Anadia, 1954, semeador Planet, Luís Gonçalves,  sementeira da colza, Serpa, 2014"]
[549,"\tUm novo mundo – a geopolítica da transformação energética (excerto)",18,13,"Global Commission on the Geopolitics of Energy Transformation","IRENA - International Renewable Energy Agency","","","I","PT, EN","2019","instabilidade geopolítica, clima, segurança, planeta, ameaça global, tensões económicas e sociais, segurança alimentar, desenvolvimento","",0,"Cultivar18GT1IRENA.pdf","\tUm novo mundo – a geopolítica da transformação energética (excerto)Global Commission on the Geopolitics of Energy TransformationIRENA - International Renewable Energy AgencyIPT, EN2019instabilidade geopolítica, clima, segurança, planeta, ameaça global, tensões económicas e sociais, segurança alimentar, desenvolvimento"]
[550,"\tO papel da agricultura na governação da União da Energia e da ação climática",18,21,"Joana Simão Costa, Vasco Ferreira e Paula Pinho","Comissão Europeia – Direção-Geral de Energia","","","I","PT","2019","emissões de GEE, ocupação do solo, LULUCF, mitigação das alterações climáticas, Green Deal Europeu, Pacto Ecológico Europeu","",0,"Cultivar18GT2JoanaSimaoCosta.pdf","\tO papel da agricultura na governação da União da Energia e da ação climáticaJoana Simão Costa, Vasco Ferreira e Paula PinhoComissão Europeia – Direção-Geral de EnergiaIPT2019emissões de GEE, ocupação do solo, LULUCF, mitigação das alterações climáticas, Green Deal Europeu, Pacto Ecológico Europeu"]
[551,"\tCooperação entre setores para um futuro descarbonizado — Uma experiênci EDP",18,29,"Sara Goulartt e Pedro Paes","EDP - Energias de Portugal SA","Direcção de Sustentabilidade, Clima e Ambiente","","I","PT","2019","eficiência energética, descarbonização, Soluções Baseadas na Natureza (SbN), Acordo de Paris, sumidouro de carbono, Pacto Ecológico Europeu, Green Deal Europeu, transição energética, solar flutuante, painéis fotovoltaicos, tecnologia Agri-PV","",0,"Cultivar18GT3SaraGoulartt.pdf","\tCooperação entre setores para um futuro descarbonizado — Uma experiênci EDPSara Goulartt e Pedro PaesEDP - Energias de Portugal SADirecção de Sustentabilidade, Clima e AmbienteIPT2019eficiência energética, descarbonização, Soluções Baseadas na Natureza (SbN), Acordo de Paris, sumidouro de carbono, Pacto Ecológico Europeu, Green Deal Europeu, transição energética, solar flutuante, painéis fotovoltaicos, tecnologia Agri-PV"]
[552,"Consumo de energia e eficiência energética na agricultura",18,41,"Fátima Baptista","professora","Universidade de Évora","","I","","","agricultura intensiva, AGREE, nexus água-energia, trigo, vinha, agricultura de precisão","",0,"Cultivar18GT4FatimaBaptista.pdf",{"$f":"+B275&E275&F275&G275&H275&I275&J275&K275&L275","v":"Consumo de energia e eficiência energética na agriculturaFátima BaptistaprofessoraUniversidade de ÉvoraIagricultura intensiva, AGREE, nexus água-energia, trigo, vinha, agricultura de precisão"}]
[553,"\tEnergia e agricultura: um binómio para o futuro",18,49,"Luís Gil, Rainério Pires e Alexandra Nicolau","Direção Geral de Energia e Geologia (DGEG)","Centro da Biomassa para a Energia (CBE)","","II","PT","2019","alterações climáticas, biomassa, emissões de GEE, cenários, transição energética, biocombustível, agricultura de precisão,","",0,"Cultivar18OBS1LuisGil.pdf","\tEnergia e agricultura: um binómio para o futuroLuís Gil, Rainério Pires e Alexandra NicolauDireção Geral de Energia e Geologia (DGEG)Centro da Biomassa para a Energia (CBE)IIPT2019alterações climáticas, biomassa, emissões de GEE, cenários, transição energética, biocombustível, agricultura de precisão,"]
[554,"\tTransição energética e oportunidades para a redução da fatura energética no setor agrícola",18,59,"Isabel Apolinário","Diretora de Tarifas e Preços","Entidade Reguladora dos Serviços Energéticos (ERSE)","","II","PT","2019","emergência climática, Acordo de Paris, neutralidade carbónica, Pacote Energia Limpa, Plano Nacional Energia Clima 2021-2030 (PNEC 2030), eficiência energética, autoconsumo, energias renováveis","",0,"Cultivar18OBS2IsabelApolinario.pdf","\tTransição energética e oportunidades para a redução da fatura energética no setor agrícolaIsabel ApolinárioDiretora de Tarifas e PreçosEntidade Reguladora dos Serviços Energéticos (ERSE)IIPT2019emergência climática, Acordo de Paris, neutralidade carbónica, Pacote Energia Limpa, Plano Nacional Energia Clima 2021-2030 (PNEC 2030), eficiência energética, autoconsumo, energias renováveis"]
[555,"\tO Decreto-Lei n.º 162/2019, de 25 de Outubro, sobre o regime jurídico aplicável ao autoconsumo de energia renovável",18,67,"Margarida Ramires","","","","II","PT","2019","alterações climáticas, transição energética, consumo de energia, custos, fatura da eletricidade","",0,"Cultivar18OBS3MargaridaRamires.pdf","\tO Decreto-Lei n.º 162/2019, de 25 de Outubro, sobre o regime jurídico aplicável ao autoconsumo de energia renovávelMargarida RamiresIIPT2019alterações climáticas, transição energética, consumo de energia, custos, fatura da eletricidade"]
[556,"\tAvaliação de eficiências hídrica e energética no regadio",18,71,"José Núncio, Carina Arranja e Diana Cordeiro","","Federação Nacional de Regantes de Portugal (FENAREG)","","II","","","projeto AGIR – Avaliação da Eficiência do Uso da Água e da Energia, nexus água-energia, Programa Nacional de Regadios, Aproveitamentos Hidroagrícolas, balanço hídrico, balanço energético","",0,"Cultivar18OBS4JoseNuncio.pdf","\tAvaliação de eficiências hídrica e energética no regadioJosé Núncio, Carina Arranja e Diana CordeiroFederação Nacional de Regantes de Portugal (FENAREG)IIprojeto AGIR – Avaliação da Eficiência do Uso da Água e da Energia, nexus água-energia, Programa Nacional de Regadios, Aproveitamentos Hidroagrícolas, balanço hídrico, balanço energético"]
[557,"\tEnergia solar e a rega de um moderno olival: um desafio possível",18,81,"Isabel Ribeiro","Elaia","Desenvolvimento de Negócio","","II","PT","2019","Lagar de azeite de última geração, projeto Maslowaten, painel fotovoltaico, energia solar","",0,"Cultivar18OBS5IsabelRibeiro.pdf","\tEnergia solar e a rega de um moderno olival: um desafio possívelIsabel RibeiroElaiaDesenvolvimento de NegócioIIPT2019Lagar de azeite de última geração, projeto Maslowaten, painel fotovoltaico, energia solar"]
[558,"\tA importância da Eficiência Energética Global na produção hortícola",18,85,"Luís Malpique, Ferry Enthoven e Paul Dolleman","Atlantic Growers","","","II","PT","2019","inovação, aproveitamento energético, agricultura de precisão, hidroponia, Variable Rate Technology (VRT), eco-estufa, autómato, programa de clima","",0,"Cultivar18OBS6LuisMalpique.pdf","\tA importância da Eficiência Energética Global na produção hortícolaLuís Malpique, Ferry Enthoven e Paul DollemanAtlantic GrowersIIPT2019inovação, aproveitamento energético, agricultura de precisão, hidroponia, Variable Rate Technology (VRT), eco-estufa, autómato, programa de clima"]
[559,"\tAgricultura e energia em Portugal – produção e consumo",18,89,"Manuel Loureiro, Rui Trindade, Paula Esteves, Patrícia Queirós e Isabel Escada","Gabinete de Planeamento, Politicas e Administração Geral (GPP)","","","II","","","sistema integrado de produção alimentar e energia (IFES), consumo direto de energia, intensidade de procura de energia, biocombustível, biomassa, cogeração, Fontes de Energia Renovável","",0,"Cultivar18OBS7ManuelLoureiro.pdf","\tAgricultura e energia em Portugal – produção e consumoManuel Loureiro, Rui Trindade, Paula Esteves, Patrícia Queirós e Isabel EscadaGabinete de Planeamento, Politicas e Administração Geral (GPP)IIsistema integrado de produção alimentar e energia (IFES), consumo direto de energia, intensidade de procura de energia, biocombustível, biomassa, cogeração, Fontes de Energia Renovável"]
[560,"\tEnergia limpa para todos os Europeus",18,107,"Comissão Europeia, Publications Office of the European Union, Luxemburgo","Gabinete de Planeamento, Políticas e Administração Geral (GPP)","Ana Filipe Morais","","IIIB","PT, EN","2019","transição energética, neutralidade carbónica, energia renovável, Pacote de Energia Limpa","",0,"Cultivar18LEIT1EnergiaLimpa.pdf","\tEnergia limpa para todos os EuropeusComissão Europeia, Publications Office of the European Union, LuxemburgoGabinete de Planeamento, Políticas e Administração Geral (GPP)Ana Filipe MoraisIIIBPT, EN2019transição energética, neutralidade carbónica, energia renovável, Pacote de Energia Limpa"]
[561,"\tPerspetivas energéticas mundiais para 2040",18,109,"World Energy Outlook 2019, International Energy Agency","","Gabinete de Planeamento, Políticas e Administração Geral (GPP)","Ana Sofia Sampaio","IIIB","","2019","energia, cenários, combustíveis, GEE – Gases com efeito de estufa, segurança energética, aumento da procura, crescimento demográfico","",0,"Cultivar18LEIT2PerspetivasIEA.pdf","\tPerspetivas energéticas mundiais para 2040World Energy Outlook 2019, International Energy AgencyGabinete de Planeamento, Políticas e Administração Geral (GPP)Ana Sofia SampaioIIIB2019energia, cenários, combustíveis, GEE – Gases com efeito de estufa, segurança energética, aumento da procura, crescimento demográfico"]
[562,"\tAcautelar o “dente de narval” das necessidades energéticas",18,111,"Seaver Wang","The Breakthrough Institute","Gabinete de Planeamento, Políticas e Administração Geral (GPP)","Ana Sofia Sampaio","IIIB","PT, EN","2019","energia, GEE – Gases com efeito de estufa, eletricidade, procura de energia","",0,"Cultivar18LEIT3DenteNarval.pdf","\tAcautelar o “dente de narval” das necessidades energéticasSeaver WangThe Breakthrough InstituteGabinete de Planeamento, Políticas e Administração Geral (GPP)Ana Sofia SampaioIIIBPT, EN2019energia, GEE – Gases com efeito de estufa, eletricidade, procura de energia"]
[563,"\tEnergia, agricultura e alterações climáticas",18,115,"FAO - Organização das Nações Unidas para a Alimentação e a Agricultura","","Gabinete de Planeamento, Políticas e Administração Geral (GPP)","Ana Sofia Sampaio","IIIB","PT, EN","2016","acesso à energia, GEE – Gases com efeito de estufa, alterações climáticas, eficiência energética, energias renováveis, bioenergia","",0,"Cultivar18LEIT4BrochuraEnergiaFAO.pdf","\tEnergia, agricultura e alterações climáticasFAO - Organização das Nações Unidas para a Alimentação e a AgriculturaGabinete de Planeamento, Políticas e Administração Geral (GPP)Ana Sofia SampaioIIIBPT, EN2016acesso à energia, GEE – Gases com efeito de estufa, alterações climáticas, eficiência energética, energias renováveis, bioenergia"]
[564,"\tNovas fronteiras da energia",18,117,"Carlos Oliveira Santos","Fundação Galp Energia","Gabinete de Planeamento, Políticas e Administração Geral (GPP)","Ana Filipe Morais","IIIB","PT","2011","gás natural, refinação, biocombustíveis, eficiência energética","",0,"Cultivar18LEIT5HistoriaGalpEnergia.pdf","\tNovas fronteiras da energiaCarlos Oliveira SantosFundação Galp EnergiaGabinete de Planeamento, Políticas e Administração Geral (GPP)Ana Filipe MoraisIIIBPT2011gás natural, refinação, biocombustíveis, eficiência energética"]
[565,"Cultivar 19 - Publicação Completa",19,1,"Gabinete de Planeamento, Políticas e Administração Geral (GPP)","","","","","PT","2020","","",0,"Cultivar19.pdf","Cultivar 19 - Publicação CompletaGabinete de Planeamento, Políticas e Administração Geral (GPP)PT2020"]
[566,"Editorial",19,7,"Eduardo Diniz","Diretor-geral","Gabinete de Planeamento, Políticas e Administração Geral (GPP)","","","PT","2020","COVID-19, incerteza, coronavírus, impacto económico, crise, contas económicas, Contas Nacionais, cartaz  Capoeira povoada, riqueza amealhada, A. Ribeiro, Campanha da Produção Agrícola, 1942, Produzir e poupar hoje mais que ontem, A. Abílio, 1943","",0,"Cultivar19Editorial.pdf","EditorialEduardo DinizDiretor-geralGabinete de Planeamento, Políticas e Administração Geral (GPP)PT2020COVID-19, incerteza, coronavírus, impacto económico, crise, contas económicas, Contas Nacionais, cartaz  Capoeira povoada, riqueza amealhada, A. Ribeiro, Campanha da Produção Agrícola, 1942, Produzir e poupar hoje mais que ontem, A. Abílio, 1943"]
[567,"Competitividade e cadeias de valor no sector agroalimentar e agroflorestal português",19,13,"Tiago Domingues e Ricardo Pinheiro Alves","Gabinete de Estratégia e Estudos","Ministério da Economia","","I","PT","2020","condições de competitividade, Cadeias de Valor Global (CVG), custos do trabalho, custos energéticos, custos financeiros, taxa de câmbio, valor acrescentado, Balança Comercial, Participação Backward, Participação Forward, emissões de CO2","",0,"Cultivar19GT1RicardoPinheiroAlves","Competitividade e cadeias de valor no sector agroalimentar e agroflorestal portuguêsTiago Domingues e Ricardo Pinheiro AlvesGabinete de Estratégia e EstudosMinistério da EconomiaIPT2020condições de competitividade, Cadeias de Valor Global (CVG), custos do trabalho, custos energéticos, custos financeiros, taxa de câmbio, valor acrescentado, Balança Comercial, Participação Backward, Participação Forward, emissões de CO2"]
[568,"É tempo de nos concentrarmos no que importa: uma agenda para a medição e as políticas",19,33,"Martine Durand","Copresidente do Grupo de Alto Nível de Especialistas em Avaliação do Desempenho Económico e do Progresso Social","antiga Diretora de Estatísticas da OCDE","","I","PT, EN","2020","bem-estar, progresso social, limitações do PIB, melhoria de vida, novas métricas","",0,"Cultivar19GT2MartineDurand.pdf","É tempo de nos concentrarmos no que importa: uma agenda para a medição e as políticasMartine DurandCopresidente do Grupo de Alto Nível de Especialistas em Avaliação do Desempenho Económico e do Progresso Socialantiga Diretora de Estatísticas da OCDEIPT, EN2020bem-estar, progresso social, limitações do PIB, melhoria de vida, novas métricas"]
[569,"Notas sobre a medição do VAB agrícola",19,41,"Bruno Dimas","Gabinete de Planeamento, Políticas e Administração Geral (GPP)","","","I","PT","2020","bem-estar, progresso social, limitações do PIB, medição do valor, criação e extração de valor, consumos intermédios, informação ambiental, sistemas de agricultura, metodologia, impacto metodológico","",0,"Cultivar19GT3BrunoDimas.pdf","Notas sobre a medição do VAB agrícolaBruno DimasGabinete de Planeamento, Políticas e Administração Geral (GPP)IPT2020bem-estar, progresso social, limitações do PIB, medição do valor, criação e extração de valor, consumos intermédios, informação ambiental, sistemas de agricultura, metodologia, impacto metodológico"]
[570,"A envolvente macroeconómica do setor agrícola – 2019",19,53,"Ana Rita Moura","Gabinete de Planeamento, Políticas e Administração Geral (GPP)","","","I","PT","2020","ambiente macroeconómico, inflação, PIB, emprego, importações, exportações, investimento, metodologia, Contas Económicas da Agricultura, base 2016","",0,"Cultivar19GT4AnaRitaMoura.pdf","A envolvente macroeconómica do setor agrícola – 2019Ana Rita MouraGabinete de Planeamento, Políticas e Administração Geral (GPP)IPT2020ambiente macroeconómico, inflação, PIB, emprego, importações, exportações, investimento, metodologia, Contas Económicas da Agricultura, base 2016"]
[571,"Alavancar recursos públicos por meio de instrumentos financeiros para aumentar a competitividade da agricultura",19,65,"Alessando Gargani, Gianluca Massimi, Vincent Floreani e Balazs Podmaniczky","Fundo Europeu de Investimento (FEI)","","","I","PT, EN","2020","défice de financiamento, investimento, volatilidade de preços, volatilidade de rendimentos, modernização, inovação, tecnologia, risco do setor agrícola, Programa Agrícola Descentralizado do FEI","",0,"Cultivar19GT5AlessandroGargani.pdf","Alavancar recursos públicos por meio de instrumentos financeiros para aumentar a competitividade da agriculturaAlessando Gargani, Gianluca Massimi, Vincent Floreani e Balazs PodmaniczkyFundo Europeu de Investimento (FEI)IPT, EN2020défice de financiamento, investimento, volatilidade de preços, volatilidade de rendimentos, modernização, inovação, tecnologia, risco do setor agrícola, Programa Agrícola Descentralizado do FEI"]
[572,"Instrumentos financeiros no PDR2020",19,75,"Manuela Azevedo e Silva","Gestora Adjunta do Programa de Desenvolvimento Rural 2014-2020 (PDR 2020)","Autoridade de Gestão do Programa de Desenvolvimento Rural 2014-2020 (AG PDR 2020)","","II","PT","2020","instrumento de garantia de carteira, falha de mercado, Fundo Europeu de Investimento (FEI), Fundos Estruturais e de Investimento, garantias e contragarantias","",0,"Cultivar19OBS1ManuelaAzevedoSilva.pdf","Instrumentos financeiros no PDR2020Manuela Azevedo e SilvaGestora Adjunta do Programa de Desenvolvimento Rural 2014-2020 (PDR 2020)Autoridade de Gestão do Programa de Desenvolvimento Rural 2014-2020 (AG PDR 2020)IIPT2020instrumento de garantia de carteira, falha de mercado, Fundo Europeu de Investimento (FEI), Fundos Estruturais e de Investimento, garantias e contragarantias"]
[573,"O Programa Orçamental para a Agricultura",19,81,"Lurdes Soares e Fátima Catarino","Gabinete de Planeamento, Políticas e Administração Geral (GPP)","","","II","PT","2020","despesa pública, Política Agrícola Comum (PAC), orçamento, execução orçamental, despesa agrícola, despesa efetiva consolidada, despesa não consolidada, despesa extraorçamental, fontes de financiamento, FEAGA, FEADER","",0,"Cultivar19OBS2LurdesSoares.pdf","O Programa Orçamental para a AgriculturaLurdes Soares e Fátima CatarinoGabinete de Planeamento, Políticas e Administração Geral (GPP)IIPT2020despesa pública, Política Agrícola Comum (PAC), orçamento, execução orçamental, despesa agrícola, despesa efetiva consolidada, despesa não consolidada, despesa extraorçamental, fontes de financiamento, FEAGA, FEADER"]
[574,"Quadro macroeconómico e agricultura: alguns exemplos",19,91,"Bruno Dimas e Rui Pereira","Gabinete de Planeamento, Políticas e Administração Geral (GPP)","","","II","PT","2020","contas da agricultura, taxas de câmbio, taxas de juro, risco, consumos intermédios, preços agrícolas, custos energéticos, cenários, PAC, ajudas superfície, custo de oportunidade do trabalho, salário médio, viabilidade das explorações agrícolas","",0,"Cultivar19OBS3BrunoDimas.pdf","Quadro macroeconómico e agricultura: alguns exemplosBruno Dimas e Rui PereiraGabinete de Planeamento, Políticas e Administração Geral (GPP)IIPT2020contas da agricultura, taxas de câmbio, taxas de juro, risco, consumos intermédios, preços agrícolas, custos energéticos, cenários, PAC, ajudas superfície, custo de oportunidade do trabalho, salário médio, viabilidade das explorações agrícolas"]
[575,"Produção da agricultura nas Matrizes Simétricas de Input-Output",19,97,"Rui Trindade","Gabinete de Planeamento, Políticas e Administração Geral (GPP)","","","II","PT","2020","fluxos de produção, fluxos de importação, Matriz de Produção Nacional, Matriz de Fluxos Totais, Matriz de Importações, consumos intermédios, VAB","",0,"Cultivar19OBS4RuiTrindade.pdf","Produção da agricultura nas Matrizes Simétricas de Input-OutputRui TrindadeGabinete de Planeamento, Políticas e Administração Geral (GPP)IIPT2020fluxos de produção, fluxos de importação, Matriz de Produção Nacional, Matriz de Fluxos Totais, Matriz de Importações, consumos intermédios, VAB"]
[576,"O valor de tudo",19,107,"Mariana Mazzucato","","Gabinete de Planeamento, Políticas e Administração Geral (GPP)","João Marques","IIIB","PT, EN","2019","The Value of Everything: Making and Taking in the Global Economy, criação de valor, extração de valor, poder da narrativa, políticas públicas, inovação","",0,"Cultivar19LEIT1GPPValorTudo.pdf","O valor de tudoMariana MazzucatoGabinete de Planeamento, Políticas e Administração Geral (GPP)João MarquesIIIBPT, EN2019The Value of Everything: Making and Taking in the Global Economy, criação de valor, extração de valor, poder da narrativa, políticas públicas, inovação"]
[577,"Instrumentos Financeiros de apoio às empresas no Portugal 2020",19,111,"Augusto Mateus & Associados, Sociedade de Consultores, Lda.","","Gabinete de Planeamento, Políticas e Administração Geral (GPP)","Anabela Gameiro","IIIB","PT","","investimento público, investimento privado, mecanismos de garantia, políticas públicas","",0,"Cultivar19LEIT2GPPInstrumentosFinanceiros.pdf","Instrumentos Financeiros de apoio às empresas no Portugal 2020Augusto Mateus & Associados, Sociedade de Consultores, Lda.Gabinete de Planeamento, Políticas e Administração Geral (GPP)Anabela GameiroIIIBPTinvestimento público, investimento privado, mecanismos de garantia, políticas públicas"]
[578,"Alguns documentos sobre a crise atual e as perspetivas de futuro",19,113,"Vários","","Gabinete de Planeamento, Políticas e Administração Geral (GPP)","Ana Sofia Sampaio","IIIB","PT, NL, EN, FR","2020","COVID-19, novo coronavírus, SARS-CoV-2, impacto económico, Marcel Vijn, WUR, FAO, FIDA, Banco Mundial, Programa Alimentar Mundial, Nouriel Roubini, Richard Haass, Leonardo Cadamuro, Francesco Papadia, OCDE, Emanuel Macron, Edgar Morin","",0,"Cultivar19LEIT3GPPVariosDocumentos.pdf","Alguns documentos sobre a crise atual e as perspetivas de futuroVáriosGabinete de Planeamento, Políticas e Administração Geral (GPP)Ana Sofia SampaioIIIBPT, NL, EN, FR2020COVID-19, novo coronavírus, SARS-CoV-2, impacto económico, Marcel Vijn, WUR, FAO, FIDA, Banco Mundial, Programa Alimentar Mundial, Nouriel Roubini, Richard Haass, Leonardo Cadamuro, Francesco Papadia, OCDE, Emanuel Macron, Edgar Morin"]
[579,"Cultivar 20 - Publicação Completa",20,1,"Gabinete de Planeamento, Políticas e Administração Geral (GPP)","","","","","PT, EN","2020","","",0,"Cultivar20.pdf","Cultivar 20 - Publicação CompletaGabinete de Planeamento, Políticas e Administração Geral (GPP)PT, EN2020"]
[580,"Editorial",20,7,"Eduardo Diniz","Diretor-geral","Gabinete de Planeamento, Políticas e Administração Geral (GPP)","","","PT","2020","abastecimento alimentar, fronteiras, défice alimentar, saldo comercial alimentar, balança comercial, cadeia de abastecimento, exportações, importações, Comboio do Trigo, 1928, laranjal, Algarve, Mário Costa, Campanha do Trigo, 1929-1949, Lisboa, Federação Nacional dos Produtores de Trigo (FNPT)","",0,"Cultivar20CapaEditorial.pdf","EditorialEduardo DinizDiretor-geralGabinete de Planeamento, Políticas e Administração Geral (GPP)PT2020abastecimento alimentar, fronteiras, défice alimentar, saldo comercial alimentar, balança comercial, cadeia de abastecimento, exportações, importações, Comboio do Trigo, 1928, laranjal, Algarve, Mário Costa, Campanha do Trigo, 1929-1949, Lisboa, Federação Nacional dos Produtores de Trigo (FNPT)"]
[581,"\tAbastecimento resiliente de alimentos e água: a perspetiva da NATO",20,13,"Wolf-Diether Roepke","NATO - Organização do Tratado do Atlântico Norte","","","I","PT","2020","preparação civil, emergência, resiliência, Aliados, Tratado de Washington, avaliação de risco, vulnerabilidade, segurança, abastecimento alimentar, recursos hídricos, COVID-19, planeamento de emergência","",0,"Cultivar20GT1RoepkePT.pdf","\tAbastecimento resiliente de alimentos e água: a perspetiva da NATOWolf-Diether RoepkeNATO - Organização do Tratado do Atlântico NorteIPT2020preparação civil, emergência, resiliência, Aliados, Tratado de Washington, avaliação de risco, vulnerabilidade, segurança, abastecimento alimentar, recursos hídricos, COVID-19, planeamento de emergência"]
[582,"Resilient Food and Water Supply: A NATO Perspective",20,19,"Wolf-Diether Roepke","NATO - North Atlantic Treaty Organization","","","I","EN","2020","civil preparedness, resilience, planning","",0,"Cultivar20GT1RoepkeEN.pdf","Resilient Food and Water Supply: A NATO PerspectiveWolf-Diether RoepkeNATO - North Atlantic Treaty OrganizationIEN2020civil preparedness, resilience, planning"]
[583,"\tA soberania alimentar como garante da soberania nacional",20,21,"Abílio Dias Fernandes","Presidente da Associação Povo Alentejano, ex-presidente da Câmara Municipal de Évora","","","I","PT","2020","abastecimento alimentar, urgência, emergência, equilíbrio da balança comercial, produção nacional, substituição de\nimportações, sustentabilidade","",0,"Cultivar20GT2Fernandes.pdf","\tA soberania alimentar como garante da soberania nacionalAbílio Dias FernandesPresidente da Associação Povo Alentejano, ex-presidente da Câmara Municipal de ÉvoraIPT2020abastecimento alimentar, urgência, emergência, equilíbrio da balança comercial, produção nacional, substituição de\nimportações, sustentabilidade"]
[584,"\tEm defesa do comércio livre",20,29,"Carlos Guimarães Pinto","Economista, escritor, professor e ex-presidente do partido Iniciativa Liberal","","","I","PT","2020","protecionismo, comércio internacional, nacionalismo económico, produção nacional, vantagem comparativa","",0,"Cultivar20GT3Pinto.pdf","\tEm defesa do comércio livreCarlos Guimarães PintoEconomista, escritor, professor e ex-presidente do partido Iniciativa LiberalIPT2020protecionismo, comércio internacional, nacionalismo económico, produção nacional, vantagem comparativa"]
[585,"\tA agricultura e o abastecimento alimentar",20,35,"António Serrano","Professor catedrático, CEO, ex-Ministro da Agricultura, do Desenvolvimento Rural e das Pescas","Universidade de Évora","Jerónimo Martins Agroalimentar","I","PT","2020","produção de alimentos, modos de produção, sustentabilidade, segurança no abastecimento (food security), segurança sanitária (food safety), biodiversidade, bem-estar animal, clima, PAC - Política Agrícola Comum, orientação exportadora","",0,"Cultivar20GT4Serrano.pdf","\tA agricultura e o abastecimento alimentarAntónio SerranoProfessor catedrático, CEO, ex-Ministro da Agricultura, do Desenvolvimento Rural e das PescasUniversidade de ÉvoraJerónimo Martins AgroalimentarIPT2020produção de alimentos, modos de produção, sustentabilidade, segurança no abastecimento (food security), segurança sanitária (food safety), biodiversidade, bem-estar animal, clima, PAC - Política Agrícola Comum, orientação exportadora"]
[586,"\tO abastecimento alimentar no mundo a haver",20,45,"Alfredo Cunhal Sendim","Agricultor","Montado do Freixo do Meio","","I","PT","2020","agroecologia, cosmovisão, sistema natural, Modelo CSA/AMAP (Community Supported Agriculture ou Comunidade que Suporta a Agricultura /Associações para a Manutenção da Agricultura de Proximidade), Partilhar as Colheitas","",0,"Cultivar20GT5Sendim.pdf","\tO abastecimento alimentar no mundo a haverAlfredo Cunhal SendimAgricultorMontado do Freixo do MeioIPT2020agroecologia, cosmovisão, sistema natural, Modelo CSA/AMAP (Community Supported Agriculture ou Comunidade que Suporta a Agricultura /Associações para a Manutenção da Agricultura de Proximidade), Partilhar as Colheitas"]
[587,"Novo normal e novas fronteiras",20,53,"Carlos Neves","Agricultor, produtor de leite e secretário-geral da APROLEP","APROLEP – Associação dos Produtores de Leite de Portugal","","I","PT","2020","pandemia, COVID-19, globalização, qualidade, proximidade, PAC - Política Agrícola Comum, mercado único europeu, rotulagem de origem","",0,"Cultivar20GT6Neves.pdf","Novo normal e novas fronteirasCarlos NevesAgricultor, produtor de leite e secretário-geral da APROLEPAPROLEP – Associação dos Produtores de Leite de PortugalIPT2020pandemia, COVID-19, globalização, qualidade, proximidade, PAC - Política Agrícola Comum, mercado único europeu, rotulagem de origem"]
[588,"\tAs insustentabilidades do sistema agroalimentar industrial: sementes de transição",20,61,"Isabel Rodrigo","Professora e investigadora","Instituto Superior de Agronomia, Universidade de Lisboa","","II","PT","2020","perda global de biodiversidade, emissões antropogénicas de gases com efeito de estufa (GEE), segurança alimentar, pandemia, COVID-19","",0,"Cultivar20OBS1Rodrigo.pdf","\tAs insustentabilidades do sistema agroalimentar industrial: sementes de transiçãoIsabel RodrigoProfessora e investigadoraInstituto Superior de Agronomia, Universidade de LisboaIIPT2020perda global de biodiversidade, emissões antropogénicas de gases com efeito de estufa (GEE), segurança alimentar, pandemia, COVID-19"]
[589,"\tO sector das pescas no abastecimento alimentar nacional",20,67,"Antonio Duarte Pinho","Economista e autor","","","II","PT","2020","consumo sustentável, importações, exportações, frota de pesca, balança comercial, globalização, soberania alimentar, sustentabilidade, aquicultura","",0,"Cultivar20OBS2Pinho.pdf","\tO sector das pescas no abastecimento alimentar nacionalAntonio Duarte PinhoEconomista e autorIIPT2020consumo sustentável, importações, exportações, frota de pesca, balança comercial, globalização, soberania alimentar, sustentabilidade, aquicultura"]
[590,"\tO abastecimento alimentar de emergência em Portugal",20,71,"Pedro Castro Rego","Gabinete de Planeamento, Políticas e Administração Geral (GPP)","","","II","PT","2020","segurança dos alimentos, segurança dos abastecimentos, preparação civil, NATO, Planeamento Civil de Emergência, Comissão de Planeamento de Emergência da Agricultura e Alimentação (CPEAA), Sistema Nacional de Planeamento Civil de Emergência (SNPCE)","",0,"Cultivar20OBS3Rego.pdf","\tO abastecimento alimentar de emergência em PortugalPedro Castro RegoGabinete de Planeamento, Políticas e Administração Geral (GPP)IIPT2020segurança dos alimentos, segurança dos abastecimentos, preparação civil, NATO, Planeamento Civil de Emergência, Comissão de Planeamento de Emergência da Agricultura e Alimentação (CPEAA), Sistema Nacional de Planeamento Civil de Emergência (SNPCE)"]
[591,"\tComércio internacional do Complexo Agroflorestal e das Pescas",20,75,"Ana Rita Moura","Gabinete de Planeamento, Políticas e Administração Geral (GPP)","","","II","PT","2020","estatísticas de comércio internacional, nomenclaturas, metodologias, pandemia COVID-19, exportações, importações, saldo da balança comercial, grau de autoaprovisionamento, défice alimentar","",0,"Cultivar20OBS4Moura.pdf","\tComércio internacional do Complexo Agroflorestal e das PescasAna Rita MouraGabinete de Planeamento, Políticas e Administração Geral (GPP)IIPT2020estatísticas de comércio internacional, nomenclaturas, metodologias, pandemia COVID-19, exportações, importações, saldo da balança comercial, grau de autoaprovisionamento, défice alimentar"]
[592,"\tA riqueza das nações",20,97,"Adam Smith","Gabinete de Planeamento, Políticas e Administração Geral (GPP)","João Marques","","IIIB","PT, EN","2020","divisão do trabalho, acumulação e emprego do capital, progresso diferenciado dos países, sistemas de economia política, mão invisível, papel do Estado, liberdade natural (económica)","",0,"Cultivar20LEIT1GPPRiquezaNacoes.pdf","\tA riqueza das naçõesAdam SmithGabinete de Planeamento, Políticas e Administração Geral (GPP)João MarquesIIIBPT, EN2020divisão do trabalho, acumulação e emprego do capital, progresso diferenciado dos países, sistemas de economia política, mão invisível, papel do Estado, liberdade natural (económica)"]
[593,"\tEstratégia do Prado ao Prato para um sistema alimentar justo, saudável e respeitador do ambiente",20,103,"Comissão Europeia","Gabinete de Planeamento, Políticas e Administração Geral (GPP)","Catarina Filipe","","IIIB","PT, EN","2020","sistema alimentar sustentável, redução de pesticidas, agricultura biológica, bem-estar animal","",0,"Cultivar20LEIT2GPPEstrategiaPradoPrato.pdf","\tEstratégia do Prado ao Prato para um sistema alimentar justo, saudável e respeitador do ambienteComissão EuropeiaGabinete de Planeamento, Políticas e Administração Geral (GPP)Catarina FilipeIIIBPT, EN2020sistema alimentar sustentável, redução de pesticidas, agricultura biológica, bem-estar animal"]
[594,"\tA Campanha do Trigo",20,107,"Gabinete de Planeamento, Políticas e Administração Geral (GPP)","Anabela Gameiro",null,"","IIIB","PT","2020","cereais, produção cerealífera, consumo, saldo da balança comercial, assistência técnica, substituição de importações","",0,"Cultivar20LEIT3GPPCampanhaTrigo.pdf","\tA Campanha do TrigoGabinete de Planeamento, Políticas e Administração Geral (GPP)Anabela GameiroIIIBPT2020cereais, produção cerealífera, consumo, saldo da balança comercial, assistência técnica, substituição de importações"]
[595,"\tImplicações políticas da crise do coronavírus para o desenvolvimento rural",20,111,"OCDE","Gabinete de Planeamento, Políticas e Administração Geral (GPP)","Alexandra Lopes","","IIIB","PT, EN","2020","coronavírus, economias rurais,\npadrões de consumo e produção, hábitos de trabalho remotos e formas de mobilidade, desaceleração, medidas de política, COVID-19","",0,"Cultivar20LEIT4GPPOCDECoronavirus.pdf","\tImplicações políticas da crise do coronavírus para o desenvolvimento ruralOCDEGabinete de Planeamento, Políticas e Administração Geral (GPP)Alexandra LopesIIIBPT, EN2020coronavírus, economias rurais,\npadrões de consumo e produção, hábitos de trabalho remotos e formas de mobilidade, desaceleração, medidas de política, COVID-19"]
[610,"Cultivar 21 - Publicação Completa",21,1,"Gabinete de Planeamento, Políticas e Administração Geral (GPP)","","","","","PT","2020","","",0,"Cultivar21.pdf","Cultivar 21 - Publicação CompletaGabinete de Planeamento, Políticas e Administração Geral (GPP)PT2020"]
[597,"Montados, soutos, bouças e outros",21,21,"Henrique Pereira dos Santos","Arquiteto paisagista","","","I","PT","2020","Viriato, fertilidade do solo, A questão cerealífera: o trigo, António Salazar, Lei da Fome, sistema agro-pastoril, paisagem multifuncional, serviços de ecossistema, terras marginais","",0,"Cultivar21GT2PereiraSantos.pdf","Montados, soutos, bouças e outrosHenrique Pereira dos SantosArquiteto paisagistaIPT2020Viriato, fertilidade do solo, A questão cerealífera: o trigo, António Salazar, Lei da Fome, sistema agro-pastoril, paisagem multifuncional, serviços de ecossistema, terras marginais"]
[596,"\tSistemas Agroflorestais – promover a diversidade na tradição e na inovação",21,13,"Joana Amaral Paulo","Docente","Instituto Superior de Agronomia, Universidade de Lisboa (ISA/UL)","Membro do comité executivo da European Agroforestry Federation (EURAF)","I","PT","2020","sistema de elevado valor natural e cultural (high nature and cultural value), sistemas de árvores de elevado valor (high value tree systems), sistema silvoarável, sistema silvopastoril, floresta de alimentos (food forest), conhecimento, SAF, inovação","",0,"Cultivar21GT1AmaralPaulo.pdf","\tSistemas Agroflorestais – promover a diversidade na tradição e na inovaçãoJoana Amaral PauloDocenteInstituto Superior de Agronomia, Universidade de Lisboa (ISA/UL)Membro do comité executivo da European Agroforestry Federation (EURAF)IPT2020sistema de elevado valor natural e cultural (high nature and cultural value), sistemas de árvores de elevado valor (high value tree systems), sistema silvoarável, sistema silvopastoril, floresta de alimentos (food forest), conhecimento, SAF, inovação"]
[602,"Sistemas agroflorestais no território português",21,61,"Rui Trindade","Gabinete de Planeamento, Políticas e Administração Geral (GPP)","","","II","PT","2020","Orlando Ribeiro, 6º Inventário Florestal Nacional (IFN6), CORINE Land Cover 2018, Carta de Ocupação e Uso do Solo 2018, área ardida, SAF","",0,"Cultivar21OBS3Trindade.pdf","Sistemas agroflorestais no território portuguêsRui TrindadeGabinete de Planeamento, Políticas e Administração Geral (GPP)IIPT2020Orlando Ribeiro, 6º Inventário Florestal Nacional (IFN6), CORINE Land Cover 2018, Carta de Ocupação e Uso do Solo 2018, área ardida, SAF"]
[598,"Sistemas agroflorestais em Portugal Continental",21,27,"Francisco Avillez, Miguel Vieira Lopes e Gonçalo Vale","","AGRO.GES","","I","PT","2020","viabilidade económica, sistema agrossilvícola, sistema silvopastoril, sistema agrossilvopastoril, Orientação Técnico-Económica (OTE), Superfície Agrícola Utilizada (SAU), Inquérito às Estruturas das Explorações Agrícolas (IEEA)","",0,"Cultivar21GT3Avillez.pdf","Sistemas agroflorestais em Portugal ContinentalFrancisco Avillez, Miguel Vieira Lopes e Gonçalo ValeAGRO.GESIPT2020viabilidade económica, sistema agrossilvícola, sistema silvopastoril, sistema agrossilvopastoril, Orientação Técnico-Económica (OTE), Superfície Agrícola Utilizada (SAU), Inquérito às Estruturas das Explorações Agrícolas (IEEA)"]
[599,"A dehesa espanhola: breve história, conceptualização e imagem social",21,35,"Rufino Acosta Naranjo e José Ramón Guzmán Álvarez","","Departamento de Antropologia Social, Universidade de Sevilha","Consejería de Agricultura y Medio Ambiente, Junta de Andalucía","I","PT, ES","2020","montado, conceito,  sistema de exploração de base ecológica, sustentabilidade, pecuária, pastorícia, caça, pesca, territórios semi-naturais, remuneração de serviços de ecossistema, crise ambiental, crise económica","",0,"Cultivar21GT4AcostaGuzman.pdf","A dehesa espanhola: breve história, conceptualização e imagem socialRufino Acosta Naranjo e José Ramón Guzmán ÁlvarezDepartamento de Antropologia Social, Universidade de SevilhaConsejería de Agricultura y Medio Ambiente, Junta de AndalucíaIPT, ES2020montado, conceito,  sistema de exploração de base ecológica, sustentabilidade, pecuária, pastorícia, caça, pesca, territórios semi-naturais, remuneração de serviços de ecossistema, crise ambiental, crise económica"]
[600,"A valia económica dos mosaicos agro arborícolas e florestais portugueses – um ensaio de avaliação",21,47,"Joaquim Cabral Rolo","Investigador Coordenador aposentado","Instituto Nacional de Investigação Agrária e Veterinária, I.P. (INIAV)","","II","PT","2020","associação vertical, agroarbóreo, agroflorestal, rural, baixa densidade","",0,"Cultivar21OBS1CabralRolo.pdf","A valia económica dos mosaicos agro arborícolas e florestais portugueses – um ensaio de avaliaçãoJoaquim Cabral RoloInvestigador Coordenador aposentadoInstituto Nacional de Investigação Agrária e Veterinária, I.P. (INIAV)IIPT2020associação vertical, agroarbóreo, agroflorestal, rural, baixa densidade"]
[601,"Sistemas agroflorestais mediterrânicos – um passado com futuro. O caso da Herdade da Machoqueira do Grou",21,57,"António Alberto Gonçalves Ferreira e António Gonçalves Ferreira","Engenheiro Agrónomo e Engenheiro Agrícola, Agricultores","Herdade da Machoqueira do Grou","","II","PT","2020","regadio, montado, pastoreio extensivo, pastagem biodiversa, cortiça, eucalipto, pinheiro, pinha, sobreiro, bovinos, ovinos e caprinos","",0,"Cultivar21OBS2GoncalvesFerreira.pdf","Sistemas agroflorestais mediterrânicos – um passado com futuro. O caso da Herdade da Machoqueira do GrouAntónio Alberto Gonçalves Ferreira e António Gonçalves FerreiraEngenheiro Agrónomo e Engenheiro Agrícola, AgricultoresHerdade da Machoqueira do GrouIIPT2020regadio, montado, pastoreio extensivo, pastagem biodiversa, cortiça, eucalipto, pinheiro, pinha, sobreiro, bovinos, ovinos e caprinos"]
[607,"Subericultura",21,101,"Gabinete de Planeamento, Políticas e Administração Geral (GPP)","João Marques","","","IIIB","PT","2020","sobreiro,  cortiça,  montado,  solo, clima, granjeio, regeneração, economia, legislação, Joaquim Vieira Natividade","",0,"Cultivar21LEIT2VieiraNatividade.pdf","SubericulturaGabinete de Planeamento, Políticas e Administração Geral (GPP)João MarquesIIIBPT2020sobreiro,  cortiça,  montado,  solo, clima, granjeio, regeneração, economia, legislação, Joaquim Vieira Natividade"]
[603,"Montado: singular e plural",21,71,"Teresa Pinto-Correia e Élia Pires-Marques","","MED – Instituto Mediterrâneo para a Agricultura, o Ambiente e o Desenvolvimento, Universidade de Évora","","II","PT","2020","sistema silvo-pastoril, sistema agro-silvo-pastoril, sobcoberto, coberto arbóreo, carvalho, sobreiro, azinheira, pastagens\nmelhoradas ou semeadas, produção pecuária, High Nature Value Farmlands (Terras Agrícolas de Elevado Valor Natural), dehesa","",0,"Cultivar21OBS4CorreiaMarques.pdf","Montado: singular e pluralTeresa Pinto-Correia e Élia Pires-MarquesMED – Instituto Mediterrâneo para a Agricultura, o Ambiente e o Desenvolvimento, Universidade de ÉvoraIIPT2020sistema silvo-pastoril, sistema agro-silvo-pastoril, sobcoberto, coberto arbóreo, carvalho, sobreiro, azinheira, pastagens\nmelhoradas ou semeadas, produção pecuária, High Nature Value Farmlands (Terras Agrícolas de Elevado Valor Natural), dehesa"]
[604,"Os GIAHS e o Barroso, um terreno fértil de investigação e desenvolvimento para o futuro",21,79,"Artur Cristóvão, António Montalvão Machado e António Cerca Miguel","","UTAD – Universidade de Trás-os-Montes e Alto Douro, ADRAT – Associação de Desenvolvimento da Região do Alto Tâmega, GPP – Gabinete de Planeamento, Políticas e Administração Geral","","II","PT","2020","Sistemas Importantes do Património Agrícola Mundial (SIPAM), FAO - Organização das Nações Unidas para a Agricultura e a Alimentação, programa CAMAR, regadio, sistemas tradicionais, resiliência, ecossistema","",0,"Cultivar21OBS5Cristovao.pdf","Os GIAHS e o Barroso, um terreno fértil de investigação e desenvolvimento para o futuroArtur Cristóvão, António Montalvão Machado e António Cerca MiguelUTAD – Universidade de Trás-os-Montes e Alto Douro, ADRAT – Associação de Desenvolvimento da Região do Alto Tâmega, GPP – Gabinete de Planeamento, Políticas e Administração GeralIIPT2020Sistemas Importantes do Património Agrícola Mundial (SIPAM), FAO - Organização das Nações Unidas para a Agricultura e a Alimentação, programa CAMAR, regadio, sistemas tradicionais, resiliência, ecossistema"]
[605,"Os apoios aos sistemas agroflorestais no âmbito da Política Agrícola Comum",21,87,"João Marques","Gabinete de Planeamento, Políticas e Administração Geral (GPP)","","","II","PT","2020","PAC, Pagamentos Diretos, Desenvolvimento Rural, montado, sobreiral, azinhal, lameiro, pastagens naturais de alto valor natural, castanheiro, medidas agroambientais, pastoreio extensivo, sistemas agro-silvo-pastoris, ecossistema","",0,"Cultivar21OBS6Marques.pdf","Os apoios aos sistemas agroflorestais no âmbito da Política Agrícola ComumJoão MarquesGabinete de Planeamento, Políticas e Administração Geral (GPP)IIPT2020PAC, Pagamentos Diretos, Desenvolvimento Rural, montado, sobreiral, azinhal, lameiro, pastagens naturais de alto valor natural, castanheiro, medidas agroambientais, pastoreio extensivo, sistemas agro-silvo-pastoris, ecossistema"]
[606,"Portugal, o Mediterrâneo e o Atlântico. Estudo Geográfico",21,95,"Gabinete de Planeamento, Políticas e Administração Geral (GPP)","Ana Rita Moura","","","IIIB","PT","2020","Orlando Ribeiro, Portugal  rural;  geografia;  Mediterrâneo;  Atlântico;  identidade;  cultura;  paisagem; população rural; agricultura; pesca; plantas agrárias; povoamento","",0,"Cultivar21LEIT1OrlandoRibeiro.pdf","Portugal, o Mediterrâneo e o Atlântico. Estudo GeográficoGabinete de Planeamento, Políticas e Administração Geral (GPP)Ana Rita MouraIIIBPT2020Orlando Ribeiro, Portugal  rural;  geografia;  Mediterrâneo;  Atlântico;  identidade;  cultura;  paisagem; população rural; agricultura; pesca; plantas agrárias; povoamento"]
[609,"Editorial",21,7,"Eduardo Diniz","Diretor-geral","Gabinete de Planeamento, Políticas e Administração Geral (GPP)","","","PT","2020","montado, modelos, componente vertical, componente horizontal, tensões, segmentação funcional, uso do solo, especialização, José Neiva Vieira, tiragem de cortiça, descortiçamento, Vila Nova da Baronia, Alvito, 1942, Junta Nacional da Cortiça","",0,"Cultivar21Editorial.pdf","EditorialEduardo DinizDiretor-geralGabinete de Planeamento, Políticas e Administração Geral (GPP)PT2020montado, modelos, componente vertical, componente horizontal, tensões, segmentação funcional, uso do solo, especialização, José Neiva Vieira, tiragem de cortiça, descortiçamento, Vila Nova da Baronia, Alvito, 1942, Junta Nacional da Cortiça"]
[608,"Os sistemas agroflorestais na União Europeia",21,107,"Gabinete de Planeamento, Políticas e Administração Geral (GPP)","Ana Sofia Sampaio","Parlamento Europeu","","IIIB","PT, EN","2020","sustentabilidade,  reforma  da  PAC, apoios, dehesa, montado, criação de renas","",0,"Cultivar21LEIT3ParlamentoEuropeu.pdf","Os sistemas agroflorestais na União EuropeiaGabinete de Planeamento, Políticas e Administração Geral (GPP)Ana Sofia SampaioParlamento EuropeuIIIBPT, EN2020sustentabilidade,  reforma  da  PAC, apoios, dehesa, montado, criação de renas"]
[{"$f":"+MAX(A2:A333)+1","v":611},"Cultivar 22 - Edição especial (PT)","22a",1,"Gabinete de Planeamento, Políticas e Administração Geral (GPP)",null,null,null,null,"PT",2021,null,null,null,null,"Cultivar 22 - Edição especial (PT)Gabinete de Planeamento, Políticas e Administração Geral (GPP)PT2021"]
[612,"Editorial","22a",7,"Eduardo Diniz","Diretor-geral","Gabinete de Planeamento, Políticas e Administração Geral (GPP)",null,null,null,null,"divulgação, informação, Presidência do Conselho da União Europeia, Artur Pastor, 1956, figueira, Loulé",null,null,null,"EditorialEduardo DinizDiretor-geralGabinete de Planeamento, Políticas e Administração Geral (GPP)divulgação, informação, Presidência do Conselho da União Europeia, Artur Pastor, 1956, figueira, Loulé"]
[613,"Intensificação sustentável: um novo modelo tecnológico na agricultura","22a",15,"José Lima Santos","Professor Catedrático","Instituto Superior de Agronomia","Universidade de Lisboa","I","PT",2021,"desafio alimentar 2050; modelo tecnológico alternativo; serviços de ecossistemas; segurança alimentar; pegada ambiental; produtividade da terra; alterações climáticas; eficiência na utilização de recursos; agricultura de precisão; remuneração de bens",null,null,null,"Intensificação sustentável: um novo modelo tecnológico na agriculturaJosé Lima SantosProfessor CatedráticoInstituto Superior de AgronomiaUniversidade de LisboaIPT2021desafio alimentar 2050; modelo tecnológico alternativo; serviços de ecossistemas; segurança alimentar; pegada ambiental; produtividade da terra; alterações climáticas; eficiência na utilização de recursos; agricultura de precisão; remuneração de bens"]
[614,"A importância da agricultura na preservação da biodiversidade","22a",23,"Francisco Moreira e Ângela Lomba","Investigadores","CIBIO/InBIO – Centro de Investigação em Biodiversidade e Recursos Genéticos, Universidade do Porto; CEABN/InBIO – Centro de Ecologia Aplicada “Professor Baeta Neves”, Instituto Superior de Agronomia, Universidade de Lisboa",null,"I","PT",2021,"intensificação, abandono agrícola, land sparing, land sharing, áreas agrícolas de alto valor natural, paisagem, Diretiva Habitats, conservação",null,null,null,"A importância da agricultura na preservação da biodiversidadeFrancisco Moreira e Ângela LombaInvestigadoresCIBIO/InBIO – Centro de Investigação em Biodiversidade e Recursos Genéticos, Universidade do Porto; CEABN/InBIO – Centro de Ecologia Aplicada “Professor Baeta Neves”, Instituto Superior de Agronomia, Universidade de LisboaIPT2021intensificação, abandono agrícola, land sparing, land sharing, áreas agrícolas de alto valor natural, paisagem, Diretiva Habitats, conservação"]
[615,"Vamos comer o que nos rodeia – e isso é só o início da mudança","22a",29,"Alexandra Prado Coelho","Jornalista","Jornal PÚBLICO",null,"I","PT",2021,"produtores; cozinheiros; chefs; cozinha internacional",null,null,null,"Vamos comer o que nos rodeia – e isso é só o início da mudançaAlexandra Prado CoelhoJornalistaJornal PÚBLICOIPT2021produtores; cozinheiros; chefs; cozinha internacional"]
[616,"Tecnologia e desemprego: já aqui estivemos antes","22a",35,"José Castro Caldas","Investigador","Centro de Estudos Sociais","Universidade de Coimbra","I","PT",2021,"emprego; trabalho; inovação tecnológica; novas tecnologias; desemprego tecnológico",null,null,null,{"$f":"+B339&E339&F339&G339&H339&I339&J339&K339&L339","v":"Tecnologia e desemprego: já aqui estivemos antesJosé Castro CaldasInvestigadorCentro de Estudos SociaisUniversidade de CoimbraIPT2021emprego; trabalho; inovação tecnológica; novas tecnologias; desemprego tecnológico"}]
[617,"Despovoamento em áreas rurais: entre a inevitabilidade e a capacidade de transformação","22a",43,"João Ferrão","Geógrafo, Investigador","Instituto de Ciências Sociais","Universidade de Lisboa","I","PT",2021,"demografia, população rural, resiliência dos territórios, políticas públicas",null,null,null,"Despovoamento em áreas rurais: entre a inevitabilidade e a capacidade de transformaçãoJoão FerrãoGeógrafo, InvestigadorInstituto de Ciências SociaisUniversidade de LisboaIPT2021demografia, população rural, resiliência dos territórios, políticas públicas"]
[618,"PAC pós-2020: melhorar a proteção do ambiente preservando a necessária competitividade da agricultura europeia","22a",50,"Hervé Guyomard, Alix Bell e Cécile Détang-Dessendre",null,"Institut National de la Recherche Agronomique (INRA, INRAE) e Chaire Finagri",null,"I","PT",2021,"Comment mieux prendre en compte la protection de l’environnement dans la PAC de l’après-2020 tout en préservant la nécessaire compétitivité de l'agriculture européenne, reforma da PAC, proteção ambiental, finanças verdes, remuneração de serviços",null,null,null,"PAC pós-2020: melhorar a proteção do ambiente preservando a necessária competitividade da agricultura europeiaHervé Guyomard, Alix Bell e Cécile Détang-DessendreInstitut National de la Recherche Agronomique (INRA, INRAE) e Chaire FinagriIPT2021Comment mieux prendre en compte la protection de l’environnement dans la PAC de l’après-2020 tout en préservant la nécessaire compétitivité de l'agriculture européenne, reforma da PAC, proteção ambiental, finanças verdes, remuneração de serviços"]
[619,"É tempo de nos concentrarmos no que importa: uma agenda para a medição e as políticas","22a",55,"Martine Durand","Copresidente do Grupo de Alto Nível de Especialistas em Avaliação do Desempenho Económico e do Progresso Social","antiga Diretora de Estatísticas da OCDE",null,"I","PT",2021,"bem-estar, progresso social, limitações do PIB, melhoria de vida, novas métricas",null,null,null,"É tempo de nos concentrarmos no que importa: uma agenda para a medição e as políticasMartine DurandCopresidente do Grupo de Alto Nível de Especialistas em Avaliação do Desempenho Económico e do Progresso Socialantiga Diretora de Estatísticas da OCDEIPT2021bem-estar, progresso social, limitações do PIB, melhoria de vida, novas métricas"]
[620,"Sistemas agroflorestais em Portugal continental","22a",63,"Francisco Avillez, Miguel Vieira Lopes e Gonçalo Vale",null,"AGRO.GES",null,"I","PT",2021,"viabilidade económica, sistema agrossilvícola, sistema silvopastoril, sistema agrossilvopastoril, Orientação Técnico-Económica (OTE), Superfície Agrícola Utilizada (SAU), Inquérito às Estruturas das Explorações Agrícolas (IEEA)",null,null,null,"Sistemas agroflorestais em Portugal continentalFrancisco Avillez, Miguel Vieira Lopes e Gonçalo ValeAGRO.GESIPT2021viabilidade económica, sistema agrossilvícola, sistema silvopastoril, sistema agrossilvopastoril, Orientação Técnico-Económica (OTE), Superfície Agrícola Utilizada (SAU), Inquérito às Estruturas das Explorações Agrícolas (IEEA)"]
[621,"Dinâmicas da utilização do solo pela agricultura","22a",73,"Rui Pereira","Diretor de Serviços de Estatística","Gabinete de Planeamento, Políticas e Administração Geral (GPP)",null,"II","PT",2021,"estrutura fundiária; ocupação cultural, Inquérito à Estrutura das Explorações Agrícolas; Recenseamento Agrícola",null,null,null,"Dinâmicas da utilização do solo pela agriculturaRui PereiraDiretor de Serviços de EstatísticaGabinete de Planeamento, Políticas e Administração Geral (GPP)IIPT2021estrutura fundiária; ocupação cultural, Inquérito à Estrutura das Explorações Agrícolas; Recenseamento Agrícola"]
[622,"Evolução económica do setor agroalimentar","22a",90,"Ana Rita Moura",null,"Gabinete de Planeamento, Políticas e Administração Geral (GPP)",null,"II","PT",2021,"valor acrescentado, VAB, economia, Contas Nacionais, Contas Económicas da Agricultura, produção, consumos intermédios, economia agrícola, preços base, produção agrícola",null,null,null,"Evolução económica do setor agroalimentarAna Rita MouraGabinete de Planeamento, Políticas e Administração Geral (GPP)IIPT2021valor acrescentado, VAB, economia, Contas Nacionais, Contas Económicas da Agricultura, produção, consumos intermédios, economia agrícola, preços base, produção agrícola"]
[623,"Evolução da população rural no Continente","22a",101,"Rui Trindade e Manuel Loureiro",null,"Gabinete de Planeamento, Políticas e Administração Geral (GPP)",null,"II","PT",2021,"demografia, indicadores demográficos, IDJ - Índice de Dependência de Jovens, IDI - Índice de Dependência de Idosos, IE - Índice de Envelhecimento, freguesias rurais, zonas rurais, estrutura etária, IDT - Índice de Dependência Total",null,null,null,"Evolução da população rural no ContinenteRui Trindade e Manuel LoureiroGabinete de Planeamento, Políticas e Administração Geral (GPP)IIPT2021demografia, indicadores demográficos, IDJ - Índice de Dependência de Jovens, IDI - Índice de Dependência de Idosos, IE - Índice de Envelhecimento, freguesias rurais, zonas rurais, estrutura etária, IDT - Índice de Dependência Total"]
[624,"Portugal, o Mediterrâneo e o Atlântico. Estudo geográfico","22a",115,"Gabinete de Planeamento, Políticas e Administração Geral (GPP)","Ana Rita Moura","Orlando Ribeiro ",null,"IIIB","PT",2021,"Portugal  rural;  geografia;  Mediterrâneo;  Atlântico;  identidade;  cultura;  paisagem; população rural; agricultura; pesca; plantas agrárias; povoamento",null,null,null,"Portugal, o Mediterrâneo e o Atlântico. Estudo geográficoGabinete de Planeamento, Políticas e Administração Geral (GPP)Ana Rita MouraOrlando Ribeiro IIIBPT2021Portugal  rural;  geografia;  Mediterrâneo;  Atlântico;  identidade;  cultura;  paisagem; população rural; agricultura; pesca; plantas agrárias; povoamento"]
[625,"Cultivar 22 - Special issue (EN)","22b",1,"Gabinete de Planeamento, Políticas e Administração Geral (GPP)",null,null,null,null,"EN",2021,null,null,null,null,"Cultivar 22 - Special issue (EN)Gabinete de Planeamento, Políticas e Administração Geral (GPP)EN2021"]
[626,"Editorial","22b",7,"Eduardo Diniz","Diretor-geral","Gabinete de Planeamento, Políticas e Administração Geral (GPP)",null,null,"EN",2021,"divulgação, informação, Presidência do Conselho da União Europeia",null,null,null,"EditorialEduardo DinizDiretor-geralGabinete de Planeamento, Políticas e Administração Geral (GPP)EN2021divulgação, informação, Presidência do Conselho da União Europeia"]
[627,"Sustainable Intensification: a new technology model in agriculture","22b",15,"José Lima Santos","Professor Catedrático","Instituto Superior de Agronomia","Universidade de Lisboa","I","EN",2021,"desafio alimentar 2050; modelo tecnológico alternativo; serviços de ecossistemas; segurança alimentar; pegada ambiental; produtividade da terra; alterações climáticas; eficiência na utilização de recursos; agricultura de precisão; remuneração de bens",null,null,null,"Sustainable Intensification: a new technology model in agricultureJosé Lima SantosProfessor CatedráticoInstituto Superior de AgronomiaUniversidade de LisboaIEN2021desafio alimentar 2050; modelo tecnológico alternativo; serviços de ecossistemas; segurança alimentar; pegada ambiental; produtividade da terra; alterações climáticas; eficiência na utilização de recursos; agricultura de precisão; remuneração de bens"]
[628,"The importance of agriculture in preserving biodiversity","22b",23,"Francisco Moreira e Ângela Lomba","Investigadores","CIBIO/InBIO – Centro de Investigação em Biodiversidade e Recursos Genéticos, Universidade do Porto; CEABN/InBIO – Centro de Ecologia Aplicada “Professor Baeta Neves”, Instituto Superior de Agronomia, Universidade de Lisboa",null,"I","EN",2021,"intensificação, abandono agrícola, land sparing, land sharing, áreas agrícolas de alto valor natural, paisagem, Diretiva Habitats, conservação",null,null,null,"The importance of agriculture in preserving biodiversityFrancisco Moreira e Ângela LombaInvestigadoresCIBIO/InBIO – Centro de Investigação em Biodiversidade e Recursos Genéticos, Universidade do Porto; CEABN/InBIO – Centro de Ecologia Aplicada “Professor Baeta Neves”, Instituto Superior de Agronomia, Universidade de LisboaIEN2021intensificação, abandono agrícola, land sparing, land sharing, áreas agrícolas de alto valor natural, paisagem, Diretiva Habitats, conservação"]
[629,"Let’s eat what is around us – and that is just the beginning of change","22b",29,"Alexandra Prado Coelho","Jornalista","Jornal PÚBLICO",null,"I","EN",2021,"produtores; cozinheiros; chefs; cozinha internacional",null,null,null,"Let’s eat what is around us – and that is just the beginning of changeAlexandra Prado CoelhoJornalistaJornal PÚBLICOIEN2021produtores; cozinheiros; chefs; cozinha internacional"]
[630,"Technology and unemployment: we have been here before","22b",35,"José Castro Caldas","Investigador","Centro de Estudos Sociais","Universidade de Coimbra","I","EN",2021,"emprego; trabalho; inovação tecnológica; novas tecnologias; desemprego tecnológico",null,null,null,"Technology and unemployment: we have been here beforeJosé Castro CaldasInvestigadorCentro de Estudos SociaisUniversidade de CoimbraIEN2021emprego; trabalho; inovação tecnológica; novas tecnologias; desemprego tecnológico"]
[631,"Depopulation in rural areas: between inevitability and the ability to change","22b",43,"João Ferrão","Geógrafo, Investigador","Instituto de Ciências Sociais","Universidade de Lisboa","I","EN",2021,"demografia, população rural, resiliência dos territórios, políticas públicas",null,null,null,"Depopulation in rural areas: between inevitability and the ability to changeJoão FerrãoGeógrafo, InvestigadorInstituto de Ciências SociaisUniversidade de LisboaIEN2021demografia, população rural, resiliência dos territórios, políticas públicas"]
[632,"CAP post-2020: improving environmental protection while preserving the necessary competitiveness of European agriculture","22b",49,"Hervé Guyomard, Alix Bell e Cécile Détang-Dessendre",null,"Institut National de la Recherche Agronomique (INRA, INRAE) e Chaire Finagri",null,"I","EN",2021,"Comment mieux prendre en compte la protection de l’environnement dans la PAC de l’après-2020 tout en préservant la nécessaire compétitivité de l'agriculture européenne, reforma da PAC, proteção ambiental, finanças verdes, remuneração de serviços",null,null,null,"CAP post-2020: improving environmental protection while preserving the necessary competitiveness of European agricultureHervé Guyomard, Alix Bell e Cécile Détang-DessendreInstitut National de la Recherche Agronomique (INRA, INRAE) e Chaire FinagriIEN2021Comment mieux prendre en compte la protection de l’environnement dans la PAC de l’après-2020 tout en préservant la nécessaire compétitivité de l'agriculture européenne, reforma da PAC, proteção ambiental, finanças verdes, remuneração de serviços"]
[633,"Time to focus on what matters: an agenda for measurement and policy","22b",55,"Martine Durand","Copresidente do Grupo de Alto Nível de Especialistas em Avaliação do Desempenho Económico e do Progresso Social","antiga Diretora de Estatísticas da OCDE",null,"I","EN",2021,"bem-estar, progresso social, limitações do PIB, melhoria de vida, novas métricas",null,null,null,"Time to focus on what matters: an agenda for measurement and policyMartine DurandCopresidente do Grupo de Alto Nível de Especialistas em Avaliação do Desempenho Económico e do Progresso Socialantiga Diretora de Estatísticas da OCDEIEN2021bem-estar, progresso social, limitações do PIB, melhoria de vida, novas métricas"]
[634,"Agroforestry systems in mainland Portugal","22b",63,"Francisco Avillez, Miguel Vieira Lopes e Gonçalo Vale",null,"AGRO.GES",null,"I","EN",2021,"viabilidade económica, sistema agrossilvícola, sistema silvopastoril, sistema agrossilvopastoril, Orientação Técnico-Económica (OTE), Superfície Agrícola Utilizada (SAU), Inquérito às Estruturas das Explorações Agrícolas (IEEA)",null,null,null,"Agroforestry systems in mainland PortugalFrancisco Avillez, Miguel Vieira Lopes e Gonçalo ValeAGRO.GESIEN2021viabilidade económica, sistema agrossilvícola, sistema silvopastoril, sistema agrossilvopastoril, Orientação Técnico-Económica (OTE), Superfície Agrícola Utilizada (SAU), Inquérito às Estruturas das Explorações Agrícolas (IEEA)"]
[635,"Dynamics of agricultural land use in Portugal","22b",73,"Rui Pereira","Diretor de Serviços de Estatística","Gabinete de Planeamento, Políticas e Administração Geral (GPP)",null,"II","EN",2021,"estrutura fundiária; ocupação cultural, Inquérito à Estrutura das Explorações Agrícolas; Recenseamento Agrícola",null,null,null,"Dynamics of agricultural land use in PortugalRui PereiraDiretor de Serviços de EstatísticaGabinete de Planeamento, Políticas e Administração Geral (GPP)IIEN2021estrutura fundiária; ocupação cultural, Inquérito à Estrutura das Explorações Agrícolas; Recenseamento Agrícola"]
[636,"The Agroforestry Complex in the Portuguese Economy – 2020","22b",89,"Ana Rita Moura",null,"Gabinete de Planeamento, Políticas e Administração Geral (GPP)",null,"II","EN",2021,"valor acrescentado, VAB, economia, Contas Nacionais, Contas Económicas da Agricultura, produção, consumos intermédios, economia agrícola, preços base, produção agrícola",null,null,null,"The Agroforestry Complex in the Portuguese Economy – 2020Ana Rita MouraGabinete de Planeamento, Políticas e Administração Geral (GPP)IIEN2021valor acrescentado, VAB, economia, Contas Nacionais, Contas Económicas da Agricultura, produção, consumos intermédios, economia agrícola, preços base, produção agrícola"]
[637,"Rural population in mainland Portugal","22b",101,"Rui Trindade e Manuel Loureiro",null,"Gabinete de Planeamento, Políticas e Administração Geral (GPP)",null,"II","EN",2021,"demografia, indicadores demográficos, IDJ - Índice de Dependência de Jovens, IDI - Índice de Dependência de Idosos, IE - Índice de Envelhecimento, freguesias rurais, zonas rurais, estrutura etária, IDT - Índice de Dependência Total",null,null,null,"Rural population in mainland PortugalRui Trindade e Manuel LoureiroGabinete de Planeamento, Políticas e Administração Geral (GPP)IIEN2021demografia, indicadores demográficos, IDJ - Índice de Dependência de Jovens, IDI - Índice de Dependência de Idosos, IE - Índice de Envelhecimento, freguesias rurais, zonas rurais, estrutura etária, IDT - Índice de Dependência Total"]
[638,"Portugal, the Mediterranean and the Atlantic: A geographical study","22b",115,"Gabinete de Planeamento, Políticas e Administração Geral (GPP)","Ana Rita Moura","Orlando Ribeiro ",null,"IIIB","EN",2021,"Portugal  rural;  geografia;  Mediterrâneo;  Atlântico;  identidade;  cultura;  paisagem; população rural; agricultura; pesca; plantas agrárias; povoamento",null,null,null,"Portugal, the Mediterranean and the Atlantic: A geographical studyGabinete de Planeamento, Políticas e Administração Geral (GPP)Ana Rita MouraOrlando Ribeiro IIIBEN2021Portugal  rural;  geografia;  Mediterrâneo;  Atlântico;  identidade;  cultura;  paisagem; população rural; agricultura; pesca; plantas agrárias; povoamento"]
[639,"Cultivar 23 - Impactos agroambientais: metodologias de quantificação e valorização económica",23,1,"Gabinete de Planeamento, Políticas e Administração Geral (GPP)",null,null,null,null,"PT",2021,null,null,null,null,"Cultivar 23 - Impactos agroambientais: metodologias de quantificação e valorização económicaGabinete de Planeamento, Políticas e Administração Geral (GPP)PT2021"]
[640,"Editorial",23,7,"Eduardo Diniz","Diretor-geral","Gabinete de Planeamento, Políticas e Administração Geral (GPP)",null,null,"PT",2021,"práticas agrícolas, políticas públicas, PAC, Joint Research Center (JRC), Pacto ecológico Europeu (Green Deal); estratégia do Prado ao Prato",null,null,null,"EditorialEduardo DinizDiretor-geralGabinete de Planeamento, Políticas e Administração Geral (GPP)PT2021práticas agrícolas, políticas públicas, PAC, Joint Research Center (JRC), Pacto ecológico Europeu (Green Deal); estratégia do Prado ao Prato"]
[641,"Rendimento agrícola na agricultura europeia: novas perspetivas sobre medição e implicações para a avaliação das políticas",23,13,"Robert Finger e Nadja El Benni",null,"ETH Zürich (Instituto Federal de Tecnologia de Zurique) e Agroscope, Ettenhausen, Suíça",null,"I","PT, EN",2021,"agregado familiar agrícola, consumo das famílias, bem-estar económico e social, viabilidade económica, variabilidade, risco, desigualdade",null,null,null,"Rendimento agrícola na agricultura europeia: novas perspetivas sobre medição e implicações para a avaliação das políticasRobert Finger e Nadja El BenniETH Zürich (Instituto Federal de Tecnologia de Zurique) e Agroscope, Ettenhausen, SuíçaIPT, EN2021agregado familiar agrícola, consumo das famílias, bem-estar económico e social, viabilidade económica, variabilidade, risco, desigualdade"]
[642,"Regras da OMC: uma restrição excessiva à definição da política agroambiental e climática da UE?",23,25,"Alan Matthews",null,"Trinity College Dublin, Irlanda",null,"I","PT, EN",2021,"medidas agroambientais e climáticas (MAAC), eco-regimes, PAC, financiamento, flexibilidade, princípio da compensação, Caixa Verde, pagamentos por valor, serviços de ecossistema",null,null,null,"Regras da OMC: uma restrição excessiva à definição da política agroambiental e climática da UE?Alan MatthewsTrinity College Dublin, IrlandaIPT, EN2021medidas agroambientais e climáticas (MAAC), eco-regimes, PAC, financiamento, flexibilidade, princípio da compensação, Caixa Verde, pagamentos por valor, serviços de ecossistema"]
[643,"Avaliar os efeitos climáticos de medidas de política agrícola",23,33,"Paulo Canaveira","Consultor sénior","Agência Portuguesa do Ambiente (APA)",null,"I","PT",2021,"PAC, redução de emissões de GEE, Roteiro para a Neutralidade Carbónica, sequestro de carbono, políticas climáticas, Inventário Nacional de Emissões, impacto das políticas, monitorização, avaliação",null,null,null,"Avaliar os efeitos climáticos de medidas de política agrícolaPaulo CanaveiraConsultor séniorAgência Portuguesa do Ambiente (APA)IPT2021PAC, redução de emissões de GEE, Roteiro para a Neutralidade Carbónica, sequestro de carbono, políticas climáticas, Inventário Nacional de Emissões, impacto das políticas, monitorização, avaliação"]
[644,"Pastagens permanentes de sequeiro em Portugal: uma abordagem à avaliação, quantificação e valoração económica dos impactos ambientais e serviços de ecossistema",23,39,"Tiago Domingos, Nuno Sarmento, Carlos MGL Teixeira, Cristina Marta-Pedroso, Ivo Gama, Lia Laporta, Marjan Jongen, Nuno Rodrigues, Ricardo F. M. Teixeira, Tatiana Valada, Tiago G. Morais e Vânia Proença",null,"Instituto Superior Técnico (IST) e Terraprima",null,"I","PT",2021,"biodiversidade,  produção de gado para carne e leite, Pastagem Permanente Semeada Biodiversa e Rica em Leguminosas, produção animal, sistema extensivo, sistema intensivo, impactos ambientais, serviços de ecossistema",null,null,null,"Pastagens permanentes de sequeiro em Portugal: uma abordagem à avaliação, quantificação e valoração económica dos impactos ambientais e serviços de ecossistemaTiago Domingos, Nuno Sarmento, Carlos MGL Teixeira, Cristina Marta-Pedroso, Ivo Gama, Lia Laporta, Marjan Jongen, Nuno Rodrigues, Ricardo F. M. Teixeira, Tatiana Valada, Tiago G. Morais e Vânia ProençaInstituto Superior Técnico (IST) e TerraprimaIPT2021biodiversidade,  produção de gado para carne e leite, Pastagem Permanente Semeada Biodiversa e Rica em Leguminosas, produção animal, sistema extensivo, sistema intensivo, impactos ambientais, serviços de ecossistema"]
[645,"A agricultura de conservação e os seus impactos: experiências com algumas metodologias de avaliação utilizando indicadores",23,53,"Manuel Gómez Ariza e Óscar Veroz González",null,"Asociación Española Agricultura de Conservación – Suelos Vivos (AEAC-SV), IFAPA, Espanha",null,"II","PT, ES",2021,"impactos da agricultura, aspetos ambientais sociais, económicos, sustentabilidade",null,null,null,"A agricultura de conservação e os seus impactos: experiências com algumas metodologias de avaliação utilizando indicadoresManuel Gómez Ariza e Óscar Veroz GonzálezAsociación Española Agricultura de Conservación – Suelos Vivos (AEAC-SV), IFAPA, EspanhaIIPT, ES2021impactos da agricultura, aspetos ambientais sociais, económicos, sustentabilidade"]
[646,"A produção animal e o desafio da sustentabilidade",23,61,"Olga Moreira e José Santos Silva",null,"Estação Zootécnica Nacional, INIAV I.P",null,"II","PT",2021,"ruminantes, produção animal, redução de emissões, Unidade GreenFeed, gestão de estrumes/efluentes de pecuária",null,null,null,"A produção animal e o desafio da sustentabilidadeOlga Moreira e José Santos SilvaEstação Zootécnica Nacional, INIAV I.PIIPT2021ruminantes, produção animal, redução de emissões, Unidade GreenFeed, gestão de estrumes/efluentes de pecuária"]
[647,"Estatísticas agroambientais na União Europeia e em Portugal, no contexto do Pacto Ecológico Europeu (Green Deal)",23,67,"Carlos Carvalho",null,null,null,"II","PT",2021,"indicadores agroambientais, Sistema de Informação Estatística, redução de emissões de GEE, fertilidade do solo, redução de pesticidas, indicadores, agricultura biológica, fertilizantes inorgânicos, balanços de nutrientes, produtos fitofarmacêuticos, fitofármacos",null,null,null,"Estatísticas agroambientais na União Europeia e em Portugal, no contexto do Pacto Ecológico Europeu (Green Deal)Carlos CarvalhoIIPT2021indicadores agroambientais, Sistema de Informação Estatística, redução de emissões de GEE, fertilidade do solo, redução de pesticidas, indicadores, agricultura biológica, fertilizantes inorgânicos, balanços de nutrientes, produtos fitofarmacêuticos, fitofármacos"]
[648,"Metodologias de avaliação das interações entre humanos e ambiente",23,79,"João Reis",null,"Gabinete de Planeamento, Políticas e Administração Geral (GPP)",null,"II","PT",2021,"serviços de ecossistemas, serviços das paisagens, funções das paisagens,  uso do solo, funções do solo",null,null,null,"Metodologias de avaliação das interações entre humanos e ambienteJoão ReisGabinete de Planeamento, Políticas e Administração Geral (GPP)IIPT2021serviços de ecossistemas, serviços das paisagens, funções das paisagens,  uso do solo, funções do solo"]
[649,"Estratégia do Prado ao Prato – A conversão da Rede de Informação de Contabilidades Agrícolas em Rede de Informação de Sustentabilidade Agrícola",23,85,"Cristiana Vaz",null,"Gabinete de Planeamento, Políticas e Administração Geral (GPP)",null,"II","PT",2021,"alterações climáticas, PAC, Pacto Ecológico Europeu (Green Deal), recolha de dados, novos indicadores, sustentabilidade, novas variáveis",null,null,null,"Estratégia do Prado ao Prato – A conversão da Rede de Informação de Contabilidades Agrícolas em Rede de Informação de Sustentabilidade AgrícolaCristiana VazGabinete de Planeamento, Políticas e Administração Geral (GPP)IIPT2021alterações climáticas, PAC, Pacto Ecológico Europeu (Green Deal), recolha de dados, novos indicadores, sustentabilidade, novas variáveis"]
[650,"Proposta de Regulamento dos Planos Estratégicos da PAC e os Indicadores Comuns de Impacto/ Contexto",23,91,"Ana Rita Moura e Ana Teresa Silva","Gabinete de Planeamento, Políticas e Administração Geral (GPP)",null,null,"IIIB","PT",2021,"Plano Estratégico da PAC (PEPAC); monitorização; indicadores comuns de desempenho; indicadores de impacto/contexto; modelo de desempenho; Quadro Comum de Acompanhamento e Avaliação (CMEF); Quadro de Acompanhamento e Avaliação de Desempenho (PMEF); orientação para resultados; Pacto Ecológico Europeu; ambição climática ambienta ",null,null,null,"Proposta de Regulamento dos Planos Estratégicos da PAC e os Indicadores Comuns de Impacto/ ContextoAna Rita Moura e Ana Teresa SilvaGabinete de Planeamento, Políticas e Administração Geral (GPP)IIIBPT2021Plano Estratégico da PAC (PEPAC); monitorização; indicadores comuns de desempenho; indicadores de impacto/contexto; modelo de desempenho; Quadro Comum de Acompanhamento e Avaliação (CMEF); Quadro de Acompanhamento e Avaliação de Desempenho (PMEF); orientação para resultados; Pacto Ecológico Europeu; ambição climática ambienta "]
[651,"Análise das ligações entre a Reforma da PAC e o Pacto Ecológico Europeu",23,103,"João Marques","Gabinete de Planeamento, Políticas e Administração Geral (GPP)",null,null,"IIIB","PT",2021,"Pacto Ecológico Europeu; Reforma da PAC; Plano Estratégico da PAC (PEPAC); ambição ambiental e climática; nova condicionalidade reforçada; eco-regimes; limites orçamentais; informação e indicadores",null,null,null,"Análise das ligações entre a Reforma da PAC e o Pacto Ecológico EuropeuJoão MarquesGabinete de Planeamento, Políticas e Administração Geral (GPP)IIIBPT2021Pacto Ecológico Europeu; Reforma da PAC; Plano Estratégico da PAC (PEPAC); ambição ambiental e climática; nova condicionalidade reforçada; eco-regimes; limites orçamentais; informação e indicadores"]
[652,"O futuro da pecuária na UE: como contribuir para um setor agrícola sustentável?",23,107,"João Marques","Gabinete de Planeamento, Políticas e Administração Geral (GPP)",null,null,"IIIB","PT",2021,"importância económica, ambiental e social da pecuária; diversidade; recursos; clima; biodiversidade; avaliação; bem-estar animal; saúde; sustentabilidade; restabelecimento da ligação à produção vegetal; eficiência; substituição; sinergias; economia circular; redução do consumo de carne; políticas públicas",null,null,null,"O futuro da pecuária na UE: como contribuir para um setor agrícola sustentável?João MarquesGabinete de Planeamento, Políticas e Administração Geral (GPP)IIIBPT2021importância económica, ambiental e social da pecuária; diversidade; recursos; clima; biodiversidade; avaliação; bem-estar animal; saúde; sustentabilidade; restabelecimento da ligação à produção vegetal; eficiência; substituição; sinergias; economia circular; redução do consumo de carne; políticas públicas"]
[653,"Iniciativa Quatro por mil, a importância do solo",23,113,"Ana Sofia Sampaio","Gabinete de Planeamento, Políticas e Administração Geral (GPP)",null,null,"IIIB","PT",2021,"solo, conservação, recuperação, sequestro de carbono, alterações climáticas, mitigação, agrofloresta",null,null,null,"Iniciativa Quatro por mil, a importância do soloAna Sofia SampaioGabinete de Planeamento, Políticas e Administração Geral (GPP)IIIBPT2021solo, conservação, recuperação, sequestro de carbono, alterações climáticas, mitigação, agrofloresta"]
[654,"Cultivar 24 - A vinha e o vinho",24,1,"Gabinete de Planeamento, Políticas e Administração Geral (GPP)",null,null,null,null,"PT",2021,null,null,null,null,"Cultivar 24 - A vinha e o vinhoGabinete de Planeamento, Políticas e Administração Geral (GPP)PT2021"]
[655,"Editorial",24,7,"Eduardo Diniz","Diretor-geral","Gabinete de Planeamento, Políticas e Administração Geral (GPP)",null,null,"PT",2021,"vinha, vinho, comércio internacional, globalização, terroir, paradoxo francês, fitófarmaco, aditivo",null,null,null,"EditorialEduardo DinizDiretor-geralGabinete de Planeamento, Políticas e Administração Geral (GPP)PT2021vinha, vinho, comércio internacional, globalização, terroir, paradoxo francês, fitófarmaco, aditivo"]
[656,"O setor vitivinícola europeu e os desafios da sustentabilidade",24,15,"João Onofre","Chefe da Unidade dos Vinhos, Bebidas Espirituosas e Hortícolas","Comissão Europeia",null,"I","PT",2021,"qualidade, certificação, sustentabilidade, ambiente, casta, mercado, alterações climáticas, tendências de consumo, U-Label",null,null,null,"O setor vitivinícola europeu e os desafios da sustentabilidadeJoão OnofreChefe da Unidade dos Vinhos, Bebidas Espirituosas e HortícolasComissão EuropeiaIPT2021qualidade, certificação, sustentabilidade, ambiente, casta, mercado, alterações climáticas, tendências de consumo, U-Label"]
[657,"As falhas de mercado na fileira do vinho",24,23,"Francisco Toscano Rico","Presidente","Comissão Vitivinícola da Região de Lisboa (CVRL)",null,"I","PT",2021,"falta de equidade, distribuição de valor, cadeia de valor, distorção de mercado, premiunização, diferenciação, HoReCa, PARCA, previsibilidade, taxa, restauração",null,null,null,"As falhas de mercado na fileira do vinhoFrancisco Toscano RicoPresidenteComissão Vitivinícola da Região de Lisboa (CVRL)IPT2021falta de equidade, distribuição de valor, cadeia de valor, distorção de mercado, premiunização, diferenciação, HoReCa, PARCA, previsibilidade, taxa, restauração"]
[658,"O legítimo lugar do vinho na sociedade",24,31,"George Sandeman",null,"Ex Ampulla",null,"I","PT, EN",2021,"ambiente, economia, pilar social, sustentabilidade, álcool e saúde, Vinho com Moderação, U-Label, Dieta Mediterrânica, enoturismo, gastronomia, ciência",null,null,null,"O legítimo lugar do vinho na sociedadeGeorge SandemanEx AmpullaIPT, EN2021ambiente, economia, pilar social, sustentabilidade, álcool e saúde, Vinho com Moderação, U-Label, Dieta Mediterrânica, enoturismo, gastronomia, ciência"]
[659,"Porto Protocol: do Porto para o mundo, a catalisar a ação climática no mundo dos vinhos",24,39,"Marta Mendonça e Cristina Crava",null,"The Porto Protocol",null,"I","PT",2021,"Climate Change Leadership, crise climática, ação climática, partilha colaborativa, alterações climáticas, impacto, tendências, pegada de carbono",null,null,null,"Porto Protocol: do Porto para o mundo, a catalisar a ação climática no mundo dos vinhosMarta Mendonça e Cristina CravaThe Porto ProtocolIPT2021Climate Change Leadership, crise climática, ação climática, partilha colaborativa, alterações climáticas, impacto, tendências, pegada de carbono"]
[660,"O setor vitivinícola nacional e a estratégia de aplicação dos instrumentos de política europeus",24,47,"Bernardo Gouvêa","Presidente","Instituto da Vinha e do Vinho, I.P. (IVV)",null,"II","PT",2021,"Programa Nacional de Apoio para o Setor Vitivinícola (PNASV), Plano Estratégico da PAC (PEPAC), Reestruturação e Reconversão das Vinhas, promoção, VITIS, OCM vinho, região vitivinícola, reforma institucional, sustentabilidade",null,null,null,"O setor vitivinícola nacional e a estratégia de aplicação dos instrumentos de política europeusBernardo GouvêaPresidenteInstituto da Vinha e do Vinho, I.P. (IVV)IIPT2021Programa Nacional de Apoio para o Setor Vitivinícola (PNASV), Plano Estratégico da PAC (PEPAC), Reestruturação e Reconversão das Vinhas, promoção, VITIS, OCM vinho, região vitivinícola, reforma institucional, sustentabilidade"]
[661,"Perspetivas: 3 perguntas a 5 “atores”",24,53,"Virgílio Loureiro, Leonor Freitas, Jaime Quendera, Maria Vicente e Pedro Hipólito",null,"Casa Ermelinda Freitas, Herdade da Mingorra",null,"II","PT",2021,"novas tendências de consumo, civilização, saúde, mercado, vinhos DOC, DOP, IGP, tecnologia, inovação, biodiversidade, sustentabilidade técnica,",null,null,null,"Perspetivas: 3 perguntas a 5 “atores”Virgílio Loureiro, Leonor Freitas, Jaime Quendera, Maria Vicente e Pedro HipólitoCasa Ermelinda Freitas, Herdade da MingorraIIPT2021novas tendências de consumo, civilização, saúde, mercado, vinhos DOC, DOP, IGP, tecnologia, inovação, biodiversidade, sustentabilidade técnica,"]
[662,"Vinho do Porto – oportunidades e desafios",24,63,"Carlos Brito","Presidente","Observatório do Vinho do Porto",null,"II","PT",2021,"tradição, inovação, valorização, Douro, experiência, novas tendências de consumo, marca",null,null,null,"Vinho do Porto – oportunidades e desafiosCarlos BritoPresidenteObservatório do Vinho do PortoIIPT2021tradição, inovação, valorização, Douro, experiência, novas tendências de consumo, marca"]
[663,"A importância das Denominações de Origem e Indicações Geográficas",24,67,"Henrique Soares e Pedro Castro Rego",null,"Comissão Vitivinícola Regional da Península de Setúbal (CVRPS), Gabinete de Planeamento, Políticas e Administração Geral (GPP)",null,"II","PT",2021,"União Europeia, delimitação, demarcação, Organização Internacional da Vinha e do Vinho (OIV), solo, valorização",null,null,null,"A importância das Denominações de Origem e Indicações GeográficasHenrique Soares e Pedro Castro RegoComissão Vitivinícola Regional da Península de Setúbal (CVRPS), Gabinete de Planeamento, Políticas e Administração Geral (GPP)IIPT2021União Europeia, delimitação, demarcação, Organização Internacional da Vinha e do Vinho (OIV), solo, valorização"]
[664,"Diversidade intravarietal das castas antigas de videira: base de estabilidade ambiental e instrumento de adaptação à mudança",24,71,"Antero Martins e Elsa Gonçalves",null,"Instituto Superior de Agronomia (ISA)",null,"II","PT",2021,"ADN, clone, marcador molecular, gene, mutação, diversidade, oídio, míldio, casta autóctone, diversidade intervarietal, videira silvestre, domesticação",null,null,null,"Diversidade intravarietal das castas antigas de videira: base de estabilidade ambiental e instrumento de adaptação à mudançaAntero Martins e Elsa GonçalvesInstituto Superior de Agronomia (ISA)IIPT2021ADN, clone, marcador molecular, gene, mutação, diversidade, oídio, míldio, casta autóctone, diversidade intervarietal, videira silvestre, domesticação"]
[665,"O tempo do cooperativismo vinícola em Portugal",24,77,"António Cerca Miguel",null,"Gabinete de Planeamento, Políticas e Administração Geral (GPP)",null,"II","PT",2021,"Planificação, Rede de Adegas Cooperativas, Junta Nacional do Vinho (JNV), armazenagem de vinhos, distância das vinhas à adega, capacidade instalada, fundo",null,null,null,"O tempo do cooperativismo vinícola em PortugalAntónio Cerca MiguelGabinete de Planeamento, Políticas e Administração Geral (GPP)IIPT2021Planificação, Rede de Adegas Cooperativas, Junta Nacional do Vinho (JNV), armazenagem de vinhos, distância das vinhas à adega, capacidade instalada, fundo"]
[666,"Os anos da adesão à CEE",24,87,"Pedro Castro Rego",null,"Gabinete de Planeamento, Políticas e Administração Geral (GPP)",null,"II","PT",2021,"condicionantes, vinhos licorosos, serviço de informação de mercados, COM, Reestruturação e Reconversão das Vinhas, abandono",null,null,null,"Os anos da adesão à CEEPedro Castro RegoGabinete de Planeamento, Políticas e Administração Geral (GPP)IIPT2021condicionantes, vinhos licorosos, serviço de informação de mercados, COM, Reestruturação e Reconversão das Vinhas, abandono"]
[667,"A sustentabilidade dos Vinhos do Alentejo",24,95,"João Luís Barroso",null,null,null,"IIIB","PT",2021,"produção sustentável, gestão de recursos naturais, boas práticas, viabilidade económica, biodiversidade, qualidade, certificação",null,null,null,"A sustentabilidade dos Vinhos do AlentejoJoão Luís BarrosoIIIBPT2021produção sustentável, gestão de recursos naturais, boas práticas, viabilidade económica, biodiversidade, qualidade, certificação"]
[668,"Prevenção do consumo nocivo de álcool: políticas públicas e possíveis impactos na indústria",24,99,"Francisca Marçal \nSantos","Gabinete de Planeamento, Políticas e Administração Geral (GPP)",null,null,"IIIB","PT",2021,"álcool, consumo nocivo, saúde pública, políticas públicas, impactos na indústria",null,null,null,"Prevenção do consumo nocivo de álcool: políticas públicas e possíveis impactos na indústriaFrancisca Marçal \nSantosGabinete de Planeamento, Políticas e Administração Geral (GPP)IIIBPT2021álcool, consumo nocivo, saúde pública, políticas públicas, impactos na indústria"]
[669,"A verdade do vinho",24,105,"Ana Sofia Sampaio","Gabinete de Planeamento, Políticas e Administração Geral (GPP)",null,null,"IIIB","PT",2021,"vinho natural, sustentabilidade, aditivos químicos, enologia, inovação",null,null,null,"A verdade do vinhoAna Sofia SampaioGabinete de Planeamento, Políticas e Administração Geral (GPP)IIIBPT2021vinho natural, sustentabilidade, aditivos químicos, enologia, inovação"]
[670,"Plano estratégico da Wine Australia para o setor vitivinícola",24,111,"Pedro Castro Rego","Gabinete de Planeamento, Políticas e Administração Geral (GPP)",null,null,"IIIB","PT",2021,"estratégia, comercialização, exportação, vinho, preço, sustentabilidade",null,null,null,"Plano estratégico da Wine Australia para o setor vitivinícolaPedro Castro RegoGabinete de Planeamento, Políticas e Administração Geral (GPP)IIIBPT2021estratégia, comercialização, exportação, vinho, preço, sustentabilidade"]
[671,"The Wine Show",24,113,"Gabinete de Planeamento, Políticas e Administração Geral (GPP)","Ana Sofia Sampaio e Pedro Castro Rego",null,null,"IIIB","PT",2021,"vídeo, vinho, divulgação, promoção, comunicação de massas, opinion maker",null,null,null,"The Wine ShowGabinete de Planeamento, Políticas e Administração Geral (GPP)Ana Sofia Sampaio e Pedro Castro RegoIIIBPT2021vídeo, vinho, divulgação, promoção, comunicação de massas, opinion maker"]
[672,"O Portugal vinícola, levantamento das castas nacionais",24,115,"Gabinete de Planeamento, Políticas e Administração Geral (GPP)","Ana Sofia Sampaio",null,null,"IIIB","PT",2021,"vinha, vinho, casta, autóctone, viticultura, vitivinicultura, região vitivinícola",null,null,null,"O Portugal vinícola, levantamento das castas nacionaisGabinete de Planeamento, Políticas e Administração Geral (GPP)Ana Sofia SampaioIIIBPT2021vinha, vinho, casta, autóctone, viticultura, vitivinicultura, região vitivinícola"]
[673,"Confrarias Báquicas",24,117,"Pedro Castro Rego",null,null,null,"IIIB","PT",2021,"associação, promoção, região, país, vinho, enoturismo, gastronomia",null,null,null,"Confrarias BáquicasPedro Castro RegoIIIBPT2021associação, promoção, região, país, vinho, enoturismo, gastronomia"]
[674,"Cultivar 25 - Investimento na agricultura",24,1,"Gabinete de Planeamento, Políticas e Administração Geral (GPP)",null,null,null,null,"PT",2022,null,null,null,null,{"$f":"+B397&E397&F397&G397&H397&I397&J397&K397&L397","v":"Cultivar 25 - Investimento na agriculturaGabinete de Planeamento, Políticas e Administração Geral (GPP)PT2022"}]
[{"$f":"+MAX(A66:A397)+1","v":675},"Editorial",25,7,"Eduardo Diniz","Diretor-geral","Gabinete de Planeamento, Políticas e Administração Geral (GPP)",null,null,"PT",2022,"incentivo ao investimento, produtividade do capital fixo, falhas de mercado, restruturação do perfil de investimentos, consumos intermédios",null,null,null,"EditorialEduardo DinizDiretor-geralGabinete de Planeamento, Políticas e Administração Geral (GPP)PT2022incentivo ao investimento, produtividade do capital fixo, falhas de mercado, restruturação do perfil de investimentos, consumos intermédios"]
[676,"O investimento na agricultura",25,13,"Bruno Dimas e Ana Rita Moura","Subdiretor-geral","Gabinete de Planeamento, Políticas e Administração Geral (GPP)",null,"I","PT",2022,"Formação Bruta de Capital Fixo (FBCF), custos de produção, estrutura do investimento, Consumos intermédios, eficiência, VAB, apoio ao investimento, intervenção pública, falhas de mercado, externalidades, assimetrias de informação",null,null,null,"O investimento na agriculturaBruno Dimas e Ana Rita MouraSubdiretor-geralGabinete de Planeamento, Políticas e Administração Geral (GPP)IPT2022Formação Bruta de Capital Fixo (FBCF), custos de produção, estrutura do investimento, Consumos intermédios, eficiência, VAB, apoio ao investimento, intervenção pública, falhas de mercado, externalidades, assimetrias de informação"]
[677,"Investimento e terciarização da agricultura em Portugal",25,29,"Ana Filipa Fernandes e Guilherme Azambuja",null,"Centro de Competências de Planeamento, de Políticas e de Prospetiva da Administração Pública (PlanAPP)",null,"I","PT",2022,"contratação externa, consumos\nintermédios, VAB, outsourcing\nde maquinaria, produtividade aparente ",null,null,null,"Investimento e terciarização da agricultura em PortugalAna Filipa Fernandes e Guilherme AzambujaCentro de Competências de Planeamento, de Políticas e de Prospetiva da Administração Pública (PlanAPP)IPT2022contratação externa, consumos\nintermédios, VAB, outsourcing\nde maquinaria, produtividade aparente "]
[678,"Apoios ao investimento da PAC",25,43,"José Martino","Cidadão, engenheiro agrónomo",null,null,"I","PT",2022,"incentivos financeiros, ajuda financeira, investimento na exploração agrícola, plano de investimento ",null,null,null,"Apoios ao investimento da PACJosé MartinoCidadão, engenheiro agrónomoIPT2022incentivos financeiros, ajuda financeira, investimento na exploração agrícola, plano de investimento "]
[679,"Alimentar o futuro: panorâmica do investimento em curso",25,49,"Francesco Castellano, Riccardo Pignatti e Letizia Ingaldo",null,"Tondo",null,"I","PT",2022,"tecnologias agroalimentares, urbanização, produtividade agrícola, eficiência, perdas alimentares, agrotecnologia, biotecnologia agrícola, agricultura de precisão, proteínas alternativas sustentáveis, agricultura vertical, robótica, digitalização, Big Data, sensores, automação, genética",null,null,null,"Alimentar o futuro: panorâmica do investimento em cursoFrancesco Castellano, Riccardo Pignatti e Letizia IngaldoTondoIPT2022tecnologias agroalimentares, urbanização, produtividade agrícola, eficiência, perdas alimentares, agrotecnologia, biotecnologia agrícola, agricultura de precisão, proteínas alternativas sustentáveis, agricultura vertical, robótica, digitalização, Big Data, sensores, automação, genética"]
[680,"A transformação digital na agricultura",25,69,"Luís Barreiros",null,"Gabinete de Planeamento, Políticas e Administração Geral (GPP)",null,"II","PT",2022,"Estratégia de Digitalização, barreiras, competências digitais",null,null,null,"A transformação digital na agriculturaLuís BarreirosGabinete de Planeamento, Políticas e Administração Geral (GPP)IIPT2022Estratégia de Digitalização, barreiras, competências digitais"]
[681,"Investimento e outras questões na gestão agrícola ",25,75,"Joaquim Pedro Torres","Diretor-geral","Valinveste – Investimentos e Gestão Agrícola, Lda. e Agroglobal",null,"II","PT",2022,"modelo de negócio, tecnologias remotas, sensores, inovação, irradiação solar, precipitação, conhecimento, gráfico termopluviométrico, água, sol, energia",null,null,null,"Investimento e outras questões na gestão agrícola Joaquim Pedro TorresDiretor-geralValinveste – Investimentos e Gestão Agrícola, Lda. e AgroglobalIIPT2022modelo de negócio, tecnologias remotas, sensores, inovação, irradiação solar, precipitação, conhecimento, gráfico termopluviométrico, água, sol, energia"]
[682,"Não basta investir, é necessário ter uma ideia de investimento",25,83,"João Crisóstomo","Empresário frutícola e consultor",null,null,"II","PT",2022,"instalação de pomares, apoio ao investimento, Alcobaça, Organização de Produtores (OP), frutos frescos, produtividade",null,null,null,"Não basta investir, é necessário ter uma ideia de investimentoJoão CrisóstomoEmpresário frutícola e consultorIIPT2022instalação de pomares, apoio ao investimento, Alcobaça, Organização de Produtores (OP), frutos frescos, produtividade"]
[683,"Evolução da dinâmica de investimento de uma exploração",25,89,"Manuel Ladeiras","Engenheiro agrónomo, gestor","Herdade da Dobra, Silves, Algarve",null,"II","PT",2022,"solo, Algarve, frutícolas, laranja, pomar, citrinos, produção agroflorestal, apoio ao investimento, burocracia",null,null,null,"Evolução da dinâmica de investimento de uma exploraçãoManuel LadeirasEngenheiro agrónomo, gestorHerdade da Dobra, Silves, AlgarveIIPT2022solo, Algarve, frutícolas, laranja, pomar, citrinos, produção agroflorestal, apoio ao investimento, burocracia"]
[684,"O investimento na exploração agrícola",25,95,"Nuno Barata Veras","Secretário técnico","Autoridade de Gestão do PDR2020 (AG PDR2020)","Área de Monitorização, Acompanhamento e Avaliação","II","PT",2022,"Programa de Desenvolvimento Rural 2014-2020 (PDR2020), projetos aprovados, despesa pública, beneficiários, especialização, produção sustentável, regimes de qualidade, género, área, jovem agricultor",null,null,null,"O investimento na exploração agrícolaNuno Barata VerasSecretário técnicoAutoridade de Gestão do PDR2020 (AG PDR2020)Área de Monitorização, Acompanhamento e AvaliaçãoIIPT2022Programa de Desenvolvimento Rural 2014-2020 (PDR2020), projetos aprovados, despesa pública, beneficiários, especialização, produção sustentável, regimes de qualidade, género, área, jovem agricultor"]
[685,"Regime para a promoção do investimento sustentável (ponto de situação)",25,109,"Helena Sequeira ",null,"Gabinete de Planeamento, Políticas e Administração Geral (GPP)",null,"IIIB","PT",2022,"taxonomia, investimento sustentável, mitigação e adaptação às alterações climáticas, proteção de recursos hídricos e marinhos, economia circular, poluição, biodiversidade e ecossistemas",null,null,null,"Regime para a promoção do investimento sustentável (ponto de situação)Helena Sequeira Gabinete de Planeamento, Políticas e Administração Geral (GPP)IIIBPT2022taxonomia, investimento sustentável, mitigação e adaptação às alterações climáticas, proteção de recursos hídricos e marinhos, economia circular, poluição, biodiversidade e ecossistemas"]
[686,"O potencial agrícola dos países da UE versus o dos EUA",25,113,"João Marques",null,"Gabinete de Planeamento, Políticas e Administração Geral (GPP)",null,"IIIB","PT",2022,"recursos agrícolas; rácios entre fatores de produção; produtividade; países da União Europeia; Estados Unidos da América; clusters",null,null,null,"O potencial agrícola dos países da UE versus o dos EUAJoão MarquesGabinete de Planeamento, Políticas e Administração Geral (GPP)IIIBPT2022recursos agrícolas; rácios entre fatores de produção; produtividade; países da União Europeia; Estados Unidos da América; clusters"]
[687,"Porquê subsidiar o setor privado? (O caso da cooperação para o desenvolvimento)",25,115,"Ana Rita Moura",null,"Gabinete de Planeamento, Políticas e Administração Geral (GPP)",null,"IIIB","PT",2022,"investimento privado; financiamento público e privado; países em desenvolvimento; ajuda/cooperação para o desenvolvimento; Objetivos de Desenvolvimento Sustentável (ODS); redução da pobreza; países doadores e países recetores do investimento; financiamento misto (blending finance); avaliação de impacto",null,null,null,"Porquê subsidiar o setor privado? (O caso da cooperação para o desenvolvimento)Ana Rita MouraGabinete de Planeamento, Políticas e Administração Geral (GPP)IIIBPT2022investimento privado; financiamento público e privado; países em desenvolvimento; ajuda/cooperação para o desenvolvimento; Objetivos de Desenvolvimento Sustentável (ODS); redução da pobreza; países doadores e países recetores do investimento; financiamento misto (blending finance); avaliação de impacto"]
[688,"Cultivar 26 - Agricultura biológica e outros modos de produção sustentável",26,1,"Gabinete de Planeamento, Políticas e Administração Geral (GPP)",null,null,null,null,"PT",2022]
[689,"Editorial",26,7,"Eduardo Diniz","Diretor-geral","Gabinete de Planeamento, Políticas e Administração Geral (GPP)",null,null,"PT",2022,"agricultura biológica, Pacto Ecológico Europeu, produtos fitofármacos, neutralidade carbónica, produção sustenável, crescimento populacional",null,null,null,{"$f":"+B412&E412&F412&G412&H412&I412&J412&K412&L412","v":"EditorialEduardo DinizDiretor-geralGabinete de Planeamento, Políticas e Administração Geral (GPP)PT2022agricultura biológica, Pacto Ecológico Europeu, produtos fitofármacos, neutralidade carbónica, produção sustenável, crescimento populacional"}]
[690,"A agricultura sustentável no contexto do Pacto Ecológico Europeu",26,13,"Humberto Delgado Rosa","Diretor para a Biodiversidade","Direção-Geral do Ambiente","Comissão Europeia","I","PT",2022,"crise, insustentabilidade, transição, agricultura biológica, modos de produção sustentável, agricultura sustentável, Pacto Ecológico Europeu, restauro dos ecossistemas",null,null,null,"A agricultura sustentável no contexto do Pacto Ecológico EuropeuHumberto Delgado RosaDiretor para a BiodiversidadeDireção-Geral do AmbienteComissão EuropeiaIPT2022crise, insustentabilidade, transição, agricultura biológica, modos de produção sustentável, agricultura sustentável, Pacto Ecológico Europeu, restauro dos ecossistemas"]
[691,"Agricultura biológica – desafios e respostas da investigação científica",26,19,"Pedro Mendes-Moreira, Isabel Dinis, Rosa Guilherme, Goreti Botelho, Ricardo Leitão, Daniela Santos","Professores e investigadores","Instituto Politécnico de Coimbra e Centro de Recursos Naturais Ambiente e Sociedade (CERNAS), Escola Superior Agrária de Coimbra (IPC-ESAC)","Direção Regional de Agricultura e Pescas do Centro; Centro de Ecologia Funcional, Departamento de Ciências da Vida, Universidade de Coimbra","I","PT",2022,"agricultura biológica, investigação, inovação, práticas colaborativas, melhoramento de plantas, horta biológica, disseminação do conhecimento",null,null,null,"Agricultura biológica – desafios e respostas da investigação científicaPedro Mendes-Moreira, Isabel Dinis, Rosa Guilherme, Goreti Botelho, Ricardo Leitão, Daniela SantosProfessores e investigadoresInstituto Politécnico de Coimbra e Centro de Recursos Naturais Ambiente e Sociedade (CERNAS), Escola Superior Agrária de Coimbra (IPC-ESAC)Direção Regional de Agricultura e Pescas do Centro; Centro de Ecologia Funcional, Departamento de Ciências da Vida, Universidade de CoimbraIPT2022agricultura biológica, investigação, inovação, práticas colaborativas, melhoramento de plantas, horta biológica, disseminação do conhecimento"]
[692,"Na procura da sustentabilidade: percursos de uma exploração agropecuária do concelho de Mértola",26,27,"João Madeira","Engenheiro agrónomo e agricultor",null,null,"I","PT",2022,"sustentabilidade, racionalidade económica, ovinos, raça autóctone, Campaniça, Serpentina, Alentejana, maneio do pastoreio, espaços agro-silvo-pastoris ",null,null,null,"Na procura da sustentabilidade: percursos de uma exploração agropecuária do concelho de MértolaJoão MadeiraEngenheiro agrónomo e agricultorIPT2022sustentabilidade, racionalidade económica, ovinos, raça autóctone, Campaniça, Serpentina, Alentejana, maneio do pastoreio, espaços agro-silvo-pastoris "]
[693,"Construindo sistemas alimentares territoriais sustentáveis",26,35,"Francisco Sarmento","Especialista em desenvolvimento territorial e sistemas alimentares, coordenador da elaboração da ESAN-CPLP* e ex-representante da FAO em Portugal",null,null,"I","PT",2022,"segurança alimentar e nutricional, sistema alimentar, pequena agricultura, agricultura familiar, coligações, CPLP, descentralização, agroecologia",null,null,null,"Construindo sistemas alimentares territoriais sustentáveisFrancisco SarmentoEspecialista em desenvolvimento territorial e sistemas alimentares, coordenador da elaboração da ESAN-CPLP* e ex-representante da FAO em PortugalIPT2022segurança alimentar e nutricional, sistema alimentar, pequena agricultura, agricultura familiar, coligações, CPLP, descentralização, agroecologia"]
[694,"A produção biológica na Europa e no mundo",26,41,"Rogério Ferreira e Catarina Cunha","Diretor-geral e Subdiretora-geral","Direção-Geral de Agricultura e Desenvolvimento Rural (DGADR)",null,"II","PT",2022,"Plano de Ação para o desenvolvimento da agricultura biológica, Pacto Ecológico Europeu, Estratégia Nacional para a Agricultura Biológica",null,null,null,{"$f":"+B417&E417&F417&G417&H417&I417&J417&K417&L417","v":"A produção biológica na Europa e no mundoRogério Ferreira e Catarina CunhaDiretor-geral e Subdiretora-geralDireção-Geral de Agricultura e Desenvolvimento Rural (DGADR)IIPT2022Plano de Ação para o desenvolvimento da agricultura biológica, Pacto Ecológico Europeu, Estratégia Nacional para a Agricultura Biológica"}]
[695,"“Aquilo que se descobre tem muito mais valor se for partilhado”",26,47,"Henrique Gomes","Produtor biológico","Biofrade","Síntese de entrevista: Ana Sofia Sampaio, João Marques, Manuel Loureiro","II","PT",2022,"exploração biológica, exportação, expansão, diferenciação, certificação, partilha e disseminação do conhecimento, apoios da PAC",null,null,null,"“Aquilo que se descobre tem muito mais valor se for partilhado”Henrique GomesProdutor biológicoBiofradeSíntese de entrevista: Ana Sofia Sampaio, João Marques, Manuel LoureiroIIPT2022exploração biológica, exportação, expansão, diferenciação, certificação, partilha e disseminação do conhecimento, apoios da PAC"]
[696,"Agricultura biológica – presente e futuro em Portugal",26,51,"Jaime Ferreira","Presidente da direção ","AGROBIO – Associação Portuguesa de Agricultura Biológica",null,"II","PT",2022,"produção biológica, consumo, alimentos biológicos, abastecimento alimentar seguro e sustentável, alterações climáticas, biodiversidade, neutralidade carbónica ",null,null,null,"Agricultura biológica – presente e futuro em PortugalJaime FerreiraPresidente da direção AGROBIO – Associação Portuguesa de Agricultura BiológicaIIPT2022produção biológica, consumo, alimentos biológicos, abastecimento alimentar seguro e sustentável, alterações climáticas, biodiversidade, neutralidade carbónica "]
[697,"Agricultura de conservação",26,57,"Gabriela Cruz","Presidente","APOSOLO – Associação Portuguesa de Mobilização de Conservação do Solo",null,"II","PT",2022,"solo, recursos, gestão sustentável, eficiência, matéria orgânica, medidas agroambientais (MAA), práticas agrícolas, disseminação do conhecimento",null,null,null,"Agricultura de conservaçãoGabriela CruzPresidenteAPOSOLO – Associação Portuguesa de Mobilização de Conservação do SoloIIPT2022solo, recursos, gestão sustentável, eficiência, matéria orgânica, medidas agroambientais (MAA), práticas agrícolas, disseminação do conhecimento"]
[698,"Agricultura biológica, outros modos de produção agrícola e a sustentabilidade ambiental",26,65,"Catarina Grilo e Tiago Luís","Diretora de Conservação e Políticas","ANP|WWF – Associação Natureza Portugal, em associação com a WWF",null,"II","PT",2022,"agricultura sustentável, produção integrada (PRODI), agricultura regenerativa, intensificação sustentável, agricultura de precisão, agroecologia, mitigação do impacto ambiental",null,null,null,"Agricultura biológica, outros modos de produção agrícola e a sustentabilidade ambientalCatarina Grilo e Tiago LuísDiretora de Conservação e PolíticasANP|WWF – Associação Natureza Portugal, em associação com a WWFIIPT2022agricultura sustentável, produção integrada (PRODI), agricultura regenerativa, intensificação sustentável, agricultura de precisão, agroecologia, mitigação do impacto ambiental"]
[699,"Produção sustentável de alimentos: da perceção do consumidor à ciência e tecnologia na intensificação sustentável",26,73,"João Cardoso","Diretor executivo","ANIPLA – Associação Nacional da Indústria para a Proteção das Plantas",null,"II","PT",2022,"intensificação sustentável, indústria fitofarmacêutica, faixa multifuncional; cultura de cobertura, agricultura de conservação, proteção das plantas, produtos fitofarmacêuticos, alimentação saudável, segurança alimentar",null,null,null,{"$f":"+B422&E422&F422&G422&H422&I425&J422&K422&L422","v":"Produção sustentável de alimentos: da perceção do consumidor à ciência e tecnologia na intensificação sustentávelJoão CardosoDiretor executivoANIPLA – Associação Nacional da Indústria para a Proteção das PlantasIIIBPT2022intensificação sustentável, indústria fitofarmacêutica, faixa multifuncional; cultura de cobertura, agricultura de conservação, proteção das plantas, produtos fitofarmacêuticos, alimentação saudável, segurança alimentar"}]
[700,"Agricultura biológica e outros modos de produção sustentável",26,79,"Diana Silva e Maria João Valentim",null,"AGRICERT – Certificação de Produtos Alimentares Lda.",null,"II","PT",2022,"conversão, dieta saudável, segurança alimentar, certificação, consumo, consumidores, inovação, uso sustentado dos recursos",null,null,null,{"$f":"+B423&E423&F423&G423&H423&I426&J423&K423&L423","v":"Agricultura biológica e outros modos de produção sustentávelDiana Silva e Maria João ValentimAGRICERT – Certificação de Produtos Alimentares Lda.IIIBPT2022conversão, dieta saudável, segurança alimentar, certificação, consumo, consumidores, inovação, uso sustentado dos recursos"}]
[701,"A Arquitetura Verde do PEPAC e a agricultura biológica",26,87,"João Marques e Rui Trindade",null,"Gabinete de Planeamento, Políticas e Administração Geral (GPP)",null,"II","PT",2022,"condicionalidade agrícola, eco-regime, GAEC/BCAA – Boas Condições Agrícolas e Ambientais, SMR/RLG – Requisitos Legais de Gestão, ",null,null,null,{"$f":"+B424&E424&F424&G424&H424&I427&J424&K424&L424","v":"A Arquitetura Verde do PEPAC e a agricultura biológicaJoão Marques e Rui TrindadeGabinete de Planeamento, Políticas e Administração Geral (GPP)IIIBPT2022condicionalidade agrícola, eco-regime, GAEC/BCAA – Boas Condições Agrícolas e Ambientais, SMR/RLG – Requisitos Legais de Gestão, "}]
[702,"Agroecologia",26,97,"António Cerca Miguel",null,"Gabinete de Planeamento, Políticas e Administração Geral (GPP)",null,"IIIB","PT",2022,"segurança alimentar, nutrição, práticas agroecológicas, agricultura sustentável, sistemas alimentares sustentáveis",null,null,null,{"$f":"+B425&E425&F425&G425&H425&I428&J425&K425&L425","v":"AgroecologiaAntónio Cerca MiguelGabinete de Planeamento, Políticas e Administração Geral (GPP)IIIBPT2022segurança alimentar, nutrição, práticas agroecológicas, agricultura sustentável, sistemas alimentares sustentáveis"}]
[703,"Relatório Especial do TCE: “O sistema de controlo dos produtos biológicosmelhorou, mas subsistem alguns desafios”",26,101,"Ana Rita Moura",null,"Gabinete de Planeamento, Políticas e Administração Geral (GPP)",null,"IIIB","PT",2022,"produtos biológicos, sistemas de controlo, organismos de controlo, autoridades competentes, auditorias, rastreabilidade, segurança alimentar",null,null,null,"Relatório Especial do TCE: “O sistema de controlo dos produtos biológicosmelhorou, mas subsistem alguns desafios”Ana Rita MouraGabinete de Planeamento, Políticas e Administração Geral (GPP)IIIBPT2022produtos biológicos, sistemas de controlo, organismos de controlo, autoridades competentes, auditorias, rastreabilidade, segurança alimentar"]
[704,"Sistemas de certificação agrícola para uma agricultura sustentável",26,105,null,"Ana Sofia Sampaio","Gabinete de Planeamento, Políticas e Administração Geral (GPP)",null,"IIIB","PT",2022,"sustentabilidade, estratégias da UE, sistemas de certificação",null,null,null,"Sistemas de certificação agrícola para uma agricultura sustentávelAna Sofia SampaioGabinete de Planeamento, Políticas e Administração Geral (GPP)IIIBPT2022sustentabilidade, estratégias da UE, sistemas de certificação"]
[705,"Um “ambiente alimentar” mais saudável e sustentável",26,107,null,"Ana Sofia Sampaio","Gabinete de Planeamento, Políticas e Administração Geral (GPP)",null,"IIIB","PT",2022,"sistema alimentar, ambiente alimentar, política alimentar",null,null,null,"Um “ambiente alimentar” mais saudável e sustentávelAna Sofia SampaioGabinete de Planeamento, Políticas e Administração Geral (GPP)IIIBPT2022sistema alimentar, ambiente alimentar, política alimentar"]
[706,"Uma perspetiva global da terra – restauro e resiliência",26,111,null,"Ana Sofia Sampaio","Gabinete de Planeamento, Políticas e Administração Geral (GPP)",null,"IIIB","PT",2022,"regeneração do solo, sustentabilidade",null,null,null,"Uma perspetiva global da terra – restauro e resiliênciaAna Sofia SampaioGabinete de Planeamento, Políticas e Administração Geral (GPP)IIIBPT2022regeneração do solo, sustentabilidade"]
[707,"O silêncio da inocente primavera de Rachel Carson",26,113,"Ana Sofia Sampaio",null,"Gabinete de Planeamento, Políticas e Administração Geral (GPP)",null,"IIIB","PT",2022,"ecologia, DDT, pesticidas, biocidas, inseticidas, biodiversidade, controlo biológico",null,null,null,"O silêncio da inocente primavera de Rachel CarsonAna Sofia SampaioGabinete de Planeamento, Políticas e Administração Geral (GPP)IIIBPT2022ecologia, DDT, pesticidas, biocidas, inseticidas, biodiversidade, controlo biológico"]
[708,"Cultivar 27 - Custos de contexto",27,1,"Gabinete de Planeamento, Políticas e Administração Geral (GPP)",null,null,null,null,"PT",2023]
[709,"Editorial",27,7,"Eduardo Diniz","Diretor-geral","Gabinete de Planeamento, Políticas e Administração Geral (GPP)",null,null,"PT",2023,"burocracia, custos administrativos, carga administrativa, Política Agrícola Comum (PAC), simplificação, digitalização",null,null,null,{"$f":"+B432&E432&F432&G432&H432&I432&J432&K432&L432","v":"EditorialEduardo DinizDiretor-geralGabinete de Planeamento, Políticas e Administração Geral (GPP)PT2023burocracia, custos administrativos, carga administrativa, Política Agrícola Comum (PAC), simplificação, digitalização"}]
[710,"Simplificação & Política Agrícola Comum: uma nova abordagem",27,13,"Petros Angelopoulos e Gijs Schilthuis",null,"Direção-Geral de Agricultura e Desenvolvimento Rural (DG AGRI), Comissão Europeia",null,"I","PT",2023,"mudança, evolução, complexidade, reforma da PAC, encargos, eficácia, desempenho, resultados, modelo de prestação, PEPAC, Plano Estratégico da PAC",null,null,null,"Simplificação & Política Agrícola Comum: uma nova abordagemPetros Angelopoulos e Gijs SchilthuisDireção-Geral de Agricultura e Desenvolvimento Rural (DG AGRI), Comissão EuropeiaIPT2023mudança, evolução, complexidade, reforma da PAC, encargos, eficácia, desempenho, resultados, modelo de prestação, PEPAC, Plano Estratégico da PAC"]
[711,"Simplification & the Common Agricultural Policy: a new approach",27,20,"Petros Angelopoulos e Gijs Schilthuis",null,"Direção-Geral de Agricultura e Desenvolvimento Rural (DG AGRI), Comissão Europeia",null,"I","EN",2023,null,null,null,null,{"$f":"+B434&E435&F435&G434&H434&I434&J434&K434&L434","v":"Simplification & the Common Agricultural Policy: a new approachFilipe Charters de AzevedoDireção-Geral de Agricultura e Desenvolvimento Rural (DG AGRI), Comissão EuropeiaIEN2023"}]
[712,"Custos de contexto na agricultura: uma análise provocadora e realista",27,25,"Filipe Charters de Azevedo",null,null,null,"I","PT",2023,"subsídios, políticas, política agrícola, PAC, preços, dieta Mediterrânica, padrões de consumo, dieta alimentar, população, sustentabilidade, mercado, apoios",null,null,null,"Custos de contexto na agricultura: uma análise provocadora e realistaPedro SerranoAGRO.GES, Sociedade de Estudos e Projectos, Lda.IPT2023subsídios, políticas, política agrícola, PAC, preços, dieta Mediterrânica, padrões de consumo, dieta alimentar, população, sustentabilidade, mercado, apoios"]
[713,"Custos de contexto no sector agrícola português",27,31,"Pedro Serrano","AGRO.GES, Sociedade de Estudos e Projectos, Lda.",null,null,"I","PT",2023,"licenciamentos, sistema judicial, sistema fiscal, recursos humanos, burocracia, regulamentação, PAC, energia, acesso a financiamento, dimensão das explorações, acesso ao conhecimento, corrupção",null,null,null,"Custos de contexto no sector agrícola portuguêsVítor RodriguesDirigenteIPT2023licenciamentos, sistema judicial, sistema fiscal, recursos humanos, burocracia, regulamentação, PAC, energia, acesso a financiamento, dimensão das explorações, acesso ao conhecimento, corrupção"]
[714,"Custos de contexto na agricultura familiar: origens e algumas soluções",27,37,"Vítor Rodrigues","Dirigente","Confederação Nacional da Agricultura (CNA)",null,"I","PT",2023,"Estatuto da Agricultura Familiar, dimensão económica, estrutura fundiária, distribuição geográfica, fator trabalho, interioridade, mercados, normativos, políticas públicas, carga administrativa",null,null,null,"Custos de contexto na agricultura familiar: origens e algumas soluçõesLuís MiraSecretário-GeralConfederação Nacional da Agricultura (CNA)IPT2023Estatuto da Agricultura Familiar, dimensão económica, estrutura fundiária, distribuição geográfica, fator trabalho, interioridade, mercados, normativos, políticas públicas, carga administrativa"]
[715,"Ineficácia administrativa do Estado perante o setor agrícola: um custo de contexto num contexto de crise",27,43,"Luís Mira","Secretário-Geral","Confederação dos Agricultores de Portugal (CAP)",null,"I","PT",2023,"competitividade, carga administrativa, licenciamentos, normativos, regulamentação, produtividade, complexidade",null,null,null,"Ineficácia administrativa do Estado perante o setor agrícola: um custo de contexto num contexto de criseCristina NevesDiretoraConfederação dos Agricultores de Portugal (CAP)IPT2023competitividade, carga administrativa, licenciamentos, normativos, regulamentação, produtividade, complexidade"]
[716,"Custos de contexto: a perspetiva das empresas",27,49,"Cristina Neves","Diretora","Departamento de Estatísticas Económicas, Instituto Nacional de Estatística (INE)",null,"II","PT",2023,"Inquérito, obstáculo, indicador, sistema judicial, sistema fiscal, recursos humanos, disputas, complexidade, legislação, estabilidade, acesso a financiamento",null,null,null,"Custos de contexto: a perspetiva das empresasPedro Pimenta, John William Stilwell, Luís Fernando Bulhão Martins, Armando Torres Paulo, Manuel Chaveiro Soares e José CorreiaDepartamento de Estatísticas Económicas, Instituto Nacional de Estatística (INE)IIPT2023Inquérito, obstáculo, indicador, sistema judicial, sistema fiscal, recursos humanos, disputas, complexidade, legislação, estabilidade, acesso a financiamento"]
[717,"O que pensam os agricultores",27,59,"Pedro Pimenta, John William Stilwell, Luís Fernando Bulhão Martins, Armando Torres Paulo, Manuel Chaveiro Soares e José Correia",null,null,null,"II","PT",2023,"sustentabilidade, competitividade, dimensão física, dimensão económica, complexidade, simplificação, carga administrativa, morosidade, emparcelamento, arranque da exploração, ponto de contacto único, interlocutor, Simplex agrícola, recursos humanos, acesso à  Internet, banda larga, automatização, digitalização, mão de obra, interioridade, Organização de Produtores, envelhecimento, rejuvenescimento, irrigação, perímetros de rega, regadio",null,null,null,"O que pensam os agricultoresPedro Pimenta, John William Stilwell, Luís Fernando Bulhão Martins, Armando Torres Paulo, Manuel Chaveiro Soares e José CorreiaIIPT2023sustentabilidade, competitividade, dimensão física, dimensão económica, complexidade, simplificação, carga administrativa, morosidade, emparcelamento, arranque da exploração, ponto de contacto único, interlocutor, Simplex agrícola, recursos humanos, acesso à  Internet, banda larga, automatização, digitalização, mão de obra, interioridade, Organização de Produtores, envelhecimento, rejuvenescimento, irrigação, perímetros de rega, regadio"]
[718,"Os custos de contexto e a implementação daLuís Barreiros PAC: vantagens da utilização de custos simplificados",27,71,"Luís Barreiros",null,"Gabinete de Planeamento, Políticas e Administração Geral (GPP)",null,"II","PT",2023,"gestão da PAC, Sistema Integrado de Gestão e Controlo (SIGC), opções de custos simplificados (OCS), investimento, medidas, modalidades, apoio, Plano Estratégico da PAC (PEPAC)",null,null,null,"Os custos de contexto e a implementação daLuís Barreiros PAC: vantagens da utilização de custos simplificadosLuís BarreirosGabinete de Planeamento, Políticas e Administração Geral (GPP)IIPT2023gestão da PAC, Sistema Integrado de Gestão e Controlo (SIGC), opções de custos simplificados (OCS), investimento, medidas, modalidades, apoio, Plano Estratégico da PAC (PEPAC)"]
[719,"Sistemas de Informação e a sua contribuição para a redução de custos de contexto",27,77,"Fátima Leitão","Diretora","Departamento de Gestão e Controlo Integrado, Instituto de Financiamento da Agricultura e Pescas, I.P. (IFAP)",null,"II","PT",2023,"Sistemas de Informação, transformação digital, digitalização, mão de obra, Sistema de Informação e Registo Animal (SNIRA), Sistema do Regime de Exercício da Atividade Pecuária (SiREAP), Sistema de Identificação Parcelar (SIP), Plano Estratégico da PAC (PEPAC)",null,null,null,"Sistemas de Informação e a sua contribuição para a redução de custos de contextoFátima LeitãoDiretoraDepartamento de Gestão e Controlo Integrado, Instituto de Financiamento da Agricultura e Pescas, I.P. (IFAP)IIPT2023Sistemas de Informação, transformação digital, digitalização, mão de obra, Sistema de Informação e Registo Animal (SNIRA), Sistema do Regime de Exercício da Atividade Pecuária (SiREAP), Sistema de Identificação Parcelar (SIP), Plano Estratégico da PAC (PEPAC)"]
[720,"Contributos para uma pecuária mais competitiva",27,83,"Manuel Chaveiro Soares",null,null,null,"II","PT",2023,"burocracia, complexidade, Simplex, Plano de Gestão de Efluentes Pecuários (PGEP), matadouros, atratividade, carga fiscal",null,null,null,"Contributos para uma pecuária mais competitivaManuel Chaveiro SoaresIIPT2023burocracia, complexidade, Simplex, Plano de Gestão de Efluentes Pecuários (PGEP), matadouros, atratividade, carga fiscal"]
[721,"Custos de contexto e desempenho das empresas portuguesas",27,89,"Ana Rita Moura","Gabinete de Planeamento, Políticas e Administração Geral (GPP)","João Amador et al.","Banco de Portugal, 2019","IIIB","PT",2023,"custos de contexto, desempenho das empresas, produtividade do trabalho, intensidade exportadora",null,null,null,"Custos de contexto e desempenho das empresas portuguesasAna Rita MouraGabinete de Planeamento, Políticas e Administração Geral (GPP)João Amador et al.Banco de Portugal, 2019IIIBPT2023custos de contexto, desempenho das empresas, produtividade do trabalho, intensidade exportadora"]
[722,"A evolução da qualidade na Administração Pública portuguesa 1974-2004",27,95,"Manuel Loureiro e Maria Inês Nolasco","Gabinete de Planeamento, Políticas e Administração Geral (GPP), Agência para a Modernização Administrativa, I.P. (AMA)","Maria Inês Nolasco","Cadernos BAD 2, 2004","IIIB","PT",2023,"qualidade, cidadania, diversidade, simplificação, Simplex",null,null,null,"A evolução da qualidade na Administração Pública portuguesa 1974-2004Manuel Loureiro e Maria Inês NolascoGabinete de Planeamento, Políticas e Administração Geral (GPP), Agência para a Modernização Administrativa, I.P. (AMA)Maria Inês NolascoCadernos BAD 2, 2004IIIBPT2023qualidade, cidadania, diversidade, simplificação, Simplex"]
[723,"Balcões únicos para cidadãos e empresas",27,99,"José Vasco Serrano","Gabinete de Planeamento, Políticas e Administração Geral (GPP)","One-Stop Shops for Citizens and Business, OCDE, 2020",null,"IIIB","PT",2023,"balcão único, governança, processo de reforma administrativa",null,null,null,"Balcões únicos para cidadãos e empresasJosé Vasco SerranoGabinete de Planeamento, Políticas e Administração Geral (GPP)One-Stop Shops for Citizens and Business, OCDE, 2020IIIBPT2023balcão único, governança, processo de reforma administrativa"]
[724,"A PAC e o trabalho administrativo dos agricultores: uma comparação França-Espanha",27,103,"Ana Filipe de Morais","Gabinete de Planeamento, Políticas e Administração Geral (GPP)","Blandine Mesnel et al.","Ministério da Agricultura e da Soberania Alimentar, França, 2022","IIIB","PT",2023,"PAC, políticas públicas, ajudas públicas, custos administrativos, burocratização",null,null,null,"A PAC e o trabalho administrativo dos agricultores: uma comparação França-EspanhaAna Filipe de MoraisGabinete de Planeamento, Políticas e Administração Geral (GPP)Blandine Mesnel et al.Ministério da Agricultura e da Soberania Alimentar, França, 2022IIIBPT2023PAC, políticas públicas, ajudas públicas, custos administrativos, burocratização"]
[725,"Socializar para a biodiversidade através da neoliberalização da PAC?",27,107,"João Paulo Marques","Gabinete de Planeamento, Políticas e Administração Geral (GPP)","Blandine Mesnel","Développement Durable et Territoires, 2018","IIIB","PT",2023,"biodiversidade, Política Agrícola Comum (PAC), condicionalidade, pagamento greening, receção das políticas públicas, burocratização, França, Espanha",null,null,null,"Socializar para a biodiversidade através da neoliberalização da PAC?João Paulo MarquesGabinete de Planeamento, Políticas e Administração Geral (GPP)Blandine MesnelDéveloppement Durable et Territoires, 2018IIIBPT2023biodiversidade, Política Agrícola Comum (PAC), condicionalidade, pagamento greening, receção das políticas públicas, burocratização, França, Espanha"]
[726,"Conflitos, fenómenos extremos, burocracia e falta de financiamento agravam a insegurança alimentar no mundo",27,111,null,"Ana Sofia Sampaio","FAO/Programa Alimentar Mundial ",null,"IIIB","PT",2023,"fome, guerra, alterações climáticas, seca, desastres naturais, risco, pragas",null,null,null,"Conflitos, fenómenos extremos, burocracia e falta de financiamento agravam a insegurança alimentar no mundoAna Sofia SampaioFAO/Programa Alimentar Mundial IIIBPT2023fome, guerra, alterações climáticas, seca, desastres naturais, risco, pragas"]
[727,"Cultivar 28 - Estruturas agrárias",28,1,"Gabinete de Planeamento, Políticas e Administração Geral (GPP)",null,null,null,null,"PT",2023]
[728,"Editorial",28,7,"Eduardo Diniz","Diretor-geral","Gabinete de Planeamento, Políticas e Administração Geral (GPP)",null,null,"PT",2023,"estruturas agrárias, recenseamento agrícola, RA2019, Política Agrícola Comum (PAC), políticas públicas",null,null,null,"EditorialEduardo DinizDiretor-geralGabinete de Planeamento, Políticas e Administração Geral (GPP)PT2023estruturas agrárias, recenseamento agrícola, RA2019, Política Agrícola Comum (PAC), políticas públicas"]
[729,"Perceções e interpretações na evolução das estruturas agrárias nacionais – oportunidades e vulnerabilidades da agricultura portuguesa",28,13,"Eduardo Diniz e Bruno Dimas","Diretor-geral e Subdiretor-geral","Gabinete de Planeamento, Políticas e Administração Geral (GPP)",null,"I","PT",2023,"políticas públicas, multifuncionalidade, produção agrícola, mercado, Política Agrícola Comum (PAC), Modelo Agrícola Europeu, apoio, ajudas, intensificação, extensificação, vulnerabilidade, gestão territorial, administração patrimonial",null,null,null,"Perceções e interpretações na evolução das estruturas agrárias nacionais – oportunidades e vulnerabilidades da agricultura portuguesaEduardo Diniz e Bruno DimasDiretor-geral e Subdiretor-geralGabinete de Planeamento, Políticas e Administração Geral (GPP)IPT2023políticas públicas, multifuncionalidade, produção agrícola, mercado, Política Agrícola Comum (PAC), Modelo Agrícola Europeu, apoio, ajudas, intensificação, extensificação, vulnerabilidade, gestão territorial, administração patrimonial"]
[730,"Pluralidade dos agentes com exploração agrícola no continente português",28,23,"Joaquim Cabral Rolo","Investigador Coordenador aposentado","INIAV, I.P.",null,"I","PT",2023,"explorações agrícolas, classificação, unidades territoriais, modalidades de agricultura, Superfície Agrícola Utilizada (SAU), Valor da Produção Padrão (VPP), Superfície Total, autoconsumo, rendimento, uso do solo, ocupação do solo",null,null,null,"Pluralidade dos agentes com exploração agrícola no continente portuguêsJoaquim Cabral RoloInvestigador Coordenador aposentadoINIAV, I.P.IPT2023explorações agrícolas, classificação, unidades territoriais, modalidades de agricultura, Superfície Agrícola Utilizada (SAU), Valor da Produção Padrão (VPP), Superfície Total, autoconsumo, rendimento, uso do solo, ocupação do solo"]
[731,"Os grandes desafios da produção: aumentar a área de regadio, concentrar a oferta e equilibrar sustentabilidade ambiental, social e económica",28,33,"Gonçalo Santos Andrade","Presidente","Portugal Fresh",null,"I","PT",2023,"água, regadio, irrigação, acesso ao mercado, organização da produção, eficiência, recursos, alterações climáticas",null,null,null,"Os grandes desafios da produção: aumentar a área de regadio, concentrar a oferta e equilibrar sustentabilidade ambiental, social e económicaGonçalo Santos AndradePresidentePortugal FreshIPT2023água, regadio, irrigação, acesso ao mercado, organização da produção, eficiência, recursos, alterações climáticas"]
[732,"Sistema alimentar e transição energética – reflexões para o futuro",28,37,"Júlia Seixas","Professora Catedrática","Faculdade de Ciências e Tecnologia, Universidade NOVA de Lisboa",null,"I","PT",2023,"água, energia, recursos, alterações climáticas, eficiência, tecnologia, produção alimentar, intensificação sustentável, produtividade, nexus energia-água-alimentos",null,null,null,"Sistema alimentar e transição energética – reflexões para o futuroJúlia SeixasProfessora CatedráticaFaculdade de Ciências e Tecnologia, Universidade NOVA de LisboaIPT2023água, energia, recursos, alterações climáticas, eficiência, tecnologia, produção alimentar, intensificação sustentável, produtividade, nexus energia-água-alimentos"]
[733,"Os números do recenseamento agrícola 2019",28,45,"Rui Trindade e Rui Pereira",null,"Gabinete de Planeamento, Políticas e Administração Geral (GPP)",null,"II","PT",2023,"mudança, concorrência intersetorial, concorrência intrasetorial, características estruturais, Dimensão Económica, Superfície Agrícola Utilizada (SAU), Valor da Produção Padrão (VPP), Superfície Total, Orientação Técnico-Económica (OTE), superfície regada e irrigável, mão-de-obra agrícola, Modo de Produção Biológico (MPB)",null,null,null,"Os números do recenseamento agrícola 2019Rui Trindade e Rui PereiraGabinete de Planeamento, Políticas e Administração Geral (GPP)IIPT2023mudança, concorrência intersetorial, concorrência intrasetorial, características estruturais, Dimensão Económica, Superfície Agrícola Utilizada (SAU), Valor da Produção Padrão (VPP), Superfície Total, Orientação Técnico-Económica (OTE), superfície regada e irrigável, mão-de-obra agrícola, Modo de Produção Biológico (MPB)"]
[734,"Tipologia territorial de base agrícola – a estrutura das explorações agrícolas do ra 2019",28,89,"Laura Fonseca, Rui Trindade e Rui Pereira",null,"Gabinete de Planeamento, Políticas e Administração Geral (GPP)",null,"II","PT",2023,"cartografia, análise de clusters (K-Means Cluster Analysis), Programa Nacional da Política de Ordenamento do Território (PNPOT),",null,null,null,"Tipologia territorial de base agrícola – a estrutura das explorações agrícolas do ra 2019Laura Fonseca, Rui Trindade e Rui PereiraGabinete de Planeamento, Políticas e Administração Geral (GPP)IIPT2023cartografia, análise de clusters (K-Means Cluster Analysis), Programa Nacional da Política de Ordenamento do Território (PNPOT),"]
[735,"Mulheres na agricultura: 1989 a 2019",28,103,"Isabel Escada Mendes",null,"Gabinete de Planeamento, Políticas e Administração Geral (GPP)",null,"II","PT",2023,"igualdade de género, população agrícola familiar, produtor agrícola singular, ganho médio, empreendedorismo",null,null,null,"Mulheres na agricultura: 1989 a 2019Isabel Escada MendesGabinete de Planeamento, Políticas e Administração Geral (GPP)IIPT2023igualdade de género, população agrícola familiar, produtor agrícola singular, ganho médio, empreendedorismo"]
[736,"Perspetivas agrícolas da OCDE/FAO para 2022‑2031",28,115,"Ana Rita Moura","Gabinete de Planeamento, Políticas e Administração Geral (GPP)","OCDE-FAO",null,"IIIB","PT",2023,"projeções; cenários; Objetivo de Desenvolvimento Sustentável 2 (ODS2); fome; Acordo de Paris; emissões de gases com efeito de estufa (GEE); agricultura mundial; alimentação",null,null,null,"Perspetivas agrícolas da OCDE/FAO para 2022‑2031Ana Rita MouraGabinete de Planeamento, Políticas e Administração Geral (GPP)OCDE-FAOIIIBPT2023projeções; cenários; Objetivo de Desenvolvimento Sustentável 2 (ODS2); fome; Acordo de Paris; emissões de gases com efeito de estufa (GEE); agricultura mundial; alimentação"]
[737,"Modalidades de unidade agrícola, familiares e outras, e contextos territoriais no continente português a beira dos anos 2020",28,121,"João Marques","Gabinete de Planeamento, Políticas e Administração Geral (GPP)","Joaquim Cabral Rolo",null,"IIIB","PT",2023,"modalidades de exploração agrícola, agricultura familiar, rendimentos, dimensão económica, territórios, solo rústico, população rural, economia, trabalho",null,null,null,"Modalidades de unidade agrícola, familiares e outras, e contextos territoriais no continente português a beira dos anos 2020João MarquesGabinete de Planeamento, Políticas e Administração Geral (GPP)Joaquim Cabral RoloIIIBPT2023modalidades de exploração agrícola, agricultura familiar, rendimentos, dimensão económica, territórios, solo rústico, população rural, economia, trabalho"]
[738,"Perspetiva global da terra – primeira edição",28,125,"José Vasco Serrano","Gabinete de Planeamento, Políticas e Administração Geral (GPP)","ONU – UNCCD",null,"IIIB","PT",2023,"planeta Terra, terra, recursos naturais, segurança humana, uso do solo, segurança alimentar, agricultura, recursos hídricos, biodiversidade, solo, energia, clima, alterações climáticas, urbanização, ecossistemas",null,null,null,"Perspetiva global da terra – primeira ediçãoJosé Vasco SerranoGabinete de Planeamento, Políticas e Administração Geral (GPP)ONU – UNCCDIIIBPT2023planeta Terra, terra, recursos naturais, segurança humana, uso do solo, segurança alimentar, agricultura, recursos hídricos, biodiversidade, solo, energia, clima, alterações climáticas, urbanização, ecossistemas"]
[{"$f":"+MAX(A130:A461)+1","v":739},"Expectativas de redução mundial do número de explorações ate 2100",28,129,"Zia Mehrabi",null,"Ana Sofia Sampaio","Gabinete de Planeamento, Políticas e Administração Geral (GPP)","IIIB","PT",2023,"explorações agrícolas, pequena agricultura familiar, sistema agroalimentar, abastecimento alimentar, sustentabilidade, clima, biodiversidade",null,null,null,"Expectativas de redução mundial do número de explorações ate 2100Zia MehrabiAna Sofia SampaioGabinete de Planeamento, Políticas e Administração Geral (GPP)IIIBPT2023explorações agrícolas, pequena agricultura familiar, sistema agroalimentar, abastecimento alimentar, sustentabilidade, clima, biodiversidade"]
[740,"Cultivar 29 - Indústria agroalimentar",29,1,"Gabinete de Planeamento, Políticas e Administração Geral (GPP)",null,null,null,null,"PT",2023,null,null,null,null,"Cultivar 29 - Indústria agroalimentarGabinete de Planeamento, Políticas e Administração Geral (GPP)PT2023"]
[741,"Editorial",29,7,"Eduardo Diniz","Diretor-geral","Gabinete de Planeamento, Políticas e Administração Geral (GPP)",null,null,"PT",2023,"indústria agroalimentar, segurança alimentar, recursos endógenos, desindustrialização, criação de valor, criação de emprego, mão de obra qualificada, valor acrescentado, crescimento",null,null,null,"EditorialEduardo DinizDiretor-geralGabinete de Planeamento, Políticas e Administração Geral (GPP)PT2023indústria agroalimentar, segurança alimentar, recursos endógenos, desindustrialização, criação de valor, criação de emprego, mão de obra qualificada, valor acrescentado, crescimento"]
[742,"O agroalimentar em três tempos – Passado, presente e futuro da fileira em Portugal",29,13,"Jaime Piçarra",null,null,null,"I","PT",2023,"políticas agroalimentares, Política Agrícola Comum (PAC), reforma da PAC, arquitetura verde, simplificação, alargamento, sustentabilidade, segurança alimentar, crescimento, custos de contexto, política fiscal, alimentação animal, fontes de proteína",null,null,null,"O agroalimentar em três tempos – Passado, presente e futuro da fileira em PortugalJaime PiçarraIPT2023políticas agroalimentares, Política Agrícola Comum (PAC), reforma da PAC, arquitetura verde, simplificação, alargamento, sustentabilidade, segurança alimentar, crescimento, custos de contexto, política fiscal, alimentação animal, fontes de proteína"]
[743,"Indústria portuguesa agroalimentar – Desafios e perspetivas futuras",29,21,"Pedro Queiroz",null,null,null,"I","PT",2023,"indústria agroalimentar, resiliência, desafios, crescimento, desenvolvimento, ecoeficiência, embalagens, inovação, transição tecnológica, emprego, consumidor, cooperação",null,null,null,"Indústria portuguesa agroalimentar – Desafios e perspetivas futurasPedro QueirozIPT2023indústria agroalimentar, resiliência, desafios, crescimento, desenvolvimento, ecoeficiência, embalagens, inovação, transição tecnológica, emprego, consumidor, cooperação"]
[744,"A indústria agroalimentar − Sustentabilidade e desafios da transição energética",29,25,"Jaime Braga",null,null,null,"I","PT",2023,"energia, qualidade alimentar, consumo energético, cogeração, petróleo, gás natural, eletricidade, combustíveis, bioenergia, gases com efeito de estufa (GEE), biometano, biomassa",null,null,null,"A indústria agroalimentar − Sustentabilidade e desafios da transição energéticaJaime BragaIPT2023energia, qualidade alimentar, consumo energético, cogeração, petróleo, gás natural, eletricidade, combustíveis, bioenergia, gases com efeito de estufa (GEE), biometano, biomassa"]
[745,"Harmonizar o IVA, porque a alimentação é essencial",29,29,"Nuno Fernandes Thomaz",null,null,null,"I","PT",2023,"contexto económico, crescimento, receita fiscal, carga fiscal política fiscal, fiscalidade, taxação, imposto, harmonização fiscal",null,null,null,"Harmonizar o IVA, porque a alimentação é essencialNuno Fernandes ThomazIPT2023contexto económico, crescimento, receita fiscal, carga fiscal política fiscal, fiscalidade, taxação, imposto, harmonização fiscal"]
[746,"Indústrias agroalimentares: caracterização e evolução recente",29,41,"Ana Rita Moura e Rui Trindade","Gabinete de Planeamento, Políticas e Administração Geral (GPP)",null,null,"II","PT",2023,"VAB, PIB, emprego, produtividade do trabalho, consumos intermédios, matrizes simétricas de input-output, remuneração dos assalariados, Excedente Bruto de Exploração (EBE), Formação Bruta de Capital Fixo (FBCF), comércio internacional, exportações, importações, Indústrias Alimentares, das Bebidas e do Tabaco (IABT), grau de autoaprovisionamento alimentar (GAA), volume de negócios, pessoal, ",null,null,null,"Indústrias agroalimentares: caracterização e evolução recenteAna Rita Moura e Rui TrindadeGabinete de Planeamento, Políticas e Administração Geral (GPP)IIPT2023VAB, PIB, emprego, produtividade do trabalho, consumos intermédios, matrizes simétricas de input-output, remuneração dos assalariados, Excedente Bruto de Exploração (EBE), Formação Bruta de Capital Fixo (FBCF), comércio internacional, exportações, importações, Indústrias Alimentares, das Bebidas e do Tabaco (IABT), grau de autoaprovisionamento alimentar (GAA), volume de negócios, pessoal, "]
[747,"A missão da nanociência e da nanotecnologia na alimentação do futuro",29,67,"Sara M. Oliveira, Mariam Debs, Francisco Guimarães, Alejandro Garrido, Miguel Cerqueira, Lorenzo Pastrana",null,null,null,"II","PT",2023,"alimentação, energia, sustentabilidade, materiais, embalagens alimentares, personalização alimentar, rastreabilidade alimentar, inovação, investigação",null,null,null,"A missão da nanociência e da nanotecnologia na alimentação do futuroSara M. Oliveira, Mariam Debs, Francisco Guimarães, Alejandro Garrido, Miguel Cerqueira, Lorenzo PastranaIIPT2023alimentação, energia, sustentabilidade, materiais, embalagens alimentares, personalização alimentar, rastreabilidade alimentar, inovação, investigação"]
[748,"Indústria de conservas de peixe em Portugal – Um setor de futuro",29,71,"António Cunha",null,null,null,"II","PT",2023,"saúde, crescimento, consumo, sustentabilidade, inovação, tecnologia, aproveitamento e valorização de subprodutos, cadeia de abastecimento, consumidor, escassez, mão de obra, matéria-prima, marcas de fabricante",null,null,null,"Indústria de conservas de peixe em Portugal – Um setor de futuroAntónio CunhaIIPT2023saúde, crescimento, consumo, sustentabilidade, inovação, tecnologia, aproveitamento e valorização de subprodutos, cadeia de abastecimento, consumidor, escassez, mão de obra, matéria-prima, marcas de fabricante"]
[749,"A cultura de tomate para indústria em Portugal",29,77,"Martin Stilwell",null,null,null,"II","PT",2023,"produtores de tomate, mecanização, produtividade, exportações, concentrado de tomate, valor acrescentado, índice de preços, rendimento por hectare, oferta e procura, Green Deal / Pacto Ecológico machine learning, inovação",null,null,null,"A cultura de tomate para indústria em PortugalMartin StilwellIIPT2023produtores de tomate, mecanização, produtividade, exportações, concentrado de tomate, valor acrescentado, índice de preços, rendimento por hectare, oferta e procura, Green Deal / Pacto Ecológico machine learning, inovação"]
[750,"Indústria agroalimentar – Nozes!",29,83,"Tiago Costa",null,null,null,"II","PT",2023,"soberania e segurança alimentar, escassez, mão de obra, digitalização, inovação, gestão da água, combate ao desperdício, alterações climáticas, biodiversidade, neutralidade carbónica,",null,null,null,"Indústria agroalimentar – Nozes!Tiago CostaIIPT2023soberania e segurança alimentar, escassez, mão de obra, digitalização, inovação, gestão da água, combate ao desperdício, alterações climáticas, biodiversidade, neutralidade carbónica,"]
[751,"Breve historial da Federação dos Grémios da Lavoura do Nordeste Transmontano",29,87,"Pedro Mendonça e Álvaro Mendonça",null,null,null,"II","PT",2023,"Camilo Mendonça, investimento, cooperativas, financiamento público, industrialização, escassez, comercialização e marketing, regadio, mecanização",null,null,null,"Breve historial da Federação dos Grémios da Lavoura do Nordeste TransmontanoPedro Mendonça e Álvaro MendonçaIIPT2023Camilo Mendonça, investimento, cooperativas, financiamento público, industrialização, escassez, comercialização e marketing, regadio, mecanização"]
[752,"Evolução das políticas de fomento agroindustrial",29,95,"João Marques","Gabinete de Planeamento, Políticas e Administração Geral (GPP)",null,null,"II","PT",2023,"Política Agrícola Comum (PAC), FEOGA, Garantia, Organização Comum de Mercado (OCM), PEDAP, Quadro Comunitário de Apoio (QCA), FEADER, FEAGA, programa AGRO, AGRIS, VITIS, Programa Operacional Agricultura e Desenvolvimento Rural (POADR), Programa de Desenvolvimento Rural 2007-2013 (ProDeR), Programa de Desenvolvimento Rural (PDR), PEPAC",null,null,null,"Evolução das políticas de fomento agroindustrialJoão MarquesGabinete de Planeamento, Políticas e Administração Geral (GPP)IIPT2023Política Agrícola Comum (PAC), FEOGA, Garantia, Organização Comum de Mercado (OCM), PEDAP, Quadro Comunitário de Apoio (QCA), FEADER, FEAGA, programa AGRO, AGRIS, VITIS, Programa Operacional Agricultura e Desenvolvimento Rural (POADR), Programa de Desenvolvimento Rural 2007-2013 (ProDeR), Programa de Desenvolvimento Rural (PDR), PEPAC"]
[753,"Observatório de Preços – Agroalimentar",29,105,null,"Ana Filipe Morais","Gabinete de Planeamento, Políticas e Administração Geral (GPP)",null,"IIIB","PT",2023,"informação, preços, produtos agroalimentares, cadeia agroalimentar, fileiras, monitorização, transparência, eficiência, custos, consumo, produção, evolução dos preços, azeite, carne de aves, carne de suíno, cereais, frutas, hortícolas, lacticínios, ovos e pescado",null,null,null,"Observatório de Preços – AgroalimentarAna Filipe MoraisGabinete de Planeamento, Políticas e Administração Geral (GPP)IIIBPT2023informação, preços, produtos agroalimentares, cadeia agroalimentar, fileiras, monitorização, transparência, eficiência, custos, consumo, produção, evolução dos preços, azeite, carne de aves, carne de suíno, cereais, frutas, hortícolas, lacticínios, ovos e pescado"]
[754,"Criar mais valor na vinha e no vinho",29,108,"José Ramalho Fontes e Fernando Bianchi de Aguiar (org.)","Pedro Castro Rego","Gabinete de Planeamento, Políticas e Administração Geral (GPP)",null,"IIIB","PT",2023,"vinha, vinho, cadeia de valor, qualidade, sustentabilidade, competitividade, políticas públicas, desafios, interprofissionalismo",null,null,null,"Criar mais valor na vinha e no vinhoJosé Ramalho Fontes e Fernando Bianchi de Aguiar (org.)Pedro Castro RegoGabinete de Planeamento, Políticas e Administração Geral (GPP)IIIBPT2023vinha, vinho, cadeia de valor, qualidade, sustentabilidade, competitividade, políticas públicas, desafios, interprofissionalismo"]
[755,"Complexo agroindustrial – Análise da interdependência",29,111,"Bruno Dimas","Ana Rita Moura","Gabinete de Planeamento, Políticas e Administração Geral (GPP)",null,"IIIB","PT",2023,"Complexo agroindustrial, agricultura, silvicultura, indústrias agroflorestais, importância na economia, estrutura dos ramos, matriz de coeficientes técnicos, matriz de coeficientes de mercado, relações de interdependência, multiplicadores de produção, multiplicadores de inputs primários",null,null,null,"Complexo agroindustrial – Análise da interdependênciaBruno DimasAna Rita MouraGabinete de Planeamento, Políticas e Administração Geral (GPP)IIIBPT2023Complexo agroindustrial, agricultura, silvicultura, indústrias agroflorestais, importância na economia, estrutura dos ramos, matriz de coeficientes técnicos, matriz de coeficientes de mercado, relações de interdependência, multiplicadores de produção, multiplicadores de inputs primários"]
[756,"Cultivar 30 - Melhoramento e técnicas genómicas",30,1,"Gabinete de Planeamento, Políticas e Administração Geral (GPP)",null,null,null,null,"PT",2024,null,null,null,null,{"$f":"+B479&E479&F479&G479&H479&I479&J479&K479&L480","v":"Cultivar 30 - Melhoramento e técnicas genómicasGabinete de Planeamento, Políticas e Administração Geral (GPP)PT2024abastecimento alimentar, aumento de produtividade, biotecnologia, melhoramento, ludismo"}]
[757,"Editorial",30,7,"Eduardo Diniz","Diretor-geral","Gabinete de Planeamento, Políticas e Administração Geral (GPP)",null,null,"PT",2024,"abastecimento alimentar, aumento de produtividade, biotecnologia, melhoramento, ludismo",null,null,null,{"$f":"+B480&E480&F480&G480&H480&I480&J480&K480&L481","v":"EditorialEduardo DinizDiretor-geralGabinete de Planeamento, Políticas e Administração Geral (GPP)PT2024abastecimento alimentar, aumento de produtividade, biotecnologia, melhoramento, recursos naturais, transição climática, história da alimentação, história da agricultura, eficiência, tecnologia"}]
[758,"A importância da (bio)tecnologia para a sustentabilidade dos sistemas alimentares  - As Novas Técnicas Genómicas no quadro das políticas públicas europeias e internacionais",30,13,"Eduardo Diniz, Cristina Vasques e Paula Carvalho","Gabinete de Planeamento, Políticas e Administração Geral (GPP)","Direção-Geral de Alimentação e Veterinária (DGAV)",null,"I","PT",2024,"abastecimento alimentar, aumento de produtividade, biotecnologia, melhoramento, recursos naturais, transição climática, história da alimentação, história da agricultura, eficiência, tecnologia",null,null,null,{"$f":"+B481&E481&F481&G481&H481&I481&J481&K481&L482","v":"A importância da (bio)tecnologia para a sustentabilidade dos sistemas alimentares  - As Novas Técnicas Genómicas no quadro das políticas públicas europeias e internacionaisEduardo Diniz, Cristina Vasques e Paula CarvalhoGabinete de Planeamento, Políticas e Administração Geral (GPP)Direção-Geral de Alimentação e Veterinária (DGAV)IPT2024resistência à inovação, Organismos Geneticamente Modificados (OGM), resistência a praças e doenças, seca, alterações climáticas, regulamentação, patente"}]
[759,"As Novas Técnicas Genómicas – inovação ao serviço da agricultura e do planeta",30,25,"João Pacheco",null,"Farm Europe",null,"I","PT",2024,"resistência à inovação, Organismos Geneticamente Modificados (OGM), resistência a praças e doenças, seca, alterações climáticas, regulamentação, patente",null,null,null,{"$f":"+B482&E482&F482&G482&H482&I482&J482&K482&L482","v":"As Novas Técnicas Genómicas – inovação ao serviço da agricultura e do planetaJoão PachecoFarm EuropeIPT2024resistência à inovação, Organismos Geneticamente Modificados (OGM), resistência a praças e doenças, seca, alterações climáticas, regulamentação, patente"}]
[760,"O melhoramento vegetal e as tecnologias de base molecular, em particular a edição genómica",30,31,"Pedro Fevereiro",null,"InnovPlantProtect (Laboratório Colaborativo)","ITQB NOVA – Instituto de Tecnologia Química e Biológica António Xavier","I","PT",2024,"domesticação, DNA, ADN, tecnologias moleculares, CRISPR-Cas9",null,null,null,"O melhoramento vegetal e as tecnologias de base molecular, em particular a edição genómicaPedro FevereiroInnovPlantProtect (Laboratório Colaborativo)ITQB NOVA – Instituto de Tecnologia Química e Biológica António XavierIPT2024domesticação, DNA, ADN, tecnologias moleculares, CRISPR-Cas9"]
[761,"Novas Técnicas Genómicas: alegações duvidosas em matéria de produtividade, sustentabilidade e segurança / New genomic techniques: dubious claims on productivity, sustainability, and safety",30,39,"Michael Antoniou e Claire Robinson",null,"King’s College London, Reino Unido","GMWatch","I","PT",2024,"produtividade, resistência a doenças, resistência a seca, características multigénicas, desperdício alimentar, Organismos Geneticamente Modificados (OGM), desregulamentação",null,null,null,"Novas Técnicas Genómicas: alegações duvidosas em matéria de produtividade, sustentabilidade e segurança / New genomic techniques: dubious claims on productivity, sustainability, and safetyMichael Antoniou e Claire RobinsonKing’s College London, Reino UnidoGMWatchIPT2024produtividade, resistência a doenças, resistência a seca, características multigénicas, desperdício alimentar, Organismos Geneticamente Modificados (OGM), desregulamentação"]
[762,"Velhos problemas, novas soluções: o potencial das Novas Técnicas Genómicas para a agricultura",30,53,"Jorge Canhoto",null,"Universidade de Coimbra",null,"I","PT",2024,"domesticação, manipulação genética, melhoramento seletivo de plantas, DNA, edição genética, CRISPR-Cas9 ",null,null,null,"Velhos problemas, novas soluções: o potencial das Novas Técnicas Genómicas para a agriculturaJorge CanhotoUniversidade de CoimbraIPT2024domesticação, manipulação genética, melhoramento seletivo de plantas, DNA, edição genética, CRISPR-Cas9 "]
[763,"Técnicas genómicas: prós e contras",30,63,"ANSEME e Plataforma Transgénicos Fora",null,null,null,"II","PT",2024,"produtividade, sustentabilidade, Pacto Ecológico Europeu, Estratégia do Prado ao Prato, melhoramento, Organismos Geneticamente Modificados (OGM), princípio da precaução, inovação",null,null,null,"Técnicas genómicas: prós e contrasANSEME e Plataforma Transgénicos ForaIIPT2024produtividade, sustentabilidade, Pacto Ecológico Europeu, Estratégia do Prado ao Prato, melhoramento, Organismos Geneticamente Modificados (OGM), princípio da precaução, inovação"]
[764,"Contribuindo para o melhoramento vegetal de NOVA geração",30,71,"Maria Carlota Vaz Patto",null,"PlantX","ITQB NOVA – Instituto de Tecnologia Química e Biológica António Xavier","II","PT",2024,"fenotipagem, marcadores moleculares, produtividade, resistência a stresses, qualidade, estudo de associação alargada a todo o genoma (GWAS), variabilidade, sequenciação de nova geração (NGS)",null,null,null,"Contribuindo para o melhoramento vegetal de NOVA geraçãoMaria Carlota Vaz PattoPlantXITQB NOVA – Instituto de Tecnologia Química e Biológica António XavierIIPT2024fenotipagem, marcadores moleculares, produtividade, resistência a stresses, qualidade, estudo de associação alargada a todo o genoma (GWAS), variabilidade, sequenciação de nova geração (NGS)"]
[765,"Biodiversidade dos animais domésticos da Península Ibérica: uma perspetiva genómica / Biodiversity of Iberian farm animal genetic resources: a genomics perspective",30,79,"Catarina Ginja e Carolina Bruno de Sousa",null,"CIISA, Centro de Investigação Interdisciplinar em Sanidade Animal","Faculdade de Medicina Veterinária, Universidade de Lisboa","II","PT",2024,"biodiversidade, raças autóctones, sequenciação genómica, melhoramento genético animal, domesticação, alterações climáticas",null,null,null,"Biodiversidade dos animais domésticos da Península Ibérica: uma perspetiva genómica / Biodiversity of Iberian farm animal genetic resources: a genomics perspectiveCatarina Ginja e Carolina Bruno de SousaCIISA, Centro de Investigação Interdisciplinar em Sanidade AnimalFaculdade de Medicina Veterinária, Universidade de LisboaIIPT2024biodiversidade, raças autóctones, sequenciação genómica, melhoramento genético animal, domesticação, alterações climáticas"]
[766,"O melhoramento genético florestal",30,93,"Manuel Loureiro (coord.), com contributos de Rita Lourenço Costa, José Alexandre Araújo, Susana Carneiro, Pedro Teixeira, Margarida Mendes Silva, Isabel Carrasquinho, Filipe Costa e Silva, Ana Usié, Liliana Marum, Luís Leal, Cristina Santos, Ana Almeida e José Manuel Rodrigues",null,"ICNF, INIAV, Raiz, Centro PINUS, Altri, ISA, CEBAL",null,"II","PT",2024,"castanheiro, eucalipto, fileira do pinho, pinho, sustentabilidade, pinheiro-bravo, pinheiro-manso, sobreiro, setor florestal, PROGEN",null,null,null,"O melhoramento genético florestalManuel Loureiro (coord.), com contributos de Rita Lourenço Costa, José Alexandre Araújo, Susana Carneiro, Pedro Teixeira, Margarida Mendes Silva, Isabel Carrasquinho, Filipe Costa e Silva, Ana Usié, Liliana Marum, Luís Leal, Cristina Santos, Ana Almeida e José Manuel RodriguesICNF, INIAV, Raiz, Centro PINUS, Altri, ISA, CEBALIIPT2024castanheiro, eucalipto, fileira do pinho, pinho, sustentabilidade, pinheiro-bravo, pinheiro-manso, sobreiro, setor florestal, PROGEN"]
[767,"Melhoramento genético de plantas no INIAV-Elvas: Obtenção de variedades",30,107,"Benvindo Maçãs, Rita Costa, Teresa Carita, Graça Pereira, António Manuel Cordeiro, Ana Sofia Bagulho, Nuno Simões, João Paulo Carneiro, Carla Inês, Isabel Duarte, Fernanda Simões, Teresa Carvalho, Nuno Pinheiro, Conceição Gomes, Armindo Costa, Carina Barcelos, Manuela Meneses, Cátia Nunes e José Pragana",null,"INIAV, Elvas",null,"II","PT",2024,"sistemas de agricultura, diversidade, variabilidade, variedades, cultivares, pecuária, olival, alterações climáticas",null,null,null,"Melhoramento genético de plantas no INIAV-Elvas: Obtenção de variedadesBenvindo Maçãs, Rita Costa, Teresa Carita, Graça Pereira, António Manuel Cordeiro, Ana Sofia Bagulho, Nuno Simões, João Paulo Carneiro, Carla Inês, Isabel Duarte, Fernanda Simões, Teresa Carvalho, Nuno Pinheiro, Conceição Gomes, Armindo Costa, Carina Barcelos, Manuela Meneses, Cátia Nunes e José PraganaINIAV, ElvasIIPT2024sistemas de agricultura, diversidade, variabilidade, variedades, cultivares, pecuária, olival, alterações climáticas"]
[768,"A contribuição do BPGV para o desenho contemporâneo da agricultura e alimentação",30,113,"Ana Maria Barata, Carlos Gaspar, Filomena Rocha, Isabel Silva, Madalena Vaz, Octávio Serra e Violeta Lopes",null,"Banco Português de Germoplasma Vegetal (BPGV)","Instituto Nacional de Investigação Agrária e Veterinária I.P. (INIAV)","II","PT",2024,"germoplasma vegetal, biodiversidade, recursos genéticos vegetais, Convenção sobre a Diversidade Biológica, plataforma Grin-Global, Svalbard Global Seed Vault",null,null,null,"A contribuição do BPGV para o desenho contemporâneo da agricultura e alimentaçãoAna Maria Barata, Carlos Gaspar, Filomena Rocha, Isabel Silva, Madalena Vaz, Octávio Serra e Violeta LopesBanco Português de Germoplasma Vegetal (BPGV)Instituto Nacional de Investigação Agrária e Veterinária I.P. (INIAV)IIPT2024germoplasma vegetal, biodiversidade, recursos genéticos vegetais, Convenção sobre a Diversidade Biológica, plataforma Grin-Global, Svalbard Global Seed Vault"]
[769,"AgroBioTech – Estudo de aplicação da biotecnologia na agricultura, alimentação e floresta em Portugal",30,125,"CAP – Confederação dos Agricultores de Portugal e P-BIO – Associação Portuguesa de Bioindústria","João Marques",null,null,"IIIB","PT",2024,"biotecnologia, bioeconomia, Novas Técnicas Genómicas (NTG), setor biotecnológico em Portugal, desafios",null,null,null,"AgroBioTech – Estudo de aplicação da biotecnologia na agricultura, alimentação e floresta em PortugalCAP – Confederação dos Agricultores de Portugal e P-BIO – Associação Portuguesa de BioindústriaJoão MarquesIIIBPT2024biotecnologia, bioeconomia, Novas Técnicas Genómicas (NTG), setor biotecnológico em Portugal, desafios"]
[770,"Novas técnicas genómicas – Revisão do estado de arte",30,128,"Broothaerts, W., Jacchia, S., Angers, A., Petrillo, M., Querci, M., Savini, C., Van den Eede, G. e Emons, H.","Ana Rita Moura e Carolina Carvalho","JRC – Centro Comum de Investigação, Comissão Europeia",null,"IIIB","PT",2024,"Novas Técnicas Genómicas (NTG), CRISPR-Cas9, edição genética, gene, genoma, nucleótido, mutação, ADN, ARN, epigenética",null,null,null,"Novas técnicas genómicas – Revisão do estado de arteBroothaerts, W., Jacchia, S., Angers, A., Petrillo, M., Querci, M., Savini, C., Van den Eede, G. e Emons, H.Ana Rita Moura e Carolina CarvalhoJRC – Centro Comum de Investigação, Comissão EuropeiaIIIBPT2024Novas Técnicas Genómicas (NTG), CRISPR-Cas9, edição genética, gene, genoma, nucleótido, mutação, ADN, ARN, epigenética"]
[771,"Capacidade do setor do melhoramento vegetal para enfrentar os desafios do abastecimento alimentar",30,134,"Anove – Asociación Nacional de Obtentores Vegetales; Institut Cerdà","Manuel Loureiro",null,null,"IIIB","PT",2024,"melhoramento genético, Novas Técnicas Genómicas (NTG), desafios futuros, sistemas agroalimentares",null,null,null,"Capacidade do setor do melhoramento vegetal para enfrentar os desafios do abastecimento alimentarAnove – Asociación Nacional de Obtentores Vegetales; Institut CerdàManuel LoureiroIIIBPT2024melhoramento genético, Novas Técnicas Genómicas (NTG), desafios futuros, sistemas agroalimentares"]
[772,"Sustentabilidade no melhoramento em produção biológica – Melhorar todo o sistema ou ajustar alguns genes?",30,136,"Helene Schmutzler","Ana Filipe Morais","IFOAM Organics Europe",null,"IIIB","PT",2024,"melhoramento em agricultura biológica, melhoramento genético, Novas Técnicas Genómicas (NTG), produção biológica, sustentabilidade, agroecossistemas",null,null,null,"Sustentabilidade no melhoramento em produção biológica – Melhorar todo o sistema ou ajustar alguns genes?Helene SchmutzlerAna Filipe MoraisIFOAM Organics EuropeIIIBPT2024melhoramento em agricultura biológica, melhoramento genético, Novas Técnicas Genómicas (NTG), produção biológica, sustentabilidade, agroecossistemas"]
[773,"Cultivar 31 - Sequeiro",31,1,"Gabinete de Planeamento, Políticas e Administração Geral (GPP)",null,null,null,null,"PT",2024,null,null,null,null,"Cultivar 31 - SequeiroGabinete de Planeamento, Políticas e Administração Geral (GPP)PT2024"]
[774,"Editorial",31,7,"Eduardo Diniz","Diretor-geral","Gabinete de Planeamento, Políticas e Administração Geral (GPP)",null,null,"PT",2024,"sequeiro, irrigação, agricultura extensiva, políticas públicas, viabilização do território",null,null,null,"EditorialEduardo DinizDiretor-geralGabinete de Planeamento, Políticas e Administração Geral (GPP)PT2024sequeiro, irrigação, agricultura extensiva, políticas públicas, viabilização do território"]
[775,"Gerir a escassez de água na agricultura de sequeiro exige uma abordagem integrada",31,13,"Maria Helena Semedo","Ex-Diretora-Geral Adjunta","FAO, Organização das Nações Unidas para a Alimentação e a Agricultura",null,"I","PT",2024,"gestão da escassez de água, alterações climáticas, partilha de dados, programas da FAO, abordagem holística, casos de sucesso, zonas áridas, constrangimentos, investigação",null,null,null,"Gerir a escassez de água na agricultura de sequeiro exige uma abordagem integradaMaria Helena SemedoEx-Diretora-Geral AdjuntaFAO, Organização das Nações Unidas para a Alimentação e a AgriculturaIPT2024gestão da escassez de água, alterações climáticas, partilha de dados, programas da FAO, abordagem holística, casos de sucesso, zonas áridas, constrangimentos, investigação"]
[776,"Managing water scarcity in rainfed agriculture requires an integrated approach",31,20,"Maria Helena Semedo","Ex-Diretora-Geral Adjunta",null,null,"I","PT",2024,"gestão da escassez de água, alterações climáticas, partilha de dados, programas da FAO, abordagem holística, casos de sucesso, zonas áridas, constrangimentos, investigação",null,null,null,"Managing water scarcity in rainfed agriculture requires an integrated approachMaria Helena SemedoEx-Diretora-Geral AdjuntaIPT2024gestão da escassez de água, alterações climáticas, partilha de dados, programas da FAO, abordagem holística, casos de sucesso, zonas áridas, constrangimentos, investigação"]
[777,"O sequeiro do Sul, viabilidade económica, perspectivas e políticas",31,25,"João Madeira","Engenheiro agrónomo e agricultor",null,null,"I","PT",2024,"solo, viabilidade, sustentabilidade, território, políticas públicas, aleatoriedade climática, gestão, agricultura extensiva, pastagens, raças autóctones, inovação, investigação, pastoreio",null,null,null,"O sequeiro do Sul, viabilidade económica, perspectivas e políticasJoão MadeiraEngenheiro agrónomo e agricultorIPT2024solo, viabilidade, sustentabilidade, território, políticas públicas, aleatoriedade climática, gestão, agricultura extensiva, pastagens, raças autóctones, inovação, investigação, pastoreio"]
[778,"Desafios e soluções para a agricultura de sequeiro no contexto das alterações climáticas",31,37,"Paulo Canaveira",null,"MARETEC/LARSyS, Instituto Superior Técnico; LEAF/TERRA, Instituto Superior de Agronomia",null,"I","PT",2024,"mudança climática, cultura resistente à seca, solo, diversificação cultural, agricultura de precisão, pecuária, emparcelamento, apoio público",null,null,null,"Desafios e soluções para a agricultura de sequeiro no contexto das alterações climáticasPaulo CanaveiraMARETEC/LARSyS, Instituto Superior Técnico; LEAF/TERRA, Instituto Superior de AgronomiaIPT2024mudança climática, cultura resistente à seca, solo, diversificação cultural, agricultura de precisão, pecuária, emparcelamento, apoio público"]
[779,"As alterações climáticas e a influência no setor agrícola",31,43,"Vanda Pires",null,"Instituto Português do Mar e da Atmosfera, I.P., Divisão de Clima e Alterações Climáticas",null,"I","PT",2024,"precipitação, cenários, IPCC, adaptação, seca, mitigação, prevenção",null,null,null,"As alterações climáticas e a influência no setor agrícolaVanda PiresInstituto Português do Mar e da Atmosfera, I.P., Divisão de Clima e Alterações ClimáticasIPT2024precipitação, cenários, IPCC, adaptação, seca, mitigação, prevenção"]
[780,"O que pensam os agricultores",31,55,"José Pedro Fragoso de Almeida, José Paulo Nunes, Fernando Carpinteiro Albino e Francisco\nAtaíde Pavão","agricultores","Coutadinha de Cima, ",null,"II","PT",2024,"sementeira direta, precipitação irregular, solo, pastagens, raças autóctones, inovação, investigação, alterações climáticas, pastoreio, gestão e prevenção de incêndios, medronho, cereais, renovação de gerações, azeite",null,null,null,"O que pensam os agricultoresJosé Pedro Fragoso de Almeida, José Paulo Nunes, Fernando Carpinteiro Albino e Francisco\nAtaíde PavãoagricultoresCoutadinha de Cima, IIPT2024sementeira direta, precipitação irregular, solo, pastagens, raças autóctones, inovação, investigação, alterações climáticas, pastoreio, gestão e prevenção de incêndios, medronho, cereais, renovação de gerações, azeite"]
[781,"Caracterização da agricultura de sequeiro em Portugal",31,67,"Rui Trindade, Rui Pereira e David Sousa",null,"Gabinete de Planeamento, Políticas e Administração Geral (GPP)",null,"II","PT",2024,"viabilidade, importância, território, culturas temporárias, pastagens permanentes, bovinos para carne",null,null,null,"Caracterização da agricultura de sequeiro em PortugalRui Trindade, Rui Pereira e David SousaGabinete de Planeamento, Políticas e Administração Geral (GPP)IIPT2024viabilidade, importância, território, culturas temporárias, pastagens permanentes, bovinos para carne"]
[782,"Agricultura de sequeiro − as políticas públicas e o seu impacto",31,81,"João Marques com o contributo de Maria Isabel Ferraz de Oliveira, Maria Helena Guimarães e Teresa Pinto Correia",null,"Gabinete de Planeamento, Políticas e Administração Geral (GPP), Instituto Mediterrâneo para a Agricultura, Ambiente e Desenvolvimento (MED), CHANGE – Instituto para as Alterações Globais e a Sustentabilidade, Universidade de Évora",null,"II","PT",2024,"Gestão do Montado por Resultados, políticas públicas, viabilidade, dinamização, resiliência, evolução da PAC, PEPAC, ",null,null,null,"Agricultura de sequeiro − as políticas públicas e o seu impactoJoão Marques com o contributo de Maria Isabel Ferraz de Oliveira, Maria Helena Guimarães e Teresa Pinto CorreiaGabinete de Planeamento, Políticas e Administração Geral (GPP), Instituto Mediterrâneo para a Agricultura, Ambiente e Desenvolvimento (MED), CHANGE – Instituto para as Alterações Globais e a Sustentabilidade, Universidade de ÉvoraIIPT2024Gestão do Montado por Resultados, políticas públicas, viabilidade, dinamização, resiliência, evolução da PAC, PEPAC, "]
[783,"O Montado da serra de Serpa",31,91,"Inocêncio Seita Coelho e David Henrique Machado",null,"\nRota Do Guadiana - Associação Desenvolvimento Integrado",null,"II","PT",2024,"sistema agrosilvopastoril, história,  Sistema Importante do Património Agrícola Mundial (SIPAM/GIAHS), Dieta Mediterrânica",null,null,null,"O Montado da serra de SerpaInocêncio Seita Coelho e David Henrique Machado\nRota Do Guadiana - Associação Desenvolvimento IntegradoIIPT2024sistema agrosilvopastoril, história,  Sistema Importante do Património Agrícola Mundial (SIPAM/GIAHS), Dieta Mediterrânica"]
[784,"Sequeiro, viticultura e fruticultura",31,97,"Pedro Castro Rego, Armando Torres Paulo e Jorge Soares",null,"Gabinete de Planeamento, Políticas e Administração Geral (GPP), Pera Rocha do Oeste e Maçã de Alcobaça",null,"II","PT",2024,"sequeiro, regadio, vantagens, desvantagens, produtividade e competitividade, irrigação, escassez de água, ciclo da água",null,null,null,"Sequeiro, viticultura e fruticulturaPedro Castro Rego, Armando Torres Paulo e Jorge SoaresGabinete de Planeamento, Políticas e Administração Geral (GPP), Pera Rocha do Oeste e Maçã de AlcobaçaIIPT2024sequeiro, regadio, vantagens, desvantagens, produtividade e competitividade, irrigação, escassez de água, ciclo da água"]
[785,"Cultivar os mercados voluntários de carbono e a biodiversidade − oportunidade para o sequeiro nacional",31,103,"José Rafael Marques da Silva, Carlos Palma, Filipa Santos, Filipe Vieira, Ivan Lopez, Leonor Queiroga,\nLuís Encarnação, Luís Paixão, Manuela Correia, Mariano Terron, Miguel Messias, Patrícia\nLourenço, Pedro Mendes, Rita Serrenho, Vanessa Duarte e Mário Luís",null,"Agroinsider Lda, Universidade de Évora, MED – Instituto Mediterrâneo para a Agricultura, Ambiente e Desenvolvimento, CHANGE – Instituto para as Alterações Globais e Sustentabilidade",null,"II","PT",2024,"sustentabilidade, solo, sequestro de carbono, sumidouro de carbono, granulometria, pH, fertilidade, teor de matéria orgânica, QU.A.L.ITY., QU.A.L.IDADE, floresta, árvores",null,null,null,"Cultivar os mercados voluntários de carbono e a biodiversidade − oportunidade para o sequeiro nacionalJosé Rafael Marques da Silva, Carlos Palma, Filipa Santos, Filipe Vieira, Ivan Lopez, Leonor Queiroga,\nLuís Encarnação, Luís Paixão, Manuela Correia, Mariano Terron, Miguel Messias, Patrícia\nLourenço, Pedro Mendes, Rita Serrenho, Vanessa Duarte e Mário LuísAgroinsider Lda, Universidade de Évora, MED – Instituto Mediterrâneo para a Agricultura, Ambiente e Desenvolvimento, CHANGE – Instituto para as Alterações Globais e SustentabilidadeIIPT2024sustentabilidade, solo, sequestro de carbono, sumidouro de carbono, granulometria, pH, fertilidade, teor de matéria orgânica, QU.A.L.ITY., QU.A.L.IDADE, floresta, árvores"]
[786,"Estado da arte dos mercados voluntários de carbono",31,113,"Bernardo Machado",null,"Instituto Superior de Agronomia, Universidade de Lisboa; Programa de Intercâmbio da IAAS Portugal",null,"II","PT",2024,"branqueamento ecológico, greenwashing, critérios de certificação, armazenamento permanente de carbono, agricultura de baixo carbono, armazenamento de carbono em produtos, QU.A.L.ITY., QU.A.L.IDADE, adicionalidade",null,null,null,"Estado da arte dos mercados voluntários de carbonoBernardo MachadoInstituto Superior de Agronomia, Universidade de Lisboa; Programa de Intercâmbio da IAAS PortugalIIPT2024branqueamento ecológico, greenwashing, critérios de certificação, armazenamento permanente de carbono, agricultura de baixo carbono, armazenamento de carbono em produtos, QU.A.L.ITY., QU.A.L.IDADE, adicionalidade"]
[787,"Portugal Mediterrânico: o Alentejo e a Beira Baixa no início do século XIX",31,119,"Albert Silbert, Orlando Ribeiro, 1970","João Marques","Gabinete de Planeamento, Políticas e Administração Geral (GPP)",null,"IIIB","PT",2024,"Alentejo, Beira Baixa, século XIX, coletivismo, classes socias, cereais, incultos, criação de gado, culturas mimosas",null,null,null,"Portugal Mediterrânico: o Alentejo e a Beira Baixa no início do século XIXAlbert Silbert, Orlando Ribeiro, 1970João MarquesGabinete de Planeamento, Políticas e Administração Geral (GPP)IIIBPT2024Alentejo, Beira Baixa, século XIX, coletivismo, classes socias, cereais, incultos, criação de gado, culturas mimosas"]
[788,"As guerras do trigo − uma história geopolítica dos cereais",31,124,"Scott Reynolds Nelson, 2022","Ana Filipe de Morais","Gabinete de Planeamento, Políticas e Administração Geral (GPP)",null,"IIIB","PT",2024,"cereais, rotas do trigo, armazenamento, distribuição, comercialização, exportação, alimentação",null,null,null,"As guerras do trigo − uma história geopolítica dos cereaisScott Reynolds Nelson, 2022Ana Filipe de MoraisGabinete de Planeamento, Políticas e Administração Geral (GPP)IIIBPT2024cereais, rotas do trigo, armazenamento, distribuição, comercialização, exportação, alimentação"]
[789,"Pomar de sequeiro − Dieta Mediterrânica | Algarve",31,129,"Artur Barracosa Mendonça et al., 2023","Carolina Carvalho","Gabinete de Planeamento, Políticas e Administração Geral (GPP)",null,"IIIB","PT",2024,"pomar de sequeiro; Algarve; oliveira; figueira; alfarrobeira; amendoeira; Dieta Mediterrânica",null,null,null,"Pomar de sequeiro − Dieta Mediterrânica | AlgarveArtur Barracosa Mendonça et al., 2023Carolina CarvalhoGabinete de Planeamento, Políticas e Administração Geral (GPP)IIIBPT2024pomar de sequeiro; Algarve; oliveira; figueira; alfarrobeira; amendoeira; Dieta Mediterrânica"]
[790,"Escassez de água na agricultura: uma preocupação global",31,133,"Conferência Ministerial Agrícola dos países do MED9, 2024","Ana Sofia Sampaio","Gabinete de Planeamento, Políticas e Administração Geral (GPP)",null,"IIIB","PT",2024,"seca, reutilização sustentável de águas residuais na agricultura, Declaração de Roma sobre Escassez de Água na Agricultura, Conferência Ministerial Agrícola MED9, alterações climáticas, índice de seca SPEI, Mediterrâneo",null,null,null,"Escassez de água na agricultura: uma preocupação globalConferência Ministerial Agrícola dos países do MED9, 2024Ana Sofia SampaioGabinete de Planeamento, Políticas e Administração Geral (GPP)IIIBPT2024seca, reutilização sustentável de águas residuais na agricultura, Declaração de Roma sobre Escassez de Água na Agricultura, Conferência Ministerial Agrícola MED9, alterações climáticas, índice de seca SPEI, Mediterrâneo"]
[791,null,null,null,null,null,null,null,null,null,null,null,null,null,null,""]
[792,null,null,null,null,null,null,null,null,null,null,null,null,null,null,""]
[793,null,null,null,null,null,null,null,null,null,null,null,null,null,null,""]
[794,null,null,null,null,null,null,null,null,null,null,null,null,null,null,""]
[795,null,null,null,null,null,null,null,null,null,null,null,null,null,null,""]
[796,null,null,null,null,null,null,null,null,null,null,null,null,null,null,""]
[797,null,null,null,null,null,null,null,null,null,null,null,null,null,null,""]
[798,null,null,null,null,null,null,null,null,null,null,null,null,null,null,""]
[799,null,null,null,null,null,null,null,null,null,null,null,null,null,null,""]
[800,null,null,null,null,null,null,null,null,null,null,null,null,null,null,""]
[801,null,null,null,null,null,null,null,null,null,null,null,null,null,null,""]
[802,null,null,null,null,null,null,null,null,null,null,null,null,null,null,""]
[{"$f":"+MAX(A194:A525)+1","v":803},null,null,null,null,null,null,null,null,null,null,null,null,null,null,""]
[804,null,null,null,null,null,null,null,null,null,null,null,null,null,null,""]
[805,null,null,null,null,null,null,null,null,null,null,null,null,null,null,""]
[806,null,null,null,null,null,null,null,null,null,null,null,null,null,null,""]
[807,null,null,null,null,null,null,null,null,null,null,null,null,null,null,""]
[808,null,null,null,null,null,null,null,null,null,null,null,null,null,null,""]
[809,null,null,null,null,null,null,null,null,null,null,null,null,null,null,""]
[810,null,null,null,null,null,null,null,null,null,null,null,null,null,null,""]
[811,null,null,null,null,null,null,null,null,null,null,null,null,null,null,""]
[812,null,null,null,null,null,null,null,null,null,null,null,null,null,null,""]
[813,null,null,null,null,null,null,null,null,null,null,null,null,null,null,""]
[814,null,null,null,null,null,null,null,null,null,null,null,null,null,null,""]
[815,null,null,null,null,null,null,null,null,null,null,null,null,null,null,""]
[816,null,null,null,null,null,null,null,null,null,null,null,null,null,null,""]
[817,null,null,null,null,null,null,null,null,null,null,null,null,null,null,""]
[818,null,null,null,null,null,null,null,null,null,null,null,null,null,null,""]
[819,null,null,null,null,null,null,null,null,null,null,null,null,null,null,""]
[820,null,null,null,null,null,null,null,null,null,null,null,null,null,null,""]
[821,null,null,null,null,null,null,null,null,null,null,null,null,null,null,""]
[822,null,null,null,null,null,null,null,null,null,null,null,null,null,null,""]
[823,null,null,null,null,null,null,null,null,null,null,null,null,null,null,{"$f":"+B546&E546&F546&G546&H546&I546&J546&K546&L546","v":""}]
[824,null,null,null,null,null,null,null,null,null,null,null,null,null,null,""]
[825,null,null,null,null,null,null,null,null,null,null,null,null,null,null,""]
[826,null,null,null,null,null,null,null,null,null,null,null,null,null,null,""]
[827,null,null,null,null,null,null,null,null,null,null,null,null,null,null,""]
[828,null,null,null,null,null,null,null,null,null,null,null,null,null,null,""]
[829,null,null,null,null,null,null,null,null,null,null,null,null,null,null,""]
[830,null,null,null,null,null,null,null,null,null,null,null,null,null,null,""]
[831,null,null,null,null,null,null,null,null,null,null,null,null,null,null,""]
[832,null,null,null,null,null,null,null,null,null,null,null,null,null,null,""]
[833,null,null,null,null,null,null,null,null,null,null,null,null,null,null,""]
[834,null,null,null,null,null,null,null,null,null,null,null,null,null,null,""]
[835,null,null,null,null,null,null,null,null,null,null,null,null,null,null,""]
[836,null,null,null,null,null,null,null,null,null,null,null,null,null,null,""]
[837,null,null,null,null,null,null,null,null,null,null,null,null,null,null,""]
[838,null,null,null,null,null,null,null,null,null,null,null,null,null,null,""]
[839,null,null,null,null,null,null,null,null,null,null,null,null,null,null,""]
[840,null,null,null,null,null,null,null,null,null,null,null,null,null,null,""]
[841,null,null,null,null,null,null,null,null,null,null,null,null,null,null,""]
[842,null,null,null,null,null,null,null,null,null,null,null,null,null,null,""]
[843,null,null,null,null,null,null,null,null,null,null,null,null,null,null,""]
[844,null,null,null,null,null,null,null,null,null,null,null,null,null,null,""]
[845,null,null,null,null,null,null,null,null,null,null,null,null,null,null,""]
[846,null,null,null,null,null,null,null,null,null,null,null,null,null,null,""]
[847,null,null,null,null,null,null,null,null,null,null,null,null,null,null,""]
[848,null,null,null,null,null,null,null,null,null,null,null,null,null,null,""]
[849,null,null,null,null,null,null,null,null,null,null,null,null,null,null,""]
[850,null,null,null,null,null,null,null,null,null,null,null,null,null,null,""]
[851,null,null,null,null,null,null,null,null,null,null,null,null,null,null,""]
[852,null,null,null,null,null,null,null,null,null,null,null,null,null,null,""]
[853,null,null,null,null,null,null,null,null,null,null,null,null,null,null,""]
[854,null,null,null,null,null,null,null,null,null,null,null,null,null,null,""]
[855,null,null,null,null,null,null,null,null,null,null,null,null,null,null,""]
[856,null,null,null,null,null,null,null,null,null,null,null,null,null,null,""]
[857,null,null,null,null,null,null,null,null,null,null,null,null,null,null,""]
[858,null,null,null,null,null,null,null,null,null,null,null,null,null,null,""]
[859,null,null,null,null,null,null,null,null,null,null,null,null,null,null,""]
[860,null,null,null,null,null,null,null,null,null,null,null,null,null,null,""]
[861,null,null,null,null,null,null,null,null,null,null,null,null,null,null,""]
[862,null,null,null,null,null,null,null,null,null,null,null,null,null,null,""]
[863,null,null,null,null,null,null,null,null,null,null,null,null,null,null,""]
[864,null,null,null,null,null,null,null,null,null,null,null,null,null,null,""]
[865,null,null,null,null,null,null,null,null,null,null,null,null,null,null,""]
[866,null,null,null,null,null,null,null,null,null,null,null,null,null,null,""]
[{"$f":"+MAX(A258:A589)+1","v":867},null,null,null,null,null,null,null,null,null,null,null,null,null,null,""]
[868,null,null,null,null,null,null,null,null,null,null,null,null,null,null,""]
[869,null,null,null,null,null,null,null,null,null,null,null,null,null,null,""]
[870,null,null,null,null,null,null,null,null,null,null,null,null,null,null,""]
[871,null,null,null,null,null,null,null,null,null,null,null,null,null,null,""]
[872,null,null,null,null,null,null,null,null,null,null,null,null,null,null,""]
[873,null,null,null,null,null,null,null,null,null,null,null,null,null,null,""]
[874,null,null,null,null,null,null,null,null,null,null,null,null,null,null,""]
[875,null,null,null,null,null,null,null,null,null,null,null,null,null,null,""]
[876,null,null,null,null,null,null,null,null,null,null,null,null,null,null,""]
[877,null,null,null,null,null,null,null,null,null,null,null,null,null,null,""]
[878,null,null,null,null,null,null,null,null,null,null,null,null,null,null,""]
[879,null,null,null,null,null,null,null,null,null,null,null,null,null,null,""]
[880,null,null,null,null,null,null,null,null,null,null,null,null,null,null,""]
[881,null,null,null,null,null,null,null,null,null,null,null,null,null,null,""]
[882,null,null,null,null,null,null,null,null,null,null,null,null,null,null,""]
[883,null,null,null,null,null,null,null,null,null,null,null,null,null,null,""]
[884,null,null,null,null,null,null,null,null,null,null,null,null,null,null,""]
[885,null,null,null,null,null,null,null,null,null,null,null,null,null,null,""]
[886,null,null,null,null,null,null,null,null,null,null,null,null,null,null,""]
[887,null,null,null,null,null,null,null,null,null,null,null,null,null,null,{"$f":"+B610&E610&F610&G610&H610&I610&J610&K610&L610","v":""}]
[888,null,null,null,null,null,null,null,null,null,null,null,null,null,null,""]
[889,null,null,null,null,null,null,null,null,null,null,null,null,null,null,""]
[890,null,null,null,null,null,null,null,null,null,null,null,null,null,null,""]
[891,null,null,null,null,null,null,null,null,null,null,null,null,null,null,""]
[892,null,null,null,null,null,null,null,null,null,null,null,null,null,null,""]
[893,null,null,null,null,null,null,null,null,null,null,null,null,null,null,""]
[894,null,null,null,null,null,null,null,null,null,null,null,null,null,null,""]
[895,null,null,null,null,null,null,null,null,null,null,null,null,null,null,""]
[896,null,null,null,null,null,null,null,null,null,null,null,null,null,null,""]
[897,null,null,null,null,null,null,null,null,null,null,null,null,null,null,""]
[898,null,null,null,null,null,null,null,null,null,null,null,null,null,null,""]
[899,null,null,null,null,null,null,null,null,null,null,null,null,null,null,""]
[900,null,null,null,null,null,null,null,null,null,null,null,null,null,null,""]
[901,null,null,null,null,null,null,null,null,null,null,null,null,null,null,""]
[902,null,null,null,null,null,null,null,null,null,null,null,null,null,null,""]
[903,null,null,null,null,null,null,null,null,null,null,null,null,null,null,""]
[904,null,null,null,null,null,null,null,null,null,null,null,null,null,null,""]

{"sheet":"Sheet2","index":2,"n_rows":574,"n_cols":23,"rows_kept":574,"cut":false,"hidden":true,"merged":[]}
[]
[]
[null,{"$f":"+COUNT(Sheet1!A2:A333)","v":332}]
[null,null,null,null,null,null,null,null,null,null,{"$f":"+INDEX(Sheet1!$C$2:$C$1002,MATCH(Sheet2!$I$6,Sheet1!$A$2:$A$1002,0))","v":{"$error":"#VALUE!"}},{"$f":"+INDEX(Sheet1!$D$2:$D$1002,MATCH(Sheet2!$I$6,Sheet1!$A$2:$A$1002,0))","v":{"$error":"#VALUE!"}},{"$f":"+INDEX(Links1_10!B2:B50,MATCH(Sheet2!K4,Links1_10!A2:A50,0))","v":{"$error":"#VALUE!"}}]
[]
[{"$f":"+INDEX(A8:A241,G7)","v":{"$error":"#VALUE!"}},null,null,null,null,null,{"$f":"+INDEX(G8:G1000,G7)","v":{"$error":"#VALUE!"}},null,{"$f":"+INDEX(J8:J149,J6)","v":{"$error":"#VALUE!"}},0,null,null,null,null,null,null,null,null,null,null,null,null,{"$f":"+INDEX(W9:W11,W7)","v":"Tema"}]
["Nº","Tema","Data",null,null,null,0,null,null,"id","TituloArtigo","Nº","Pagina","Autor1","Autor2","Entidade1","Entidade2","CodSeccao","Lingua","AnoPublicação","Palavras-chave",2,1]
[1,"Volatilidade dos mercados","2015-06-01",{"$f":"+A8& \" - \" &B8","v":"1 - Volatilidade dos mercados"},null,null,{"$f":"+IF($W$7=1,D8,IF($W$7=2,H8,$G$7))","v":"1 - Volatilidade dos mercados"},"Abílio Dias Fernandes",{"$f":"IF(J8>0, \"Tema \" & L8 & \"  -  \" & K8,\"\" )","v":""},null,null,null,null,null,null,null,null,null,null,null,null,"ID1","tipo pesquisa"]
[2,"Solo","2015-11-01",{"$f":"+A9& \" - \" &B9","v":"2 - Solo"},null,null,{"$f":"+IF($W$7=1,D9,IF($W$7=2,H9,$G$7))","v":"2 - Solo"},"Adam Smith",{"$f":"IF(J9>0, \"Tema \" & L9 & \"  -  \" & K9,\"\" )","v":""},null,null,null,null,null,null,null,null,null,null,null,null,1,"Tema"]
[3,"Alimentação sustentável e saudável","2016-03-01","3 - Alimentação sustentável e saudável",null,null,"3 - Alimentação sustentável e saudável","Aida Campos e Narcisa Bandarra","",null,null,null,null,null,null,null,null,null,null,null,null,2,"Autor"]
[4,"Tecnologia","2016-06-01","4 - Tecnologia",null,null,"4 - Tecnologia","Alan Matthews","",null,null,null,null,null,null,null,null,null,null,null,null,3,"Livre"]
[5,"Economia da água","2016-09-01","5 - Economia da água",null,null,"5 - Economia da água","Albert Silbert, Orlando Ribeiro, 1970",""]
[6,"Comércio internacional","2016-11-01","6 - Comércio internacional",null,null,"6 - Comércio internacional","Alberto Ribeiro de Almeida",""]
[7,"O risco na atividade económica","2017-03-01","7 - O risco na atividade económica",null,null,"7 - O risco na atividade económica","Alessando Gargani, Gianluca Massimi, Vincent Floreani e Balazs Podmaniczky",""]
[8,"Biodiversidade","2017-06-01","8 - Biodiversidade",null,null,"8 - Biodiversidade","Alexandra Prado Coelho",""]
[9,"Gastronomia","2017-09-01","9 - Gastronomia",null,null,"9 - Gastronomia","Alfredo Cunhal Sendim",""]
[10,"Trabalho na agricultura e novas tendências laborais","2017-12-01","10 - Trabalho na agricultura e novas tendências laborais",null,null,"10 - Trabalho na agricultura e novas tendências laborais","Alfredo Serra Mendes",""]
[11,"População e território rural","2018-03-01","11 - População e território rural",null,null,"11 - População e território rural","Álvaro Garrido",""]
[12,"Alterações climáticas","2018-06-01","12 - Alterações climáticas",null,null,"12 - Alterações climáticas","Ana Costa Freitas",""]
[13,"A cadeia de valor do setor agroalimentar","2018-09-01","13 - A cadeia de valor do setor agroalimentar",null,null,"13 - A cadeia de valor do setor agroalimentar","Ana Filipa Fernandes e Guilherme Azambuja",""]
[14,"O eucalipto","2018-12-01","14 - O eucalipto",null,null,"14 - O eucalipto","Ana Filipe de Morais",""]
[15,"Bioeconomia","2019-03-01","15 - Bioeconomia",null,null,"15 - Bioeconomia","Ana Maria Barata, Carlos Gaspar, Filomena Rocha, Isabel Silva, Madalena Vaz, Octávio Serra e Violeta Lopes",""]
[16,"Digitalização","2019-06-01","16 - Digitalização",null,null,"16 - Digitalização","Ana Maria Barata, Carlos Gaspar, Filomena Rocha, Violeta Lopes",""]
[17,"Ensino  agrícola","2019-09-19","17 - Ensino  agrícola",null,null,"17 - Ensino  agrícola","Ana Rita Moura",""]
[18,"Energia na agricultura","2019-12-01","18 - Energia na agricultura",null,null,"18 - Energia na agricultura","Ana Rita Moura e Ana Teresa Silva",""]
[19,"Macroeconomia e agricultura","2020-04-20","19 - Macroeconomia e agricultura",null,null,"19 - Macroeconomia e agricultura","Ana Rita Moura e Rui Trindade",""]
[20,"Abastecimento alimentar: que fronteiras?","2020-08-20","20 - Abastecimento alimentar: que fronteiras?",null,null,"20 - Abastecimento alimentar: que fronteiras?","Ana Sofia Sampaio",""]
[21,"Sistemas agroflorestais","2020-12-31",{"$f":"+A28& \" - \" &B28","v":"21 - Sistemas agroflorestais"},null,null,"21 - Sistemas agroflorestais","Anove – Asociación Nacional de Obtentores Vegetales; Institut Cerdà",""]
["22a","Edição especial (PT)","2021-04-01",{"$f":"+A29& \" - \" &B29","v":"22a - Edição especial (PT)"},null,null,"22a - Edição especial (PT)","ANSEME e Plataforma Transgénicos Fora",""]
["22b","Special issue (EN)","2021-04-01",{"$f":"+A30& \" - \" &B30","v":"22b - Special issue (EN)"},null,null,"22b - Special issue (EN)","Antero Martins e Elsa Gonçalves",""]
[23,"Impactos agroambientais: metodologias de quantificação e valorização económica","2021-08-01","23 - Impactos agroambientais: metodologias de quantificação e valorização económica",null,null,"23 - Impactos agroambientais: metodologias de quantificação e valorização económica","António Alberto Gonçalves Ferreira e António Gonçalves Ferreira",""]
[24,"A vinha e o vinho","2021-12-01","24 - A vinha e o vinho",null,null,"24 - A vinha e o vinho","António Cerca Miguel",""]
[25,"Investimento na agricultura","2022-04-01","25 - Investimento na agricultura",null,null,"25 - Investimento na agricultura","António Cunha",""]
[26,"Agricultura biológica e outros modos de produção sustentável","2022-09-01","26 - Agricultura biológica e outros modos de produção sustentável",null,null,"26 - Agricultura biológica e outros modos de produção sustentável","Antonio Duarte Pinho",""]
[27,"Custos de contexto","2023-01-01","27 - Custos de contexto",null,null,"27 - Custos de contexto","Antonio Fontainhas Fernandes",""]
[28,"Estruturas agrárias","2023-06-01","28 - Estruturas agrárias",null,null,"28 - Estruturas agrárias","António Garcia Pereira",""]
[29,"Indústria agroalimentar","2023-12-01","29 - Indústria agroalimentar",null,null,"29 - Indústria agroalimentar","António Serrano",""]
[30,"Melhoramento e técnicas genómicas","2024-04-01","30 - Melhoramento e técnicas genómicas",null,null,"30 - Melhoramento e técnicas genómicas","Artur Barracosa Mendonça et al., 2023",""]
[31,"Sequeiro","2024-08-01","31 - Sequeiro",null,null,"31 - Sequeiro","Artur Cristóvão, António Montalvão Machado e António Cerca Miguel",""]
[null,null,null," - ",null,null," - ","Augusto Mateus & Associados, Sociedade de Consultores, Lda.",""]
[null,null,null," - ",null,null," - ","Bee Wilson",""]
[null,null,null," - ",null,null," - ","Benvindo Maçãs, Rita Costa, Teresa Carita, Graça Pereira, António Manuel Cordeiro, Ana Sofia Bagulho, Nuno Simões, João Paulo Carneiro, Carla Inês, Isabel Duarte, Fernanda Simões, Teresa Carvalho, Nuno Pinheiro, Conceição Gomes, Armindo Costa, Carina Barcelos, Manuela Meneses, Cátia Nunes e José Pragana",""]
[null,null,null," - ",null,null," - ","Bernardo Gouvêa",""]
[null,null,null," - ",null,null," - ","Bernardo Machado",""]
[null,null,null," - ",null,null," - ","Broothaerts, W., Jacchia, S., Angers, A., Petrillo, M., Querci, M., Savini, C., Van den Eede, G. e Emons, H.",""]
[null,null,null," - ",null,null," - ","Bruno Dimas",""]
[null,null,null," - ",null,null," - ","Bruno Dimas e Ana Rita Moura",""]
[null,null,null," - ",null,null," - ","Bruno Dimas e Rui Pereira",""]
[null,null,null," - ",null,null," - ","CAP – Confederação dos Agricultores de Portugal e P-BIO – Associação Portuguesa de Bioindústria",""]
[null,null,null," - ",null,null," - ","Carlo Pettinelli e Jaroslaw Swierczynar",""]
[null,null,null,{"$f":"+A51& \" - \" &B51","v":" - "},null,null,{"$f":"+IF($W$7=1,D51,IF($W$7=2,H51,$G$7))","v":" - "},"Carlos Aguiar e Ana Carvalho",""]
[null,null,null," - ",null,null," - ","Carlos Alberto Frutuosa",""]
[null,null,null," - ",null,null," - ","Carlos Brito",""]
[null,null,null," - ",null,null," - ","Carlos Carvalho",""]
[null,null,null," - ",null,null," - ","Carlos Guimarães Pinto",""]
[null,null,null," - ",null,null," - ","Carlos Moedas",""]
[null,null,null," - ",null,null," - ","Carlos Neves",""]
[null,null,null," - ",null,null," - ","Carlos Oliveira Santos",""]
[null,null,null," - ",null,null," - ","Catarina Ginja e Carolina Bruno de Sousa",""]
[null,null,null," - ",null,null," - ","Catarina Grilo e Tiago Luís",""]
[null,null,null," - ",null,null," - ","Catherine Geslain-Laneelle",""]
[null,null,null," - ",null,null," - ","Christine Tacon",""]
[null,null,null," - ",null,null," - ","Clara Moura Guedes",""]
[null,null,null," - ",null,null," - ","Cláudia Gonçalves",""]
[null,null,null," - ",null,null," - ","Comissão Europeia",""]
[null,null,null," - ",null,null," - ","Comissão Europeia, Publications Office of the European Union, Luxemburgo",""]
[null,null,null," - ",null,null," - ","Conferência Ministerial Agrícola dos países do MED9, 2024",""]
[null,null,null," - ",null,null," - ","Cristiana Vaz",""]
[null,null,null," - ",null,null," - ","Cristina Branquinho, Vânia Proença, Filipa Grilo, Idalina Dias Sardinha, Margarida Lima Faria, José Carlos Franco, Rui Figueira, Maria Manuel Romeiras, Filipa Monteiro, Luís F. Goulão, Margarida Santos-Reis",""]
[null,null,null," - ",null,null," - ","Cristina Neves",""]
[null,null,null," - ",null,null," - ","Diana Silva e Maria João Valentim",""]
[null,null,null," - ",null,null," - ","Diogo Amorim",""]
[null,null,null," - ",null,null," - ","Direção-Geral de Agricultura e Desenvolvimento Rural (DGADR)",{"$f":"IF(J73>0, \"Tema \" & L73 & \"  -  \" & K73,\"\" )","v":""}]
[null,null,null," - ",null,null," - ","Direção-Geral de Política do Mar (DGPM)",""]
[null,null,null," - ",null,null," - ","Domingos Patacho",""]
[null,null,null," - ",null,null," - ","Eduardo Diniz",""]
[null,null,null," - ",null,null," - ","Eduardo Diniz e Bruno Dimas",""]
[null,null,null," - ",null,null," - ","Eduardo Diniz, Cristina Vasques e Paula Carvalho",""]
[null,null,null," - ",null,null," - ","Elisabete Figueiredo",""]
[null,null,null," - ",null,null," - ","Elizabete Marchante e Hélia Marchante",""]
[null,null,null," - ",null,null," - ","Eugénio Sequeira",""]
[null,null,null," - ",null,null," - ","FAO - Organização das Nações Unidas para a Alimentação e a Agricultura",""]
[null,null,null," - ",null,null," - ","Fátima Baptista",""]
[null,null,null," - ",null,null," - ","Fátima Leitão",""]
[null,null,null," - ",null,null," - ","Federação das Indústrias Portuguesas Agroalimentares (FIPA)",""]
[null,null,null," - ",null,null," - ","Fernando Bianchi de Aguiar",""]
[null,null,null," - ",null,null," - ","Fernando Chagas Duarte",""]
[null,null,null," - ",null,null," - ","Fernando Oliveira Baptista e Joaquim Cabral Rolo",""]
[null,null,null," - ",null,null," - ","Filipe Charters de Azevedo",""]
[null,null,null," - ",null,null," - ","Francesco Castellano, Riccardo Pignatti e Letizia Ingaldo",""]
[null,null,null," - ",null,null," - ","Francisca Marçal \nSantos",""]
[null,null,null," - ",null,null," - ","Francisco Avillez e Mário de Carvalho",""]
[null,null,null," - ",null,null," - ","Francisco Avillez, Miguel Vieira Lopes e Gonçalo Vale",""]
[null,null,null," - ",null,null," - ","Francisco Bendrao Sarmento",""]
[null,null,null," - ",null,null," - ","Francisco Cordovil",""]
[null,null,null," - ",null,null," - ","Francisco Ferreira",""]
[null,null,null," - ",null,null," - ","Francisco Gírio",""]
[null,null,null," - ",null,null," - ","Francisco Gomes da Silva",""]
[null,null,null," - ",null,null," - ","Francisco Moreira e Ângela Lomba",""]
[null,null,null," - ",null,null," - ","Francisco Nunes Correia",""]
[null,null,null," - ",null,null," - ","Francisco Ónega López",""]
[null,null,null," - ",null,null," - ","Francisco Sarmento",""]
[null,null,null," - ",null,null," - ","Francisco Toscano Rico",""]
[null,null,null," - ",null,null," - ","Gabinete de Planeamento, Políticas e Administração Geral (GPP)",""]
[null,null,null," - ",null,null," - ","Gabinete de Planeamento, Políticas e Administração Geral (GPP) e Direção-Geral de Agricultura e Desenvolvimento Rural (DGADR)",""]
[null,null,null," - ",null,null," - ","Gabinete de Planeamento, Políticas e Administração Geral (GPP) e Instituto Nacional de Investigação Agrária e Veterinária (INIAV)",""]
[null,null,null," - ",null,null," - ","Gabinete de Planeamento, Políticas e Administração Geral (GPP), Direção-Geral de Agricultura e Desenvolvimento Rural (DGADR) e Agência Portuguesa do Ambiente (APA)",""]
[null,null,null," - ",null,null," - ","Gabriela Cruz",""]
[null,null,null," - ",null,null," - ","George Sandeman",""]
[null,null,null," - ",null,null," - ","Gilles Morel",""]
[null,null,null," - ",null,null," - ","Global Commission on the Geopolitics of Energy Transformation",""]
[null,null,null," - ",null,null," - ","Gonçalo Santos Andrade",""]
[null,null,null," - ",null,null," - ","Helder Muteia",""]
[null,null,null," - ",null,null," - ","Helena Sequeira ",""]
[null,null,null,{"$f":"+A115& \" - \" &B115","v":" - "},null,null,{"$f":"+IF($W$7=1,D115,IF($W$7=2,H115,$G$7))","v":" - "},"Helene Schmutzler",""]
[null,null,null," - ",null,null," - ","Henrique Gomes",""]
[null,null,null," - ",null,null," - ","Henrique Pereira dos Santos",""]
[null,null,null," - ",null,null," - ","Henrique Soares e Pedro Castro Rego",""]
[null,null,null," - ",null,null," - ","Hervé Guyomard, Alix Bell e Cécile Détang-Dessendre",""]
[null,null,null," - ",null,null," - ","Humberto Delgado Rosa",""]
[null,null,null," - ",null,null," - ","Igor Gonçalves, Cristina Carlos e Rosa Amador",""]
[null,null,null," - ",null,null," - ","Inês Costa",""]
[null,null,null," - ",null,null," - ","Inês Morais, Paula Rodrigues e Laura Rodrigues",""]
[null,null,null," - ",null,null," - ","Inocêncio Seita Coelho e David Henrique Machado",""]
[null,null,null," - ",null,null," - ","Instituto da Conservação da Natureza e das Florestas, I.P. (ICNF)",""]
[null,null,null," - ",null,null," - ","Isabel Apolinário",""]
[null,null,null," - ",null,null," - ","Isabel Botelho Leal",""]
[null,null,null," - ",null,null," - ","Isabel Escada Mendes",""]
[null,null,null," - ",null,null," - ","Isabel Ribeiro",""]
[null,null,null," - ",null,null," - ","Isabel Rodrigo",""]
[null,null,null," - ",null,null," - ","Jaime Braga",""]
[null,null,null," - ",null,null," - ","Jaime Ferreira",""]
[null,null,null," - ",null,null," - ","Jaime Piçarra",""]
[null,null,null," - ",null,null," - ","Jean Cordier",""]
[null,null,null," - ",null,null," - ","Joana Amaral Paulo",""]
[null,null,null," - ",null,null," - ","Joana Simão Costa, Vasco Ferreira e Paula Pinho",""]
[null,null,null," - ",null,null," - ","João Cardoso",{"$f":"IF(J137>0, \"Tema \" & L137 & \"  -  \" & K137,\"\" )","v":""}]
[null,null,null," - ",null,null," - ","João Carlos Verde",""]
[null,null,null," - ",null,null," - ","João Coimbra",""]
[null,null,null," - ",null,null," - ","João Crisóstomo",""]
[null,null,null," - ",null,null," - ","João Ferrão",""]
[null,null,null," - ",null,null," - ","João Ferreira do Amaral",""]
[null,null,null," - ",null,null," - ","João Luís Barroso",""]
[null,null,null," - ",null,null," - ","João Madeira",""]
[null,null,null," - ",null,null," - ","João Marques",""]
[null,null,null," - ",null,null," - ","João Marques com o contributo de Maria Isabel Ferraz de Oliveira, Maria Helena Guimarães e Teresa Pinto Correia",""]
[null,null,null," - ",null,null," - ","João Marques e Rui Trindade",""]
[null,null,null," - ",null,null," - ","João Nicolau",""]
[null,null,null," - ",null,null," - ","João Onofre",""]
[null,null,null," - ",null,null," - ","João Pacheco",""]
[null,null,null," - ",null,null," - ","João Paulo Marques",""]
[null,null,null," - ",null,null," - ","João Pereira",""]
[null,null,null," - ",null,null," - ","João Pinho",""]
[null,null,null," - ",null,null," - ","João Reis",""]
[null,null,null," - ",null,null," - ","João Ribeiro Lima",""]
[null,null,null," - ",null,null," - ","Joaquim Cabral Rolo",""]
[null,null,null," - ",null,null," - ","Joaquim Domingos Ângelo",""]
[null,null,null," - ",null,null," - ","Joaquim Pedro Torres",""]
[null,null,null," - ",null,null," - ","Joaquim Sampaio",""]
[null,null,null," - ",null,null," - ","Joaquim Sande Silva e Ernesto de Deus",""]
[null,null,null," - ",null,null," - ","John Bell",""]
[null,null,null," - ",null,null," - ","Jorge Canhoto",""]
[null,null,null," - ",null,null," - ","Jorge Jordão",""]
[null,null,null," - ",null,null," - ","Jorge Monteiro",""]
[null,null,null," - ",null,null," - ","Jorge Neves"]
[null,null,null," - ",null,null," - ","José Bernardo Nunes"]
[null,null,null," - ",null,null," - ","José Castro Caldas"]
[null,null,null," - ",null,null," - ","José Félix Ribeiro"]
[null,null,null," - ",null,null," - ","José Lima Santos"]
[null,null,null," - ",null,null," - ","José Manuel Félix Ribeiro"]
[null,null,null," - ",null,null," - ","José Manuel Lima Santos"]
[null,null,null," - ",null,null," - ","José Martino"]
[null,null,null," - ",null,null," - ","José Miguel Cardoso Pereira"]
[null,null,null," - ",null,null," - ","José Moreira da Silva e Alexandre Roque"]
[null,null,null," - ",null,null," - ","José Núncio e Carina Arranja"]
[null,null,null," - ",null,null," - ","José Núncio, Carina Arranja e Diana Cordeiro"]
[null,null,null," - ",null,null," - ","José Pedro Fragoso de Almeida, José Paulo Nunes, Fernando Carpinteiro Albino e Francisco\nAtaíde Pavão"]
[null,null,null," - ",null,null," - ","José Pedro Salema"]
[null,null,null,{"$f":"+A179& \" - \" &B179","v":" - "},null,null,{"$f":"+IF($W$7=1,D179,IF($W$7=2,H179,$G$7))","v":" - "},"José Rafael Marques da Silva, Carlos Palma, Filipa Santos, Filipe Vieira, Ivan Lopez, Leonor Queiroga,\nLuís Encarnação, Luís Paixão, Manuela Correia, Mariano Terron, Miguel Messias, Patrícia\nLourenço, Pedro Mendes, Rita Serrenho, Vanessa Duarte e Mário Luís"]
[null,null,null," - ",null,null," - ","José Ramalho Fontes e Fernando Bianchi de Aguiar (org.)"]
[null,null,null," - ",null,null," - ","José Sousa Uva"]
[null,null,null," - ",null,null," - ","José Vasco Serrano"]
[null,null,null," - ",null,null," - ","Júlia Seixas"]
[null,null,null," - ",null,null," - ","Laura Fonseca, Rui Trindade e Rui Pereira"]
[null,null,null," - ",null,null," - ","Louise O. Fresco e Krijn J. Poppe"]
[null,null,null," - ",null,null," - ","Lúcio do Rosário"]
[null,null,null," - ",null,null," - ","Luís Barreiros"]
[null,null,null," - ",null,null," - ","Luís Gil, Rainério Pires e Alexandra Nicolau"]
[null,null,null," - ",null,null," - ","Luís Malpique, Ferry Enthoven e Paul Dolleman"]
[null,null,null," - ",null,null," - ","Luís Mira"]
[null,null,null," - ",null,null," - ","Luís Mira da Silva e Maria Pedro Silva"]
[null,null,null," - ",null,null," - ","Lurdes Soares e Fátima Catarino"]
[null,null,null," - ",null,null," - ","Manuel Chaveiro Soares"]
[null,null,null," - ",null,null," - ","Manuel Gómez Ariza e Óscar Veroz González"]
[null,null,null," - ",null,null," - ","Manuel Ladeiras"]
[null,null,null," - ",null,null," - ","Manuel Loureiro (coord.), com contributos de Rita Lourenço Costa, José Alexandre Araújo, Susana Carneiro, Pedro Teixeira, Margarida Mendes Silva, Isabel Carrasquinho, Filipe Costa e Silva, Ana Usié, Liliana Marum, Luís Leal, Cristina Santos, Ana Almeida e José Manuel Rodrigues"]
[null,null,null," - ",null,null," - ","Manuel Loureiro e Maria Inês Nolasco"]
[null,null,null," - ",null,null," - ","Manuel Loureiro, José Barata, Francisco Caldeira"]
[null,null,null," - ",null,null," - ","Manuel Loureiro, Rui Trindade, Paula Esteves, Patrícia Queirós e Isabel Escada"]
[null,null,null," - ",null,null," - ","Manuel Marcelo Curto"]
[null,null,null," - ",null,null," - ","Manuel Pinheiro"]
[null,null,null," - ",null,null," - ","Manuela Azevedo e Silva"]
[null,null,null," - ",null,null," - ","Margarida Ramires"]
[null,null,null," - ",null,null," - ","Margarida Silva"]
[null,null,null," - ",null,null," - ","Maria Antónia Figueiredo"]
[null,null,null," - ",null,null," - ","Maria Carlota Vaz Patto"]
[null,null,null," - ",null,null," - ","Maria Custódia Correia"]
[null,null,null," - ",null,null," - ","Maria Filomena Teixeira, Maria de Fátima Pisco, Carlos Montemor e Manuel Maduro Roxo"]
[null,null,null," - ",null,null," - ","Maria Helena Semedo"]
[null,null,null," - ",null,null," - ","Maria João Canadas e Ana Novais"]
[null,null,null," - ",null,null," - ","Maria João Maia"]
[null,null,null," - ",null,null," - ","Maria Manuel Valagão"]
[null,null,null," - ",null,null," - ","Mariana Mazzucato"]
[null,null,null," - ",null,null," - ","Mário Silva, Anabela Trindade"]
[null,null,null," - ",null,null," - ","Marta Mendonça e Cristina Crava"]
[null,null,null," - ",null,null," - ","Martin Stilwell"]
[null,null,null," - ",null,null," - ","Martine Durand"]
[null,null,null," - ",null,null," - ","Michael Antoniou e Claire Robinson"]
[null,null,null," - ",null,null," - ","Miguel Arias Cañete"]
[null,null,null," - ",null,null," - ","Miguel Miranda"]
[null,null,null," - ",null,null," - ","Nuno Barata Veras"]
[null,null,null," - ",null,null," - ","Nuno Calado"]
[null,null,null," - ",null,null," - ","Nuno Coimbra"]
[null,null,null," - ",null,null," - ","Nuno Fernandes Thomaz"]
[null,null,null," - ",null,null," - ","Nuno Moreira"]
[null,null,null," - ",null,null," - ","OCDE"]
[null,null,null," - ",null,null," - ","Olga Moreira e José Santos Silva"]
[null,null,null," - ",null,null," - ","Organização Internacional do Trabalho, Genebra (OIT), Suíça"]
[null,null,null," - ",null,null," - ","Organização para a Cooperação e o Desenvolvimento Económicos (OCDE)"]
[null,null,null," - ",null,null," - ","Paula Cruz de Carvalho"]
[null,null,null," - ",null,null," - ","Paulo Canaveira"]
[null,null,null," - ",null,null," - ","Paulo Fernandes e Nuno Guiomar"]
[null,null,null," - ",null,null," - ","Paulo Preto dos Santos"]
[null,null,null," - ",null,null," - ","Pedro Castro Rego"]
[null,null,null," - ",null,null," - ","Pedro Castro Rego, Armando Torres Paulo e Jorge Soares"]
[null,null,null," - ",null,null," - ","Pedro Fevereiro"]
[null,null,null," - ",null,null," - ","Pedro Graça e Duarte Torres"]
[null,null,null," - ",null,null," - ","Pedro M.A. Miranda, Rita M. Cardoso, Pedro M.M. Soares, Maria Antónia Valente e Pedro Viterbo"]
[null,null,null," - ",null,null," - ","Pedro Mendes-Moreira, Isabel Dinis, Rosa Guilherme, Goreti Botelho, Ricardo Leitão, Daniela Santos"]
[null,null,null," - ",null,null," - ","Pedro Mendonça e Álvaro Mendonça"]
[null,null,null," - ",null,null," - ","Pedro Pimenta, John William Stilwell, Luís Fernando Bulhão Martins, Armando Torres Paulo, Manuel Chaveiro Soares e José Correia"]
[null,null,null," - ",null,null," - ","Pedro Pimentel"]
[null,null,null,{"$f":"+A243& \" - \" &B243","v":" - "},null,null,{"$f":"+IF($W$7=1,D243,IF($W$7=2,H243,$G$7))","v":" - "},"Pedro Portugal Gaspar"]
[null,null,null," - ",null,null," - ","Pedro Queiroz"]
[null,null,null," - ",null,null," - ","Pedro Santos"]
[null,null,null," - ",null,null," - ","Pedro Serrano"]
[null,null,null," - ",null,null," - ","Pedro Torres"]
[null,null,null," - ",null,null," - ","Petros Angelopoulos e Gijs Schilthuis"]
[null,null,null," - ",null,null," - ","Phil Hogan"]
[null,null,null," - ",null,null," - ","Pia Bucella"]
[null,null,null," - ",null,null," - ","Pierre Bascou"]
[null,null,null," - ",null,null," - ","Rachel Bickford"]
[null,null,null," - ",null,null," - ","Relatório Anual Sobre Agroecologia"]
[null,null,null," - ",null,null," - ","Ricardo Braga"]
[null,null,null," - ",null,null," - ","Ricardo Serralheiro"]
[null,null,null," - ",null,null," - ","Robert Finger e Nadja El Benni"]
[null,null,null," - ",null,null," - ","Roger L. Martin"]
[null,null,null," - ",null,null," - ","Rogério Ferreira e Catarina Cunha"]
[null,null,null," - ",null,null," - ","Rogério Rodrigues"]
[null,null,null," - ",null,null," - ","Rufino Acosta Naranjo e José Ramón Guzmán Álvarez"]
[null,null,null," - ",null,null," - ","Rui Pereira"]
[null,null,null," - ",null,null," - ","Rui Trindade"]
[null,null,null," - ",null,null," - ","Rui Trindade e Manuel Loureiro"]
[null,null,null," - ",null,null," - ","Rui Trindade e Rui Pereira"]
[null,null,null," - ",null,null," - ","Rui Trindade, Paula Esteves"]
[null,null,null," - ",null,null," - ","Rui Trindade, Rui Pereira e David Sousa"]
[null,null,null," - ",null,null," - ","Sandra Martinho e Francisco Avillez"]
[null,null,null," - ",null,null," - ","Sandra Pires"]
[null,null,null," - ",null,null," - ","Sangue na Guelra"]
[null,null,null," - ",null,null," - ","Sara Goulartt e Pedro Paes"]
[null,null,null," - ",null,null," - ","Sara M. Oliveira, Mariam Debs, Francisco Guimarães, Alejandro Garrido, Miguel Cerqueira, Lorenzo Pastrana"]
[null,null,null," - ",null,null," - ","Scott Reynolds Nelson, 2022"]
[null,null,null," - ",null,null," - ","Seaver Wang"]
[null,null,null," - ",null,null," - ","Sidónio Pardal"]
[null,null,null," - ",null,null," - ","Sjaak Wolfert, Luis Mira Da Silva, George Beers, Pompeu Dias, Judit Anda Ugarte, Marián Lora Lozano e Noemí Molina Sanz"]
[null,null,null," - ",null,null," - ","Suzana Tavares da Silva"]
[null,null,null," - ",null,null," - ","Tassos Haniotis"]
[null,null,null," - ",null,null," - ","Teresa Pinto Correia"]
[null,null,null," - ",null,null," - ","Teresa Pinto-Correia e Élia Pires-Marques"]
[null,null,null," - ",null,null," - ","Tiago Costa"]
[null,null,null," - ",null,null," - ","Tiago Domingos, Nuno Sarmento, Carlos MGL Teixeira, Cristina Marta-Pedroso, Ivo Gama, Lia Laporta, Marjan Jongen, Nuno Rodrigues, Ricardo F. M. Teixeira, Tatiana Valada, Tiago G. Morais e Vânia Proença"]
[null,null,null," - ",null,null," - ","Tiago Domingues e Ricardo Pinheiro Alves"]
[null,null,null," - ",null,null," - ","Tiago José Espada Bacalhau"]
[null,null,null," - ",null,null," - ","Tito Rosa"]
[null,null,null," - ",null,null," - ","Tyler Cowen"]
[null,null,null," - ",null,null," - ","Vanda Pires"]
[null,null,null," - ",null,null," - ","Vanda Pires, Tânia de Moura Cota e Álvaro Silva"]
[null,null,null," - ",null,null," - ","Vários"]
[null,null,null," - ",null,null," - ","Virgílio Loureiro, Leonor Freitas, Jaime Quendera, Maria Vicente e Pedro Hipólito"]
[null,null,null," - ",null,null," - ","Vítor Barros"]
[null,null,null," - ",null,null," - ","Vítor Rodrigues"]
[null,null,null," - ",null,null," - ","Wolf-Diether Roepke"]
[null,null,null," - ",null,null," - ","World Energy Outlook 2019, International Energy Agency"]
[null,null,null," - ",null,null," - ","Zia Mehrabi"]
[null,null,null," - ",null,null," - ","(em branco)"]
[null,null,null," - ",null,null," - ","Total Geral"]
[null,null,null," - ",null,null," - "]
[null,null,null," - ",null,null," - "]
[null,null,null," - ",null,null," - "]
[null,null,null," - ",null,null," - "]
[null,null,null," - ",null,null," - "]
[null,null,null," - ",null,null," - "]
[null,null,null," - ",null,null," - "]
[null,null,null," - ",null,null," - "]
[null,null,null," - ",null,null," - "]
[null,null,null," - ",null,null," - "]
[null,null,null,{"$f":"+A307& \" - \" &B307","v":" - "},null,null,{"$f":"+IF($W$7=1,D307,IF($W$7=2,H307,$G$7))","v":" - "}]
[null,null,null," - ",null,null," - "]
[null,null,null," - ",null,null," - "]
[null,null,null," - ",null,null," - "]
[null,null,null," - ",null,null," - "]
[null,null,null," - ",null,null," - "]
[null,null,null," - ",null,null," - "]
[null,null,null," - ",null,null," - "]
[null,null,null," - ",null,null," - "]
[null,null,null," - ",null,null," - "]
[null,null,null," - ",null,null," - "]
[null,null,null," - ",null,null," - "]
[null,null,null," - ",null,null," - "]
[null,null,null," - ",null,null," - "]
[null,null,null," - ",null,null," - "]
[null,null,null," - ",null,null," - "]
[null,null,null," - ",null,null," - "]
[null,null,null," - ",null,null," - "]
[null,null,null," - ",null,null," - "]
[null,null,null," - ",null,null," - "]
[null,null,null," - ",null,null," - "]
[null,null,null," - ",null,null," - "]
[null,null,null," - ",null,null," - "]
[null,null,null," - ",null,null," - "]
[null,null,null," - ",null,null," - "]
[null,null,null," - ",null,null," - "]
[null,null,null," - ",null,null," - "]
[null,null,null," - ",null,null," - "]
[null,null,null," - ",null,null," - "]
[null,null,null," - ",null,null," - "]
[null,null,null," - ",null,null," - "]
[null,null,null," - ",null,null," - "]
[null,null,null," - ",null,null," - "]
[null,null,null," - ",null,null," - "]
[null,null,null," - ",null,null," - "]
[null,null,null," - ",null,null," - "]
[null,null,null," - ",null,null," - "]
[null,null,null," - ",null,null," - "]
[null,null,null," - ",null,null," - "]
[null,null,null," - ",null,null," - "]
[null,null,null," - ",null,null," - "]
[null,null,null," - ",null,null," - "]
[null,null,null," - ",null,null," - "]
[null,null,null," - ",null,null," - "]
[null,null,null," - ",null,null," - "]
[null,null,null," - ",null,null," - "]
[null,null,null," - ",null,null," - "]
[null,null,null," - ",null,null," - "]
[null,null,null," - ",null,null," - "]
[null,null,null," - ",null,null," - "]
[null,null,null," - ",null,null," - "]
[null,null,null," - ",null,null," - "]
[null,null,null," - ",null,null," - "]
[null,null,null," - ",null,null," - "]
[null,null,null," - ",null,null," - "]
[null,null,null," - ",null,null," - "]
[null,null,null," - ",null,null," - "]
[null,null,null," - ",null,null," - "]
[null,null,null," - ",null,null," - "]
[null,null,null," - ",null,null," - "]
[null,null,null," - ",null,null," - "]
[null,null,null," - ",null,null," - "]
[null,null,null," - ",null,null," - "]
[null,null,null," - ",null,null," - "]
[null,null,null,{"$f":"+A371& \" - \" &B371","v":" - "},null,null,{"$f":"+IF($W$7=1,D371,IF($W$7=2,H371,$G$7))","v":" - "}]
[null,null,null," - ",null,null," - "]
[null,null,null," - ",null,null," - "]
[null,null,null," - ",null,null," - "]
[null,null,null," - ",null,null," - "]
[null,null,null," - ",null,null," - "]
[null,null,null," - ",null,null," - "]
[null,null,null," - ",null,null," - "]
[null,null,null," - ",null,null," - "]
[null,null,null," - ",null,null," - "]
[null,null,null," - ",null,null," - "]
[null,null,null," - ",null,null," - "]
[null,null,null," - ",null,null," - "]
[null,null,null," - ",null,null," - "]
[null,null,null," - ",null,null," - "]
[null,null,null," - ",null,null," - "]
[null,null,null," - ",null,null," - "]
[null,null,null," - ",null,null," - "]
[null,null,null," - ",null,null," - "]
[null,null,null," - ",null,null," - "]
[null,null,null," - ",null,null," - "]
[null,null,null," - ",null,null," - "]
[null,null,null," - ",null,null," - "]
[null,null,null," - ",null,null," - "]
[null,null,null," - ",null,null," - "]
[null,null,null," - ",null,null," - "]
[null,null,null," - ",null,null," - "]
[null,null,null," - ",null,null," - "]
[null,null,null," - ",null,null," - "]
[null,null,null," - ",null,null," - "]
[null,null,null," - ",null,null," - "]
[null,null,null," - ",null,null," - "]
[null,null,null," - ",null,null," - "]
[null,null,null," - ",null,null," - "]
[null,null,null," - ",null,null," - "]
[null,null,null," - ",null,null," - "]
[null,null,null," - ",null,null," - "]
[null,null,null," - ",null,null," - "]
[null,null,null," - ",null,null," - "]
[null,null,null," - ",null,null," - "]
[null,null,null," - ",null,null," - "]
[null,null,null," - ",null,null," - "]
[null,null,null," - ",null,null," - "]
[null,null,null," - ",null,null," - "]
[null,null,null," - ",null,null," - "]
[null,null,null," - ",null,null," - "]
[null,null,null," - ",null,null," - "]
[null,null,null," - ",null,null," - "]
[null,null,null," - ",null,null," - "]
[null,null,null," - ",null,null," - "]
[null,null,null," - ",null,null," - "]
[null,null,null," - ",null,null," - "]
[null,null,null," - ",null,null," - "]
[null,null,null," - ",null,null," - "]
[null,null,null," - ",null,null," - "]
[null,null,null," - ",null,null," - "]
[null,null,null," - ",null,null," - "]
[null,null,null," - ",null,null," - "]
[null,null,null," - ",null,null," - "]
[null,null,null," - ",null,null," - "]
[null,null,null," - ",null,null," - "]
[null,null,null," - ",null,null," - "]
[null,null,null," - ",null,null," - "]
[null,null,null," - ",null,null," - "]
[null,null,null,{"$f":"+A435& \" - \" &B435","v":" - "},null,null,{"$f":"+IF($W$7=1,D435,IF($W$7=2,H435,$G$7))","v":" - "}]
[null,null,null," - ",null,null," - "]
[null,null,null," - ",null,null," - "]
[null,null,null," - ",null,null," - "]
[null,null,null," - ",null,null," - "]
[null,null,null," - ",null,null," - "]
[null,null,null," - ",null,null," - "]
[null,null,null," - ",null,null," - "]
[null,null,null," - ",null,null," - "]
[null,null,null," - ",null,null," - "]
[null,null,null," - ",null,null," - "]
[null,null,null," - ",null,null," - "]
[null,null,null," - ",null,null," - "]
[null,null,null," - ",null,null," - "]
[null,null,null," - ",null,null," - "]
[null,null,null," - ",null,null," - "]
[null,null,null," - ",null,null," - "]
[null,null,null," - ",null,null," - "]
[null,null,null," - ",null,null," - "]
[null,null,null," - ",null,null," - "]
[null,null,null," - ",null,null," - "]
[null,null,null," - ",null,null," - "]
[null,null,null," - ",null,null," - "]
[null,null,null," - ",null,null," - "]
[null,null,null," - ",null,null," - "]
[null,null,null," - ",null,null," - "]
[null,null,null," - ",null,null," - "]
[null,null,null," - ",null,null," - "]
[null,null,null," - ",null,null," - "]
[null,null,null," - ",null,null," - "]
[null,null,null," - ",null,null," - "]
[null,null,null," - ",null,null," - "]
[null,null,null," - ",null,null," - "]
[null,null,null," - ",null,null," - "]
[null,null,null," - ",null,null," - "]
[null,null,null," - ",null,null," - "]
[null,null,null," - ",null,null," - "]
[null,null,null," - ",null,null," - "]
[null,null,null," - ",null,null," - "]
[null,null,null," - ",null,null," - "]
[null,null,null," - ",null,null," - "]
[null,null,null," - ",null,null," - "]
[null,null,null," - ",null,null," - "]
[null,null,null," - ",null,null," - "]
[null,null,null," - ",null,null," - "]
[null,null,null," - ",null,null," - "]
[null,null,null," - ",null,null," - "]
[null,null,null," - ",null,null," - "]
[null,null,null," - ",null,null," - "]
[null,null,null," - ",null,null," - "]
[null,null,null," - ",null,null," - "]
[null,null,null," - ",null,null," - "]
[null,null,null," - ",null,null," - "]
[null,null,null," - ",null,null," - "]
[null,null,null," - ",null,null," - "]
[null,null,null," - ",null,null," - "]
[null,null,null," - ",null,null," - "]
[null,null,null," - ",null,null," - "]
[null,null,null," - ",null,null," - "]
[null,null,null," - ",null,null," - "]
[null,null,null," - ",null,null," - "]
[null,null,null," - ",null,null," - "]
[null,null,null," - ",null,null," - "]
[null,null,null," - ",null,null," - "]
[null,null,null,{"$f":"+A499& \" - \" &B499","v":" - "},null,null,{"$f":"+IF($W$7=1,D499,IF($W$7=2,H499,$G$7))","v":" - "}]
[null,null,null," - ",null,null," - "]
[null,null,null," - ",null,null," - "]
[null,null,null," - ",null,null," - "]
[null,null,null," - ",null,null," - "]
[null,null,null," - ",null,null," - "]
[null,null,null," - ",null,null," - "]
[null,null,null," - ",null,null," - "]
[null,null,null," - ",null,null," - "]
[null,null,null," - ",null,null," - "]
[null,null,null," - ",null,null," - "]
[null,null,null," - ",null,null," - "]
[null,null,null," - ",null,null," - "]
[null,null,null," - ",null,null," - "]
[null,null,null," - ",null,null," - "]
[null,null,null," - ",null,null," - "]
[null,null,null," - ",null,null," - "]
[null,null,null," - ",null,null," - "]
[null,null,null," - ",null,null," - "]
[null,null,null," - ",null,null," - "]
[null,null,null," - ",null,null," - "]
[null,null,null," - ",null,null," - "]
[null,null,null," - ",null,null," - "]
[null,null,null," - ",null,null," - "]
[null,null,null," - ",null,null," - "]
[null,null,null," - ",null,null," - "]
[null,null,null," - ",null,null," - "]
[null,null,null," - ",null,null," - "]
[null,null,null," - ",null,null," - "]
[null,null,null," - ",null,null," - "]
[null,null,null," - ",null,null," - "]
[null,null,null," - ",null,null," - "]
[null,null,null," - ",null,null," - "]
[null,null,null," - ",null,null," - "]
[null,null,null," - ",null,null," - "]
[null,null,null," - ",null,null," - "]
[null,null,null," - ",null,null," - "]
[null,null,null," - ",null,null," - "]
[null,null,null," - ",null,null," - "]
[null,null,null," - ",null,null," - "]
[null,null,null," - ",null,null," - "]
[null,null,null," - ",null,null," - "]
[null,null,null," - ",null,null," - "]
[null,null,null," - ",null,null," - "]
[null,null,null," - ",null,null," - "]
[null,null,null," - ",null,null," - "]
[null,null,null," - ",null,null," - "]
[null,null,null," - ",null,null," - "]
[null,null,null," - ",null,null," - "]
[null,null,null," - ",null,null," - "]
[null,null,null," - ",null,null," - "]
[null,null,null," - ",null,null," - "]
[null,null,null," - ",null,null," - "]
[null,null,null," - ",null,null," - "]
[null,null,null," - ",null,null," - "]
[null,null,null," - ",null,null," - "]
[null,null,null," - ",null,null," - "]
[null,null,null," - ",null,null," - "]
[null,null,null," - ",null,null," - "]
[null,null,null," - ",null,null," - "]
[null,null,null," - ",null,null," - "]
[null,null,null," - ",null,null," - "]
[null,null,null," - ",null,null," - "]
[null,null,null," - ",null,null," - "]
[null,null,null,{"$f":"+A563& \" - \" &B563","v":" - "},null,null,{"$f":"+IF($W$7=1,D563,IF($W$7=2,H563,$G$7))","v":" - "}]
[null,null,null," - ",null,null," - "]
[null,null,null," - ",null,null," - "]
[null,null,null," - ",null,null," - "]
[null,null,null," - ",null,null," - "]
[null,null,null," - ",null,null," - "]
[null,null,null," - ",null,null," - "]
[null,null,null," - ",null,null," - "]
[null,null,null," - ",null,null," - "]
[null,null,null," - ",null,null," - "]
[null,null,null," - ",null,null," - "]
[null,null,null," - ",null,null," - "]

{"sheet":"Sheet3","index":3,"n_rows":292,"n_cols":1,"rows_kept":292,"cut":false,"hidden":true,"merged":[]}
[]
[]
["Rótulos de Linha"]
["Abílio Dias Fernandes"]
["Adam Smith"]
["Aida Campos e Narcisa Bandarra"]
["Alan Matthews"]
["Albert Silbert, Orlando Ribeiro, 1970"]
["Alberto Ribeiro de Almeida"]
["Alessando Gargani, Gianluca Massimi, Vincent Floreani e Balazs Podmaniczky"]
["Alexandra Prado Coelho"]
["Alfredo Cunhal Sendim"]
["Alfredo Serra Mendes"]
["Álvaro Garrido"]
["Ana Costa Freitas"]
["Ana Filipa Fernandes e Guilherme Azambuja"]
["Ana Filipe de Morais"]
["Ana Maria Barata, Carlos Gaspar, Filomena Rocha, Isabel Silva, Madalena Vaz, Octávio Serra e Violeta Lopes"]
["Ana Maria Barata, Carlos Gaspar, Filomena Rocha, Violeta Lopes"]
["Ana Rita Moura"]
["Ana Rita Moura e Ana Teresa Silva"]
["Ana Rita Moura e Rui Trindade"]
["Ana Sofia Sampaio"]
["Anove – Asociación Nacional de Obtentores Vegetales; Institut Cerdà"]
["ANSEME e Plataforma Transgénicos Fora"]
["Antero Martins e Elsa Gonçalves"]
["António Alberto Gonçalves Ferreira e António Gonçalves Ferreira"]
["António Cerca Miguel"]
["António Cunha"]
["Antonio Duarte Pinho"]
["Antonio Fontainhas Fernandes"]
["António Garcia Pereira"]
["António Serrano"]
["Artur Barracosa Mendonça et al., 2023"]
["Artur Cristóvão, António Montalvão Machado e António Cerca Miguel"]
["Augusto Mateus & Associados, Sociedade de Consultores, Lda."]
["Bee Wilson"]
["Benvindo Maçãs, Rita Costa, Teresa Carita, Graça Pereira, António Manuel Cordeiro, Ana Sofia Bagulho, Nuno Simões, João Paulo Carneiro, Carla Inês, Isabel Duarte, Fernanda Simões, Teresa Carvalho, Nuno Pinheiro, Conceição Gomes, Armindo Costa, Carina Barcelos, Manuela Meneses, Cátia Nunes e José Pragana"]
["Bernardo Gouvêa"]
["Bernardo Machado"]
["Broothaerts, W., Jacchia, S., Angers, A., Petrillo, M., Querci, M., Savini, C., Van den Eede, G. e Emons, H."]
["Bruno Dimas"]
["Bruno Dimas e Ana Rita Moura"]
["Bruno Dimas e Rui Pereira"]
["CAP – Confederação dos Agricultores de Portugal e P-BIO – Associação Portuguesa de Bioindústria"]
["Carlo Pettinelli e Jaroslaw Swierczynar"]
["Carlos Aguiar e Ana Carvalho"]
["Carlos Alberto Frutuosa"]
["Carlos Brito"]
["Carlos Carvalho"]
["Carlos Guimarães Pinto"]
["Carlos Moedas"]
["Carlos Neves"]
["Carlos Oliveira Santos"]
["Catarina Ginja e Carolina Bruno de Sousa"]
["Catarina Grilo e Tiago Luís"]
["Catherine Geslain-Laneelle"]
["Christine Tacon"]
["Clara Moura Guedes"]
["Cláudia Gonçalves"]
["Comissão Europeia"]
["Comissão Europeia, Publications Office of the European Union, Luxemburgo"]
["Conferência Ministerial Agrícola dos países do MED9, 2024"]
["Cristiana Vaz"]
["Cristina Branquinho, Vânia Proença, Filipa Grilo, Idalina Dias Sardinha, Margarida Lima Faria, José Carlos Franco, Rui Figueira, Maria Manuel Romeiras, Filipa Monteiro, Luís F. Goulão, Margarida Santos-Reis"]
["Cristina Neves"]
["Diana Silva e Maria João Valentim"]
["Diogo Amorim"]
["Direção-Geral de Agricultura e Desenvolvimento Rural (DGADR)"]
["Direção-Geral de Política do Mar (DGPM)"]
["Domingos Patacho"]
["Eduardo Diniz"]
["Eduardo Diniz e Bruno Dimas"]
["Eduardo Diniz, Cristina Vasques e Paula Carvalho"]
["Elisabete Figueiredo"]
["Elizabete Marchante e Hélia Marchante"]
["Eugénio Sequeira"]
["FAO - Organização das Nações Unidas para a Alimentação e a Agricultura"]
["Fátima Baptista"]
["Fátima Leitão"]
["Federação das Indústrias Portuguesas Agroalimentares (FIPA)"]
["Fernando Bianchi de Aguiar"]
["Fernando Chagas Duarte"]
["Fernando Oliveira Baptista e Joaquim Cabral Rolo"]
["Filipe Charters de Azevedo"]
["Francesco Castellano, Riccardo Pignatti e Letizia Ingaldo"]
["Francisca Marçal \nSantos"]
["Francisco Avillez e Mário de Carvalho"]
["Francisco Avillez, Miguel Vieira Lopes e Gonçalo Vale"]
["Francisco Bendrao Sarmento"]
["Francisco Cordovil"]
["Francisco Ferreira"]
["Francisco Gírio"]
["Francisco Gomes da Silva"]
["Francisco Moreira e Ângela Lomba"]
["Francisco Nunes Correia"]
["Francisco Ónega López"]
["Francisco Sarmento"]
["Francisco Toscano Rico"]
["Gabinete de Planeamento, Políticas e Administração Geral (GPP)"]
["Gabinete de Planeamento, Políticas e Administração Geral (GPP) e Direção-Geral de Agricultura e Desenvolvimento Rural (DGADR)"]
["Gabinete de Planeamento, Políticas e Administração Geral (GPP) e Instituto Nacional de Investigação Agrária e Veterinária (INIAV)"]
["Gabinete de Planeamento, Políticas e Administração Geral (GPP), Direção-Geral de Agricultura e Desenvolvimento Rural (DGADR) e Agência Portuguesa do Ambiente (APA)"]
["Gabriela Cruz"]
["George Sandeman"]
["Gilles Morel"]
["Global Commission on the Geopolitics of Energy Transformation"]
["Gonçalo Santos Andrade"]
["Helder Muteia"]
["Helena Sequeira "]
["Helene Schmutzler"]
["Henrique Gomes"]
["Henrique Pereira dos Santos"]
["Henrique Soares e Pedro Castro Rego"]
["Hervé Guyomard, Alix Bell e Cécile Détang-Dessendre"]
["Humberto Delgado Rosa"]
["Igor Gonçalves, Cristina Carlos e Rosa Amador"]
["Inês Costa"]
["Inês Morais, Paula Rodrigues e Laura Rodrigues"]
["Inocêncio Seita Coelho e David Henrique Machado"]
["Instituto da Conservação da Natureza e das Florestas, I.P. (ICNF)"]
["Isabel Apolinário"]
["Isabel Botelho Leal"]
["Isabel Escada Mendes"]
["Isabel Ribeiro"]
["Isabel Rodrigo"]
["Jaime Braga"]
["Jaime Ferreira"]
["Jaime Piçarra"]
["Jean Cordier"]
["Joana Amaral Paulo"]
["Joana Simão Costa, Vasco Ferreira e Paula Pinho"]
["João Cardoso"]
["João Carlos Verde"]
["João Coimbra"]
["João Crisóstomo"]
["João Ferrão"]
["João Ferreira do Amaral"]
["João Luís Barroso"]
["João Madeira"]
["João Marques"]
["João Marques com o contributo de Maria Isabel Ferraz de Oliveira, Maria Helena Guimarães e Teresa Pinto Correia"]
["João Marques e Rui Trindade"]
["João Nicolau"]
["João Onofre"]
["João Pacheco"]
["João Paulo Marques"]
["João Pereira"]
["João Pinho"]
["João Reis"]
["João Ribeiro Lima"]
["Joaquim Cabral Rolo"]
["Joaquim Domingos Ângelo"]
["Joaquim Pedro Torres"]
["Joaquim Sampaio"]
["Joaquim Sande Silva e Ernesto de Deus"]
["John Bell"]
["Jorge Canhoto"]
["Jorge Jordão"]
["Jorge Monteiro"]
["Jorge Neves"]
["José Bernardo Nunes"]
["José Castro Caldas"]
["José Félix Ribeiro"]
["José Lima Santos"]
["José Manuel Félix Ribeiro"]
["José Manuel Lima Santos"]
["José Martino"]
["José Miguel Cardoso Pereira"]
["José Moreira da Silva e Alexandre Roque"]
["José Núncio e Carina Arranja"]
["José Núncio, Carina Arranja e Diana Cordeiro"]
["José Pedro Fragoso de Almeida, José Paulo Nunes, Fernando Carpinteiro Albino e Francisco\nAtaíde Pavão"]
["José Pedro Salema"]
["José Rafael Marques da Silva, Carlos Palma, Filipa Santos, Filipe Vieira, Ivan Lopez, Leonor Queiroga,\nLuís Encarnação, Luís Paixão, Manuela Correia, Mariano Terron, Miguel Messias, Patrícia\nLourenço, Pedro Mendes, Rita Serrenho, Vanessa Duarte e Mário Luís"]
["José Ramalho Fontes e Fernando Bianchi de Aguiar (org.)"]
["José Sousa Uva"]
["José Vasco Serrano"]
["Júlia Seixas"]
["Laura Fonseca, Rui Trindade e Rui Pereira"]
["Louise O. Fresco e Krijn J. Poppe"]
["Lúcio do Rosário"]
["Luís Barreiros"]
["Luís Gil, Rainério Pires e Alexandra Nicolau"]
["Luís Malpique, Ferry Enthoven e Paul Dolleman"]
["Luís Mira"]
["Luís Mira da Silva e Maria Pedro Silva"]
["Lurdes Soares e Fátima Catarino"]
["Manuel Chaveiro Soares"]
["Manuel Gómez Ariza e Óscar Veroz González"]
["Manuel Ladeiras"]
["Manuel Loureiro (coord.), com contributos de Rita Lourenço Costa, José Alexandre Araújo, Susana Carneiro, Pedro Teixeira, Margarida Mendes Silva, Isabel Carrasquinho, Filipe Costa e Silva, Ana Usié, Liliana Marum, Luís Leal, Cristina Santos, Ana Almeida e José Manuel Rodrigues"]
["Manuel Loureiro e Maria Inês Nolasco"]
["Manuel Loureiro, José Barata, Francisco Caldeira"]
["Manuel Loureiro, Rui Trindade, Paula Esteves, Patrícia Queirós e Isabel Escada"]
["Manuel Marcelo Curto"]
["Manuel Pinheiro"]
["Manuela Azevedo e Silva"]
["Margarida Ramires"]
["Margarida Silva"]
["Maria Antónia Figueiredo"]
["Maria Carlota Vaz Patto"]
["Maria Custódia Correia"]
["Maria Filomena Teixeira, Maria de Fátima Pisco, Carlos Montemor e Manuel Maduro Roxo"]
["Maria Helena Semedo"]
["Maria João Canadas e Ana Novais"]
["Maria João Maia"]
["Maria Manuel Valagão"]
["Mariana Mazzucato"]
["Mário Silva, Anabela Trindade"]
["Marta Mendonça e Cristina Crava"]
["Martin Stilwell"]
["Martine Durand"]
["Michael Antoniou e Claire Robinson"]
["Miguel Arias Cañete"]
["Miguel Miranda"]
["Nuno Barata Veras"]
["Nuno Calado"]
["Nuno Coimbra"]
["Nuno Fernandes Thomaz"]
["Nuno Moreira"]
["OCDE"]
["Olga Moreira e José Santos Silva"]
["Organização Internacional do Trabalho, Genebra (OIT), Suíça"]
["Organização para a Cooperação e o Desenvolvimento Económicos (OCDE)"]
["Paula Cruz de Carvalho"]
["Paulo Canaveira"]
["Paulo Fernandes e Nuno Guiomar"]
["Paulo Preto dos Santos"]
["Pedro Castro Rego"]
["Pedro Castro Rego, Armando Torres Paulo e Jorge Soares"]
["Pedro Fevereiro"]
["Pedro Graça e Duarte Torres"]
["Pedro M.A. Miranda, Rita M. Cardoso, Pedro M.M. Soares, Maria Antónia Valente e Pedro Viterbo"]
["Pedro Mendes-Moreira, Isabel Dinis, Rosa Guilherme, Goreti Botelho, Ricardo Leitão, Daniela Santos"]
["Pedro Mendonça e Álvaro Mendonça"]
["Pedro Pimenta, John William Stilwell, Luís Fernando Bulhão Martins, Armando Torres Paulo, Manuel Chaveiro Soares e José Correia"]
["Pedro Pimentel"]
["Pedro Portugal Gaspar"]
["Pedro Queiroz"]
["Pedro Santos"]
["Pedro Serrano"]
["Pedro Torres"]
["Petros Angelopoulos e Gijs Schilthuis"]
["Phil Hogan"]
["Pia Bucella"]
["Pierre Bascou"]
["Rachel Bickford"]
["Relatório Anual Sobre Agroecologia"]
["Ricardo Braga"]
["Ricardo Serralheiro"]
["Robert Finger e Nadja El Benni"]
["Roger L. Martin"]
["Rogério Ferreira e Catarina Cunha"]
["Rogério Rodrigues"]
["Rufino Acosta Naranjo e José Ramón Guzmán Álvarez"]
["Rui Pereira"]
["Rui Trindade"]
["Rui Trindade e Manuel Loureiro"]
["Rui Trindade e Rui Pereira"]
["Rui Trindade, Paula Esteves"]
["Rui Trindade, Rui Pereira e David Sousa"]
["Sandra Martinho e Francisco Avillez"]
["Sandra Pires"]
["Sangue na Guelra"]
["Sara Goulartt e Pedro Paes"]
["Sara M. Oliveira, Mariam Debs, Francisco Guimarães, Alejandro Garrido, Miguel Cerqueira, Lorenzo Pastrana"]
["Scott Reynolds Nelson, 2022"]
["Seaver Wang"]
["Sidónio Pardal"]
["Sjaak Wolfert, Luis Mira Da Silva, George Beers, Pompeu Dias, Judit Anda Ugarte, Marián Lora Lozano e Noemí Molina Sanz"]
["Suzana Tavares da Silva"]
["Tassos Haniotis"]
["Teresa Pinto Correia"]
["Teresa Pinto-Correia e Élia Pires-Marques"]
["Tiago Costa"]
["Tiago Domingos, Nuno Sarmento, Carlos MGL Teixeira, Cristina Marta-Pedroso, Ivo Gama, Lia Laporta, Marjan Jongen, Nuno Rodrigues, Ricardo F. M. Teixeira, Tatiana Valada, Tiago G. Morais e Vânia Proença"]
["Tiago Domingues e Ricardo Pinheiro Alves"]
["Tiago José Espada Bacalhau"]
["Tito Rosa"]
["Tyler Cowen"]
["Vanda Pires"]
["Vanda Pires, Tânia de Moura Cota e Álvaro Silva"]
["Vários"]
["Virgílio Loureiro, Leonor Freitas, Jaime Quendera, Maria Vicente e Pedro Hipólito"]
["Vítor Barros"]
["Vítor Rodrigues"]
["Wolf-Diether Roepke"]
["World Energy Outlook 2019, International Energy Agency"]
["Zia Mehrabi"]
["(em branco)"]
["Total Geral"]

{"sheet":"Links1_10","index":4,"n_rows":33,"n_cols":3,"rows_kept":33,"cut":false,"hidden":true,"merged":[]}
["N.º","Link novo","Link antigo"]
[1,"https://www.gpp.pt/images/GPP/O_que_disponibilizamos/Publicacoes/CULTIVAR_1/E_book/CULTIVAR_1_Volatilidade_dos_Mercados_Agricolas/","https://www.gpp.pt/images/GPP/O_que_disponibilizamos/Publicacoes/CULTIVAR_1/CULTIVAR_1/assets/basic-html/"]
[2,"https://www.gpp.pt/images/GPP/O_que_disponibilizamos/Publicacoes/CULTIVAR_2/E_book/CULTIVAR_2_O_SOLO/","https://www.gpp.pt/images/GPP/O_que_disponibilizamos/Publicacoes/CULTIVAR_2/CULTIVAR_2/assets/basic-html/"]
[3,"https://www.gpp.pt/images/GPP/O_que_disponibilizamos/Publicacoes/CULTIVAR_3/E_book/CULTIVAR_3_Alimentacao_sustentavel_e_saudavel/"]
[4,"https://www.gpp.pt/images/GPP/O_que_disponibilizamos/Publicacoes/CULTIVAR_4/E_book/CULTIVAR_4_Tecnologia/"]
[5,"https://www.gpp.pt/images/GPP/O_que_disponibilizamos/Publicacoes/CULTIVAR_5/E_book/CULTIVAR_5_Economia_da_agua/"]
[6,"https://www.gpp.pt/images/GPP/O_que_disponibilizamos/Publicacoes/CULTIVAR_6/E_book/CULTIVAR_6_Comercio_Internacional/"]
[7,"https://www.gpp.pt/images/GPP/O_que_disponibilizamos/Publicacoes/CULTIVAR_7/E-book/CULTIVAR_7_O_Risco_na_atividade_economica/"]
[8,"https://www.gpp.pt/images/GPP/O_que_disponibilizamos/Publicacoes/CULTIVAR_8/E-book/CULTIVAR_8_Biodiversidade/"]
[9,"https://www.gpp.pt/images/GPP/O_que_disponibilizamos/Publicacoes/CULTIVAR_9/E_book/CULTIVAR_9_Gastronomia/"]
[10,"https://www.gpp.pt/images/GPP/O_que_disponibilizamos/Publicacoes/CULTIVAR_10/E_book/CULTIVAR_10_Trabalho_na_agricultura_e_as_novas_tendencias_laborais/"]
[11,{"$f":"+ \"https://www.gpp.pt/images/GPP/O_que_disponibilizamos/Publicacoes/CULTIVAR_\" &A12","v":"https://www.gpp.pt/images/GPP/O_que_disponibilizamos/Publicacoes/CULTIVAR_11"}]
[12,{"$f":"+ \"https://www.gpp.pt/images/GPP/O_que_disponibilizamos/Publicacoes/CULTIVAR_\" &A13","v":"https://www.gpp.pt/images/GPP/O_que_disponibilizamos/Publicacoes/CULTIVAR_12"}]
[13,{"$f":"+ \"https://www.gpp.pt/images/GPP/O_que_disponibilizamos/Publicacoes/CULTIVAR\" &A14","v":"https://www.gpp.pt/images/GPP/O_que_disponibilizamos/Publicacoes/CULTIVAR13"}]
[14,{"$f":"+ \"https://www.gpp.pt/images/GPP/O_que_disponibilizamos/Publicacoes/CULTIVAR\" &A15","v":"https://www.gpp.pt/images/GPP/O_que_disponibilizamos/Publicacoes/CULTIVAR14"}]
[15,{"$f":"+ \"https://www.gpp.pt/images/GPP/O_que_disponibilizamos/Publicacoes/CULTIVAR_\" &A16","v":"https://www.gpp.pt/images/GPP/O_que_disponibilizamos/Publicacoes/CULTIVAR_15"}]
[16,"https://www.gpp.pt/images/GPP/O_que_disponibilizamos/Publicacoes/CULTIVAR_16"]
[17,"https://www.gpp.pt/images/GPP/O_que_disponibilizamos/Publicacoes/CULTIVAR_17"]
[18,"https://www.gpp.pt/images/GPP/O_que_disponibilizamos/Publicacoes/CULTIVAR_18"]
[19,"https://www.gpp.pt/images/GPP/O_que_disponibilizamos/Publicacoes/CULTIVAR_19"]
[20,"https://www.gpp.pt/images/GPP/O_que_disponibilizamos/Publicacoes/CULTIVAR_20"]
[21,"https://www.gpp.pt/images/GPP/O_que_disponibilizamos/Publicacoes/CULTIVAR_21"]
["22a","https://www.gpp.pt/images/GPP/O_que_disponibilizamos/Publicacoes/CULTIVAR_22/E-book_PT/CULTIVAR_22-Edicao_especial"]
["22b","https://www.gpp.pt/images/GPP/O_que_disponibilizamos/Publicacoes/CULTIVAR_22/E-book_EN/CULTIVAR_22-Special_Issue","https://www.gpp.pt/images/GPP/O_que_disponibilizamos/Publicacoes/CULTIVAR_22/E-book_PT/CULTIVAR_22-Edicao_especial/"]
[23,"https://www.gpp.pt/images/GPP/O_que_disponibilizamos/Publicacoes/CULTIVAR_23/"]
[24,"https://www.gpp.pt/images/GPP/O_que_disponibilizamos/Publicacoes/CULTIVAR_24/"]
[25,"https://www.gpp.pt/images/GPP/O_que_disponibilizamos/Publicacoes/CULTIVAR_25/"]
[26,"https://www.gpp.pt/images/GPP/O_que_disponibilizamos/Publicacoes/CULTIVAR_26/"]
[27,"https://www.gpp.pt/images/GPP/O_que_disponibilizamos/Publicacoes/CULTIVAR_27/"]
[28,"https://www.gpp.pt/images/GPP/O_que_disponibilizamos/Publicacoes/CULTIVAR_28/"]
[29,"https://www.gpp.pt/images/GPP/O_que_disponibilizamos/Publicacoes/CULTIVAR_29/"]
[30,"https://www.gpp.pt/images/GPP/O_que_disponibilizamos/Publicacoes/CULTIVAR_30/"]
[31,"https://www.gpp.pt/images/GPP/O_que_disponibilizamos/Publicacoes/CULTIVAR_31/"]